Workbook

Sheet Changes from V1
B2: V1 locked down on 25/11/2022
B3: V2 created because V1-links broken sent to Green house PR for DFES doc
B4: V3 created to ensure whatever went into the final DFES was captured, though will match v2
B5: Changes since 25/11/2022 to be recorded here
B6: Vehicle Stock and Penetration added | F6: 2022-11-28

Sheet DFES Doc - Demand
O1: Charts and Tables
G3: NOTE - 2022 is 2022/23. 2023 is the first forecast year (for 1 April 2023 to 31 March 2024)
A5: DFES Doc 2023
G7: DFES Doc 2023
G8: =O8 -> Electrical Energy Consumption (GWh) | H8: 2025 | I8: 2030 | J8: 2040 | K8: 2050 | O8: Electrical Energy Consumption (GWh) | P8: 2022 | Q8: 2025 | R8: 2030 | S8: 2040 | T8: 2050 | U8: GB rough estimate by 2050 (not UK - no NI)
G9: DFES 2023 - Consumer Transformation | H9: =Q9 -> 36366.46229 | I9: 43340.51017 | J9: 55693.97836 | K9: 66305.97254 | O9: DFES 2023 - Consumer Transformation | P9: ='Energy Consumed (Core_LCT_HGV)'!$B2/1000 -> 34347.33833 | Q9: ='Energy Consumed (Core_LCT_HGV)'!$E2/1000 -> 36366.46229 | R9: ='Energy Consumed (Core_LCT_HGV)'!$L2/1000 -> 43340.51017 | S9: ='Energy Consumed (Core_LCT_HGV)'!$T2/1000 -> 55693.97836 | T9: ='Energy Consumed (Core_LCT_HGV)'!$AD2/1000 -> 66305.97254 | U9: =T9*7 -> 464141.8078
G10: DFES 2023 - System Transformation | H10: 36444.70566 | I10: 42957.8764 | J10: 52628.35204 | K10: 62401.02192 | O10: DFES 2023 - System Transformation | P10: ='Energy Consumed (Core_LCT_HGV)'!$B3/1000 -> 34340.89559 | Q10: ='Energy Consumed (Core_LCT_HGV)'!$E3/1000 -> 36444.70566 | R10: ='Energy Consumed (Core_LCT_HGV)'!$L3/1000 -> 42957.8764 | S10: ='Energy Consumed (Core_LCT_HGV)'!$T3/1000 -> 52628.35204 | T10: ='Energy Consumed (Core_LCT_HGV)'!$AD3/1000 -> 62401.02192 | U10: =T10*7 -> 436807.1535
G11: DFES 2023 - Leading The Way | H11: 36423.13189 | I11: 46216.38573 | J11: 60167.24762 | K11: 64391.68111 | O11: DFES 2023 - Leading The Way | P11: ='Energy Consumed (Core_LCT_HGV)'!$B4/1000 -> 34347.33833 | Q11: ='Energy Consumed (Core_LCT_HGV)'!$E4/1000 -> 36423.13189 | R11: ='Energy Consumed (Core_LCT_HGV)'!$L4/1000 -> 46216.38573 | S11: ='Energy Consumed (Core_LCT_HGV)'!$T4/1000 -> 60167.24762 | T11: ='Energy Consumed (Core_LCT_HGV)'!$AD4/1000 -> 64391.68111 | U11: 450741.7678
G12: DFES 2023 - NPg Best View | H12: =Q15 -> 36356.23007 | I12: =R15 -> 43658.30463 | J12: =S15 -> 55125.6804 | K12: =T15 -> 64972.68753 | O12: CCC 2020 - Balanced Net Zero | P12: ='Energy Consumed (Core_LCT_HGV)'!$B5/1000 -> 33913.75361 | Q12: ='Energy Consumed (Core_LCT_HGV)'!$E5/1000 -> 34692.69649 | R12: ='Energy Consumed (Core_LCT_HGV)'!$L5/1000 -> 44165.2127 | S12: ='Energy Consumed (Core_LCT_HGV)'!$T5/1000 -> 58967.90376 | T12: ='Energy Consumed (Core_LCT_HGV)'!$AD5/1000 -> 67270.64603 | U12: 470894.5222
G13: DFES 2023 - Falling Short | H13: =Q17 -> 36029.72018 | I13: =R17 -> 41073.49427 | J13: =S17 -> 47713.39334 | K13: =T17 -> 51552.91089 | O13: CT 2023 Policy Sensitivity | P13: ='Energy Consumed (Core_LCT_HGV)'!$B6/1000 -> 34336.94283 | Q13: ='Energy Consumed (Core_LCT_HGV)'!$E6/1000 -> 36498.06849 | R13: ='Energy Consumed (Core_LCT_HGV)'!$L6/1000 -> 43177.91512 | S13: ='Energy Consumed (Core_LCT_HGV)'!$T6/1000 -> 57226.29283 | T13: ='Energy Consumed (Core_LCT_HGV)'!$AD6/1000 -> 72203.59637 | U13: 505425.1746
O14: BV 2023 Policy Sensitivity | P14: ='Energy Consumed (Core_LCT_HGV)'!$B7/1000 -> 34336.94283 | Q14: ='Energy Consumed (Core_LCT_HGV)'!$E7/1000 -> 36553.91716 | R14: ='Energy Consumed (Core_LCT_HGV)'!$L7/1000 -> 43897.05993 | S14: ='Energy Consumed (Core_LCT_HGV)'!$T7/1000 -> 57497.52608 | T14: ='Energy Consumed (Core_LCT_HGV)'!$AD7/1000 -> 71966.87197 | U14: 503768.1038
O15: DFES 2023 - NPg Best View | P15: ='Energy Consumed (Core_LCT_HGV)'!$B8/1000 -> 34347.33833 | Q15: ='Energy Consumed (Core_LCT_HGV)'!$E8/1000 -> 36356.23007 | R15: ='Energy Consumed (Core_LCT_HGV)'!$L8/1000 -> 43658.30463 | S15: ='Energy Consumed (Core_LCT_HGV)'!$T8/1000 -> 55125.6804 | T15: ='Energy Consumed (Core_LCT_HGV)'!$AD8/1000 -> 64972.68753 | U15: 454808.8127
O16: NPg ED2 Planning Scenario - needs updating to old | P16: ='Energy Consumed (Core_LCT_HGV)'!$B9/1000 -> 33821.64533 | Q16: ='Energy Consumed (Core_LCT_HGV)'!$E9/1000 -> 34763.48244 | R16: ='Energy Consumed (Core_LCT_HGV)'!$L9/1000 -> 45188.12174 | S16: ='Energy Consumed (Core_LCT_HGV)'!$T9/1000 -> 61247.89425 | T16: ='Energy Consumed (Core_LCT_HGV)'!$AD9/1000 -> 68578.01292 | U16: 480046.0904
O17: DFES 2023 - Falling Short | P17: ='Energy Consumed (Core_LCT_HGV)'!$B10/1000 -> 34336.94283 | Q17: ='Energy Consumed (Core_LCT_HGV)'!$E10/1000 -> 36029.72018 | R17: ='Energy Consumed (Core_LCT_HGV)'!$L10/1000 -> 41073.49427 | S17: ='Energy Consumed (Core_LCT_HGV)'!$T10/1000 -> 47713.39334 | T17: ='Energy Consumed (Core_LCT_HGV)'!$AD10/1000 -> 51552.91089 | U17: 360870.3762
O20: PS using emerging thinking consumption - quite different for Evs
O21: Different starting points due to different energy efficiency assumptions in 2020 - and these were not updated this year
O24: DFES 2023 - Consumer Transformation | Q24: R 255 | R24: G 191 | S24: B 34
O25: DFES 2023 - System Transformation | Q25: R 91 | R25: G 203 | S25: B 245
O26: DFES 2023 - Leading The Way | Q26: R 194 | R26: G 205 | S26: B 35
O27: CCC 2020 - Balanced Net Zero | Q27: R113 | R27: G66 | S27: B255
O28: CT 2023 Policy Sensitivity | Q28: R202 | R28: G120 | S28: B128
O29: BV 2023 Policy Sensitivity | Q29: R205 | R29: G231 | S29: B176
O30: DFES 2023 - NPg Best View | Q30: R192 | R30: G0 | S30: B0
O31: NPg ED2 Planning Scenario - needs updating to old | Q31: R 0 | R31: G 171 | S31: B 132
O32: DFES 2023 - Falling Short | Q32: R 130 | R32: G 123 | S32: B 122
G38: DFES Doc 2023
A39: DFES Doc 2023 | G39: =O39 -> Gross Peak Demand (MW) | H39: 2025 | I39: 2030 | J39: 2040 | K39: 2050 | N39: GB rough estimate by 2050 (not UK - no NI) | O39: Gross Peak Demand (MW) | P39: 2022 | Q39: 2025 | R39: 2030 | S39: 2040 | T39: 2050 | U39: End of ED2 | V39: End of ED2 with TouT | W39: Comparative Impact ED2 | X39: Comparative Impact ED2 (TouT) | AM39: Number of constrained sites | AN39: End of ED2 | AO39: End of ED2 with TouT | AP39: Comparative Impact ED2 | AQ39: Comparative Impact ED2 (TouT)
G40: DFES 2023 - Consumer Transformation | H40: =Q40 -> 6711.526093 | I40: 7650.910626 | J40: 10482.25698 | K40: 13024.31081 | N40: =V40*7 -> 0 | O40: DFES 2023 - Consumer Transformation | P40: ='Gross Peak Demand'!$B2 -> 5995.712559 | Q40: ='Gross Peak Demand'!$E2 -> 6711.526093 | R40: ='Gross Peak Demand'!$J$2 -> 7650.910626 | S40: ='Gross Peak Demand'!$T$2 -> 10482.25698 | T40: ='Gross Peak Demand'!$AD$2 -> 13024.31081 | U40: ='Gross Peak Demand'!$G2 -> 7130.193904 | V40: ='Gross Peak Demand'!$G38 -> 0 | W40: =U40-$U$46 -> 5.993218296 | X40: =V40-$V$46 -> -7002.638896 | AM40: DFES 2023 - Consumer Transformation | AN40: ='Cumul Abs Constraints CF-'!$G2 -> 17 | AO40: ='Cumul Abs Constraints CF+'!$G2 -> 0 | AP40: =AN40-$AN$46 -> 0 | AQ40: =AO40-$AO$46 -> -15
G41: DFES 2023 - System Transformation | H41: 6760.646909 | I41: 7650.820764 | J41: 10044.95934 | K41: 13175.17392 | N41: 0 | O41: DFES 2023 - System Transformation | P41: ='Gross Peak Demand'!$B3 -> 6021.497055 | Q41: ='Gross Peak Demand'!$E3 -> 6760.646909 | R41: ='Gross Peak Demand'!$J$3 -> 7650.820764 | S41: ='Gross Peak Demand'!$T$3 -> 10044.95934 | T41: ='Gross Peak Demand'!$AD$3 -> 13175.17392 | U41: ='Gross Peak Demand'!$G3 -> 7103.895986 | V41: ='Gross Peak Demand'!$G39 -> 0 | W41: =U41-$U$46 -> -20.30469961 | X41: =V41-$V$46 -> -7002.638896 | AM41: DFES 2023 - System Transformation | AN41: ='Cumul Abs Constraints CF-'!$G3 -> 18 | AO41: ='Cumul Abs Constraints CF+'!$G3 -> 0 | AP41: 1 | AQ41: -15
G42: DFES 2023 - Leading The Way | H42: 6720.34205 | I42: 7742.013068 | J42: 11675.73164 | K42: 12673.99236 | N42: 0 | O42: DFES 2023 - Leading The Way | P42: ='Gross Peak Demand'!$B4 -> 5995.712559 | Q42: ='Gross Peak Demand'!$E4 -> 6720.34205 | R42: ='Gross Peak Demand'!$J4 -> 7742.013068 | S42: ='Gross Peak Demand'!$T4 -> 11675.73164 | T42: ='Gross Peak Demand'!$AD4 -> 12673.99236 | U42: ='Gross Peak Demand'!$G4 -> 7169.978353 | V42: ='Gross Peak Demand'!$G40 -> 0 | W42: 45.77766677 | X42: -7002.638896 | AM42: DFES 2023 - Leading The Way | AN42: ='Cumul Abs Constraints CF-'!$G4 -> 17 | AO42: ='Cumul Abs Constraints CF+'!$G4 -> 0 | AP42: 0 | AQ42: -15
G43: DFES 2023 - NPg Best View | H43: =Q46 -> 6636.263825 | I43: =R46 -> 7448.612809 | J43: =S46 -> 9994.440387 | K43: =T46 -> 12433.63611 | N43: 0 | O43: CCC 2020 - Balanced Net Zero | P43: ='Gross Peak Demand'!$B5 -> 7196.583307 | Q43: ='Gross Peak Demand'!$E5 -> 7365.170567 | R43: ='Gross Peak Demand'!$J5 -> 8446.49357 | S43: ='Gross Peak Demand'!$T5 -> 11581.06417 | T43: ='Gross Peak Demand'!$AD5 -> 13100.98545 | U43: ='Gross Peak Demand'!$G5 -> 7641.39649 | V43: ='Gross Peak Demand'!$G41 -> 0 | W43: 517.1958041 | X43: -7002.638896 | AM43: CCC 2020 - Balanced Net Zero | AN43: ='Cumul Abs Constraints CF-'!$G5 -> 14 | AO43: ='Cumul Abs Constraints CF+'!$G5 -> 0 | AP43: -3 | AQ43: -15
G44: DFES 2023 - Falling Short | H44: =Q48 -> 6675.287739 | I44: =R48 -> 7376.352363 | J44: =S48 -> 8786.803046 | K44: =T48 -> 9370.306132 | N44: 0 | O44: CT 2023 Policy Sensitivity | P44: ='Gross Peak Demand'!$B6 -> 5994.884664 | Q44: ='Gross Peak Demand'!$E6 -> 6734.017617 | R44: ='Gross Peak Demand'!$J6 -> 7574.361133 | S44: ='Gross Peak Demand'!$T6 -> 10725.73165 | T44: ='Gross Peak Demand'!$AD6 -> 14243.82659 | U44: ='Gross Peak Demand'!$G6 -> 7029.962905 | V44: ='Gross Peak Demand'!$G42 -> 0 | W44: -94.23778071 | X44: -7002.638896 | AM44: CT 2023 Policy Sensitivity | AN44: ='Cumul Abs Constraints CF-'!$G6 -> 16 | AO44: ='Cumul Abs Constraints CF+'!$G6 -> 0 | AP44: -1 | AQ44: -15
N45: 0 | O45: BV 2023 Policy Sensitivity | P45: ='Gross Peak Demand'!$B7 -> 5994.884664 | Q45: ='Gross Peak Demand'!$E7 -> 6737.79207 | R45: ='Gross Peak Demand'!$J7 -> 7608.794081 | S45: ='Gross Peak Demand'!$T7 -> 10746.31318 | T45: ='Gross Peak Demand'!$AD7 -> 14226.32865 | U45: ='Gross Peak Demand'!$G7 -> 7041.153022 | V45: ='Gross Peak Demand'!$G43 -> 0 | W45: -83.04766428 | X45: -7002.638896 | AM45: BV 2023 Policy Sensitivity | AN45: ='Cumul Abs Constraints CF-'!$G7 -> 15 | AO45: ='Cumul Abs Constraints CF+'!$G7 -> 0 | AP45: -2 | AQ45: -15
N46: 49018.47227 | O46: DFES 2023 - NPg Best View | P46: ='Gross Peak Demand'!$B44 -> 5986.164637 | Q46: ='Gross Peak Demand'!$E44 -> 6636.263825 | R46: ='Gross Peak Demand'!$J44 -> 7448.612809 | S46: ='Gross Peak Demand'!$T44 -> 9994.440387 | T46: ='Gross Peak Demand'!$AD44 -> 12433.63611 | U46: ='Gross Peak Demand'!$G8 -> 7124.200686 | V46: ='Gross Peak Demand'!$G44 -> 7002.638896 | W46: 0 | X46: 0 | AM46: DFES 2023 - NPg Best View counterfactual no ToUT | AN46: ='Cumul Abs Constraints CF-'!$G8 -> 17 | AO46: ='Cumul Abs Constraints CF+'!$G8 -> 15 | AP46: 0 | AQ46: 0
N47: 52980.3918 | O47: NPg ED2 Planning Scenario - needs updating to old | P47: ='Gross Peak Demand'!$B9 -> 7176.747841 | Q47: ='Gross Peak Demand'!$E9 -> 7370.614469 | R47: ='Gross Peak Demand'!$J$9 -> 8586.711949 | S47: ='Gross Peak Demand'!$T$9 -> 12030.03146 | T47: ='Gross Peak Demand'!$AD$9 -> 13369.14774 | U47: ='Gross Peak Demand'!$G9 -> 7659.466331 | V47: ='Gross Peak Demand'!$G45 -> 7568.6274 | W47: 535.2656452 | X47: 565.9885038 | AM47: NPg ED2 Planning Scenario - needs updating to old | AN47: ='Cumul Abs Constraints CF-'!$G9 -> 13 | AO47: ='Cumul Abs Constraints CF+'!$G9 -> 0 | AP47: -4 | AQ47: -15
N48: 0 | O48: DFES 2023 - Falling Short | P48: ='Gross Peak Demand'!$B10 -> 6021.389369 | Q48: ='Gross Peak Demand'!$E10 -> 6675.287739 | R48: ='Gross Peak Demand'!$J$10 -> 7376.352363 | S48: ='Gross Peak Demand'!$T$10 -> 8786.803046 | T48: ='Gross Peak Demand'!$AD$10 -> 9370.306132 | U48: ='Gross Peak Demand'!$G10 -> 6913.64966 | V48: ='Gross Peak Demand'!$G46 -> 0 | W48: -210.5510255 | X48: -7002.638896 | AM48: DFES 2023 - Falling Short | AN48: ='Cumul Abs Constraints CF-'!$G10 -> 15 | AO48: ='Cumul Abs Constraints CF+'!$G10 -> 0 | AP48: -2 | AQ48: -15
O50: Different starting points due to different energy efficiency assumptions in 2020 - and these were not updated this year
A74: DFES Doc 2023
AP76: 350764.7
AP77: 15678.6
AP78: 314668
AP79: =SUM(AP77:AP78) -> 330346.6
AP80: =AP76-AP79 -> 20418.1
G92: =O92 -> Gross Peak Demand - With price driven flexibility (MW) | H92: 2025 | I92: 2030 | J92: 2040 | K92: 2050 | O92: Gross Peak Demand - With price driven flexibility (MW) | P92: 2022 | Q92: 2025 | R92: 2030 | S92: 2040 | T92: 2050
G93: DFES 2023 - Consumer Transformation | H93: =Q93 -> 0 | I93: 0 | J93: 0 | K93: 0 | O93: DFES 2023 - Consumer Transformation | P93: ='Gross Peak Demand'!$B38 -> 0 | Q93: ='Gross Peak Demand'!$E38 -> 0 | R93: ='Gross Peak Demand'!$J38 -> 0 | S93: ='Gross Peak Demand'!$T38 -> 0 | T93: ='Gross Peak Demand'!$AD38 -> 0
G94: DFES 2023 - System Transformation | H94: 0 | I94: 0 | J94: 0 | K94: 0 | O94: DFES 2023 - System Transformation | P94: ='Gross Peak Demand'!$B39 -> 0 | Q94: ='Gross Peak Demand'!$E39 -> 0 | R94: ='Gross Peak Demand'!$J39 -> 0 | S94: ='Gross Peak Demand'!$T39 -> 0 | T94: ='Gross Peak Demand'!$AD39 -> 0
G95: DFES 2023 - Leading The Way | H95: 0 | I95: 0 | J95: 0 | K95: 0 | O95: DFES 2023 - Leading The Way | P95: ='Gross Peak Demand'!$B40 -> 0 | Q95: ='Gross Peak Demand'!$E40 -> 0 | R95: ='Gross Peak Demand'!$J40 -> 0 | S95: ='Gross Peak Demand'!$T40 -> 0 | T95: ='Gross Peak Demand'!$AD40 -> 0
G96: DFES 2023 - NPg Best View | H96: =Q99 -> 6636.263825 | I96: =R99 -> 7448.612809 | J96: =S99 -> 9994.440387 | K96: =T99 -> 12433.63611 | O96: CCC 2020 - Balanced Net Zero
G97: DFES 2023 - Falling Short | H97: =Q101 -> 0 | I97: =R101 -> 0 | J97: =S101 -> 0 | K97: =T101 -> 0 | O97: CT 2023 Policy Sensitivity
O98: BV 2023 Policy Sensitivity
O99: DFES 2023 - NPg Best View | P99: ='Gross Peak Demand'!$B44 -> 5986.164637 | Q99: ='Gross Peak Demand'!$E44 -> 6636.263825 | R99: ='Gross Peak Demand'!$J44 -> 7448.612809 | S99: ='Gross Peak Demand'!$T44 -> 9994.440387 | T99: ='Gross Peak Demand'!$AD44 -> 12433.63611
O100: NPg ED2 Planning Scenario - needs updating to old | P100: ='Gross Peak Demand'!$B45 -> 7166.302741 | Q100: ='Gross Peak Demand'!$E45 -> 7324.948432 | R100: ='Gross Peak Demand'!$J45 -> 8372.406251 | S100: ='Gross Peak Demand'!$T45 -> 11499.4149 | T100: ='Gross Peak Demand'!$AD45 -> 12822.71847
O101: DFES 2023 - Falling Short | P101: ='Gross Peak Demand'!$B46 -> 0 | Q101: ='Gross Peak Demand'!$E46 -> 0 | R101: ='Gross Peak Demand'!$J46 -> 0 | S101: ='Gross Peak Demand'!$T46 -> 0 | T101: ='Gross Peak Demand'!$AD46 -> 0
O103: NOTE - Planning Scenario is a single line - including TouT
O131: Generation MIX 2050 | P131: CR | Q131: CR | R131: TD | S131: SP | T131: CE | V131: TO DO
O132: PV
O133: Large Solar
O134: Wind
O135: CHP/Other
O136: Total

Sheet DFES Doc - LCTs
A1: DFES Doc 2023 | O1: Charts and Tables
G2: DFES Doc 2023
G3: =O3 -> Electric Vehicles (No. Cars & Vans) | H3: 2025 | I3: 2030 | J3: 2040 | K3: 2050 | N3: 2027 m | O3: Electric Vehicles (No. Cars & Vans) | P3: 2022 | Q3: 2025 | R3: 2030 | S3: 2040 | T3: 2050 | U3: 2027 | V3: 2027 % change to PS | W3: GB rough estimate by 2050 (not UK - no NI)
G4: DFES 2023 - Consumer Transformation | H4: =Q4 -> 472997 | I4: 1938473 | J4: 4318289 | K4: 4734509 | N4: =U4/1000000 -> 1.000837 | O4: DFES 2023 - Consumer Transformation | P4: ='Electric Vehicles'!$B2 -> 86795 | Q4: ='Electric Vehicles'!$E$2 -> 472997 | R4: ='Electric Vehicles'!$J$2 -> 1938473 | S4: ='Electric Vehicles'!$T$2 -> 4318289 | T4: ='Electric Vehicles'!$AD$2 -> 4734509 | U4: ='Electric Vehicles'!$G2 -> 1000837 | V4: =(U4-U$10)/U$10 -> 0.05656331914 | W4: =T4*7 -> 33141563
G5: DFES 2023 - System Transformation | H5: 483066 | I5: 1847688 | J5: 3941590 | K5: 4363521 | N5: =U5/1000000 -> 0.98715 | O5: DFES 2023 - System Transformation | P5: ='Electric Vehicles'!$B3 -> 86795 | Q5: ='Electric Vehicles'!$E$3 -> 483066 | R5: ='Electric Vehicles'!$J$3 -> 1847688 | S5: ='Electric Vehicles'!$T$3 -> 3941590 | T5: ='Electric Vehicles'!$AD$3 -> 4363521 | U5: ='Electric Vehicles'!$G3 -> 987150 | V5: =(U5-U$10)/U$10 -> 0.04211423088 | W5: =T5*7 -> 30544647
G6: DFES 2023 - Leading The Way | H6: 455591 | I6: 1817732 | J6: 3935422 | K6: 4252384 | N6: 0.947257 | O6: DFES 2023 - Leading The Way | P6: ='Electric Vehicles'!$B4 -> 86795 | Q6: ='Electric Vehicles'!$E$4 -> 455591 | R6: ='Electric Vehicles'!$J$4 -> 1817732 | S6: ='Electric Vehicles'!$T$4 -> 3935422 | T6: ='Electric Vehicles'!$AD$4 -> 4252384 | U6: ='Electric Vehicles'!$G4 -> 947257 | V6: 0 | W6: 29766688
G7: DFES 2023 - NPg Best View | H7: =Q10 -> 455591 | I7: =R10 -> 1817732 | J7: =S10 -> 3935422 | K7: =T10 -> 4252384 | N7: 1.053328 | O7: CCC 2020 - Balanced Net Zero | P7: ='Electric Vehicles'!$B5 -> 123396 | Q7: ='Electric Vehicles'!$E$5 -> 590162 | R7: ='Electric Vehicles'!$J$5 -> 1879593 | S7: ='Electric Vehicles'!$T$5 -> 4553775 | T7: ='Electric Vehicles'!$AD$5 -> 5462205 | U7: ='Electric Vehicles'!$G5 -> 1053328 | V7: 0.1119770031 | W7: 38235435
G8: DFES 2023 - Falling Short | H8: =Q12 -> 302845 | I8: =R12 -> 1214726 | J8: =S12 -> 2804867 | K8: =T12 -> 3188191 | N8: 0.74186 | O8: CT 2023 Policy Sensitivity | P8: ='Electric Vehicles'!$B6 -> 86795 | Q8: ='Electric Vehicles'!$E$6 -> 367733 | R8: ='Electric Vehicles'!$J$6 -> 1576075 | S8: ='Electric Vehicles'!$T$6 -> 4016511 | T8: ='Electric Vehicles'!$AD$6 -> 4726348 | U8: ='Electric Vehicles'!$G6 -> 741860 | V8: -0.2168334465 | W8: 33084436
N9: 0.74186 | O9: BV 2023 Policy Sensitivity | P9: ='Electric Vehicles'!$B7 -> 86795 | Q9: ='Electric Vehicles'!$E$7 -> 367733 | R9: ='Electric Vehicles'!$J$7 -> 1576075 | S9: ='Electric Vehicles'!$T$7 -> 4016511 | T9: ='Electric Vehicles'!$AD$7 -> 4726348 | U9: ='Electric Vehicles'!$G7 -> 741860 | V9: -0.2168334465 | W9: 33084436 | AI9: OUT OF DATE
N10: 0.947257 | O10: DFES 2023 - NPg Best View | P10: ='Electric Vehicles'!$B8 -> 86795 | Q10: ='Electric Vehicles'!$E$8 -> 455591 | R10: ='Electric Vehicles'!$J$8 -> 1817732 | S10: ='Electric Vehicles'!$T$8 -> 3935422 | T10: ='Electric Vehicles'!$AD$8 -> 4252384 | U10: ='Electric Vehicles'!$G8 -> 947257 | V10: 0 | W10: 29766688 | AI10: 2019 | AJ10: 2020 | AK10: 2021 | AL10: 2022 | AM10: 2023 | AN10: 2024 | AO10: 2025 | AP10: 2026 | AQ10: 2027 | AR10: 2028 | AS10: 2029 | AT10: 2030 | AU10: 2031 | AV10: 2032 | AW10: 2033 | AX10: 2034 | AY10: 2035 | AZ10: 2036 | BA10: 2037 | BB10: 2038 | BC10: 2039 | BD10: 2040 | BE10: 2041 | BF10: 2042 | BG10: 2043 | BH10: 2044 | BI10: 2045 | BJ10: 2046 | BK10: 2047 | BL10: 2048 | BM10: 2049 | BN10: 2050
N11: 0.939481 | O11: NPg ED2 Planning Scenario - needs updating to old | P11: ='Electric Vehicles'!$B9 -> 108640 | Q11: ='Electric Vehicles'!$E$9 -> 523703 | R11: ='Electric Vehicles'!$J$9 -> 1843408 | S11: ='Electric Vehicles'!$T$9 -> 4589052 | T11: ='Electric Vehicles'!$AD$9 -> 5013445 | U11: ='Electric Vehicles'!$G9 -> 939481 | V11: -0.008208965466 | W11: 35094115 | AI11: 2019/20 | AJ11: 2020/21 | AK11: 2021/22 | AL11: 2022/23 | AM11: 2023/24 | AN11: 2024/25 | AO11: 2025/26 | AP11: 2026/27 | AQ11: 2027/28 | AR11: 2028/29 | AS11: 2029/30 | AT11: 2030/31 | AU11: 2031/32 | AV11: 2032/33 | AW11: 2033/34 | AX11: 2034/35 | AY11: 2035/36 | AZ11: 2036/37 | BA11: 2037/38 | BB11: 2038/39 | BC11: 2039/40 | BD11: 2040/41 | BE11: 2041/42 | BF11: 2042/43 | BG11: 2043/44 | BH11: 2044/45 | BI11: 2045/46 | BJ11: 2046/47 | BK11: 2047/48 | BL11: 2048/49 | BM11: 2049/50 | BN11: 2050/51
N12: 0.578584 | O12: DFES 2023 - Falling Short | P12: ='Electric Vehicles'!$B10 -> 86795 | Q12: ='Electric Vehicles'!$E$10 -> 302845 | R12: ='Electric Vehicles'!$J$10 -> 1214726 | S12: ='Electric Vehicles'!$T$10 -> 2804867 | T12: ='Electric Vehicles'!$AD$10 -> 3188191 | U12: ='Electric Vehicles'!$G10 -> 578584 | V12: -0.3892006076 | W12: 22317337 | AI12: 0.006 | AJ12: 0.007341987665 | AK12: 0.01335198211 | AL12: 0.02522992487 | AM12: 0.04862707102 | AN12: 0.07839366437 | AO12: 0.1153889936 | AP12: 0.1560129507 | AQ12: 0.2024996795 | AR12: 0.2547549796 | AS12: 0.3115165813 | AT12: 0.3851866942 | AU12: 0.454805712 | AV12: 0.5208596653 | AW12: 0.5828152843 | AX12: 0.6401046894 | AY12: 0.6923595333 | AZ12: 0.7395624569 | BA12: 0.7814004297 | BB12: 0.81780618 | BC12: 0.8489930272 | BD12: 0.8750638791 | BE12: 0.8958783232 | BF12: 0.9126086817 | BG12: 0.9255898784 | BH12: 0.9354324768 | BI12: 0.9427228315 | BJ12: 0.9477987255 | BK12: 0.951323906 | BL12: 0.9535888817 | BM12: 0.9550597243 | BN12: 0.9559627028
O14: 0.36 to 1.14 | P14: top | Q14: top | R14: =$U$9 -> 741860 | S14: =U9-$U$10 -> -205397 | T14: =S14/$R$16 -> -1.257974228
O15: 0.42 to 1.14 | P15: bottom | Q15: bottom | R15: =$U$12 -> 578584 | S15: =$U$10-U12 -> 368673 | T15: =S15/$R$16 -> 2.257974228
P16: range | Q16: range | R16: =R14-R15 -> 163276
AD17: DFES 2023 - Consumer Transformation | AF17: R 255 | AG17: G 191 | AH17: B 34
AD18: DFES 2023 - System Transformation | AF18: R 91 | AG18: G 203 | AH18: B 245
AD19: DFES 2023 - Leading The Way | AF19: R 194 | AG19: G 205 | AH19: B 35
AD20: CCC 2020 - Balanced Net Zero | AF20: R113 | AG20: G66 | AH20: B255
AD21: CT 2023 Policy Sensitivity | AF21: R202 | AG21: G120 | AH21: B128
AD22: BV 2023 Policy Sensitivity | AF22: R205 | AG22: G231 | AH22: B176
AD23: DFES 2023 - NPg Best View | AF23: R192 | AG23: G0 | AH23: B0
AD24: NPg ED2 Planning Scenario - needs updating to old | AF24: R 0 | AG24: G 171 | AH24: B 132
AD25: DFES 2023 - Falling Short | AF25: R 130 | AG25: G 123 | AH25: B 122
G33: DFES Doc 2023
G34: =O34 -> Residential Heat Pumps (No.) | H34: 2025 | I34: 2030 | J34: 2040 | K34: 2050 | O34: Residential Heat Pumps (No.) | P34: 2022 | Q34: 2025 | R34: 2030 | S34: 2040 | T34: 2050 | U34: 2027 | V34: GB rough estimate by 2050 (not UK - no NI)
G35: DFES 2023 - Consumer Transformation | H35: =Q35 -> 122193 | I35: 331198 | J35: 1327214 | K35: 2885461 | O35: DFES 2023 - Consumer Transformation | P35: ='Heat Pumps'!$B42 -> 42082 | Q35: ='Heat Pumps'!$E42 -> 122193 | R35: ='Heat Pumps'!$J42 -> 331198 | S35: ='Heat Pumps'!$T42 -> 1327214 | T35: ='Heat Pumps'!$AD42 -> 2885461 | U35: ='Heat Pumps'!$G42 -> 256245 | V35: =T35*7 -> 20198227
G36: DFES 2023 - System Transformation | H36: 83517 | I36: 184981 | J36: 569308 | K36: 1929217 | O36: DFES 2023 - System Transformation | P36: ='Heat Pumps'!$B43 -> 42082 | Q36: ='Heat Pumps'!$E43 -> 83517 | R36: ='Heat Pumps'!$J43 -> 184981 | S36: ='Heat Pumps'!$T43 -> 569308 | T36: ='Heat Pumps'!$AD43 -> 1929217 | U36: ='Heat Pumps'!$G43 -> 120077 | V36: 13504519
G37: DFES 2023 - Leading The Way | H37: 142089 | I37: 434967 | J37: 2239117 | K37: 2999426 | O37: DFES 2023 - Leading The Way | P37: ='Heat Pumps'!$B44 -> 42082 | Q37: ='Heat Pumps'!$E44 -> 142089 | R37: ='Heat Pumps'!$J44 -> 434967 | S37: ='Heat Pumps'!$T44 -> 2239117 | T37: ='Heat Pumps'!$AD44 -> 2999426 | U37: ='Heat Pumps'!$G44 -> 308046 | V37: 20995982
G38: DFES 2023 - NPg Best View | H38: =Q41 -> 122193 | I38: =R41 -> 331198 | J38: =S41 -> 1327214 | K38: =T41 -> 2885461 | O38: CCC 2020 - Balanced Net Zero | P38: ='Heat Pumps'!$B45 -> 46497 | Q38: ='Heat Pumps'!$E45 -> 134329 | R38: ='Heat Pumps'!$J45 -> 667995 | S38: ='Heat Pumps'!$T45 -> 2324055 | T38: ='Heat Pumps'!$AD45 -> 3395550 | U38: ='Heat Pumps'!$G45 -> 290242 | V38: 23768850 | AI38: OUT OF DATE
G39: DFES 2023 - Falling Short | H39: =Q43 -> 71543 | I39: =R43 -> 167693 | J39: =S43 -> 343921 | K39: =T43 -> 462356 | O39: CT 2023 Policy Sensitivity | P39: ='Heat Pumps'!$B46 -> 42082 | Q39: ='Heat Pumps'!$E46 -> 122920 | R39: ='Heat Pumps'!$J46 -> 225752 | S39: ='Heat Pumps'!$T46 -> 1176787 | T39: ='Heat Pumps'!$AD46 -> 2885461 | U39: ='Heat Pumps'!$G46 -> 159347 | V39: 20198227 | AI39: 2019 | AJ39: 2020 | AK39: 2021 | AL39: 2022 | AM39: 2023 | AN39: 2024 | AO39: 2025 | AP39: 2026 | AQ39: 2027 | AR39: 2028 | AS39: 2029 | AT39: 2030 | AU39: 2031 | AV39: 2032 | AW39: 2033 | AX39: 2034 | AY39: 2035 | AZ39: 2036 | BA39: 2037 | BB39: 2038 | BC39: 2039 | BD39: 2040 | BE39: 2041 | BF39: 2042 | BG39: 2043 | BH39: 2044 | BI39: 2045 | BJ39: 2046 | BK39: 2047 | BL39: 2048 | BM39: 2049 | BN39: 2050
O40: BV 2023 Policy Sensitivity | P40: ='Heat Pumps'!$B47 -> 42082 | Q40: ='Heat Pumps'!$E47 -> 122920 | R40: ='Heat Pumps'!$J47 -> 225752 | S40: ='Heat Pumps'!$T47 -> 1176787 | T40: ='Heat Pumps'!$AD47 -> 2885461 | U40: ='Heat Pumps'!$G47 -> 159347 | V40: 20198227 | AI40: 2019/20 | AJ40: 2020/21 | AK40: 2021/22 | AL40: 2022/23 | AM40: 2023/24 | AN40: 2024/25 | AO40: 2025/26 | AP40: 2026/27 | AQ40: 2027/28 | AR40: 2028/29 | AS40: 2029/30 | AT40: 2030/31 | AU40: 2031/32 | AV40: 2032/33 | AW40: 2033/34 | AX40: 2034/35 | AY40: 2035/36 | AZ40: 2036/37 | BA40: 2037/38 | BB40: 2038/39 | BC40: 2039/40 | BD40: 2040/41 | BE40: 2041/42 | BF40: 2042/43 | BG40: 2043/44 | BH40: 2044/45 | BI40: 2045/46 | BJ40: 2046/47 | BK40: 2047/48 | BL40: 2048/49 | BM40: 2049/50 | BN40: 2050/51
O41: DFES 2023 - NPg Best View | P41: ='Heat Pumps'!$B48 -> 42082 | Q41: ='Heat Pumps'!$E48 -> 122193 | R41: ='Heat Pumps'!$J48 -> 331198 | S41: ='Heat Pumps'!$T48 -> 1327214 | T41: ='Heat Pumps'!$AD48 -> 2885461 | U41: ='Heat Pumps'!$G48 -> 256245 | V41: 20198227 | AI41: 0.006 | AJ41: 0.007374393249 | AK41: 0.009229841003 | AL41: 0.01338316704 | AM41: 0.01818372313 | AN41: 0.02321612344 | AO41: 0.03639934502 | AP41: 0.05432819836 | AQ41: 0.07676424875 | AR41: 0.1055433037 | AS41: 0.1367873173 | AT41: 0.1727834306 | AU41: 0.205125647 | AV41: 0.2394738195 | AW41: 0.2780548279 | AX41: 0.3200033977 | AY41: 0.3650822493 | AZ41: 0.4074513218 | BA41: 0.4487561552 | BB41: 0.4905012661 | BC41: 0.5335583855 | BD41: 0.5735158993 | BE41: 0.6153280331 | BF41: 0.652721973 | BG41: 0.6852736686 | BH41: 0.7127578363 | BI41: 0.7373199913 | BJ41: 0.7592573413 | BK41: 0.7813815852 | BL41: 0.8034648841 | BM41: 0.8054487398 | BN41: 0.8054071327
O42: NPg ED2 Planning Scenario - needs updating to old | P42: ='Heat Pumps'!$B49 -> 42082 | Q42: ='Heat Pumps'!$E49 -> 122193 | R42: ='Heat Pumps'!$J49 -> 331198 | S42: ='Heat Pumps'!$T49 -> 1327214 | T42: ='Heat Pumps'!$AD49 -> 2885461 | U42: ='Heat Pumps'!$G49 -> 256245 | V42: 20198227
O43: DFES 2023 - Falling Short | P43: ='Heat Pumps'!$B50 -> 42082 | Q43: ='Heat Pumps'!$E50 -> 71543 | R43: ='Heat Pumps'!$J50 -> 167693 | S43: ='Heat Pumps'!$T50 -> 343921 | T43: ='Heat Pumps'!$AD50 -> 462356 | U43: ='Heat Pumps'!$G50 -> 107751 | V43: 3236492
G50: =O50 -> I&C Heat Pumps (No.) | H50: 2025 | I50: 2030 | J50: 2040 | K50: 2050 | O50: I&C Heat Pumps (No.) | P50: 2022 | Q50: 2025 | R50: 2030 | S50: 2040 | T50: 2050 | U50: GB rough estimate by 2050 (not UK - no NI)
G51: DFES 2023 - Consumer Transformation | H51: =Q51 -> 9542 | I51: 18744 | J51: 102871 | K51: 240675 | O51: DFES 2023 - Consumer Transformation | P51: ='Heat Pumps'!$B145 -> 7064 | Q51: ='Heat Pumps'!$E145 -> 9542 | R51: ='Heat Pumps'!$J145 -> 18744 | S51: ='Heat Pumps'!$T145 -> 102871 | T51: ='Heat Pumps'!$AD145 -> 240675 | U51: =T51*7 -> 1684725
G52: DFES 2023 - System Transformation | H52: 9276 | I52: 15323 | J52: 92973 | K52: 224332 | O52: DFES 2023 - System Transformation | P52: ='Heat Pumps'!$B146 -> 7064 | Q52: ='Heat Pumps'!$E146 -> 9276 | R52: ='Heat Pumps'!$J146 -> 15323 | S52: ='Heat Pumps'!$T146 -> 92973 | T52: ='Heat Pumps'!$AD146 -> 224332 | U52: =T52*7 -> 1570324
G53: DFES 2023 - Leading The Way | H53: 10151 | I53: 19939 | J53: 171675 | K53: 240675 | O53: DFES 2023 - Leading The Way | P53: ='Heat Pumps'!$B147 -> 7064 | Q53: ='Heat Pumps'!$E147 -> 10151 | R53: ='Heat Pumps'!$J147 -> 19939 | S53: ='Heat Pumps'!$T147 -> 171675 | T53: ='Heat Pumps'!$AD147 -> 240675 | U53: 1684725
G54: DFES 2023 - NPg Best View | H54: =Q57 -> 9542 | I54: =R57 -> 18744 | J54: =S57 -> 102871 | K54: =T57 -> 240675 | O54: CCC 2020 - Balanced Net Zero | P54: ='Heat Pumps'!$B148 -> 7759 | Q54: ='Heat Pumps'!$E148 -> 11651 | R54: ='Heat Pumps'!$J148 -> 23759 | S54: ='Heat Pumps'!$T148 -> 85896 | T54: ='Heat Pumps'!$AD148 -> 173421 | U54: 1213947
G55: DFES 2023 - Falling Short | H55: =Q59 -> 9326 | I55: =R59 -> 14660 | J55: =S59 -> 27382 | K55: =T59 -> 35304 | O55: CT 2023 Policy Sensitivity | P55: ='Heat Pumps'!$B149 -> 7064 | Q55: ='Heat Pumps'!$E149 -> 9513 | R55: ='Heat Pumps'!$J149 -> 14363 | S55: ='Heat Pumps'!$T149 -> 94000 | T55: ='Heat Pumps'!$AD149 -> 239615 | U55: 1677305
A56: DFES Doc 2023 | O56: BV 2023 Policy Sensitivity | P56: ='Heat Pumps'!$B150 -> 7064 | Q56: ='Heat Pumps'!$E150 -> 9513 | R56: ='Heat Pumps'!$J150 -> 14363 | S56: ='Heat Pumps'!$T150 -> 94000 | T56: ='Heat Pumps'!$AD150 -> 239615 | U56: 1677305
O57: DFES 2023 - NPg Best View | P57: ='Heat Pumps'!$B151 -> 7064 | Q57: ='Heat Pumps'!$E151 -> 9542 | R57: ='Heat Pumps'!$J151 -> 18744 | S57: ='Heat Pumps'!$T151 -> 102871 | T57: ='Heat Pumps'!$AD151 -> 240675 | U57: 1684725
O58: NPg ED2 Planning Scenario - needs updating to old | P58: ='Heat Pumps'!$B152 -> 7064 | Q58: ='Heat Pumps'!$E152 -> 9542 | R58: ='Heat Pumps'!$J152 -> 18744 | S58: ='Heat Pumps'!$T152 -> 102871 | T58: ='Heat Pumps'!$AD152 -> 240675 | U58: 1684725
O59: DFES 2023 - Falling Short | P59: ='Heat Pumps'!$B153 -> 7064 | Q59: ='Heat Pumps'!$E153 -> 9326 | R59: ='Heat Pumps'!$J153 -> 14660 | S59: ='Heat Pumps'!$T153 -> 27382 | T59: ='Heat Pumps'!$AD153 -> 35304 | U59: 247128
G68: DFES Doc 2023
G69: =O69 -> Total Heat Pumps (No.) | H69: 2025 | I69: 2030 | J69: 2040 | K69: 2050 | N69: 2027 m | O69: Total Heat Pumps (No.) | P69: 2022 | Q69: 2025 | R69: 2030 | S69: 2040 | T69: 2050 | U69: 2027 | V69: 2027 % change to PS | W69: GB rough estimate by 2050 (not UK - no NI) | AI69: DFES 2023 - Consumer Transformation | AK69: R 255 | AL69: G 191 | AM69: B 34
G70: DFES 2023 - Consumer Transformation | H70: =Q70 -> 131735 | I70: 349942 | J70: 1430085 | K70: 3126136 | N70: =U70/1000000 -> 0.26884 | O70: DFES 2023 - Consumer Transformation | P70: ='Heat Pumps'!$B2 -> 49147 | Q70: ='Heat Pumps'!$E$2 -> 131735 | R70: ='Heat Pumps'!$J$2 -> 349942 | S70: ='Heat Pumps'!$T$2 -> 1430085 | T70: ='Heat Pumps'!$AD$2 -> 3126136 | U70: ='Heat Pumps'!$G2 -> 268840 | V70: =(U70-U$76)/U$76 -> 0 | W70: =T70*7 -> 21882952 | AI70: DFES 2023 - System Transformation | AK70: R 91 | AL70: G 203 | AM70: B 245
G71: DFES 2023 - System Transformation | H71: 92793 | I71: 200303 | J71: 662282 | K71: 2153549 | N71: =U71/1000000 -> 0.131174 | O71: DFES 2023 - System Transformation | P71: ='Heat Pumps'!$B3 -> 49147 | Q71: ='Heat Pumps'!$E$3 -> 92793 | R71: ='Heat Pumps'!$J$3 -> 200303 | S71: ='Heat Pumps'!$T$3 -> 662282 | T71: ='Heat Pumps'!$AD$3 -> 2153549 | U71: ='Heat Pumps'!$G3 -> 131174 | V71: =(U71-U$76)/U$76 -> -0.5120740961 | W71: =T71*7 -> 15074843 | AI71: DFES 2023 - Leading The Way | AK71: R 194 | AL71: G 205 | AM71: B 35
G72: DFES 2023 - Leading The Way | H72: 152241 | I72: 454906 | J72: 2410792 | K72: 3240100 | N72: 0.321835 | O72: DFES 2023 - Leading The Way | P72: ='Heat Pumps'!$B4 -> 49147 | Q72: ='Heat Pumps'!$E$4 -> 152241 | R72: ='Heat Pumps'!$J$4 -> 454906 | S72: ='Heat Pumps'!$T$4 -> 2410792 | T72: ='Heat Pumps'!$AD$4 -> 3240100 | U72: ='Heat Pumps'!$G4 -> 321835 | V72: 0.1971246838 | W72: 22680700 | AI72: CCC 2020 - Balanced Net Zero | AK72: R113 | AL72: G66 | AM72: B255
G73: DFES 2023 - NPg Best View | H73: =Q76 -> 131735 | I73: =R76 -> 349942 | J73: =S76 -> 1430085 | K73: =T76 -> 3126136 | N73: 0.305335 | O73: CCC 2020 - Balanced Net Zero | P73: ='Heat Pumps'!$B5 -> 54255 | Q73: ='Heat Pumps'!$E$5 -> 145981 | R73: ='Heat Pumps'!$J$5 -> 691754 | S73: ='Heat Pumps'!$T$5 -> 2409952 | T73: ='Heat Pumps'!$AD$5 -> 3568971 | U73: ='Heat Pumps'!$G5 -> 305335 | V73: 0.1357498884 | W73: 24982797 | AI73: CT 2023 Policy Sensitivity | AK73: R202 | AL73: G120 | AM73: B128
G74: DFES 2023 - Falling Short | H74: =Q78 -> 80868 | I74: =R78 -> 182353 | J74: =S78 -> 371302 | K74: =T78 -> 497660 | N74: 0.170463 | O74: CT 2023 Policy Sensitivity | P74: ='Heat Pumps'!$B6 -> 49147 | Q74: ='Heat Pumps'!$E$6 -> 132433 | R74: ='Heat Pumps'!$J$6 -> 240115 | S74: ='Heat Pumps'!$T$6 -> 1270786 | T74: ='Heat Pumps'!$AD$6 -> 3125076 | U74: ='Heat Pumps'!$G6 -> 170463 | V74: -0.365931409 | W74: 21875532 | AI74: BV 2023 Policy Sensitivity | AK74: R205 | AL74: G231 | AM74: B176
N75: 0.170463 | O75: BV 2023 Policy Sensitivity | P75: ='Heat Pumps'!$B7 -> 49147 | Q75: ='Heat Pumps'!$E$7 -> 132433 | R75: ='Heat Pumps'!$J$7 -> 240115 | S75: ='Heat Pumps'!$T$7 -> 1270786 | T75: ='Heat Pumps'!$AD$7 -> 3125076 | U75: ='Heat Pumps'!$G7 -> 170463 | V75: -0.365931409 | W75: 21875532 | AI75: DFES 2023 - NPg Best View | AK75: R192 | AL75: G0 | AM75: B0
N76: 0.26884 | O76: DFES 2023 - NPg Best View | P76: ='Heat Pumps'!$B8 -> 49147 | Q76: ='Heat Pumps'!$E$8 -> 131735 | R76: ='Heat Pumps'!$J$8 -> 349942 | S76: ='Heat Pumps'!$T$8 -> 1430085 | T76: ='Heat Pumps'!$AD$8 -> 3126136 | U76: ='Heat Pumps'!$G8 -> 268840 | V76: 0 | W76: 21882952 | AI76: NPg ED2 Planning Scenario - needs updating to old | AK76: R 0 | AL76: G 171 | AM76: B 132
N77: 0.305335 | O77: NPg ED2 Planning Scenario - needs updating to old | P77: ='Heat Pumps'!$B9 -> 54255 | Q77: ='Heat Pumps'!$E$9 -> 145981 | R77: ='Heat Pumps'!$J$9 -> 691754 | S77: ='Heat Pumps'!$T$9 -> 2409952 | T77: ='Heat Pumps'!$AD$9 -> 3568971 | U77: ='Heat Pumps'!$G9 -> 305335 | V77: 0.1357498884 | W77: 24982797 | AI77: DFES 2023 - Falling Short | AK77: R 130 | AL77: G 123 | AM77: B 122
N78: 0.118823 | O78: DFES 2023 - Falling Short | P78: ='Heat Pumps'!$B10 -> 49147 | Q78: ='Heat Pumps'!$E$10 -> 80868 | R78: ='Heat Pumps'!$J$10 -> 182353 | S78: ='Heat Pumps'!$T$10 -> 371302 | T78: ='Heat Pumps'!$AD$10 -> 497660 | U78: ='Heat Pumps'!$G10 -> 118823 | V78: -0.5580159202 | W78: 3483620
O80: 0.05 to 0.57 | P80: top | Q80: top | R80: =$U$72 -> 321835 | S80: =U72-$U$76 -> 52995 | T80: =S80/$R$82 -> 0.2610436821
O81: 0.17 to 0.57 | P81: bottom | Q81: bottom | R81: =$U$78 -> 118823 | S81: =$U$76-U78 -> 150017 | T81: =S81/$R$82 -> 0.7389563179
P82: range | Q82: range | R82: =R80-R81 -> 203012
G101: DFES Doc 2023
G102: =O102 -> E_Buses&HGVs (No.) | H102: 2025 | I102: 2030 | J102: 2040 | K102: 2050 | O102: E_Buses&HGVs (No.) | P102: 2022 | Q102: 2025 | R102: 2030 | S102: 2040 | T102: 2050 | U102: 2027 | V102: 2027 % change to PS
G103: DFES 2023 - Consumer Transformation | H103: =Q103 -> 2927.238893 | I103: 16536.52997 | J103: 70861.08737 | K103: 86438.41649 | O103: DFES 2023 - Consumer Transformation | P103: ='E_Buses&HGVs'!$B2 -> 673.7106567 | Q103: ='E_Buses&HGVs'!$E$2 -> 2927.238893 | R103: ='E_Buses&HGVs'!$J$2 -> 16536.52997 | S103: ='E_Buses&HGVs'!$T$2 -> 70861.08737 | T103: ='E_Buses&HGVs'!$AD$2 -> 86438.41649 | U103: ='E_Buses&HGVs'!$G2 -> 6482.368733 | V103: =(U103-U$109)/U$109 -> -0.213124458
G104: DFES 2023 - System Transformation | H104: 2910.323782 | I104: 16264.31024 | J104: 67685.07143 | K104: 82044.21593 | O104: DFES 2023 - System Transformation | P104: ='E_Buses&HGVs'!$B3 -> 673.7106567 | Q104: ='E_Buses&HGVs'!$E$3 -> 2910.323782 | R104: ='E_Buses&HGVs'!$J$3 -> 16264.31024 | S104: ='E_Buses&HGVs'!$T$3 -> 67685.07143 | T104: ='E_Buses&HGVs'!$AD$3 -> 82044.21593 | U104: ='E_Buses&HGVs'!$G3 -> 6406.540902 | V104: -0.2223289739
G105: DFES 2023 - Leading The Way | H105: 3635.566983 | I105: 20912.98896 | J105: 74155.64063 | K105: 84316.4322 | O105: DFES 2023 - Leading The Way | P105: ='E_Buses&HGVs'!$B4 -> 673.7106567 | Q105: ='E_Buses&HGVs'!$E$4 -> 3635.566983 | R105: ='E_Buses&HGVs'!$J$4 -> 20912.98896 | S105: ='E_Buses&HGVs'!$T$4 -> 74155.64063 | T105: ='E_Buses&HGVs'!$AD$4 -> 84316.4322 | U105: ='E_Buses&HGVs'!$G4 -> 8238.111858 | V105: 0
G106: DFES 2023 - NPg Best View | H106: =Q109 -> 3635.566983 | I106: =R109 -> 20912.98896 | J106: =S109 -> 74155.64063 | K106: =T109 -> 84316.4322 | O106: CCC 2020 - Balanced Net Zero | P106: ='E_Buses&HGVs'!$B5 -> 0 | Q106: ='E_Buses&HGVs'!$E$5 -> 0 | R106: ='E_Buses&HGVs'!$J$5 -> 0 | S106: ='E_Buses&HGVs'!$T$5 -> 0 | T106: ='E_Buses&HGVs'!$AD$5 -> 0 | U106: ='E_Buses&HGVs'!$G5 -> 0 | V106: -1
G107: DFES 2023 - Falling Short | H107: =Q111 -> 2450.708838 | I107: =R111 -> 13560.9369 | J107: =S111 -> 62214.20834 | K107: =T111 -> 84004.08049 | O107: CT 2023 Policy Sensitivity | P107: ='E_Buses&HGVs'!$B6 -> 0 | Q107: ='E_Buses&HGVs'!$E$6 -> 0 | R107: ='E_Buses&HGVs'!$J$6 -> 0 | S107: ='E_Buses&HGVs'!$T$6 -> 0 | T107: ='E_Buses&HGVs'!$AD$6 -> 0 | U107: ='E_Buses&HGVs'!$G6 -> 0 | V107: -1
O108: BV 2023 Policy Sensitivity | P108: ='E_Buses&HGVs'!$B7 -> 0 | Q108: ='E_Buses&HGVs'!$E$7 -> 0 | R108: ='E_Buses&HGVs'!$J$7 -> 0 | S108: ='E_Buses&HGVs'!$T$7 -> 0 | T108: ='E_Buses&HGVs'!$AD$7 -> 0 | U108: ='E_Buses&HGVs'!$G7 -> 0 | V108: -1
O109: DFES 2023 - NPg Best View | P109: ='E_Buses&HGVs'!$B8 -> 673.7106567 | Q109: ='E_Buses&HGVs'!$E$8 -> 3635.566983 | R109: ='E_Buses&HGVs'!$J$8 -> 20912.98896 | S109: ='E_Buses&HGVs'!$T$8 -> 74155.64063 | T109: ='E_Buses&HGVs'!$AD$8 -> 84316.4322 | U109: ='E_Buses&HGVs'!$G8 -> 8238.111858 | V109: 0
O110: NPg ED2 Planning Scenario - needs updating to old | P110: ='E_Buses&HGVs'!$B9 -> 0 | Q110: ='E_Buses&HGVs'!$E$9 -> 0 | R110: ='E_Buses&HGVs'!$J$9 -> 0 | S110: ='E_Buses&HGVs'!$T$9 -> 0 | T110: ='E_Buses&HGVs'!$AD$9 -> 0 | U110: ='E_Buses&HGVs'!$G9 -> 0 | V110: -1
O111: DFES 2023 - Falling Short | P111: ='E_Buses&HGVs'!$B10 -> 673.7106567 | Q111: ='E_Buses&HGVs'!$E$10 -> 2450.708838 | R111: ='E_Buses&HGVs'!$J$10 -> 13560.9369 | S111: ='E_Buses&HGVs'!$T$10 -> 62214.20834 | T111: ='E_Buses&HGVs'!$AD$10 -> 84004.08049 | U111: ='E_Buses&HGVs'!$G10 -> 5285.569473 | V111: -0.3584003757
O114: In PS the large vehicles are from the early net zero count of HGV depots which we think are more correct than FES
G130: =O130 -> E_Buses | H130: 2025 | I130: 2030 | J130: 2040 | K130: 2050 | O130: E_Buses | P130: 2022 | Q130: 2025 | R130: 2030 | S130: 2040 | T130: 2050 | U130: 2027 | V130: 2027 % change to PS
G131: DFES 2023 - Consumer Transformation | H131: =Q131 -> 1302.456807 | I131: 4260.240243 | J131: 12391.18968 | K131: 15210.62926 | O131: DFES 2023 - Consumer Transformation | P131: =E_Buses!$B2 -> 485.238277 | Q131: =E_Buses!$E$2 -> 1302.456807 | R131: =E_Buses!$J$2 -> 4260.240243 | S131: =E_Buses!$T$2 -> 12391.18968 | T131: =E_Buses!$AD$2 -> 15210.62926 | U131: =E_Buses!$G2 -> 2264.96805 | V131: =(U131-U$137)/U$137 -> -0.1671685517
G132: DFES 2023 - System Transformation | H132: 1285.541696 | I132: 4010.125657 | J132: 11327.55264 | K132: 13854.92351 | O132: DFES 2023 - System Transformation | P132: =E_Buses!$B3 -> 485.238277 | Q132: =E_Buses!$E$3 -> 1285.541696 | R132: =E_Buses!$J$3 -> 4010.125657 | S132: =E_Buses!$T$3 -> 11327.55264 | T132: =E_Buses!$AD$3 -> 13854.92351 | U132: =E_Buses!$G3 -> 2189.140219 | V132: -0.1950505356
G133: DFES 2023 - Leading The Way | H133: 1566.48474 | I133: 4995.292478 | J133: 12668.72884 | K133: 14591.85359 | O133: DFES 2023 - Leading The Way | P133: =E_Buses!$B4 -> 485.238277 | Q133: =E_Buses!$E$4 -> 1566.48474 | R133: =E_Buses!$J$4 -> 4995.292478 | S133: =E_Buses!$T$4 -> 12668.72884 | T133: =E_Buses!$AD$4 -> 14591.85359 | U133: =E_Buses!$G4 -> 2719.599572 | V133: 0
G134: DFES 2023 - NPg Best View | H134: =Q137 -> 1566.48474 | I134: =R137 -> 4995.292478 | J134: =S137 -> 12668.72884 | K134: =T137 -> 14591.85359 | O134: CCC 2020 - Balanced Net Zero | P134: =E_Buses!$B5 -> 0 | Q134: =E_Buses!$E$5 -> 0 | R134: =E_Buses!$J$5 -> 0 | S134: =E_Buses!$T$5 -> 0 | T134: =E_Buses!$AD$5 -> 0 | U134: =E_Buses!$G5 -> 0 | V134: -1
G135: DFES 2023 - Falling Short | H135: =Q139 -> 1071.303467 | I135: =R139 -> 3443.053771 | J135: =S139 -> 10940.60301 | K135: =T139 -> 14404.59787 | O135: CT 2023 Policy Sensitivity | P135: =E_Buses!$B6 -> 0 | Q135: =E_Buses!$E$6 -> 0 | R135: =E_Buses!$J$6 -> 0 | S135: =E_Buses!$T$6 -> 0 | T135: =E_Buses!$AD$6 -> 0 | U135: =E_Buses!$G6 -> 0 | V135: -1
O136: BV 2023 Policy Sensitivity | P136: =E_Buses!$B7 -> 0 | Q136: =E_Buses!$E$7 -> 0 | R136: =E_Buses!$J$7 -> 0 | S136: =E_Buses!$T$7 -> 0 | T136: =E_Buses!$AD$7 -> 0 | U136: =E_Buses!$G7 -> 0 | V136: -1
O137: DFES 2023 - NPg Best View | P137: =E_Buses!$B8 -> 485.238277 | Q137: =E_Buses!$E$8 -> 1566.48474 | R137: =E_Buses!$J$8 -> 4995.292478 | S137: =E_Buses!$T$8 -> 12668.72884 | T137: =E_Buses!$AD$8 -> 14591.85359 | U137: =E_Buses!$G8 -> 2719.599572 | V137: 0
O138: NPg ED2 Planning Scenario - needs updating to old | P138: =E_Buses!$B9 -> 0 | Q138: =E_Buses!$E$9 -> 0 | R138: =E_Buses!$J$9 -> 0 | S138: =E_Buses!$T$9 -> 0 | T138: =E_Buses!$AD$9 -> 0 | U138: =E_Buses!$G9 -> 0 | V138: -1
O139: DFES 2023 - Falling Short | P139: =E_Buses!$B10 -> 485.238277 | Q139: =E_Buses!$E$10 -> 1071.303467 | R139: =E_Buses!$J$10 -> 3443.053771 | S139: =E_Buses!$T$10 -> 10940.60301 | T139: =E_Buses!$AD$10 -> 14404.59787 | U139: =E_Buses!$G10 -> 1817.308643 | V139: -0.3317734487
G157: =O157 -> E_HGVs (No.) | H157: 2025 | I157: 2030 | J157: 2040 | K157: 2050 | O157: E_HGVs (No.) | P157: 2022 | Q157: 2025 | R157: 2030 | S157: 2040 | T157: 2050 | U157: 2027 | V157: 2027 % change to PS
G158: DFES 2023 - Consumer Transformation | H158: =Q158 -> 1624.782086 | I158: 12276.28973 | J158: 58469.89769 | K158: 71227.78722 | O158: DFES 2023 - Consumer Transformation | P158: =E_HGVs!$B2 -> 188.4723797 | Q158: =E_HGVs!$E$2 -> 1624.782086 | R158: =E_HGVs!$J$2 -> 12276.28973 | S158: =E_HGVs!$T$2 -> 58469.89769 | T158: =E_HGVs!$AD$2 -> 71227.78722 | U158: =E_HGVs!$G2 -> 4217.400683 | V158: =(U158-U$164)/U$164 -> -0.2357721675
G159: DFES 2023 - System Transformation | H159: 1624.782086 | I159: 12254.18459 | J159: 56357.51879 | K159: 68189.29242 | O159: DFES 2023 - System Transformation | P159: =E_HGVs!$B3 -> 188.4723797 | Q159: =E_HGVs!$E$3 -> 1624.782086 | R159: =E_HGVs!$J$3 -> 12254.18459 | S159: =E_HGVs!$T$3 -> 56357.51879 | T159: =E_HGVs!$AD$3 -> 68189.29242 | U159: =E_HGVs!$G3 -> 4217.400683 | V159: -0.2357721675
G160: DFES 2023 - Leading The Way | H160: 2069.082244 | I160: 15917.69649 | J160: 61486.91179 | K160: 69724.57861 | O160: DFES 2023 - Leading The Way | P160: =E_HGVs!$B4 -> 188.4723797 | Q160: =E_HGVs!$E$4 -> 2069.082244 | R160: =E_HGVs!$J$4 -> 15917.69649 | S160: =E_HGVs!$T$4 -> 61486.91179 | T160: =E_HGVs!$AD$4 -> 69724.57861 | U160: =E_HGVs!$G4 -> 5518.512286 | V160: 0
G161: DFES 2023 - NPg Best View | H161: =Q164 -> 2069.082244 | I161: =R164 -> 15917.69649 | J161: =S164 -> 61486.91179 | K161: =T164 -> 69724.57861 | O161: CCC 2020 - Balanced Net Zero | P161: =E_HGVs!$B5 -> 0 | Q161: =E_HGVs!$E$5 -> 0 | R161: =E_HGVs!$J$5 -> 0 | S161: =E_HGVs!$T$5 -> 0 | T161: =E_HGVs!$AD$5 -> 0 | U161: =E_HGVs!$G5 -> 0 | V161: -1
G162: DFES 2023 - Falling Short | H162: =Q166 -> 1379.405371 | I162: =R166 -> 10117.88313 | J162: =S166 -> 51273.60533 | K162: =T166 -> 69599.48262 | O162: CT 2023 Policy Sensitivity | P162: =E_HGVs!$B6 -> 0 | Q162: =E_HGVs!$E$6 -> 0 | R162: =E_HGVs!$J$6 -> 0 | S162: =E_HGVs!$T$6 -> 0 | T162: =E_HGVs!$AD$6 -> 0 | U162: =E_HGVs!$G6 -> 0 | V162: -1
O163: BV 2023 Policy Sensitivity | P163: =E_HGVs!$B7 -> 0 | Q163: =E_HGVs!$E$7 -> 0 | R163: =E_HGVs!$J$7 -> 0 | S163: =E_HGVs!$T$7 -> 0 | T163: =E_HGVs!$AD$7 -> 0 | U163: =E_HGVs!$G7 -> 0 | V163: -1
O164: DFES 2023 - NPg Best View | P164: =E_HGVs!$B8 -> 188.4723797 | Q164: =E_HGVs!$E$8 -> 2069.082244 | R164: =E_HGVs!$J$8 -> 15917.69649 | S164: =E_HGVs!$T$8 -> 61486.91179 | T164: =E_HGVs!$AD$8 -> 69724.57861 | U164: =E_HGVs!$G8 -> 5518.512286 | V164: 0
O165: NPg ED2 Planning Scenario - needs updating to old | P165: =E_HGVs!$B9 -> 0 | Q165: =E_HGVs!$E$9 -> 0 | R165: =E_HGVs!$J$9 -> 0 | S165: =E_HGVs!$T$9 -> 0 | T165: =E_HGVs!$AD$9 -> 0 | U165: =E_HGVs!$G9 -> 0 | V165: -1
O166: DFES 2023 - Falling Short | P166: =E_HGVs!$B10 -> 188.4723797 | Q166: =E_HGVs!$E$10 -> 1379.405371 | R166: =E_HGVs!$J$10 -> 10117.88313 | S166: =E_HGVs!$T$10 -> 51273.60533 | T166: =E_HGVs!$AD$10 -> 69599.48262 | U166: =E_HGVs!$G10 -> 3468.26083 | V166: -0.3715224955

Sheet DFES Doc - Generation & Storage
O1: Charts and Tables
A4: DFES Doc 2023 | G4: DFES Doc 2023
G5: =O5 -> Residential PV Capacity (MW) | H5: 2025 | I5: 2030 | J5: 2040 | K5: 2050 | O5: Residential PV Capacity (MW) | P5: 2022 | Q5: 2025 | R5: 2030 | S5: 2040 | T5: 2050 | U5: GB rough estimate by 2050 (not UK - no NI)
G6: DFES 2023 - Consumer Transformation | H6: =Q6 -> 618.4825588 | I6: 991.9577666 | J6: 2105.595413 | K6: 3498.071109 | O6: DFES 2023 - Consumer Transformation | P6: ='Domestic PV'!$B2 -> 477.1729988 | Q6: ='Domestic PV'!$E$2 -> 618.4825588 | R6: ='Domestic PV'!$J$2 -> 991.9577666 | S6: ='Domestic PV'!$T$2 -> 2105.595413 | T6: ='Domestic PV'!$AD$2 -> 3498.071109 | U6: =T6*7 -> 24486.49776
G7: DFES 2023 - System Transformation | H7: 533.5433248 | I7: 674.5693996 | J7: 1069.526505 | K7: 1675.153841 | O7: DFES 2023 - System Transformation | P7: ='Domestic PV'!$B3 -> 477.1729988 | Q7: ='Domestic PV'!$E$3 -> 533.5433248 | R7: ='Domestic PV'!$J$3 -> 674.5693996 | S7: ='Domestic PV'!$T$3 -> 1069.526505 | T7: ='Domestic PV'!$AD$3 -> 1675.153841 | U7: =T7*7 -> 11726.07689
G8: DFES 2023 - Leading The Way | H8: 618.4825588 | I8: 991.9577666 | J8: 2105.595413 | K8: 3498.071109 | O8: DFES 2023 - Leading The Way | P8: ='Domestic PV'!$B4 -> 477.1729988 | Q8: ='Domestic PV'!$E4 -> 618.4825588 | R8: ='Domestic PV'!$J4 -> 991.9577666 | S8: ='Domestic PV'!$T4 -> 2105.595413 | T8: ='Domestic PV'!$AD4 -> 3498.071109 | U8: 24486.49776
G9: DFES 2023 - NPg Best View | H9: =Q12 -> 618.4825588 | I9: =R12 -> 991.9577666 | J9: =S12 -> 2105.595413 | K9: =T12 -> 3498.071109 | O9: CCC 2020 - Balanced Net Zero | P9: ='Domestic PV'!$B5 -> 483.9984242 | Q9: ='Domestic PV'!$E5 -> 795.1979632 | R9: ='Domestic PV'!$J5 -> 1643.263109 | S9: ='Domestic PV'!$T5 -> 3462.051086 | T9: ='Domestic PV'!$AD5 -> 5362.862469 | U9: 37540.03728
G10: DFES 2023 - Falling Short | H10: =Q14 -> 553.6772007 | I10: =R14 -> 584.4348811 | J10: =S14 -> 751.2175504 | K10: =T14 -> 1150.571531 | O10: CT 2023 Policy Sensitivity | P10: ='Domestic PV'!$B6 -> 477.1729988 | Q10: ='Domestic PV'!$E6 -> 618.4825588 | R10: ='Domestic PV'!$J6 -> 991.9577666 | S10: ='Domestic PV'!$T6 -> 2105.595413 | T10: ='Domestic PV'!$AD6 -> 3498.071109 | U10: 24486.49776
O11: BV 2023 Policy Sensitivity | P11: ='Domestic PV'!$B7 -> 477.1729988 | Q11: ='Domestic PV'!$E7 -> 618.4825588 | R11: ='Domestic PV'!$J7 -> 991.9577666 | S11: ='Domestic PV'!$T7 -> 2105.595413 | T11: ='Domestic PV'!$AD7 -> 3498.071109 | U11: 24486.49776
O12: DFES 2023 - NPg Best View | P12: ='Domestic PV'!$B8 -> 477.1729988 | Q12: ='Domestic PV'!$E8 -> 618.4825588 | R12: ='Domestic PV'!$J8 -> 991.9577666 | S12: ='Domestic PV'!$T8 -> 2105.595413 | T12: ='Domestic PV'!$AD8 -> 3498.071109 | U12: 24486.49776
O13: NPg ED2 Planning Scenario - needs updating to old | P13: ='Domestic PV'!$B9 -> 477.1729988 | Q13: ='Domestic PV'!$E$9 -> 618.4825588 | R13: ='Domestic PV'!$J$9 -> 991.9577666 | S13: ='Domestic PV'!$T$9 -> 2105.595413 | T13: ='Domestic PV'!$AD$9 -> 3498.071109 | U13: 24486.49776
O14: DFES 2023 - Falling Short | P14: ='Domestic PV'!$B10 -> 477.1729988 | Q14: ='Domestic PV'!$E$10 -> 553.6772007 | R14: ='Domestic PV'!$J$10 -> 584.4348811 | S14: ='Domestic PV'!$T$10 -> 751.2175504 | T14: ='Domestic PV'!$AD$10 -> 1150.571531 | U14: 8054.000719
A27: DFES Doc 2023
G35: DFES Doc 2023
G36: =O36 -> Large Scale PV Capacity (MW) | H36: 2025 | I36: 2030 | J36: 2040 | K36: 2050 | O36: Large Scale PV Capacity (MW) | P36: 2022 | Q36: 2025 | R36: 2030 | S36: 2040 | T36: 2050 | U36: GB rough estimate by 2050 (not UK - no NI)
G37: DFES 2023 - Consumer Transformation | H37: =Q37 -> 1715.68832 | I37: 2369.144203 | J37: 3846.905627 | K37: 5298.046148 | O37: DFES 2023 - Consumer Transformation | P37: ='Large I&C Solar Generation'!$B2 -> 378.9745176 | Q37: ='Large I&C Solar Generation'!$E$2 -> 1715.68832 | R37: ='Large I&C Solar Generation'!$J$2 -> 2369.144203 | S37: ='Large I&C Solar Generation'!$T$2 -> 3846.905627 | T37: ='Large I&C Solar Generation'!$AD$2 -> 5298.046148 | U37: =T37*7 -> 37086.32304
G38: DFES 2023 - System Transformation | H38: 1687.145154 | I38: 2185.224279 | J38: 3319.359095 | K38: 4338.726153 | O38: DFES 2023 - System Transformation | P38: ='Large I&C Solar Generation'!$B3 -> 378.9745176 | Q38: ='Large I&C Solar Generation'!$E$3 -> 1687.145154 | R38: ='Large I&C Solar Generation'!$J$3 -> 2185.224279 | S38: ='Large I&C Solar Generation'!$T$3 -> 3319.359095 | T38: ='Large I&C Solar Generation'!$AD$3 -> 4338.726153 | U38: =T38*7 -> 30371.08307
G39: DFES 2023 - Leading The Way | H39: 2272.617352 | I39: 3251.619235 | J39: 5105.314659 | K39: 6398.47018 | O39: DFES 2023 - Leading The Way | P39: ='Large I&C Solar Generation'!$B4 -> 378.9745176 | Q39: ='Large I&C Solar Generation'!$E4 -> 2272.617352 | R39: ='Large I&C Solar Generation'!$J4 -> 3251.619235 | S39: ='Large I&C Solar Generation'!$T4 -> 5105.314659 | T39: ='Large I&C Solar Generation'!$AD4 -> 6398.47018 | U39: 44789.29126
G40: DFES 2023 - NPg Best View | H40: =Q43 -> 2272.617352 | I40: =R43 -> 3251.619235 | J40: =S43 -> 5105.314659 | K40: =T43 -> 6398.47018 | O40: CCC 2020 - Balanced Net Zero | P40: ='Large I&C Solar Generation'!$B5 -> 734.1826643 | Q40: ='Large I&C Solar Generation'!$E5 -> 854.7163795 | R40: ='Large I&C Solar Generation'!$J5 -> 1201.887248 | S40: ='Large I&C Solar Generation'!$T5 -> 2000.904701 | T40: ='Large I&C Solar Generation'!$AD5 -> 2585.601096 | U40: 18099.20767
G41: DFES 2023 - Falling Short | H41: =Q45 -> 1132.161673 | I41: =R45 -> 1377.69187 | J41: =S45 -> 2090.708352 | K41: =T45 -> 3056.569694 | O41: CT 2023 Policy Sensitivity | P41: ='Large I&C Solar Generation'!$B6 -> 378.9745176 | Q41: ='Large I&C Solar Generation'!$E6 -> 1715.68832 | R41: ='Large I&C Solar Generation'!$J6 -> 2369.144203 | S41: ='Large I&C Solar Generation'!$T6 -> 3846.905627 | T41: ='Large I&C Solar Generation'!$AD6 -> 5298.046148 | U41: 37086.32304
O42: BV 2023 Policy Sensitivity | P42: ='Large I&C Solar Generation'!$B7 -> 378.9745176 | Q42: ='Large I&C Solar Generation'!$E7 -> 2272.617352 | R42: ='Large I&C Solar Generation'!$J7 -> 3251.619235 | S42: ='Large I&C Solar Generation'!$T7 -> 5105.314659 | T42: ='Large I&C Solar Generation'!$AD7 -> 6398.47018 | U42: 44789.29126
O43: DFES 2023 - NPg Best View | P43: ='Large I&C Solar Generation'!$B8 -> 378.9745176 | Q43: ='Large I&C Solar Generation'!$E8 -> 2272.617352 | R43: ='Large I&C Solar Generation'!$J8 -> 3251.619235 | S43: ='Large I&C Solar Generation'!$T8 -> 5105.314659 | T43: ='Large I&C Solar Generation'!$AD8 -> 6398.47018 | U43: 44789.29126
O44: NPg ED2 Planning Scenario - needs updating to old | P44: ='Large I&C Solar Generation'!$B9 -> 378.9745176 | Q44: ='Large I&C Solar Generation'!$E$9 -> 2272.617352 | R44: ='Large I&C Solar Generation'!$J$9 -> 3251.619235 | S44: ='Large I&C Solar Generation'!$T$9 -> 5105.314659 | T44: ='Large I&C Solar Generation'!$AD$9 -> 6398.47018 | U44: 44789.29126
O45: DFES 2023 - Falling Short | P45: ='Large I&C Solar Generation'!$B10 -> 378.9745176 | Q45: ='Large I&C Solar Generation'!$E$10 -> 1132.161673 | R45: ='Large I&C Solar Generation'!$J$10 -> 1377.69187 | S45: ='Large I&C Solar Generation'!$T$10 -> 2090.708352 | T45: ='Large I&C Solar Generation'!$AD$10 -> 3056.569694 | U45: 21395.98786
O48: DFES 2023 - Consumer Transformation | Q48: R 255 | R48: G 191 | S48: B 34
O49: DFES 2023 - System Transformation | Q49: R 91 | R49: G 203 | S49: B 245
A50: DFES Doc 2023 | O50: DFES 2023 - Leading The Way | Q50: R 194 | R50: G 205 | S50: B 35
O51: CCC 2020 - Balanced Net Zero | Q51: R113 | R51: G66 | S51: B255
O52: CT 2023 Policy Sensitivity | Q52: R202 | R52: G120 | S52: B128
O53: BV 2023 Policy Sensitivity | Q53: R205 | R53: G231 | S53: B176
O54: DFES 2023 - NPg Best View | Q54: R192 | R54: G0 | S54: B0
O55: NPg ED2 Planning Scenario - needs updating to old | Q55: R 0 | R55: G 171 | S55: B 132
O56: DFES 2023 - Falling Short | Q56: R 130 | R56: G 123 | S56: B 122
G66: DFES Doc 2023
G67: =O67 -> Wind Energy Capacity (MW) | H67: 2025 | I67: 2030 | J67: 2040 | K67: 2050 | O67: Wind Energy Capacity (MW) | P67: 2022 | Q67: 2025 | R67: 2030 | S67: 2040 | T67: 2050 | U67: GB rough estimate by 2050 (not UK - no NI)
G68: DFES 2023 - Consumer Transformation | H68: =Q68 -> 1337.456705 | I68: 1698.065605 | J68: 3538.330605 | K68: 4776.993605 | O68: DFES 2023 - Consumer Transformation | P68: ='Wind Generation'!$B2 -> 1297.682705 | Q68: ='Wind Generation'!$E$2 -> 1337.456705 | R68: ='Wind Generation'!$J$2 -> 1698.065605 | S68: ='Wind Generation'!$T$2 -> 3538.330605 | T68: ='Wind Generation'!$AD$2 -> 4776.993605 | U68: =T68*7 -> 33438.95523
G69: DFES 2023 - System Transformation | H69: 1323.251705 | I69: 1419.152855 | J69: 1886.635855 | K69: 2416.528855 | O69: DFES 2023 - System Transformation | P69: ='Wind Generation'!$B3 -> 1297.682705 | Q69: ='Wind Generation'!$E$3 -> 1323.251705 | R69: ='Wind Generation'!$J$3 -> 1419.152855 | S69: ='Wind Generation'!$T$3 -> 1886.635855 | T69: ='Wind Generation'!$AD$3 -> 2416.528855 | U69: =T69*7 -> 16915.70198
G70: DFES 2023 - Leading The Way | H70: 1323.251705 | I70: 1571.492855 | J70: 2840.390855 | K70: 3799.242855 | O70: DFES 2023 - Leading The Way | P70: ='Wind Generation'!$B4 -> 1297.682705 | Q70: ='Wind Generation'!$E4 -> 1323.251705 | R70: ='Wind Generation'!$J4 -> 1571.492855 | S70: ='Wind Generation'!$T4 -> 2840.390855 | T70: ='Wind Generation'!$AD4 -> 3799.242855 | U70: =T70*7 -> 26594.69998
G71: DFES 2023 - NPg Best View | H71: =Q74 -> 1337.456705 | I71: =R74 -> 1698.065605 | J71: =S74 -> 3538.330605 | K71: =T74 -> 4776.993605 | O71: CCC 2020 - Balanced Net Zero | P71: ='Wind Generation'!$B5 -> 1388.610528 | Q71: ='Wind Generation'!$E5 -> 1552.691967 | R71: ='Wind Generation'!$J5 -> 2090.633545 | S71: ='Wind Generation'!$T5 -> 4059.175956 | T71: ='Wind Generation'!$AD5 -> 5383.679719 | U71: 37685.75803
G72: DFES 2023 - Falling Short | H72: =Q76 -> 1309.046705 | I72: =R76 -> 1343.224705 | J72: =S76 -> 1624.723105 | K72: =T76 -> 1887.107105 | O72: CT 2023 Policy Sensitivity | P72: ='Wind Generation'!$B6 -> 1297.682705 | Q72: ='Wind Generation'!$E6 -> 1337.456705 | R72: ='Wind Generation'!$J6 -> 1698.065605 | S72: ='Wind Generation'!$T6 -> 3538.330605 | T72: ='Wind Generation'!$AD6 -> 4776.993605 | U72: 33438.95523
O73: BV 2023 Policy Sensitivity | P73: ='Wind Generation'!$B7 -> 1297.682705 | Q73: ='Wind Generation'!$E7 -> 1337.456705 | R73: ='Wind Generation'!$J7 -> 1698.065605 | S73: ='Wind Generation'!$T7 -> 3538.330605 | T73: ='Wind Generation'!$AD7 -> 4776.993605 | U73: 33438.95523
O74: DFES 2023 - NPg Best View | P74: ='Wind Generation'!$B8 -> 1297.682705 | Q74: ='Wind Generation'!$E8 -> 1337.456705 | R74: ='Wind Generation'!$J8 -> 1698.065605 | S74: ='Wind Generation'!$T8 -> 3538.330605 | T74: ='Wind Generation'!$AD8 -> 4776.993605 | U74: 33438.95523
O75: NPg ED2 Planning Scenario - needs updating to old | P75: ='Wind Generation'!$B9 -> 1297.682705 | Q75: ='Wind Generation'!$E$9 -> 1337.456705 | R75: ='Wind Generation'!$J$9 -> 1698.065605 | S75: ='Wind Generation'!$T$9 -> 3538.330605 | T75: ='Wind Generation'!$AD$9 -> 4776.993605 | U75: 33438.95523
O76: DFES 2023 - Falling Short | P76: ='Wind Generation'!$B10 -> 1297.682705 | Q76: ='Wind Generation'!$E$10 -> 1309.046705 | R76: ='Wind Generation'!$J$10 -> 1343.224705 | S76: ='Wind Generation'!$T$10 -> 1624.723105 | T76: ='Wind Generation'!$AD$10 -> 1887.107105 | U76: 13209.74973
G98: =O98 -> Total Biomass DG Capacity (MW) | H98: 2025 | I98: 2030 | J98: 2040 | K98: 2050 | O98: Total Biomass DG Capacity (MW) | P98: 2022 | Q98: 2025 | R98: 2030 | S98: 2040 | T98: 2050 | U98: GB rough estimate by 2050 (not UK - no NI)
G99: DFES 2023 - Consumer Transformation | H99: =Q99 -> 686.515 | I99: 656.6565784 | J99: 499.8511222 | K99: 369.001211 | O99: DFES 2023 - Consumer Transformation | P99: ='Biomass Generation'!$B2 -> 669.199 | Q99: ='Biomass Generation'!$E$2 -> 686.515 | R99: ='Biomass Generation'!$J$2 -> 656.6565784 | S99: ='Biomass Generation'!$T$2 -> 499.8511222 | T99: ='Biomass Generation'!$AD$2 -> 369.001211 | U99: =T99*7 -> 2583.008477
G100: DFES 2023 - System Transformation | H100: 708.16 | I100: 701.88 | J100: 631.5285598 | K100: 556.5582672 | O100: DFES 2023 - System Transformation | P100: ='Biomass Generation'!$B3 -> 669.199 | Q100: ='Biomass Generation'!$E$3 -> 708.16 | R100: ='Biomass Generation'!$J$3 -> 701.88 | S100: ='Biomass Generation'!$T$3 -> 631.5285598 | T100: ='Biomass Generation'!$AD$3 -> 556.5582672 | U100: =T100*7 -> 3895.907871
G101: DFES 2023 - Leading The Way | H101: 708.16 | I101: 695.629 | J101: 597.2869571 | K101: 473.7120822 | O101: DFES 2023 - Leading The Way | P101: ='Biomass Generation'!$B4 -> 669.199 | Q101: ='Biomass Generation'!$E4 -> 708.16 | R101: ='Biomass Generation'!$J4 -> 695.629 | S101: ='Biomass Generation'!$T4 -> 597.2869571 | T101: ='Biomass Generation'!$AD4 -> 473.7120822 | U101: 3315.984576
G102: DFES 2023 - NPg Best View | H102: =Q105 -> 708.16 | I102: =R105 -> 695.629 | J102: =S105 -> 597.2869571 | K102: =T105 -> 473.7120822 | O102: CCC 2020 - Balanced Net Zero | P102: ='Biomass Generation'!$B5 -> 675.36735 | Q102: ='Biomass Generation'!$E5 -> 675.36735 | R102: ='Biomass Generation'!$J5 -> 675.36735 | S102: ='Biomass Generation'!$T5 -> 438.7471275 | T102: ='Biomass Generation'!$AD5 -> 211.17488 | U102: 1478.22416
G103: DFES 2023 - Falling Short | H103: =Q107 -> 729.805 | I103: =R107 -> 770.791 | J103: =S107 -> 741.168 | K103: =T107 -> 741.168 | O103: CT 2023 Policy Sensitivity | P103: ='Biomass Generation'!$B6 -> 669.199 | Q103: ='Biomass Generation'!$E6 -> 686.515 | R103: ='Biomass Generation'!$J6 -> 659.6653209 | S103: ='Biomass Generation'!$T6 -> 540.4751879 | T103: ='Biomass Generation'!$AD6 -> 441.0142464 | U103: 3087.099725
O104: BV 2023 Policy Sensitivity | P104: ='Biomass Generation'!$B7 -> 669.199 | Q104: ='Biomass Generation'!$E7 -> 708.16 | R104: ='Biomass Generation'!$J7 -> 695.629 | S104: ='Biomass Generation'!$T7 -> 614.5375988 | T104: ='Biomass Generation'!$AD7 -> 520.6065193 | U104: 3644.245635
O105: DFES 2023 - NPg Best View | P105: ='Biomass Generation'!$B8 -> 669.199 | Q105: ='Biomass Generation'!$E8 -> 708.16 | R105: ='Biomass Generation'!$J8 -> 695.629 | S105: ='Biomass Generation'!$T8 -> 597.2869571 | T105: ='Biomass Generation'!$AD8 -> 473.7120822 | U105: 3315.984576
O106: NPg ED2 Planning Scenario - needs updating to old | P106: ='Biomass Generation'!$B9 -> 669.199 | Q106: ='Biomass Generation'!$E$9 -> 708.16 | R106: ='Biomass Generation'!$J$9 -> 695.629 | S106: ='Biomass Generation'!$T$9 -> 597.2869571 | T106: ='Biomass Generation'!$AD$9 -> 473.7120822 | U106: 3315.984576
O107: DFES 2023 - Falling Short | P107: ='Biomass Generation'!$B10 -> 669.199 | Q107: ='Biomass Generation'!$E$10 -> 729.805 | R107: ='Biomass Generation'!$J$10 -> 770.791 | S107: ='Biomass Generation'!$T$10 -> 741.168 | T107: ='Biomass Generation'!$AD$10 -> 741.168 | U107: 5188.176
G140: DFES Doc 2023 uses totals in infographics - see further below for total reneable + non-renewable
G141: =O141 -> Total Renewable DG Capacity (MW) | H141: 2025 | I141: 2030 | J141: 2040 | K141: 2050 | O141: Total Renewable DG Capacity (MW) | P141: 2022 | Q141: 2025 | R141: 2030 | S141: 2040 | T141: 2050 | U141: GB rough estimate by 2050 (not UK - no NI)
G142: DFES 2023 - Consumer Transformation | H142: =Q142 -> 4556.591984 | I142: 5922.226153 | J142: 10214.67277 | K142: 14173.55207 | O142: DFES 2023 - Consumer Transformation | P142: ='Total Renewable Generation'!$B2 -> 3017.102221 | Q142: ='Total Renewable Generation'!$E$2 -> 4556.591984 | R142: ='Total Renewable Generation'!$J$2 -> 5922.226153 | S142: ='Total Renewable Generation'!$T$2 -> 10214.67277 | T142: ='Total Renewable Generation'!$AD$2 -> 14173.55207 | U142: =T142*7 -> 99214.86451
G143: DFES 2023 - System Transformation | H143: 4451.853584 | I143: 5187.619034 | J143: 7126.995515 | K143: 9210.173616 | O143: DFES 2023 - System Transformation | P143: ='Total Renewable Generation'!$B3 -> 3017.102221 | Q143: ='Total Renewable Generation'!$E$3 -> 4451.853584 | R143: ='Total Renewable Generation'!$J$3 -> 5187.619034 | S143: ='Total Renewable Generation'!$T$3 -> 7126.995515 | T143: ='Total Renewable Generation'!$AD$3 -> 9210.173616 | U143: =T143*7 -> 64471.21531
G144: DFES 2023 - Leading The Way | H144: 5122.265016 | I144: 6722.909857 | J144: 10887.69888 | K144: 14416.72323 | O144: DFES 2023 - Leading The Way | P144: ='Total Renewable Generation'!$B4 -> 3017.102221 | Q144: ='Total Renewable Generation'!$E4 -> 5122.265016 | R144: ='Total Renewable Generation'!$J4 -> 6722.909857 | S144: ='Total Renewable Generation'!$T4 -> 10887.69888 | T144: ='Total Renewable Generation'!$AD4 -> 14416.72323 | U144: 100917.0626
G145: DFES 2023 - NPg Best View | H145: =Q148 -> 5136.470016 | I145: =R148 -> 6849.482607 | J145: =S148 -> 11585.63863 | K145: =T148 -> 15394.47398 | O145: CCC 2020 - Balanced Net Zero | P145: ='Total Renewable Generation'!$B5 -> 3515.046037 | Q145: ='Total Renewable Generation'!$E5 -> 4113.260806 | R145: ='Total Renewable Generation'!$J5 -> 5857.079922 | S145: ='Total Renewable Generation'!$T5 -> 10225.99253 | T145: ='Total Renewable Generation'!$AD5 -> 13816.22686 | U145: 96713.58804
G146: DFES 2023 - Falling Short | H146: =Q150 -> 3923.984979 | I146: =R150 -> 4279.668456 | J146: =S150 -> 5413.956007 | K146: =T150 -> 7043.38033 | O146: CT 2023 Policy Sensitivity | P146: ='Total Renewable Generation'!$B6 -> 3017.102221 | Q146: ='Total Renewable Generation'!$E6 -> 4556.591984 | R146: ='Total Renewable Generation'!$J6 -> 5925.234896 | S146: ='Total Renewable Generation'!$T6 -> 10255.29683 | T146: ='Total Renewable Generation'!$AD6 -> 14245.56511 | U146: 99718.95576
O147: BV 2023 Policy Sensitivity | P147: ='Total Renewable Generation'!$B7 -> 3017.102221 | Q147: ='Total Renewable Generation'!$E7 -> 5136.470016 | R147: ='Total Renewable Generation'!$J7 -> 6849.482607 | S147: ='Total Renewable Generation'!$T7 -> 11602.88928 | T147: ='Total Renewable Generation'!$AD7 -> 15441.36841 | U147: 108089.5789
O148: DFES 2023 - NPg Best View | P148: ='Total Renewable Generation'!$B8 -> 3017.102221 | Q148: ='Total Renewable Generation'!$E8 -> 5136.470016 | R148: ='Total Renewable Generation'!$J8 -> 6849.482607 | S148: ='Total Renewable Generation'!$T8 -> 11585.63863 | T148: ='Total Renewable Generation'!$AD8 -> 15394.47398 | U148: 107761.3178
O149: NPg ED2 Planning Scenario - needs updating to old | P149: ='Total Renewable Generation'!$B9 -> 3017.102221 | Q149: ='Total Renewable Generation'!$E$9 -> 5136.470016 | R149: ='Total Renewable Generation'!$J$9 -> 6849.482607 | S149: ='Total Renewable Generation'!$T$9 -> 11585.63863 | T149: ='Total Renewable Generation'!$AD$9 -> 15394.47398 | U149: 107761.3178
O150: DFES 2023 - Falling Short | P150: ='Total Renewable Generation'!$B10 -> 3017.102221 | Q150: ='Total Renewable Generation'!$E$10 -> 3923.984979 | R150: ='Total Renewable Generation'!$J$10 -> 4279.668456 | S150: ='Total Renewable Generation'!$T$10 -> 5413.956007 | T150: ='Total Renewable Generation'!$AD$10 -> 7043.38033 | U150: 49303.66231
O152: DFES 2023 - Consumer Transformation | Q152: R 255 | R152: G 191 | S152: B 34
O153: DFES 2023 - System Transformation | Q153: R 91 | R153: G 203 | S153: B 245
O154: DFES 2023 - Leading The Way | Q154: R 194 | R154: G 205 | S154: B 35
O155: CCC 2020 - Balanced Net Zero | Q155: R113 | R155: G66 | S155: B255
O156: CT 2023 Policy Sensitivity | Q156: R202 | R156: G120 | S156: B128
O157: BV 2023 Policy Sensitivity | Q157: R205 | R157: G231 | S157: B176
O158: DFES 2023 - NPg Best View | Q158: R192 | R158: G0 | S158: B0
O159: NPg ED2 Planning Scenario - needs updating to old | Q159: R 0 | R159: G 171 | S159: B 132
O160: DFES 2023 - Falling Short | Q160: R 130 | R160: G 123 | S160: B 122
G172: =O172 -> Total Non Renewable DG Capacity (MW) | H172: 2025 | I172: 2030 | J172: 2040 | K172: 2050 | O172: Total Non Renewable DG Capacity (MW) | P172: 2022 | Q172: 2025 | R172: 2030 | S172: 2040 | T172: 2050 | U172: GB rough estimate by 2050 (not UK - no NI)
G173: DFES 2023 - Consumer Transformation | H173: =Q173 -> 1749.22113 | I173: 2053.82895 | J173: 607.2115389 | K173: 0 | O173: DFES 2023 - Consumer Transformation | P173: ='Total Non Renewable Generation'!$B2 -> 1653.26 | Q173: ='Total Non Renewable Generation'!$E2 -> 1749.22113 | R173: ='Total Non Renewable Generation'!$J2 -> 2053.82895 | S173: ='Total Non Renewable Generation'!$T2 -> 607.2115389 | T173: ='Total Non Renewable Generation'!$AD2 -> 0 | U173: =T173*7 -> 0
G174: DFES 2023 - System Transformation | H174: 1803.82548 | I174: 2093.4614 | J174: 710.6279769 | K174: 0 | O174: DFES 2023 - System Transformation | P174: ='Total Non Renewable Generation'!$B3 -> 1653.26 | Q174: ='Total Non Renewable Generation'!$E3 -> 1803.82548 | R174: ='Total Non Renewable Generation'!$J3 -> 2093.4614 | S174: ='Total Non Renewable Generation'!$T3 -> 710.6279769 | T174: ='Total Non Renewable Generation'!$AD3 -> 0 | U174: =T174*7 -> 0
G175: DFES 2023 - Leading The Way | H175: 1803.82548 | I175: 1867.2424 | J175: 205.1995494 | K175: 0 | O175: DFES 2023 - Leading The Way | P175: ='Total Non Renewable Generation'!$B4 -> 1653.26 | Q175: ='Total Non Renewable Generation'!$E4 -> 1803.82548 | R175: ='Total Non Renewable Generation'!$J4 -> 1867.2424 | S175: ='Total Non Renewable Generation'!$T4 -> 205.1995494 | T175: ='Total Non Renewable Generation'!$AD4 -> 0 | U175: 0
G176: DFES 2023 - NPg Best View | H176: =Q179 -> 1803.82548 | I176: =R179 -> 1867.2424 | J176: =S179 -> 205.1995494 | K176: =T179 -> 0 | O176: CCC 2020 - Balanced Net Zero | P176: ='Total Non Renewable Generation'!$B5 -> 2041.046555 | Q176: ='Total Non Renewable Generation'!$E5 -> 2444.122057 | R176: ='Total Non Renewable Generation'!$J5 -> 2805.558835 | S176: ='Total Non Renewable Generation'!$T5 -> 1567.415065 | T176: ='Total Non Renewable Generation'!$AD5 -> 617.9843325 | U176: 4325.890327
G177: DFES 2023 - Falling Short | H177: =Q181 -> 1962.15438 | I177: =R181 -> 2625.2851 | J177: =S181 -> 2696.9071 | K177: =T181 -> 2231.343493 | O177: CT 2023 Policy Sensitivity | P177: ='Total Non Renewable Generation'!$B6 -> 1653.26 | Q177: ='Total Non Renewable Generation'!$E6 -> 1749.22113 | R177: ='Total Non Renewable Generation'!$J6 -> 2053.82895 | S177: ='Total Non Renewable Generation'!$T6 -> 1225.515774 | T177: ='Total Non Renewable Generation'!$AD6 -> 913.952 | U177: 6397.664
O178: BV 2023 Policy Sensitivity | P178: ='Total Non Renewable Generation'!$B7 -> 1653.26 | Q178: ='Total Non Renewable Generation'!$E7 -> 1803.82548 | R178: ='Total Non Renewable Generation'!$J7 -> 1867.2424 | S178: ='Total Non Renewable Generation'!$T7 -> 1020.146549 | T178: ='Total Non Renewable Generation'!$AD7 -> 913.952 | U178: 6397.664
O179: DFES 2023 - NPg Best View | P179: ='Total Non Renewable Generation'!$B8 -> 1653.26 | Q179: ='Total Non Renewable Generation'!$E8 -> 1803.82548 | R179: ='Total Non Renewable Generation'!$J8 -> 1867.2424 | S179: ='Total Non Renewable Generation'!$T8 -> 205.1995494 | T179: ='Total Non Renewable Generation'!$AD8 -> 0 | U179: 0
O180: NPg ED2 Planning Scenario - needs updating to old | P180: ='Total Non Renewable Generation'!$B9 -> 1653.26 | Q180: ='Total Non Renewable Generation'!$E9 -> 1803.82548 | R180: ='Total Non Renewable Generation'!$J9 -> 1867.2424 | S180: ='Total Non Renewable Generation'!$T9 -> 205.1995494 | T180: ='Total Non Renewable Generation'!$AD9 -> 0 | U180: 0
O181: DFES 2023 - Falling Short | P181: ='Total Non Renewable Generation'!$B10 -> 1653.26 | Q181: ='Total Non Renewable Generation'!$E10 -> 1962.15438 | R181: ='Total Non Renewable Generation'!$J10 -> 2625.2851 | S181: ='Total Non Renewable Generation'!$T10 -> 2696.9071 | T181: ='Total Non Renewable Generation'!$AD10 -> 2231.343493 | U181: 15619.40445
O184: DFES 2023 - Consumer Transformation | Q184: R 255 | R184: G 191 | S184: B 34 | W184: =5*219 -> 1095
O185: DFES 2023 - System Transformation | Q185: R 91 | R185: G 203 | S185: B 245
O186: DFES 2023 - Leading The Way | Q186: R 194 | R186: G 205 | S186: B 35
O187: CCC 2020 - Balanced Net Zero | Q187: R113 | R187: G66 | S187: B255
O188: CT 2023 Policy Sensitivity | Q188: R202 | R188: G120 | S188: B128
O189: BV 2023 Policy Sensitivity | Q189: R205 | R189: G231 | S189: B176
O190: DFES 2023 - NPg Best View | Q190: R192 | R190: G0 | S190: B0
O191: NPg ED2 Planning Scenario - needs updating to old | Q191: R 0 | R191: G 171 | S191: B 132
O192: DFES 2023 - Falling Short | Q192: R 130 | R192: G 123 | S192: B 122
A193: DFES Doc 2023
G203: DFES Doc 2023
G204: =O204 -> Storage Capacity (MW) | H204: 2025 | I204: 2030 | J204: 2040 | K204: 2050 | O204: Storage Capacity (MW) | P204: 2022 | Q204: 2025 | R204: 2030 | S204: 2040 | T204: 2050 | U204: GB rough estimate by 2050 (not UK - no NI)
G205: DFES 2023 - Consumer Transformation | H205: =Q205 -> 896.2902204 | I205: 1056.679177 | J205: 1653.250783 | K205: 2398.813678 | O205: DFES 2023 - Consumer Transformation | P205: =Storage!$B2 -> 201.8189492 | Q205: =Storage!$E$2 -> 896.2902204 | R205: =Storage!$J$2 -> 1056.679177 | S205: =Storage!$T$2 -> 1653.250783 | T205: =Storage!$AD$2 -> 2398.813678 | U205: =T205*7 -> 16791.69575
G206: DFES 2023 - System Transformation | H206: 798.1562649 | I206: 826.6317515 | J206: 1115.016562 | K206: 1431.120217 | O206: DFES 2023 - System Transformation | P206: =Storage!$B3 -> 196.8579029 | Q206: =Storage!$E$3 -> 798.1562649 | R206: =Storage!$J$3 -> 826.6317515 | S206: =Storage!$T$3 -> 1115.016562 | T206: =Storage!$AD$3 -> 1431.120217 | U206: =T206*7 -> 10017.84152
G207: DFES 2023 - Leading The Way | H207: 621.1960773 | I207: 777.435934 | J207: 1410.117878 | K207: 2232.1042 | O207: DFES 2023 - Leading The Way | P207: =Storage!$B4 -> 200.9708973 | Q207: =Storage!$E4 -> 621.1960773 | R207: =Storage!$J4 -> 777.435934 | S207: =Storage!$T4 -> 1410.117878 | T207: =Storage!$AD4 -> 2232.1042 | U207: 15624.7294
G208: DFES 2023 - NPg Best View | H208: =Q211 -> 1076.262415 | I208: =R211 -> 1333.171009 | J208: =S211 -> 2054.812906 | K208: =T211 -> 2830.887288 | O208: CCC 2020 - Balanced Net Zero | P208: =Storage!$B5 -> 266.2298472 | Q208: =Storage!$E5 -> 590.7423179 | R208: =Storage!$J5 -> 837.4089369 | S208: =Storage!$T5 -> 1667.240294 | T208: =Storage!$AD5 -> 2466.123474 | U208: 17262.86432
G209: DFES 2023 - Falling Short | H209: =Q213 -> 342.993514 | I209: =R213 -> 546.4054733 | J209: =S213 -> 674.4344471 | K209: =T213 -> 981.0498951 | O209: CT 2023 Policy Sensitivity | P209: =Storage!$B6 -> 201.8189492 | Q209: =Storage!$E6 -> 896.2902204 | R209: =Storage!$J6 -> 1056.679177 | S209: =Storage!$T6 -> 1653.250783 | T209: =Storage!$AD6 -> 2398.813678 | U209: 16791.69575
O210: BV 2023 Policy Sensitivity | P210: =Storage!$B7 -> 201.8189492 | Q210: =Storage!$E7 -> 1076.262415 | R210: =Storage!$J7 -> 1333.171009 | S210: =Storage!$T7 -> 2054.812906 | T210: =Storage!$AD7 -> 2830.887288 | U210: 19816.21102
O211: DFES 2023 - NPg Best View | P211: =Storage!$B8 -> 201.8189492 | Q211: =Storage!$E8 -> 1076.262415 | R211: =Storage!$J8 -> 1333.171009 | S211: =Storage!$T8 -> 2054.812906 | T211: =Storage!$AD8 -> 2830.887288 | U211: 19816.21102
O212: NPg ED2 Planning Scenario - needs updating to old | P212: =Storage!$B9 -> 201.8189492 | Q212: =Storage!$E$9 -> 1076.262415 | R212: =Storage!$J$9 -> 1333.171009 | S212: =Storage!$T$9 -> 2054.812906 | T212: =Storage!$AD$9 -> 2830.887288 | U212: 19816.21102
O213: DFES 2023 - Falling Short | P213: =Storage!$B10 -> 198.2516516 | Q213: =Storage!$E$10 -> 342.993514 | R213: =Storage!$J$10 -> 546.4054733 | S213: =Storage!$T$10 -> 674.4344471 | T213: =Storage!$AD$10 -> 981.0498951 | U213: 6867.349266
O216: DFES 2023 - Consumer Transformation | Q216: R 255 | R216: G 191 | S216: B 34
O217: DFES 2023 - System Transformation | Q217: R 91 | R217: G 203 | S217: B 245
O218: DFES 2023 - Leading The Way | Q218: R 194 | R218: G 205 | S218: B 35
O219: CCC 2020 - Balanced Net Zero | Q219: R113 | R219: G66 | S219: B255
O220: CT 2023 Policy Sensitivity | Q220: R202 | R220: G120 | S220: B128
O221: BV 2023 Policy Sensitivity | Q221: R205 | R221: G231 | S221: B176
O222: DFES 2023 - NPg Best View | Q222: R192 | R222: G0 | S222: B0
O223: NPg ED2 Planning Scenario - needs updating to old | Q223: R 0 | R223: G 171 | S223: B 132
O224: DFES 2023 - Falling Short | Q224: R 130 | R224: G 123 | S224: B 122
G228: DFES Doc 2023 uses totals in infographics
G237: =O237 -> Total Generation Capacity (MW) | H237: 2025 | I237: 2030 | J237: 2040 | K237: 2050 | O237: Total Generation Capacity (MW) | P237: 2022 | Q237: 2025 | R237: 2030 | S237: 2040 | T237: 2050 | U237: GB rough estimate by 2050 (not UK - no NI)
G238: DFES 2023 - Consumer Transformation | H238: =Q238 -> 6305.813114 | I238: 7976.055103 | J238: 10821.88431 | K238: 14173.55207 | O238: DFES 2023 - Consumer Transformation | P238: ='Total Generation'!$B2 -> 4670.362221 | Q238: ='Total Generation'!$E$2 -> 6305.813114 | R238: ='Total Generation'!$J$2 -> 7976.055103 | S238: ='Total Generation'!$T$2 -> 10821.88431 | T238: ='Total Generation'!$AD$2 -> 14173.55207 | U238: =T238*7 -> 99214.86451
G239: DFES 2023 - System Transformation | H239: 6255.679064 | I239: 7281.080434 | J239: 7837.623492 | K239: 9210.173616 | O239: DFES 2023 - System Transformation | P239: ='Total Generation'!$B3 -> 4670.362221 | Q239: ='Total Generation'!$E$3 -> 6255.679064 | R239: ='Total Generation'!$J$3 -> 7281.080434 | S239: ='Total Generation'!$T$3 -> 7837.623492 | T239: ='Total Generation'!$AD$3 -> 9210.173616 | U239: 64471.21531
G240: DFES 2023 - Leading The Way | H240: 6926.090496 | I240: 8590.152257 | J240: 11092.89843 | K240: 14416.72323 | O240: DFES 2023 - Leading The Way | P240: ='Total Generation'!$B4 -> 4670.362221 | Q240: ='Total Generation'!$E4 -> 6926.090496 | R240: ='Total Generation'!$J4 -> 8590.152257 | S240: ='Total Generation'!$T4 -> 11092.89843 | T240: ='Total Generation'!$AD4 -> 14416.72323 | U240: 100917.0626
G241: DFES 2023 - NPg Best View | H241: =Q244 -> 6940.295496 | I241: =R244 -> 8716.725007 | J241: =S244 -> 11790.83818 | K241: =T244 -> 15394.47398 | O241: CCC 2020 - Balanced Net Zero | P241: ='Total Generation'!$B5 -> 5556.092592 | Q241: ='Total Generation'!$E5 -> 6557.382863 | R241: ='Total Generation'!$J5 -> 8662.638757 | S241: ='Total Generation'!$T5 -> 11793.4076 | T241: ='Total Generation'!$AD5 -> 14434.2112 | U241: 101039.4784
G242: DFES 2023 - Falling Short | H242: =Q246 -> 5886.139359 | I242: =R246 -> 6904.953556 | J242: =S246 -> 8110.863107 | K242: =T246 -> 9274.723823 | O242: CT 2023 Policy Sensitivity | P242: ='Total Generation'!$B6 -> 4670.362221 | Q242: ='Total Generation'!$E6 -> 6305.813114 | R242: ='Total Generation'!$J6 -> 7979.063846 | S242: ='Total Generation'!$T6 -> 11480.81261 | T242: ='Total Generation'!$AD6 -> 15159.51711 | U242: 106116.6198
O243: BV 2023 Policy Sensitivity | P243: ='Total Generation'!$B7 -> 4670.362221 | Q243: ='Total Generation'!$E7 -> 6940.295496 | R243: ='Total Generation'!$J7 -> 8716.725007 | S243: ='Total Generation'!$T7 -> 12623.03582 | T243: ='Total Generation'!$AD7 -> 16355.32041 | U243: 114487.2429
O244: DFES 2023 - NPg Best View | P244: ='Total Generation'!$B8 -> 4670.362221 | Q244: ='Total Generation'!$E8 -> 6940.295496 | R244: ='Total Generation'!$J8 -> 8716.725007 | S244: ='Total Generation'!$T8 -> 11790.83818 | T244: ='Total Generation'!$AD8 -> 15394.47398 | U244: 107761.3178
O245: NPg ED2 Planning Scenario - needs updating to old | P245: ='Total Generation'!$B9 -> 4670.362221 | Q245: ='Total Generation'!$E$9 -> 6940.295496 | R245: ='Total Generation'!$J$9 -> 8716.725007 | S245: ='Total Generation'!$T$9 -> 11790.83818 | T245: ='Total Generation'!$AD$9 -> 15394.47398 | U245: 107761.3178
O246: DFES 2023 - Falling Short | P246: ='Total Generation'!$B10 -> 4670.362221 | Q246: ='Total Generation'!$E$10 -> 5886.139359 | R246: ='Total Generation'!$J$10 -> 6904.953556 | S246: ='Total Generation'!$T$10 -> 8110.863107 | T246: ='Total Generation'!$AD$10 -> 9274.723823 | U246: 64923.06676
O270: Generation MIX 2021 | P270: CT | Q270: ST | R270: LTW | S270: SP | T270: PS | U270: PS
O271: PV | P271: =$P6 -> 477.1729988 | Q271: =$P7 -> 477.1729988 | R271: =$P8 -> 477.1729988 | S271: =$P14 -> 477.1729988 | T271: =$P12 -> 477.1729988 | U271: =$P12 -> 477.1729988
O272: Large Solar | P272: =$P37 -> 378.9745176 | Q272: =$P38 -> 378.9745176 | R272: =$P39 -> 378.9745176 | S272: =$P45 -> 378.9745176 | T272: =$P43 -> 378.9745176 | U272: =$P43 -> 378.9745176
O273: Wind | P273: =$P68 -> 1297.682705 | Q273: =$P69 -> 1297.682705 | R273: =$P70 -> 1297.682705 | S273: =$P76 -> 1297.682705 | T273: =$P74 -> 1297.682705 | U273: =$P74 -> 1297.682705
O274: Other Renewable | P274: =P276-SUM(P271:P273) -> 863.272 | Q274: =Q276-SUM(Q271:Q273) -> 863.272 | R274: =R276-SUM(R271:R273) -> 863.272 | S274: =$P276-SUM($P271:$P273) -> 863.272 | T274: =T276-SUM(T271:T273) -> 863.272 | U274: =U276-SUM(U271:U273) -> 863.272
O275: Non Renewable | P275: =$P173 -> 1653.26 | Q275: =$P174 -> 1653.26 | R275: =$P175 -> 1653.26 | S275: =$P181 -> 1653.26 | T275: =$P179 -> 1653.26 | U275: =$P179 -> 1653.26
O276: Total Renewable for 'other' calculation | P276: =$P142 -> 3017.102221 | Q276: =$P143 -> 3017.102221 | R276: =$P144 -> 3017.102221 | S276: =$P150 -> 3017.102221 | T276: =$P148 -> 3017.102221 | U276: =$P148 -> 3017.102221
O277: Total Generation | P277: =$P238 -> 4670.362221 | Q277: =$P239 -> 4670.362221 | R277: =$P240 -> 4670.362221 | S277: =$P246 -> 4670.362221 | T277: =$P244 -> 4670.362221 | U277: =$P244 -> 4670.362221
O278: Total Generation Check | P278: =SUM(P271:P275) -> 4670.362221 | Q278: 4670.362221 | R278: 4670.362221 | S278: 4670.362221 | T278: 4670.362221 | U278: 4670.362221
O289: Generation MIX 2050 | P289: CT | Q289: ST | R289: LTW | S289: SP | T289: PS | U289: PS
O290: PV | P290: =$T6 -> 3498.071109 | Q290: =$T7 -> 1675.153841 | R290: =$T8 -> 3498.071109 | S290: =$T14 -> 1150.571531 | T290: =$T12 -> 3498.071109 | U290: =$T12 -> 3498.071109
O291: Large Solar | P291: =$T37 -> 5298.046148 | Q291: =$T38 -> 4338.726153 | R291: =$T39 -> 6398.47018 | S291: =$T45 -> 3056.569694 | T291: =$T43 -> 6398.47018 | U291: =$T43 -> 6398.47018
O292: Wind | P292: =$T68 -> 4776.993605 | Q292: =$T69 -> 2416.528855 | R292: =$T70 -> 3799.242855 | S292: =$T76 -> 1887.107105 | T292: =$T74 -> 4776.993605 | U292: =$T74 -> 4776.993605
O293: Other Renewable | P293: =P295-SUM(P290:P292) -> 600.441211 | Q293: =Q295-SUM(Q290:Q292) -> 779.7647672 | R293: =R295-SUM(R290:R292) -> 720.9390822 | S293: =$T295-SUM($T290:$T292) -> 720.9390822 | T293: =T295-SUM(T290:T292) -> 720.9390822 | U293: =U295-SUM(U290:U292) -> 720.9390822
O294: Non Renewable | P294: =$T173 -> 0 | Q294: =$T174 -> 0 | R294: =$T175 -> 0 | S294: =$T181 -> 2231.343493 | T294: =$T179 -> 0 | U294: =$T179 -> 0
O295: Total Renewable for 'other' calculation | P295: =$T142 -> 14173.55207 | Q295: =$T143 -> 9210.173616 | R295: =$T144 -> 14416.72323 | S295: =$T150 -> 7043.38033 | T295: =$T148 -> 15394.47398 | U295: =$T148 -> 15394.47398
O296: Total Generation | P296: =$T238 -> 14173.55207 | Q296: =$T239 -> 9210.173616 | R296: =$T240 -> 14416.72323 | S296: =$T246 -> 9274.723823 | T296: =$T244 -> 15394.47398 | U296: =$T244 -> 15394.47398
O297: Total Generation Check | P297: =SUM(P290:P294) -> 14173.55207 | Q297: 9210.173616 | R297: 14416.72323 | S297: 9046.530905 | T297: 15394.47398 | U297: 15394.47398
O322: Generation MIX by Decade - CT | P322: 2022 | Q322: 2025 | R322: 2030 | S322: 2040 | T322: 2050
O323: PV | P323: =P6 -> 477.1729988 | Q323: =Q6 -> 618.4825588 | R323: =R6 -> 991.9577666 | S323: =S6 -> 2105.595413 | T323: =T6 -> 3498.071109
O324: Large Solar | P324: =P37 -> 378.9745176 | Q324: =Q37 -> 1715.68832 | R324: =R37 -> 2369.144203 | S324: =S37 -> 3846.905627 | T324: =T37 -> 5298.046148
O325: Wind | P325: =P68 -> 1297.682705 | Q325: =Q68 -> 1337.456705 | R325: =R68 -> 1698.065605 | S325: =S68 -> 3538.330605 | T325: =T68 -> 4776.993605
O326: Other Renewable | P326: =P328-SUM(P323:P325) -> 863.272 | Q326: =Q328-SUM(Q323:Q325) -> 884.9644 | R326: =R328-SUM(R323:R325) -> 863.0585784 | S326: =S328-SUM(S323:S325) -> 723.8411222 | T326: =T328-SUM(T323:T325) -> 600.441211
O327: Non Renewable | P327: =P173 -> 1653.26 | Q327: =Q173 -> 1749.22113 | R327: =R173 -> 2053.82895 | S327: =S173 -> 607.2115389 | T327: =T173 -> 0
O328: Total Renewable for 'other' calculation | P328: =P142 -> 3017.102221 | Q328: =Q142 -> 4556.591984 | R328: =R142 -> 5922.226153 | S328: =S142 -> 10214.67277 | T328: =T142 -> 14173.55207
O329: Total Generation | P329: =P238 -> 4670.362221 | Q329: =Q238 -> 6305.813114 | R329: =R238 -> 7976.055103 | S329: =S238 -> 10821.88431 | T329: =T238 -> 14173.55207
O330: Total Generation Check | P330: =SUM(P323:P327) -> 4670.362221 | Q330: =SUM(Q323:Q327) -> 6305.813114 | R330: =SUM(R323:R327) -> 7976.055103 | S330: =SUM(S323:S327) -> 10821.88431 | T330: =SUM(T323:T327) -> 14173.55207
O354: Generation MIX by Decade - PS | P354: 2022 | Q354: 2025 | R354: 2030 | S354: 2040 | T354: 2050
O355: PV | P355: =P12 -> 477.1729988 | Q355: =Q12 -> 618.4825588 | R355: =R12 -> 991.9577666 | S355: =S12 -> 2105.595413 | T355: =T12 -> 3498.071109
O356: Large Solar | P356: =P43 -> 378.9745176 | Q356: =Q43 -> 2272.617352 | R356: =R43 -> 3251.619235 | S356: =S43 -> 5105.314659 | T356: =T43 -> 6398.47018
O357: Wind | P357: =P74 -> 1297.682705 | Q357: =Q74 -> 1337.456705 | R357: =R74 -> 1698.065605 | S357: =S74 -> 3538.330605 | T357: =T74 -> 4776.993605
O358: Other Renewable | P358: =P360-SUM(P355:P357) -> 863.272 | Q358: =Q360-SUM(Q355:Q357) -> 907.9134 | R358: =R360-SUM(R355:R357) -> 907.84 | S358: =S360-SUM(S355:S357) -> 836.3979571 | T358: =T360-SUM(T355:T357) -> 720.9390822
O359: Non Renewable | P359: =P179 -> 1653.26 | Q359: =Q179 -> 1803.82548 | R359: =R179 -> 1867.2424 | S359: =S179 -> 205.1995494 | T359: =T179 -> 0
O360: Total Renewable for 'other' calculation | P360: =P148 -> 3017.102221 | Q360: =Q148 -> 5136.470016 | R360: =R148 -> 6849.482607 | S360: =S148 -> 11585.63863 | T360: =T148 -> 15394.47398
O361: Total Generation | P361: =P244 -> 4670.362221 | Q361: =Q244 -> 6940.295496 | R361: =R244 -> 8716.725007 | S361: =S244 -> 11790.83818 | T361: =T244 -> 15394.47398
O362: Total Generation Check | P362: =SUM(P355:P359) -> 4670.362221 | Q362: =SUM(Q355:Q359) -> 6940.295496 | R362: =SUM(R355:R359) -> 8716.725007 | S362: =SUM(S355:S359) -> 11790.83818 | T362: =SUM(T355:T359) -> 15394.47398

Sheet DFES Doc - Breakdown & Studies
B1: Large Industry Additional Loads Study for Gross Peak Demand
A2: DFES Doc 2023
R3: DFES Doc 2023
R4: =Z55 -> Changes highlighted (to I&C and total): Contributions to Peak Demand MW - NPg | S4: =AB55 -> 2025 | T4: =AC55 -> 2030 | U4: =AD55 -> 2040 | V4: =AE55 -> 2050
R5: Domestic Underlying Underlying | S5: 1896.809658 | T5: 1932.302897 | U5: 1906.374011 | V5: 1830.248278
R6: I & C Underlying Underlying | S6: 4362.300931 | T6: 4356.966671 | U6: 4464.273209 | V6: 4394.813252
R7: Heat pumps - domestic | S7: 117.6456169 | T7: 310.5354407 | U7: 1470.540919 | V7: 3333.263594
R8: Heat pumps - I & C | S8: 54.7991202 | T8: 101.5588622 | U8: 509.7957626 | V8: 1113.776393
R9: EV - cars & vans | S9: 191.7543654 | T9: 643.8580648 | U9: 1242.499996 | V9: 1316.624983
R10: Electric HGVs | S10: 10.19158649 | T10: 94.96017347 | U10: 380.9741729 | V10: 423.1486853
R11: Electric Buses | S11: 2.762545827 | T11: 8.430699935 | U11: 19.98231691 | V11: 21.76092616
R12: Total peak Demand | S12: 6636.263825 | T12: 7448.612809 | U12: 9994.440387 | V12: 12433.63611
R55: ='Energy Consumed Breakdown GWh'!$A$5&'Energy Consumed Breakdown GWh'!$A$6 -> Study: Contributions to Large load Energy Consumption GWh - NPg | S55: 2022 | T55: 2025 | U55: 2030 | V55: 2040 | W55: 2050 | Z55: ='Gross Peak Demand Breakdown'!$A$5&'Gross Peak Demand Breakdown'!$A$6 -> Changes highlighted (to I&C and total): Contributions to Peak Demand MW - NPg | AA55: 2022 | AB55: 2025 | AC55: 2030 | AD55: 2040 | AE55: 2050
R56: =R83 -> Domestic Underlying Underlying | S56: 10512.64294 | T56: =T83 -> 10452.80532 | U56: 10522.72561 | V56: 10358.07922 | W56: 9941.115664 | Z56: =Z83 -> Domestic Underlying Underlying | AA56: 1901.4495 | AB56: =AB83 -> 1896.809658 | AC56: 1932.302897 | AD56: 1906.374011 | AE56: 1830.248278
R57: I & C Underlying Underlying | S57: 23205.22672 | T57: =T84 -> 23742.61623 | U57: 23189.45599 | V57: 22839.35088 | W57: 22432.63987 | Z57: I & C Underlying Underlying | AA57: 3946.74532 | AB57: =AB84 -> 4362.300931 | AC57: 4356.966671 | AD57: 4464.273209 | AE57: 4394.813252
R58: Heat pumps - domestic | S58: 174.0154076 | T58: =T85 -> 476.5114943 | U58: 1260.973936 | V58: 5935.704449 | W58: 13445.20137 | Z58: Heat pumps - domestic | AA58: 42.8152931 | AB58: =AB85 -> 117.6456169 | AC58: 310.5354407 | AD58: 1470.540919 | AE58: 3333.263594
R59: Heat pumps - I & C | S59: 144.0505425 | T59: =T86 -> 186.9401777 | U59: 346.4451463 | V59: 1739.080173 | W59: 3799.453404 | Z59: Heat pumps - I & C | AA59: 42.22615833 | AB59: =AB86 -> 54.7991202 | AC59: 101.5588622 | AD59: 509.7957626 | AE59: 1113.776393
R60: EV - cars & vans | S60: 275.7881426 | T60: =T87 -> 1281.506188 | U60: 4525.033998 | V60: 8818.996831 | W60: 9331.91363 | Z60: EV - cars & vans | AA60: 51.4513156 | AB60: =AB87 -> 191.7543654 | AC60: 643.8580648 | AD60: 1242.499996 | AE60: 1316.624983
R61: Electric HGVs | S61: 7.357874554 | T61: =T88 -> 128.4716674 | U61: 1197.035596 | V61: 4802.430636 | W61: 5334.068172 | Z61: Electric HGVs | AA61: 0.5836961291 | AB61: =AB88 -> 10.19158649 | AC61: 94.96017347 | AD61: 380.9741729 | AE61: 423.1486853
R62: Electric Buses | S62: 28.25670329 | T62: =T89 -> 87.37898375 | U62: 266.661999 | V62: 632.0382189 | W62: 688.2954102 | Z62: Electric Buses | AA62: 0.8933548369 | AB62: =AB89 -> 2.762545827 | AC62: 8.430699935 | AD62: 19.98231691 | AE62: 21.76092616
R63: Total energy consumption | S63: =SUM(S56:S62) -> 34347.33833 | T63: =SUM(T56:T62) -> 36356.23007 | U63: =SUM(U56:U62) -> 41308.33228 | V63: 55125.6804 | W63: 64972.68753 | Z63: Total peak Demand | AA63: =SUM(AA56:AA62) -> 5986.164637 | AB63: =SUM(AB56:AB62) -> 6636.263825 | AC63: =SUM(AC56:AC62) -> 7448.612809 | AD63: 9994.440387 | AE63: 12433.63611
Z73: NPg ED2 Planning Scenario - needs updating to old Study: Additional contribution to Peak Demand MW - NPg | AA73: 2022 | AB73: 2025 | AC73: 2030 | AD73: 2040 | AE73: 2050
Z74: =Z88 -> Electric HGVs | AA74: 0.5836961291 | AB74: =AB88 -> 10.19158649 | AC74: 94.96017347 | AD74: 380.9741729 | AE74: 423.1486853
Z75: Electric Buses | AA75: 0.8933548369 | AB75: =AB89 -> 2.762545827 | AC75: 8.430699935 | AD75: 19.98231691 | AE75: 21.76092616
Z76: Electrolysers | AA76: 0 | AB76: =AB90 -> 86.29050738 | AC76: 411.8223773 | AD76: 664.7291247 | AE76: 1329.851643
Z77: Large industry Fuel Switching | AA77: 28.96933042 | AB77: =AB91 -> 72.42332606 | AC77: 196.5532182 | AD77: 435.038199 | AE77: 624.9793137
Z78: Total additional contribution | AA78: =SUM(AA74:AA77) -> 30.44638139 | AB78: =SUM(AB74:AB77) -> 171.6679658 | AC78: =SUM(AC74:AC77) -> 711.7664689 | AD78: 1500.723813 | AE78: 2399.740568
R82: ='Energy Consumed Breakdown GWh'!$A$5&'Energy Consumed Breakdown GWh'!$A$6 -> Study: Contributions to Large load Energy Consumption GWh - NPg | S82: 2022 | T82: ='Energy Consumed Breakdown GWh'!$E9 -> 2025 | U82: ='Energy Consumed Breakdown GWh'!$J9 -> 2030 | V82: ='Energy Consumed Breakdown GWh'!$T9 -> 2040 | W82: ='Energy Consumed Breakdown GWh'!$AD9 -> 2050 | Z82: ='Gross Peak Demand Breakdown'!$A$5&'Gross Peak Demand Breakdown'!$A$6 -> Changes highlighted (to I&C and total): Contributions to Peak Demand MW - NPg | AA82: 2022 | AB82: ='Gross Peak Demand Breakdown'!$E9 -> 2025 | AC82: ='Gross Peak Demand Breakdown'!$J9 -> 2030 | AD82: ='Gross Peak Demand Breakdown'!$T9 -> 2040 | AE82: ='Gross Peak Demand Breakdown'!$AD9 -> 2050
R83: ='Energy Consumed Breakdown GWh'!A10 & " Underlying" -> Domestic Underlying Underlying | S83: ='Energy Consumed Breakdown GWh'!$B10 -> 10512.64294 | T83: ='Energy Consumed Breakdown GWh'!$E10 -> 10452.80532 | U83: ='Energy Consumed Breakdown GWh'!$J10 -> 10522.72561 | V83: ='Energy Consumed Breakdown GWh'!$T10 -> 10358.07922 | W83: ='Energy Consumed Breakdown GWh'!$AD10 -> 9941.115664 | Y83: 10 | Z83: ='Gross Peak Demand Breakdown'!A10 & " Underlying" -> Domestic Underlying Underlying | AA83: ='Gross Peak Demand Breakdown'!$B10 -> 1901.4495 | AB83: ='Gross Peak Demand Breakdown'!$E10 -> 1896.809658 | AC83: ='Gross Peak Demand Breakdown'!$J10 -> 1932.302897 | AD83: ='Gross Peak Demand Breakdown'!$T10 -> 1906.374011 | AE83: ='Gross Peak Demand Breakdown'!$AD10 -> 1830.248278
R84: ='Energy Consumed Breakdown GWh'!A11 & " Underlying" -> I & C Underlying Underlying | S84: ='Energy Consumed Breakdown GWh'!$B11 -> 23205.22672 | T84: ='Energy Consumed Breakdown GWh'!$E11 -> 23742.61623 | U84: ='Energy Consumed Breakdown GWh'!$J11 -> 23189.45599 | V84: ='Energy Consumed Breakdown GWh'!$T11 -> 22839.35088 | W84: ='Energy Consumed Breakdown GWh'!$AD11 -> 22432.63987 | Y84: 11 | Z84: ='Gross Peak Demand Breakdown'!A11 & " Underlying" -> I & C Underlying Underlying | AA84: ='Gross Peak Demand Breakdown'!$B11 -> 3946.74532 | AB84: ='Gross Peak Demand Breakdown'!$E11 -> 4362.300931 | AC84: ='Gross Peak Demand Breakdown'!$J11 -> 4356.966671 | AD84: ='Gross Peak Demand Breakdown'!$T11 -> 4464.273209 | AE84: ='Gross Peak Demand Breakdown'!$AD11 -> 4394.813252
R85: ='Energy Consumed Breakdown GWh'!A12 -> Heat pumps - domestic | S85: ='Energy Consumed Breakdown GWh'!$B12 -> 174.0154076 | T85: ='Energy Consumed Breakdown GWh'!$E12 -> 476.5114943 | U85: ='Energy Consumed Breakdown GWh'!$J12 -> 1260.973936 | V85: ='Energy Consumed Breakdown GWh'!$T12 -> 5935.704449 | W85: ='Energy Consumed Breakdown GWh'!$AD12 -> 13445.20137 | Y85: 12 | Z85: ='Gross Peak Demand Breakdown'!A12 -> Heat pumps - domestic | AA85: ='Gross Peak Demand Breakdown'!$B12 -> 42.8152931 | AB85: ='Gross Peak Demand Breakdown'!$E12 -> 117.6456169 | AC85: ='Gross Peak Demand Breakdown'!$J12 -> 310.5354407 | AD85: ='Gross Peak Demand Breakdown'!$T12 -> 1470.540919 | AE85: ='Gross Peak Demand Breakdown'!$AD12 -> 3333.263594
R86: ='Energy Consumed Breakdown GWh'!A13 -> Heat pumps - I & C | S86: ='Energy Consumed Breakdown GWh'!$B13 -> 144.0505425 | T86: ='Energy Consumed Breakdown GWh'!$E13 -> 186.9401777 | U86: ='Energy Consumed Breakdown GWh'!$J13 -> 346.4451463 | V86: ='Energy Consumed Breakdown GWh'!$T13 -> 1739.080173 | W86: ='Energy Consumed Breakdown GWh'!$AD13 -> 3799.453404 | Y86: 13 | Z86: ='Gross Peak Demand Breakdown'!A13 -> Heat pumps - I & C | AA86: ='Gross Peak Demand Breakdown'!$B13 -> 42.22615833 | AB86: ='Gross Peak Demand Breakdown'!$E13 -> 54.7991202 | AC86: ='Gross Peak Demand Breakdown'!$J13 -> 101.5588622 | AD86: ='Gross Peak Demand Breakdown'!$T13 -> 509.7957626 | AE86: ='Gross Peak Demand Breakdown'!$AD13 -> 1113.776393
R87: ='Energy Consumed Breakdown GWh'!A14 -> EV - cars & vans | S87: ='Energy Consumed Breakdown GWh'!$B14 -> 275.7881426 | T87: ='Energy Consumed Breakdown GWh'!$E14 -> 1281.506188 | U87: ='Energy Consumed Breakdown GWh'!$J14 -> 4525.033998 | V87: ='Energy Consumed Breakdown GWh'!$T14 -> 8818.996831 | W87: ='Energy Consumed Breakdown GWh'!$AD14 -> 9331.91363 | Y87: 14 | Z87: ='Gross Peak Demand Breakdown'!A14 -> EV - cars & vans | AA87: ='Gross Peak Demand Breakdown'!$B14 -> 51.4513156 | AB87: ='Gross Peak Demand Breakdown'!$E14 -> 191.7543654 | AC87: ='Gross Peak Demand Breakdown'!$J14 -> 643.8580648 | AD87: ='Gross Peak Demand Breakdown'!$T14 -> 1242.499996 | AE87: ='Gross Peak Demand Breakdown'!$AD14 -> 1316.624983
R88: ='Energy Consumed Breakdown GWh'!A15 -> Electric HGVs | S88: ='Energy Consumed Breakdown GWh'!$B15 -> 7.357874554 | T88: ='Energy Consumed Breakdown GWh'!$E15 -> 128.4716674 | U88: ='Energy Consumed Breakdown GWh'!$J15 -> 1197.035596 | V88: ='Energy Consumed Breakdown GWh'!$T15 -> 4802.430636 | W88: ='Energy Consumed Breakdown GWh'!$AD15 -> 5334.068172 | Y88: 15 | Z88: ='Gross Peak Demand Breakdown'!A15 -> Electric HGVs | AA88: ='Gross Peak Demand Breakdown'!$B15 -> 0.5836961291 | AB88: ='Gross Peak Demand Breakdown'!$E15 -> 10.19158649 | AC88: ='Gross Peak Demand Breakdown'!$J15 -> 94.96017347 | AD88: ='Gross Peak Demand Breakdown'!$T15 -> 380.9741729 | AE88: ='Gross Peak Demand Breakdown'!$AD15 -> 423.1486853
R89: ='Energy Consumed Breakdown GWh'!A16 -> Electric Buses | S89: ='Energy Consumed Breakdown GWh'!$B16 -> 28.25670329 | T89: ='Energy Consumed Breakdown GWh'!$E16 -> 87.37898375 | U89: ='Energy Consumed Breakdown GWh'!$J16 -> 266.661999 | V89: ='Energy Consumed Breakdown GWh'!$T16 -> 632.0382189 | W89: ='Energy Consumed Breakdown GWh'!$AD16 -> 688.2954102 | Y89: 16 | Z89: ='Gross Peak Demand Breakdown'!A16 -> Electric Buses | AA89: ='Gross Peak Demand Breakdown'!$B16 -> 0.8933548369 | AB89: ='Gross Peak Demand Breakdown'!$E16 -> 2.762545827 | AC89: ='Gross Peak Demand Breakdown'!$J16 -> 8.430699935 | AD89: ='Gross Peak Demand Breakdown'!$T16 -> 19.98231691 | AE89: ='Gross Peak Demand Breakdown'!$AD16 -> 21.76092616
R90: ='Energy Consumed Breakdown GWh'!A17 -> Electrolysers | S90: ='Energy Consumed Breakdown GWh'!$B17 -> 0 | T90: ='Energy Consumed Breakdown GWh'!$E17 -> 755.9048446 | U90: ='Energy Consumed Breakdown GWh'!$J17 -> 3607.564026 | V90: ='Energy Consumed Breakdown GWh'!$T17 -> 5823.027133 | W90: ='Energy Consumed Breakdown GWh'!$AD17 -> 11649.50039 | Y90: 17 | Z90: ='Gross Peak Demand Breakdown'!A17 -> Electrolysers | AA90: ='Gross Peak Demand Breakdown'!$B17 -> 0 | AB90: ='Gross Peak Demand Breakdown'!$E17 -> 86.29050738 | AC90: ='Gross Peak Demand Breakdown'!$J17 -> 411.8223773 | AD90: ='Gross Peak Demand Breakdown'!$T17 -> 664.7291247 | AE90: ='Gross Peak Demand Breakdown'!$AD17 -> 1329.851643
R91: ='Energy Consumed Breakdown GWh'!A18 -> Large industry Fuel Switching | S91: ='Energy Consumed Breakdown GWh'!$B18 -> 253.7713345 | T91: ='Energy Consumed Breakdown GWh'!$E18 -> 634.4283363 | U91: ='Energy Consumed Breakdown GWh'!$J18 -> 1721.806191 | V91: ='Energy Consumed Breakdown GWh'!$T18 -> 3810.934623 | W91: ='Energy Consumed Breakdown GWh'!$AD18 -> 5474.818788 | Y91: 18 | Z91: ='Gross Peak Demand Breakdown'!A18 -> Large industry Fuel Switching | AA91: ='Gross Peak Demand Breakdown'!$B18 -> 28.96933042 | AB91: ='Gross Peak Demand Breakdown'!$E18 -> 72.42332606 | AC91: ='Gross Peak Demand Breakdown'!$J18 -> 196.5532182 | AD91: ='Gross Peak Demand Breakdown'!$T18 -> 435.038199 | AE91: ='Gross Peak Demand Breakdown'!$AD18 -> 624.9793137
R92: ='Energy Consumed Breakdown GWh'!A19 -> Total demand | S92: ='Energy Consumed Breakdown GWh'!$B19 -> 34601.10967 | T92: ='Energy Consumed Breakdown GWh'!$E19 -> 37746.56325 | U92: ='Energy Consumed Breakdown GWh'!$J19 -> 46637.7025 | V92: ='Energy Consumed Breakdown GWh'!$T19 -> 64759.64216 | W92: ='Energy Consumed Breakdown GWh'!$AD19 -> 82097.0067 | Y92: 19 | Z92: ='Gross Peak Demand Breakdown'!A19 -> Total demand | AA92: ='Gross Peak Demand Breakdown'!$B19 -> 6015.133968 | AB92: ='Gross Peak Demand Breakdown'!$E19 -> 6794.977658 | AC92: ='Gross Peak Demand Breakdown'!$J19 -> 8056.988404 | AD92: ='Gross Peak Demand Breakdown'!$T19 -> 11094.20771 | AE92: ='Gross Peak Demand Breakdown'!$AD19 -> 14388.46707
Y93: 20
Y94: 21
R95: NPg ED2 Planning Scenario - needs updating to old Study: Additional contribution to Energy Consumption GWh - NPg | S95: 2022 | T95: 2025 | U95: 2030 | V95: 2040 | W95: 2050 | Y95: 22 | Z95: ='Gross Peak Demand Breakdown'!A22 & " Underlying" -> Consumer Transformation: Contributions to Peak Demand MW - NPg Underlying | AA95: 2022 | AB95: ='Gross Peak Demand Breakdown'!$E22 -> 2025 | AC95: ='Gross Peak Demand Breakdown'!$J22 -> 2030 | AD95: ='Gross Peak Demand Breakdown'!$T22 -> 2040 | AE95: ='Gross Peak Demand Breakdown'!$AD22 -> 2050
R96: =R88 -> Electric HGVs | S96: 7.357874554 | T96: =T88 -> 128.4716674 | U96: 1197.035596 | V96: 4802.430636 | W96: 5334.068172 | Y96: 23 | Z96: ='Gross Peak Demand Breakdown'!A23 & " Underlying" -> Domestic Underlying Underlying | AA96: ='Gross Peak Demand Breakdown'!$B23 -> 1899.037888 | AB96: ='Gross Peak Demand Breakdown'!$E23 -> 1888.701481 | AC96: ='Gross Peak Demand Breakdown'!$J23 -> 1902.076293 | AD96: ='Gross Peak Demand Breakdown'!$T23 -> 1873.454759 | AE96: ='Gross Peak Demand Breakdown'!$AD23 -> 1798.740589
R97: Electric Buses | S97: 28.25670329 | T97: =T89 -> 87.37898375 | U97: 266.661999 | V97: 632.0382189 | W97: 688.2954102 | Y97: 24 | Z97: ='Gross Peak Demand Breakdown'!A24 & " Underlying" -> I & C Underlying Underlying | AA97: ='Gross Peak Demand Breakdown'!$B24 -> 3958.118455 | AB97: ='Gross Peak Demand Breakdown'!$E24 -> 4399.742227 | AC97: ='Gross Peak Demand Breakdown'!$J24 -> 4420.092049 | AD97: ='Gross Peak Demand Breakdown'!$T24 -> 4527.836649 | AE97: ='Gross Peak Demand Breakdown'!$AD24 -> 4457.160676
R98: Electrolysers | S98: 0 | T98: =T90 -> 755.9048446 | U98: 3607.564026 | V98: 5823.027133 | W98: 11649.50039 | Z98: ='Gross Peak Demand Breakdown'!A25 -> Heat pumps - domestic | AA98: ='Gross Peak Demand Breakdown'!$B25 -> 42.8152931 | AB98: ='Gross Peak Demand Breakdown'!$E25 -> 117.6456169 | AC98: ='Gross Peak Demand Breakdown'!$J25 -> 310.5354407 | AD98: ='Gross Peak Demand Breakdown'!$T25 -> 1470.540919 | AE98: ='Gross Peak Demand Breakdown'!$AD25 -> 3333.263594
R99: Large industry Fuel Switching | S99: 253.7713345 | T99: =T91 -> 634.4283363 | U99: 1721.806191 | V99: 3810.934623 | W99: 5474.818788 | Z99: ='Gross Peak Demand Breakdown'!A26 -> Heat pumps - I & C | AA99: ='Gross Peak Demand Breakdown'!$B26 -> 42.22615833 | AB99: ='Gross Peak Demand Breakdown'!$E26 -> 54.7991202 | AC99: ='Gross Peak Demand Breakdown'!$J26 -> 101.5588622 | AD99: ='Gross Peak Demand Breakdown'!$T26 -> 509.7957626 | AE99: ='Gross Peak Demand Breakdown'!$AD26 -> 1113.776393
R100: Total additional contribution | S100: =SUM(S96:S99) -> 289.3859124 | T100: =SUM(T96:T99) -> 1606.183832 | U100: =SUM(U96:U99) -> 6793.067812 | V100: 15068.43061 | W100: 23146.68276 | Z100: ='Gross Peak Demand Breakdown'!A27 -> EV - cars & vans | AA100: ='Gross Peak Demand Breakdown'!$B27 -> 52.03771271 | AB100: ='Gross Peak Demand Breakdown'!$E27 -> 241.457969 | AC100: ='Gross Peak Demand Breakdown'!$J27 -> 847.6900559 | AD100: ='Gross Peak Demand Breakdown'!$T27 -> 1720.253928 | AE100: ='Gross Peak Demand Breakdown'!$AD27 -> 1858.962009
Z101: ='Gross Peak Demand Breakdown'!A28 -> Electric HGVs | AA101: ='Gross Peak Demand Breakdown'!$B28 -> 0.5836961291 | AB101: ='Gross Peak Demand Breakdown'!$E28 -> 6.851800062 | AC101: ='Gross Peak Demand Breakdown'!$J28 -> 61.73282184 | AD101: ='Gross Peak Demand Breakdown'!$T28 -> 361.0123559 | AE101: ='Gross Peak Demand Breakdown'!$AD28 -> 439.7976339
Z102: ='Gross Peak Demand Breakdown'!A29 -> Electric Buses | AA102: ='Gross Peak Demand Breakdown'!$B29 -> 0.8933548369 | AB102: ='Gross Peak Demand Breakdown'!$E29 -> 2.327878974 | AC102: ='Gross Peak Demand Breakdown'!$J29 -> 7.225103943 | AD102: ='Gross Peak Demand Breakdown'!$T29 -> 19.36260562 | AE102: ='Gross Peak Demand Breakdown'!$AD29 -> 22.60991536
Z103: ='Gross Peak Demand Breakdown'!A30 -> Electrolysers | AA103: ='Gross Peak Demand Breakdown'!$B30 -> 0 | AB103: ='Gross Peak Demand Breakdown'!$E30 -> 0.4933389464 | AC103: ='Gross Peak Demand Breakdown'!$J30 -> 46.71433927 | AD103: ='Gross Peak Demand Breakdown'!$T30 -> 301.1700245 | AE103: ='Gross Peak Demand Breakdown'!$AD30 -> 471.4633198
Z104: ='Gross Peak Demand Breakdown'!A31 -> Large industry Fuel Switching | AA104: ='Gross Peak Demand Breakdown'!$B31 -> 13.59799534 | AB104: ='Gross Peak Demand Breakdown'!$E31 -> 33.99498835 | AC104: ='Gross Peak Demand Breakdown'!$J31 -> 90.00007332 | AD104: ='Gross Peak Demand Breakdown'!$T31 -> 262.9811392 | AE104: ='Gross Peak Demand Breakdown'!$AD31 -> 802.5763091
Z105: ='Gross Peak Demand Breakdown'!A32 -> Total demand | AA105: ='Gross Peak Demand Breakdown'!$B32 -> 6009.310554 | AB105: ='Gross Peak Demand Breakdown'!$E32 -> 6746.014421 | AC105: ='Gross Peak Demand Breakdown'!$J32 -> 7787.625039 | AD105: ='Gross Peak Demand Breakdown'!$T32 -> 11046.40814 | AE105: ='Gross Peak Demand Breakdown'!$AD32 -> 14298.35044
C118: Breakdown of Gross Peak Demand Core DFES Charts at NPg Level
C120: (See further down for Breakdown of energy consumption DFES Charts)
C183: ADDITIONS ONLY IN Large Industry Additional Loads Study for Gross Peak Demand
C223: Breakdown of Energy Demand Consumption Core DFES Charts
C260: Large Industry Additional Loads Study for Energy CONSUMPTION GWh

Sheet DFES Doc - Constraints Charts
A3: DFES Doc 2023
AD25: ='Constraints Chart Template'!L35 -> Scenario | AE25: ='Constraints Chart Template'!M35 -> Year | AF25: ='Constraints Chart Template'!N35 -> Obsolete | AG25: ='Constraints Chart Template'!O35 -> [arbitrary value for marker] | AH25: ='Constraints Chart Template'!P35 -> Differential (between with and without flex) | AI25: ='Constraints Chart Template'!Q35 -> [arbitrary value for marker] | AJ25: ='Constraints Chart Template'!R35 -> Base Case
AD26: ='Constraints Chart Template'!L36 -> DFES 2023 - Consumer Transformation | AE26: ='Constraints Chart Template'!M36 -> 2023 | AF26: ='Constraints Chart Template'!N36 -> 0 | AG26: ='Constraints Chart Template'!O36 -> 1 | AH26: ='Constraints Chart Template'!P36 -> 9 | AI26: ='Constraints Chart Template'!Q36 -> 1 | AJ26: ='Constraints Chart Template'!R36 -> 9
AD27: ='Constraints Chart Template'!L37 -> 0 | AE27: ='Constraints Chart Template'!M37 -> 2030 | AF27: ='Constraints Chart Template'!N37 -> 0 | AG27: ='Constraints Chart Template'!O37 -> 1 | AH27: ='Constraints Chart Template'!P37 -> 33 | AI27: ='Constraints Chart Template'!Q37 -> 1 | AJ27: ='Constraints Chart Template'!R37 -> 33
AD28: ='Constraints Chart Template'!L38 -> 0 | AE28: ='Constraints Chart Template'!M38 -> 2040 | AF28: ='Constraints Chart Template'!N38 -> 0 | AG28: ='Constraints Chart Template'!O38 -> 1 | AH28: ='Constraints Chart Template'!P38 -> 211 | AI28: ='Constraints Chart Template'!Q38 -> 1 | AJ28: ='Constraints Chart Template'!R38 -> 211
AD29: ='Constraints Chart Template'!L39 -> 0 | AE29: ='Constraints Chart Template'!M39 -> 2050 | AF29: ='Constraints Chart Template'!N39 -> 0 | AG29: ='Constraints Chart Template'!O39 -> 1 | AH29: ='Constraints Chart Template'!P39 -> 345 | AI29: ='Constraints Chart Template'!Q39 -> 1 | AJ29: ='Constraints Chart Template'!R39 -> 345
AD30: ='Constraints Chart Template'!L40 -> DFES 2023 - System Transformation | AE30: ='Constraints Chart Template'!M40 -> 2023 | AF30: ='Constraints Chart Template'!N40 -> 0 | AG30: ='Constraints Chart Template'!O40 -> 1 | AH30: ='Constraints Chart Template'!P40 -> 9 | AI30: ='Constraints Chart Template'!Q40 -> 1 | AJ30: ='Constraints Chart Template'!R40 -> 9
AD31: ='Constraints Chart Template'!L41 -> 0 | AE31: ='Constraints Chart Template'!M41 -> 2030 | AF31: ='Constraints Chart Template'!N41 -> 0 | AG31: ='Constraints Chart Template'!O41 -> 1 | AH31: ='Constraints Chart Template'!P41 -> 36 | AI31: ='Constraints Chart Template'!Q41 -> 1 | AJ31: ='Constraints Chart Template'!R41 -> 36
AD32: ='Constraints Chart Template'!L42 -> 0 | AE32: ='Constraints Chart Template'!M42 -> 2040 | AF32: ='Constraints Chart Template'!N42 -> 0 | AG32: ='Constraints Chart Template'!O42 -> 1 | AH32: ='Constraints Chart Template'!P42 -> 189 | AI32: ='Constraints Chart Template'!Q42 -> 1 | AJ32: ='Constraints Chart Template'!R42 -> 189
AD33: ='Constraints Chart Template'!L43 -> 0 | AE33: ='Constraints Chart Template'!M43 -> 2050 | AF33: ='Constraints Chart Template'!N43 -> 0 | AG33: ='Constraints Chart Template'!O43 -> 1 | AH33: ='Constraints Chart Template'!P43 -> 360 | AI33: ='Constraints Chart Template'!Q43 -> 1 | AJ33: ='Constraints Chart Template'!R43 -> 360
AD34: ='Constraints Chart Template'!L44 -> DFES 2023 - Falling Short | AE34: ='Constraints Chart Template'!M44 -> 2023 | AF34: ='Constraints Chart Template'!N44 -> 0 | AG34: ='Constraints Chart Template'!O44 -> 1 | AH34: ='Constraints Chart Template'!P44 -> 9 | AI34: ='Constraints Chart Template'!Q44 -> 1 | AJ34: ='Constraints Chart Template'!R44 -> 9
AD35: ='Constraints Chart Template'!L45 -> 0 | AE35: ='Constraints Chart Template'!M45 -> 2030 | AF35: ='Constraints Chart Template'!N45 -> 0 | AG35: ='Constraints Chart Template'!O45 -> 1 | AH35: ='Constraints Chart Template'!P45 -> 26 | AI35: ='Constraints Chart Template'!Q45 -> 1 | AJ35: ='Constraints Chart Template'!R45 -> 26
AD36: ='Constraints Chart Template'!L46 -> 0 | AE36: ='Constraints Chart Template'!M46 -> 2040 | AF36: ='Constraints Chart Template'!N46 -> 0 | AG36: ='Constraints Chart Template'!O46 -> 1 | AH36: ='Constraints Chart Template'!P46 -> 100 | AI36: ='Constraints Chart Template'!Q46 -> 1 | AJ36: ='Constraints Chart Template'!R46 -> 100
AD37: ='Constraints Chart Template'!L47 -> 0 | AE37: ='Constraints Chart Template'!M47 -> 2050 | AF37: ='Constraints Chart Template'!N47 -> 0 | AG37: ='Constraints Chart Template'!O47 -> 1 | AH37: ='Constraints Chart Template'!P47 -> 141 | AI37: ='Constraints Chart Template'!Q47 -> 1 | AJ37: ='Constraints Chart Template'!R47 -> 141
AD38: ='Constraints Chart Template'!L48 -> DFES 2023 - Leading The Way | AE38: ='Constraints Chart Template'!M48 -> 2023 | AF38: ='Constraints Chart Template'!N48 -> 0 | AG38: ='Constraints Chart Template'!O48 -> 1 | AH38: ='Constraints Chart Template'!P48 -> 9 | AI38: ='Constraints Chart Template'!Q48 -> 1 | AJ38: ='Constraints Chart Template'!R48 -> 9
AD39: ='Constraints Chart Template'!L49 -> 0 | AE39: ='Constraints Chart Template'!M49 -> 2030 | AF39: ='Constraints Chart Template'!N49 -> 0 | AG39: ='Constraints Chart Template'!O49 -> 1 | AH39: ='Constraints Chart Template'!P49 -> 39 | AI39: ='Constraints Chart Template'!Q49 -> 1 | AJ39: ='Constraints Chart Template'!R49 -> 39
AD40: ='Constraints Chart Template'!L50 -> 0 | AE40: ='Constraints Chart Template'!M50 -> 2040 | AF40: ='Constraints Chart Template'!N50 -> 0 | AG40: ='Constraints Chart Template'!O50 -> 1 | AH40: ='Constraints Chart Template'!P50 -> 287 | AI40: ='Constraints Chart Template'!Q50 -> 1 | AJ40: ='Constraints Chart Template'!R50 -> 287
AD41: ='Constraints Chart Template'!L51 -> 0 | AE41: ='Constraints Chart Template'!M51 -> 2050 | AF41: ='Constraints Chart Template'!N51 -> 0 | AG41: ='Constraints Chart Template'!O51 -> 1 | AH41: ='Constraints Chart Template'!P51 -> 327 | AI41: ='Constraints Chart Template'!Q51 -> 1 | AJ41: ='Constraints Chart Template'!R51 -> 327
AD42: ='Constraints Chart Template'!L52 -> NPg Best View 2023 | AE42: ='Constraints Chart Template'!M52 -> 2023 | AF42: ='Constraints Chart Template'!N52 -> 9 | AG42: ='Constraints Chart Template'!O52 -> 1 | AH42: ='Constraints Chart Template'!P52 -> 0 | AI42: ='Constraints Chart Template'!Q52 -> 1 | AJ42: ='Constraints Chart Template'!R52 -> 9
AD43: ='Constraints Chart Template'!L53 -> 0 | AE43: ='Constraints Chart Template'!M53 -> 2030 | AF43: ='Constraints Chart Template'!N53 -> 27 | AG43: ='Constraints Chart Template'!O53 -> 1 | AH43: ='Constraints Chart Template'!P53 -> 7 | AI43: ='Constraints Chart Template'!Q53 -> 1 | AJ43: ='Constraints Chart Template'!R53 -> 27
AD44: ='Constraints Chart Template'!L54 -> 0 | AE44: ='Constraints Chart Template'!M54 -> 2040 | AF44: ='Constraints Chart Template'!N54 -> 181 | AG44: ='Constraints Chart Template'!O54 -> 1 | AH44: ='Constraints Chart Template'!P54 -> 24 | AI44: ='Constraints Chart Template'!Q54 -> 1 | AJ44: ='Constraints Chart Template'!R54 -> 181
AD45: ='Constraints Chart Template'!L55 -> 0 | AE45: ='Constraints Chart Template'!M55 -> 2050 | AF45: ='Constraints Chart Template'!N55 -> 316 | AG45: ='Constraints Chart Template'!O55 -> 1 | AH45: ='Constraints Chart Template'!P55 -> 18 | AI45: ='Constraints Chart Template'!Q55 -> 1 | AJ45: ='Constraints Chart Template'!R55 -> 316
AD46: ='Constraints Chart Template'!L56 -> NPg Best View 2023 Without ToUT | AE46: ='Constraints Chart Template'!M56 -> 2023 | AF46: ='Constraints Chart Template'!N56 -> 9 | AG46: ='Constraints Chart Template'!O56 -> 1 | AH46: ='Constraints Chart Template'!P56 -> 0 | AI46: ='Constraints Chart Template'!Q56 -> 1 | AJ46: ='Constraints Chart Template'!R56 -> 9
AD47: ='Constraints Chart Template'!L57 -> 0 | AE47: ='Constraints Chart Template'!M57 -> 2030 | AF47: ='Constraints Chart Template'!N57 -> 39 | AG47: ='Constraints Chart Template'!O57 -> 1 | AH47: ='Constraints Chart Template'!P57 -> 0 | AI47: ='Constraints Chart Template'!Q57 -> 1 | AJ47: ='Constraints Chart Template'!R57 -> 34
AD48: ='Constraints Chart Template'!L58 -> 0 | AE48: ='Constraints Chart Template'!M58 -> 2040 | AF48: ='Constraints Chart Template'!N58 -> 287 | AG48: ='Constraints Chart Template'!O58 -> 1 | AH48: ='Constraints Chart Template'!P58 -> 0 | AI48: ='Constraints Chart Template'!Q58 -> 1 | AJ48: ='Constraints Chart Template'!R58 -> 205
AD49: ='Constraints Chart Template'!L59 -> 0 | AE49: ='Constraints Chart Template'!M59 -> 2050 | AF49: ='Constraints Chart Template'!N59 -> 327 | AG49: ='Constraints Chart Template'!O59 -> 1 | AH49: ='Constraints Chart Template'!P59 -> 0 | AI49: ='Constraints Chart Template'!Q59 -> 1 | AJ49: ='Constraints Chart Template'!R59 -> 334

Sheet DFES Doc - Sensitivity
B1: Charts and Tables
B2: DFES 2023 - Consumer Transformation | D2: R 255 | E2: G 191 | F2: B 34
B7: DFES Doc 2023
B8: Electrical Energy Consumption (GWh) | C8: 2022 | D8: 2025 | E8: 2030 | F8: 2040 | G8: 2050 | H8: GB rough estimate by 2050 (not UK - no NI)
B9: DFES 2023 - Consumer Transformation | C9: ='Energy Consumed (Core_LCT_HGV)'!$B2/1000 -> 34347.33833 | D9: ='Energy Consumed (Core_LCT_HGV)'!$E2/1000 -> 36366.46229 | E9: ='Energy Consumed (Core_LCT_HGV)'!$L2/1000 -> 43340.51017 | F9: ='Energy Consumed (Core_LCT_HGV)'!$T2/1000 -> 55693.97836 | G9: ='Energy Consumed (Core_LCT_HGV)'!$AD2/1000 -> 66305.97254 | H9: =G9*7 -> 464141.8078
B10: CT 2023 Policy Sensitivity | C10: ='Energy Consumed (Core_LCT_HGV)'!$B6/1000 -> 34336.94283 | D10: ='Energy Consumed (Core_LCT_HGV)'!$E6/1000 -> 36498.06849 | E10: ='Energy Consumed (Core_LCT_HGV)'!$L6/1000 -> 43177.91512 | F10: ='Energy Consumed (Core_LCT_HGV)'!$T6/1000 -> 57226.29283 | G10: ='Energy Consumed (Core_LCT_HGV)'!$AD6/1000 -> 72203.59637 | H10: =G10*7 -> 505425.1746
B11: DFES 2023 - NPg Best View | C11: ='Energy Consumed (Core_LCT_HGV)'!$B8/1000 -> 34347.33833 | D11: ='Energy Consumed (Core_LCT_HGV)'!$E8/1000 -> 36356.23007 | E11: ='Energy Consumed (Core_LCT_HGV)'!$L8/1000 -> 43658.30463 | F11: ='Energy Consumed (Core_LCT_HGV)'!$T8/1000 -> 55125.6804 | G11: ='Energy Consumed (Core_LCT_HGV)'!$AD8/1000 -> 64972.68753 | H11: =G11*7 -> 454808.8127
B12: BV 2023 Policy Sensitivity | C12: ='Energy Consumed (Core_LCT_HGV)'!$B7/1000 -> 34336.94283 | D12: ='Energy Consumed (Core_LCT_HGV)'!$E7/1000 -> 36553.91716 | E12: ='Energy Consumed (Core_LCT_HGV)'!$L7/1000 -> 43897.05993 | F12: ='Energy Consumed (Core_LCT_HGV)'!$T7/1000 -> 57497.52608 | G12: ='Energy Consumed (Core_LCT_HGV)'!$AD7/1000 -> 71966.87197 | H12: =G12*7 -> 503768.1038
B18: DFES Doc 2023
B19: CONSTRAINTS | C19: 2027 | D19: 2030 | E19: 2040 | F19: 2050
B20: DFES 2023 - Consumer Transformation | C20: 17 | D20: 33 | E20: 211 | F20: 345
B21: 2023 Policy Sensitivity - CT | C21: 16 | D21: 38 | E21: 230 | F21: 400
B22: NPg 2023 - Best View | C22: 15 | D22: 27 | E22: 181 | F22: 316
B23: 2023 Policy Sensitivity - Best View | C23: 15 | D23: 30 | E23: 211 | F23: 383
B33: DFES Doc 2023
A34: GB rough estimate by 2050 (not UK - no NI) | B34: Gross Peak Demand (MW) | C34: 2022 | D34: 2025 | E34: 2030 | F34: 2040 | G34: 2050 | H34: End of ED2 | I34: End of ED2 with TouT | J34: Comparative Impact ED2 | K34: Comparative Impact ED2 (TouT)
A35: =I35*7 -> 0 | B35: DFES 2023 - Consumer Transformation | C35: ='Gross Peak Demand'!$B2 -> 5995.712559 | D35: ='Gross Peak Demand'!$E2 -> 6711.526093 | E35: ='Gross Peak Demand'!$J$2 -> 7650.910626 | F35: ='Gross Peak Demand'!$T$2 -> 10482.25698 | G35: ='Gross Peak Demand'!$AD$2 -> 13024.31081 | H35: ='Gross Peak Demand'!$G2 -> 7130.193904 | I35: ='Gross Peak Demand'!$G38 -> 0 | J35: =H35-$H$37 -> 5.993218296 | K35: =I35-$I$37 -> -7002.638896
A36: 0 | B36: CT 2023 Policy Sensitivity | C36: ='Gross Peak Demand'!$B6 -> 5994.884664 | D36: ='Gross Peak Demand'!$E6 -> 6734.017617 | E36: ='Gross Peak Demand'!$J6 -> 7574.361133 | F36: ='Gross Peak Demand'!$T6 -> 10725.73165 | G36: ='Gross Peak Demand'!$AD6 -> 14243.82659 | H36: ='Gross Peak Demand'!$G6 -> 7029.962905 | I36: ='Gross Peak Demand'!$G42 -> 0 | J36: =H36-$H$37 -> -94.23778071 | K36: =I36-$I$37 -> -7002.638896
A37: =I38*7 -> 0 | B37: DFES 2023 - NPg Best View | C37: ='Gross Peak Demand'!$B44 -> 5986.164637 | D37: ='Gross Peak Demand'!$E44 -> 6636.263825 | E37: ='Gross Peak Demand'!$J44 -> 7448.612809 | F37: ='Gross Peak Demand'!$T44 -> 9994.440387 | G37: ='Gross Peak Demand'!$AD44 -> 12433.63611 | H37: ='Gross Peak Demand'!$G8 -> 7124.200686 | I37: ='Gross Peak Demand'!$G44 -> 7002.638896 | J37: =H37-$H$37 -> 0 | K37: =I37-$I$37 -> 0
A38: =I37*7 -> 49018.47227 | B38: BV 2023 Policy Sensitivity | C38: ='Gross Peak Demand'!$B7 -> 5994.884664 | D38: ='Gross Peak Demand'!$E7 -> 6737.79207 | E38: ='Gross Peak Demand'!$J7 -> 7608.794081 | F38: ='Gross Peak Demand'!$T7 -> 10746.31318 | G38: ='Gross Peak Demand'!$AD7 -> 14226.32865 | H38: ='Gross Peak Demand'!$G7 -> 7041.153022 | I38: ='Gross Peak Demand'!$G43 -> 0 | J38: =H38-$H$37 -> -83.04766428 | K38: =I38-$I$37 -> -7002.638896
B41: *** Why the number of constraints and peak demand is actually higher in the sensitivities ***
C43: It’s a combination of two factors:
C44: 1) Reduced thermal efficiency uptake in domestic and I&C – main effect is the long term higher peaks.
C45: 2) Boiler upgrade scheme is a higher grant per heat pump (£7500/HP, rather than £5000/ASHP or £6000/GSHP).
C46: This precipitates higher short term growth in heat pumps, which is an effect already being seen
C47: Heat pump applications surge after increase in government grant - GOV.UK (www.gov.uk)
C48: However, this is short lived, as the total funding pot has not been increased by govt (to date).
C49: This is why in the mid-long term HP uptake is lower, along with the delay of the oil ban.
C50: Essentially, the effect of the policy is to spend the same amount of money, but more quickly and on fewer heat pumps.
B79: Charts and Tables
B80: DFES Doc 2023
A81: 2027 m | B81: Electric Vehicles (No. Cars & Vans) | C81: 2022 | D81: 2025 | E81: 2030 | F81: 2040 | G81: 2050 | H81: End of ED2 | I81: 2027 % change to PS | J81: GB rough estimate by 2050 (not UK - no NI)
A82: =H82/1000000 -> 1.000837 | B82: DFES 2023 - Consumer Transformation | C82: ='Electric Vehicles'!$B2 -> 86795 | D82: ='Electric Vehicles'!$E$2 -> 472997 | E82: ='Electric Vehicles'!$J$2 -> 1938473 | F82: ='Electric Vehicles'!$T$2 -> 4318289 | G82: ='Electric Vehicles'!$AD$2 -> 4734509 | H82: ='Electric Vehicles'!$G2 -> 1000837 | I82: =(H82-H$84)/H$84 -> 0.05656331914 | J82: =G82*7 -> 33141563
A83: =H83/1000000 -> 0.74186 | B83: CT 2023 Policy Sensitivity | C83: ='Electric Vehicles'!$B6 -> 86795 | D83: ='Electric Vehicles'!$E$6 -> 367733 | E83: ='Electric Vehicles'!$J$6 -> 1576075 | F83: ='Electric Vehicles'!$T$6 -> 4016511 | G83: ='Electric Vehicles'!$AD$6 -> 4726348 | H83: ='Electric Vehicles'!$G6 -> 741860 | I83: =(H83-H$84)/H$84 -> -0.2168334465 | J83: =G83*7 -> 33084436
A84: =H84/1000000 -> 0.947257 | B84: DFES 2023 - NPg Best View | C84: ='Electric Vehicles'!$B8 -> 86795 | D84: ='Electric Vehicles'!$E$8 -> 455591 | E84: ='Electric Vehicles'!$J$8 -> 1817732 | F84: ='Electric Vehicles'!$T$8 -> 3935422 | G84: ='Electric Vehicles'!$AD$8 -> 4252384 | H84: ='Electric Vehicles'!$G8 -> 947257 | I84: =(H84-H$84)/H$84 -> 0 | J84: =G84*7 -> 29766688
A85: =H85/1000000 -> 0.74186 | B85: BV 2023 Policy Sensitivity | C85: ='Electric Vehicles'!$B7 -> 86795 | D85: ='Electric Vehicles'!$E$7 -> 367733 | E85: ='Electric Vehicles'!$J$7 -> 1576075 | F85: ='Electric Vehicles'!$T$7 -> 4016511 | G85: ='Electric Vehicles'!$AD$7 -> 4726348 | H85: ='Electric Vehicles'!$G7 -> 741860 | I85: =(H85-H$84)/H$84 -> -0.2168334465 | J85: =G85*7 -> 33084436
B112: DFES Doc 2023
A113: 2027 m | B113: Total Heat Pumps (No.) | C113: 2022 | D113: 2025 | E113: 2030 | F113: 2040 | G113: 2050 | H113: 2027 | I113: 2027 % change to PS | J113: GB rough estimate by 2050 (not UK - no NI)
A114: =H114/1000000 -> 0.26884 | B114: DFES 2023 - Consumer Transformation | C114: ='Heat Pumps'!$B2 -> 49147 | D114: ='Heat Pumps'!$E$2 -> 131735 | E114: ='Heat Pumps'!$J$2 -> 349942 | F114: ='Heat Pumps'!$T$2 -> 1430085 | G114: ='Heat Pumps'!$AD$2 -> 3126136 | H114: ='Heat Pumps'!$G2 -> 268840 | I114: =(H114-H$116)/H$116 -> 0 | J114: =G114*7 -> 21882952
A115: =H115/1000000 -> 0.170463 | B115: CT 2023 Policy Sensitivity | C115: ='Heat Pumps'!$B6 -> 49147 | D115: ='Heat Pumps'!$E$6 -> 132433 | E115: ='Heat Pumps'!$J$6 -> 240115 | F115: ='Heat Pumps'!$T$6 -> 1270786 | G115: ='Heat Pumps'!$AD$6 -> 3125076 | H115: ='Heat Pumps'!$G6 -> 170463 | I115: =(H115-H$116)/H$116 -> -0.365931409 | J115: =G115*7 -> 21875532
A116: =H116/1000000 -> 0.26884 | B116: DFES 2023 - NPg Best View | C116: ='Heat Pumps'!$B8 -> 49147 | D116: ='Heat Pumps'!$E$8 -> 131735 | E116: ='Heat Pumps'!$J$8 -> 349942 | F116: ='Heat Pumps'!$T$8 -> 1430085 | G116: ='Heat Pumps'!$AD$8 -> 3126136 | H116: ='Heat Pumps'!$G8 -> 268840 | I116: =(H116-H$116)/H$116 -> 0 | J116: =G116*7 -> 21882952
A117: =H117/1000000 -> 0.170463 | B117: BV 2023 Policy Sensitivity | C117: ='Heat Pumps'!$B7 -> 49147 | D117: ='Heat Pumps'!$E$7 -> 132433 | E117: ='Heat Pumps'!$J$7 -> 240115 | F117: ='Heat Pumps'!$T$7 -> 1270786 | G117: ='Heat Pumps'!$AD$7 -> 3125076 | H117: ='Heat Pumps'!$G7 -> 170463 | I117: =(H117-H$116)/H$116 -> -0.365931409 | J117: =G117*7 -> 21875532
B122: Residential Heat Pumps (No.) | C122: 2022 | D122: 2025 | E122: 2030 | F122: 2040 | G122: 2050 | H122: 2027 | I122: GB rough estimate by 2050 (not UK - no NI)
B123: DFES 2023 - Consumer Transformation | C123: ='Heat Pumps'!$B42 -> 42082 | D123: ='Heat Pumps'!$E42 -> 122193 | E123: ='Heat Pumps'!$J42 -> 331198 | F123: ='Heat Pumps'!$T42 -> 1327214 | G123: ='Heat Pumps'!$AD42 -> 2885461 | H123: ='Heat Pumps'!$G42 -> 256245 | I123: =G123*7 -> 20198227
B124: CT 2023 Policy Sensitivity | C124: ='Heat Pumps'!$B46 -> 42082 | D124: ='Heat Pumps'!$E46 -> 122920 | E124: ='Heat Pumps'!$J46 -> 225752 | F124: ='Heat Pumps'!$T46 -> 1176787 | G124: ='Heat Pumps'!$AD46 -> 2885461 | H124: ='Heat Pumps'!$G46 -> 159347 | I124: =G124*7 -> 20198227
B125: DFES 2023 - NPg Best View | C125: ='Heat Pumps'!$B48 -> 42082 | D125: ='Heat Pumps'!$E48 -> 122193 | E125: ='Heat Pumps'!$J48 -> 331198 | F125: ='Heat Pumps'!$T48 -> 1327214 | G125: ='Heat Pumps'!$AD48 -> 2885461 | H125: ='Heat Pumps'!$G48 -> 256245 | I125: =G125*7 -> 20198227
B126: BV 2023 Policy Sensitivity | C126: ='Heat Pumps'!$B47 -> 42082 | D126: ='Heat Pumps'!$E47 -> 122920 | E126: ='Heat Pumps'!$J47 -> 225752 | F126: ='Heat Pumps'!$T47 -> 1176787 | G126: ='Heat Pumps'!$AD47 -> 2885461 | H126: ='Heat Pumps'!$G47 -> 159347 | I126: =G126*7 -> 20198227
B128: I&C Heat Pumps (No.) | C128: 2022 | D128: 2025 | E128: 2030 | F128: 2040 | G128: 2050 | H128: GB rough estimate by 2050 (not UK - no NI)
B129: DFES 2023 - Consumer Transformation | C129: ='Heat Pumps'!$B145 -> 7064 | D129: ='Heat Pumps'!$E145 -> 9542 | E129: ='Heat Pumps'!$J145 -> 18744 | F129: ='Heat Pumps'!$T145 -> 102871 | G129: ='Heat Pumps'!$AD145 -> 240675 | H129: =G129*7 -> 1684725
B130: CT 2023 Policy Sensitivity | C130: ='Heat Pumps'!$B149 -> 7064 | D130: ='Heat Pumps'!$E149 -> 9513 | E130: ='Heat Pumps'!$J149 -> 14363 | F130: ='Heat Pumps'!$T149 -> 94000 | G130: ='Heat Pumps'!$AD149 -> 239615 | H130: =G130*7 -> 1677305
B131: DFES 2023 - NPg Best View | C131: ='Heat Pumps'!$B151 -> 7064 | D131: ='Heat Pumps'!$E151 -> 9542 | E131: ='Heat Pumps'!$J151 -> 18744 | F131: ='Heat Pumps'!$T151 -> 102871 | G131: ='Heat Pumps'!$AD151 -> 240675 | H131: =G131*7 -> 1684725
B132: BV 2023 Policy Sensitivity | C132: ='Heat Pumps'!$B150 -> 7064 | D132: ='Heat Pumps'!$E150 -> 9513 | E132: ='Heat Pumps'!$J150 -> 14363 | F132: ='Heat Pumps'!$T150 -> 94000 | G132: ='Heat Pumps'!$AD150 -> 239615 | H132: =G132*7 -> 1677305

Sheet Gross Peak Demand
A1: Gross Peak Demand MW - NPg | B1: 2022 | C1: 2023 | D1: 2024 | E1: 2025 | F1: 2026 | G1: 2027 | H1: 2028 | I1: 2029 | J1: 2030 | K1: 2031 | L1: 2032 | M1: 2033 | N1: 2034 | O1: 2035 | P1: 2036 | Q1: 2037 | R1: 2038 | S1: 2039 | T1: 2040 | U1: 2041 | V1: 2042 | W1: 2043 | X1: 2044 | Y1: 2045 | Z1: 2046 | AA1: 2047 | AB1: 2048 | AC1: 2049 | AD1: 2050 | AE1: Parameter | AF1: Licence | AG1: CHOSEN
A2: DFES 2023 - Consumer Transformation | B2: 5995.712559 | C2: 6231.897847 | D2: 6499.512521 | E2: 6711.526093 | F2: 6891.562474 | G2: 7130.193904 | H2: 7309.759074 | I2: 7451.406292 | J2: 7650.910626 | K2: 7831.09897 | L2: 7996.184655 | M2: 8153.15143 | N2: 8302.381687 | O2: 8722.192824 | P2: 9110.719048 | Q2: 9487.388771 | R2: 9845.89915 | S2: 10183.8288 | T2: 10482.25698 | U2: 10744.06309 | V2: 10977.08038 | W2: 11256.77734 | X2: 11533.48964 | Y2: 11803.1248 | Z2: 12063.01837 | AA2: 12319.05521 | AB2: 12572.39372 | AC2: 12823.54179 | AD2: 13024.31081 | AE2: Gross Peak Demand MW | AF2: NPg
A3: DFES 2023 - System Transformation | B3: 6021.497055 | C3: 6268.849153 | D3: 6555.100224 | E3: 6760.646909 | F3: 6909.930106 | G3: 7103.895986 | H3: 7293.259839 | I3: 7452.669477 | J3: 7650.820764 | K3: 7826.761395 | L3: 7995.787189 | M3: 8160.513242 | N3: 8321.669756 | O3: 8792.788657 | P3: 9049.113617 | Q3: 9299.074447 | R3: 9547.625773 | S3: 9797.27353 | T3: 10044.95934 | U3: 10285.23721 | V3: 10531.18934 | W3: 10791.74396 | X3: 11072.05218 | Y3: 11377.46327 | Z3: 11704.49413 | AA3: 12051.0731 | AB3: 12414.03982 | AC3: 12796.33046 | AD3: 13175.17392 | AE3: Gross Peak Demand MW | AF3: NPg
A4: DFES 2023 - Leading The Way | B4: 5995.712559 | C4: 6231.096783 | D4: 6498.81177 | E4: 6720.34205 | F4: 6916.798092 | G4: 7169.978353 | H4: 7351.555524 | I4: 7492.840604 | J4: 7742.013068 | K4: 8202.527517 | L4: 8643.329692 | M4: 9068.461146 | N4: 9474.334362 | O4: 10095.41165 | P4: 10457.55682 | Q4: 10802.83569 | R4: 11126.72912 | S4: 11425.72523 | T4: 11675.73164 | U4: 11890.77339 | V4: 12083.31242 | W4: 12327.86568 | X4: 12574.18742 | Y4: 12767.05758 | Z4: 12747.90383 | AA4: 12728.43257 | AB4: 12709.65617 | AC4: 12691.29411 | AD4: 12673.99236 | AE4: Gross Peak Demand MW | AF4: NPg
A5: CCC 2020 - Balanced Net Zero | B5: 7196.583307 | C5: 7244.363347 | D5: 7280.231601 | E5: 7365.170567 | F5: 7485.805867 | G5: 7641.39649 | H5: 7837.100717 | I5: 8084.33395 | J5: 8446.49357 | K5: 8749.585755 | L5: 9044.153273 | M5: 9361.248565 | N5: 9675.187381 | O5: 10153.06274 | P5: 10458.09071 | Q5: 10760.91017 | R5: 11055.98988 | S5: 11342.26777 | T5: 11581.06417 | U5: 11802.25606 | V5: 12015.4294 | W5: 12220.21672 | X5: 12402.09292 | Y5: 12565.76448 | Z5: 12722.18965 | AA5: 12880.10306 | AB5: 13034.83285 | AC5: 13077.26587 | AD5: 13100.98545 | AE5: Gross Peak Demand MW | AF5: NPg
A6: CT 2023 Policy Sensitivity | B6: 5994.884664 | C6: 6265.562038 | D6: 6544.612909 | E6: 6734.017617 | F6: 6860.567985 | G6: 7029.962905 | H6: 7213.569458 | I6: 7374.905971 | J6: 7574.361133 | K6: 7754.226597 | L6: 7924.45532 | M6: 8091.419459 | N6: 8257.90586 | O6: 8678.395518 | P6: 9117.913064 | Q6: 9547.020519 | R6: 9953.898184 | S6: 10343.17262 | T6: 10725.73165 | U6: 11099.96601 | V6: 11462.23989 | W6: 11829.85981 | X6: 12191.77198 | Y6: 12547.27822 | Z6: 12894.56166 | AA6: 13238.50568 | AB6: 13579.88317 | AC6: 13919.02603 | AD6: 14243.82659 | AE6: Gross Peak Demand MW | AF6: NPg
A7: BV 2023 Policy Sensitivity | B7: 5994.884664 | C7: 6266.341526 | D7: 6546.570266 | E7: 6737.79207 | F7: 6867.357625 | G7: 7041.153022 | H7: 7230.766293 | I7: 7399.879901 | J7: 7608.794081 | K7: 7799.144114 | L7: 7979.431464 | M7: 8154.3011 | N7: 8324.646194 | O7: 8744.144 | P7: 9178.339031 | Q7: 9599.059692 | R7: 9995.808091 | S7: 10374.30975 | T7: 10746.31318 | U7: 11110.90358 | V7: 11464.95418 | W7: 11826.03834 | X7: 12183.13037 | Y7: 12535.30923 | Z7: 12880.40118 | AA7: 13222.93363 | AB7: 13563.40041 | AC7: 13901.94192 | AD7: 14226.32865 | AE7: Gross Peak Demand MW | AF7: NPg
A8: DFES 2023 - NPg Best View (Counterfactual - No ToUT) | B8: 5995.712559 | C8: 6230.403368 | D8: 6495.350229 | E8: 6703.510658 | F8: 6883.662883 | G8: 7124.200686 | H8: 7302.134749 | I8: 7444.882573 | J8: 7641.576486 | K8: 7817.181574 | L8: 7979.144442 | M8: 8132.433734 | N8: 8274.36738 | O8: 8682.406232 | P8: 9055.534501 | Q8: 9414.896822 | R8: 9754.757657 | S8: 10073.51204 | T8: 10353.40721 | U8: 10599.83546 | V8: 10819.07917 | W8: 11086.85799 | X8: 11353.13069 | Y8: 11614.21599 | Z8: 11868.50096 | AA8: 12119.52803 | AB8: 12368.50272 | AC8: 12615.28609 | AD8: 12811.94753 | AE8: Gross Peak Demand MW | AF8: NPg
A9: NPg Planning Scenario - DFES 2022 | B9: 7176.747841 | C9: 7236.804709 | D9: 7286.172545 | E9: 7370.614469 | F9: 7492.195718 | G9: 7659.466331 | H9: 7882.389124 | I9: 8160.129478 | J9: 8586.711949 | K9: 8914.169807 | L9: 9228.090381 | M9: 9575.917356 | N9: 9920.416855 | O9: 10482.70863 | P9: 10855.96746 | Q9: 11183.11558 | R9: 11496.23089 | S9: 11787.16592 | T9: 12030.03146 | U9: 12238.22286 | V9: 12437.04179 | W9: 12623.37571 | X9: 12782.90857 | Y9: 12931.17686 | Z9: 13069.72471 | AA9: 13208.70194 | AB9: 13342.19503 | AC9: 13361.76654 | AD9: 13369.14774 | AE9: Gross Peak Demand MW | AF9: NPg
A10: DFES 2023 - Falling Short | B10: 6021.389369 | C10: 6273.484491 | D10: 6513.526702 | E10: 6675.287739 | F10: 6768.777811 | G10: 6913.64966 | H10: 7073.196722 | I10: 7213.073379 | J10: 7376.352363 | K10: 7514.08702 | L10: 7645.146006 | M10: 7772.551206 | N10: 7893.282672 | O10: 8256.141417 | P10: 8373.665246 | Q10: 8489.700199 | R10: 8593.375873 | S10: 8692.856329 | T10: 8786.803046 | U10: 8872.715631 | V10: 8952.076715 | W10: 9023.896906 | X10: 9089.046096 | Y10: 9148.114761 | Z10: 9200.033328 | AA10: 9248.178769 | AB10: 9293.668968 | AC10: 9336.142927 | AD10: 9370.306132 | AE10: Gross Peak Demand MW | AF10: NPg
A12: Gross Peak Demand MW - NPgN | B12: 2022 | C12: 2023 | D12: 2024 | E12: 2025 | F12: 2026 | G12: 2027 | H12: 2028 | I12: 2029 | J12: 2030 | K12: 2031 | L12: 2032 | M12: 2033 | N12: 2034 | O12: 2035 | P12: 2036 | Q12: 2037 | R12: 2038 | S12: 2039 | T12: 2040 | U12: 2041 | V12: 2042 | W12: 2043 | X12: 2044 | Y12: 2045 | Z12: 2046 | AA12: 2047 | AB12: 2048 | AC12: 2049 | AD12: 2050 | AE12: Gross Peak Demand MW
A13: DFES 2023 - Consumer Transformation | B13: 2452.594249 | C13: 2467.017393 | D13: 2594.236928 | E13: 2671.626996 | F13: 2730.519096 | G13: 2824.301335 | H13: 2902.732679 | I13: 2937.154865 | J13: 2985.83441 | K13: 3030.738371 | L13: 3071.848064 | M13: 3111.296095 | N13: 3149.454084 | O13: 3231.248695 | P13: 3354.32984 | Q13: 3475.352163 | R13: 3591.227064 | S13: 3700.902854 | T13: 3797.934663 | U13: 3883.351423 | V13: 3959.761294 | W13: 4049.18654 | X13: 4142.155671 | Y13: 4233.239611 | Z13: 4321.744193 | AA13: 4409.021356 | AB13: 4495.368255 | AC13: 4580.856967 | AD13: 4648.615705 | AE13: Gross Peak Demand MW | AF13: NPgN
A14: DFES 2023 - System Transformation | B14: 2462.914802 | C14: 2482.401614 | D14: 2616.230412 | E14: 2688.371039 | F14: 2733.453278 | G14: 2808.198397 | H14: 2885.475416 | I14: 2926.31193 | J14: 2978.71881 | K14: 3026.285614 | L14: 3072.310045 | M14: 3117.721416 | N14: 3162.963993 | O14: 3269.732594 | P14: 3362.076722 | Q14: 3445.51409 | R14: 3527.849263 | S14: 3610.825534 | T14: 3694.215108 | U14: 3776.312454 | V14: 3861.207238 | W14: 3950.592697 | X14: 4047.456125 | Y14: 4153.543758 | Z14: 4267.972996 | AA14: 4389.495096 | AB14: 4516.983396 | AC14: 4651.433101 | AD14: 4784.836364 | AE14: Gross Peak Demand MW | AF14: NPgN
A15: DFES 2023 - Leading The Way | B15: 2452.594249 | C15: 2468.269971 | D15: 2598.016903 | E15: 2684.262679 | F15: 2755.594682 | G15: 2861.213853 | H15: 2944.096759 | I15: 2978.569031 | J15: 3046.301183 | K15: 3193.523377 | L15: 3333.820188 | M15: 3468.306536 | N15: 3596.050758 | O15: 3750.329845 | P15: 3865.267638 | Q15: 3975.83568 | R15: 4079.596135 | S15: 4174.799072 | T15: 4251.219424 | U15: 4315.10035 | V15: 4371.987254 | W15: 4446.554817 | X15: 4529.496272 | Y15: 4594.332637 | Z15: 4584.33719 | AA15: 4574.292342 | AB15: 4564.434951 | AC15: 4554.685164 | AD15: 4546.297563 | AE15: Gross Peak Demand MW | AF15: NPgN
A16: CCC 2020 - Balanced Net Zero | B16: 3003.129429 | C16: 2999.260098 | D16: 3004.68842 | E16: 3027.161042 | F16: 3063.244091 | G16: 3113.15646 | H16: 3179.375005 | I16: 3277.132832 | J16: 3378.324828 | K16: 3490.500886 | L16: 3596.19672 | M16: 3716.282774 | N16: 3835.974558 | O16: 3967.486625 | P16: 4082.866688 | Q16: 4197.00013 | R16: 4306.79475 | S16: 4415.1797 | T16: 4506.015603 | U16: 4590.695098 | V16: 4670.81808 | W16: 4749.49535 | X16: 4818.383583 | Y16: 4882.508019 | Z16: 4944.612153 | AA16: 5006.228546 | AB16: 5067.812428 | AC16: 5083.53639 | AD16: 5092.467806 | AE16: Gross Peak Demand MW | AF16: NPgN
A17: CT 2023 Policy Sensitivity | B17: 2453.152426 | C17: 2481.488085 | D17: 2617.025251 | E17: 2690.166354 | F17: 2734.573167 | G17: 2808.024466 | H17: 2886.020839 | I17: 2928.624822 | J17: 2980.923694 | K17: 3029.022813 | L17: 3074.691424 | M17: 3119.898744 | N17: 3165.366492 | O17: 3248.7339 | P17: 3391.427555 | Q17: 3532.388127 | R17: 3665.560127 | S17: 3792.971444 | T17: 3918.977206 | U17: 4042.760939 | V17: 4163.240905 | W17: 4286.627581 | X17: 4410.166386 | Y17: 4532.486518 | Z17: 4652.73869 | AA17: 4772.155282 | AB17: 4890.903623 | AC17: 5008.966241 | AD17: 5121.521684 | AE17: Gross Peak Demand MW | AF17: NPgN
A18: BV 2023 Policy Sensitivity | B18: 2453.152426 | C18: 2481.717491 | D18: 2617.612125 | E18: 2691.316884 | F18: 2736.676699 | G18: 2811.532141 | H18: 2891.456228 | I18: 2936.563696 | J18: 2991.91541 | K18: 3043.407292 | L18: 3092.339983 | M18: 3140.12047 | N18: 3186.851995 | O18: 3269.909241 | P18: 3410.886372 | Q18: 3549.136068 | R18: 3679.033521 | S18: 3802.964795 | T18: 3925.565391 | U18: 4046.24363 | V18: 4164.080471 | W18: 4285.37244 | X18: 4407.373459 | Y18: 4528.639754 | Z18: 4648.205562 | AA18: 4767.187013 | AB18: 4885.659992 | AC18: 5003.544217 | AD18: 5115.97844 | AE18: Gross Peak Demand MW | AF18: NPgN
A19: DFES 2023 - NPg Best View | B19: 2452.594249 | C19: 2466.84978 | D19: 2593.509599 | E19: 2669.92456 | F19: 2728.878537 | G19: 2823.455273 | H19: 2901.996661 | I19: 2937.399528 | J19: 2986.347974 | K19: 3031.129481 | L19: 3072.113211 | M19: 3111.080594 | N19: 3147.393981 | O19: 3226.420038 | P19: 3345.424931 | Q19: 3461.499631 | R19: 3571.935749 | S19: 3675.97824 | T19: 3767.412255 | U19: 3848.263613 | V19: 3920.682373 | W19: 4006.683686 | X19: 4096.709372 | Y19: 4185.421467 | Z19: 4272.364571 | AA19: 4358.285317 | AB19: 4443.442376 | AC19: 4527.756419 | AD19: 4594.400625 | AE19: Gross Peak Demand MW | AF19: NPgN
A20: NPg Planning Scenario - DFES 2022 | B20: 2998.478157 | C20: 3000.821808 | D20: 3013.534015 | E20: 3039.661999 | F20: 3079.041443 | G20: 3134.721575 | H20: 3210.774011 | I20: 3318.847844 | J20: 3440.186201 | K20: 3556.173871 | L20: 3663.634329 | M20: 3788.588043 | N20: 3912.779902 | O20: 4065.31718 | P20: 4196.749165 | Q20: 4313.517598 | R20: 4424.278821 | S20: 4529.703391 | T20: 4617.781546 | U20: 4695.615414 | V20: 4769.717268 | W20: 4841.133456 | X20: 4901.60175 | Y20: 4959.851403 | Z20: 5015.236202 | AA20: 5069.749707 | AB20: 5123.481669 | AC20: 5130.89285 | AD20: 5133.649346 | AE20: Gross Peak Demand MW | AF20: NPgN
A21: DFES 2023 - Falling Short | B21: 2463.291002 | C21: 2486.026319 | D21: 2608.649091 | E21: 2672.993026 | F21: 2707.112446 | G21: 2774.953771 | H21: 2848.123318 | I21: 2885.998639 | J21: 2929.916409 | K21: 2968.790942 | L21: 3005.909749 | M21: 3042.308843 | N21: 3074.701002 | O21: 3141.165314 | P21: 3171.920029 | Q21: 3203.192214 | R21: 3232.611141 | S21: 3261.604282 | T21: 3288.917691 | U21: 3314.364531 | V21: 3338.072508 | W21: 3359.766626 | X21: 3379.625431 | Y21: 3397.797528 | Z21: 3413.843749 | AA21: 3428.873576 | AB21: 3443.168539 | AC21: 3456.393123 | AD21: 3466.322779 | AE21: Gross Peak Demand MW | AF21: NPgN
A23: Gross Peak Demand MW - NPgY | B23: 2022 | C23: 2023 | D23: 2024 | E23: 2025 | F23: 2026 | G23: 2027 | H23: 2028 | I23: 2029 | J23: 2030 | K23: 2031 | L23: 2032 | M23: 2033 | N23: 2034 | O23: 2035 | P23: 2036 | Q23: 2037 | R23: 2038 | S23: 2039 | T23: 2040 | U23: 2041 | V23: 2042 | W23: 2043 | X23: 2044 | Y23: 2045 | Z23: 2046 | AA23: 2047 | AB23: 2048 | AC23: 2049 | AD23: 2050 | AE23: Gross Peak Demand MW | AF23: NPgY
A24: DFES 2023 - Consumer Transformation | B24: 3543.11831 | C24: 3764.880454 | D24: 3905.275592 | E24: 4039.899098 | F24: 4161.043379 | G24: 4305.892569 | H24: 4407.026395 | I24: 4514.251427 | J24: 4665.076216 | K24: 4800.360599 | L24: 4924.336591 | M24: 5041.855335 | N24: 5152.927603 | O24: 5490.944129 | P24: 5756.389208 | Q24: 6012.036607 | R24: 6254.672086 | S24: 6482.92595 | T24: 6684.322316 | U24: 6860.711668 | V24: 7017.319082 | W24: 7207.590799 | X24: 7391.333972 | Y24: 7569.88519 | Z24: 7741.274182 | AA24: 7910.033853 | AB24: 8077.025466 | AC24: 8242.684823 | AD24: 8375.695105 | AE24: Gross Peak Demand MW | AF24: NPgY
A25: DFES 2023 - System Transformation | B25: 3558.582253 | C25: 3786.447539 | D25: 3938.869812 | E25: 4072.27587 | F25: 4176.476828 | G25: 4295.697589 | H25: 4407.784422 | I25: 4526.357547 | J25: 4672.101954 | K25: 4800.47578 | L25: 4923.477144 | M25: 5042.791826 | N25: 5158.705763 | O25: 5523.056063 | P25: 5687.036895 | Q25: 5853.560357 | R25: 6019.776509 | S25: 6186.447997 | T25: 6350.744228 | U25: 6508.924756 | V25: 6669.982101 | W25: 6841.151266 | X25: 7024.596055 | Y25: 7223.919509 | Z25: 7436.521129 | AA25: 7661.578003 | AB25: 7897.056427 | AC25: 8144.897361 | AD25: 8390.337556 | AE25: Gross Peak Demand MW | AF25: NPgY
A26: DFES 2023 - Leading The Way | B26: 3543.11831 | C26: 3762.826812 | D26: 3900.794867 | E26: 4036.079371 | F26: 4161.20341 | G26: 4308.7645 | H26: 4407.458765 | I26: 4514.271573 | J26: 4695.711885 | K26: 5009.00414 | L26: 5309.509504 | M26: 5600.154609 | N26: 5878.283604 | O26: 6345.081804 | P26: 6592.28918 | Q26: 6827.000006 | R26: 7047.132988 | S26: 7250.92616 | T26: 7424.512219 | U26: 7575.673043 | V26: 7711.325162 | W26: 7881.310863 | X26: 8044.691144 | Y26: 8172.724938 | Z26: 8163.566638 | AA26: 8154.140232 | AB26: 8145.221219 | AC26: 8136.608944 | AD26: 8127.694799 | AE26: Gross Peak Demand MW | AF26: NPgY
A27: CCC 2020 - Balanced Net Zero | B27: 4193.453878 | C27: 4245.103249 | D27: 4275.543181 | E27: 4338.009525 | F27: 4422.561776 | G27: 4528.24003 | H27: 4657.725712 | I27: 4807.201118 | J27: 5068.168742 | K27: 5259.084869 | L27: 5447.956553 | M27: 5644.965791 | N27: 5839.212823 | O27: 6185.576113 | P27: 6375.224018 | Q27: 6563.910036 | R27: 6749.195132 | S27: 6927.08807 | T27: 7075.04857 | U27: 7211.560959 | V27: 7344.611323 | W27: 7470.72137 | X27: 7583.709333 | Y27: 7683.256466 | Z27: 7777.5775 | AA27: 7873.874515 | AB27: 7967.020419 | AC27: 7993.729483 | AD27: 8008.517643 | AE27: Gross Peak Demand MW | AF27: NPgY
A28: CT 2023 Policy Sensitivity | B28: 3541.732238 | C28: 3784.073953 | D28: 3927.587658 | E28: 4043.851263 | F28: 4125.994817 | G28: 4221.938439 | H28: 4327.548619 | I28: 4446.281149 | J28: 4593.437439 | K28: 4725.203785 | L28: 4849.763896 | M28: 4971.520715 | N28: 5092.539368 | O28: 5429.661618 | P28: 5726.485508 | Q28: 6014.632392 | R28: 6288.338056 | S28: 6550.20118 | T28: 6806.754442 | U28: 7057.205068 | V28: 7298.998986 | W28: 7543.232226 | X28: 7781.605594 | Y28: 8014.791705 | Z28: 8241.822971 | AA28: 8466.350394 | AB28: 8688.979552 | AC28: 8910.05979 | AD28: 9122.304908 | AE28: Gross Peak Demand MW | AF28: NPgY
A29: BV 2023 Policy Sensitivity | B29: 3541.732238 | C29: 3784.624035 | D29: 3928.95814 | E29: 4046.475186 | F29: 4130.680927 | G29: 4229.620881 | H29: 4339.310065 | I29: 4463.316204 | J29: 4616.878671 | K29: 4755.736822 | L29: 4887.091481 | M29: 5014.18063 | N29: 5137.794199 | O29: 5474.234759 | P29: 5767.45266 | Q29: 6049.923624 | R29: 6316.774569 | S29: 6571.344956 | T29: 6820.747786 | U29: 7064.659946 | V29: 7300.87371 | W29: 7540.665904 | X29: 7775.756907 | Y29: 8006.669478 | Z29: 8232.195621 | AA29: 8455.746615 | AB29: 8677.740416 | AC29: 8898.397705 | AD29: 9110.350214 | AE29: Gross Peak Demand MW | AF29: NPgY
A30: DFES 2023 - NPg Best View | B30: 3543.11831 | C30: 3763.553589 | D30: 3901.84063 | E30: 4033.586098 | F30: 4154.784346 | G30: 4300.745413 | H30: 4400.138088 | I30: 4507.483045 | J30: 4655.228512 | K30: 4786.052093 | L30: 4907.031231 | M30: 5021.353139 | N30: 5126.9734 | O30: 5455.986194 | P30: 5710.109571 | Q30: 5953.397191 | R30: 6182.821908 | S30: 6397.533803 | T30: 6585.994957 | U30: 6751.571843 | V30: 6898.396793 | W30: 7080.174299 | X30: 7256.421314 | Y30: 7428.794519 | Z30: 7596.136385 | AA30: 7761.242712 | AB30: 7925.060339 | AC30: 8087.529674 | AD30: 8217.546903 | AE30: Gross Peak Demand MW | AF30: NPgY
A31: NPg Planning Scenario - DFES 2022 | B31: 4178.269684 | C31: 4235.982901 | D31: 4272.63853 | E31: 4330.95247 | F31: 4413.154275 | G31: 4524.744756 | H31: 4671.615113 | I31: 4841.281635 | J31: 5146.525748 | K31: 5357.995936 | L31: 5564.456052 | M31: 5787.329313 | N31: 6007.636953 | O31: 6417.391445 | P31: 6659.218292 | Q31: 6869.597981 | R31: 7071.952066 | S31: 7257.462527 | T31: 7412.249916 | U31: 7542.607448 | V31: 7667.324524 | W31: 7782.242257 | X31: 7881.30682 | Y31: 7971.325455 | Z31: 8054.488505 | AA31: 8138.952228 | AB31: 8218.713361 | AC31: 8230.873686 | AD31: 8235.498394 | AE31: Gross Peak Demand MW | AF31: NPgY
A32: DFES 2023 - Falling Short | B32: 3558.098367 | C32: 3787.458173 | D32: 3904.877611 | E32: 4002.294714 | F32: 4061.665365 | G32: 4138.695889 | H32: 4225.073404 | I32: 4327.07474 | J32: 4446.435953 | K32: 4545.296078 | L32: 4639.236257 | M32: 4730.242363 | N32: 4818.58167 | O32: 5114.976103 | P32: 5201.745217 | Q32: 5286.507985 | R32: 5360.764731 | S32: 5431.252047 | T32: 5497.885355 | U32: 5558.3511 | V32: 5614.004206 | W32: 5664.13028 | X32: 5709.420665 | Y32: 5750.317234 | Z32: 5786.18958 | AA32: 5819.305193 | AB32: 5850.500429 | AC32: 5879.749804 | AD32: 5903.983353 | AE32: Gross Peak Demand MW | AF32: NPgY
A34: NOTE - Diversity means sum of 2 licence peaks not same as NPg peak - so NPg summation of the two licence areas is a simplification
A36: Below are Gross Peak Demand Projections With Customer Flexibility (Not procured by DNO) from TouT, EV Smart Charging etc
A37: Gross Peak Demand with CF MW - NPg | B37: 2022 | C37: 2023 | D37: 2024 | E37: 2025 | F37: 2026 | G37: 2027 | H37: 2028 | I37: 2029 | J37: 2030 | K37: 2031 | L37: 2032 | M37: 2033 | N37: 2034 | O37: 2035 | P37: 2036 | Q37: 2037 | R37: 2038 | S37: 2039 | T37: 2040 | U37: 2041 | V37: 2042 | W37: 2043 | X37: 2044 | Y37: 2045 | Z37: 2046 | AA37: 2047 | AB37: 2048 | AC37: 2049 | AD37: 2050
A38: DFES 2023 - Consumer Transformation (ToUT+)
A39: DFES 2023 - System Transformation (ToUT+)
A40: DFES 2023 - Leading The Way (ToUT+)
A41: CCC 2020 - Balanced Net Zero (ToUT+)
A42: CT 2023 Policy Sensitivity (ToUT+)
A43: BV 2023 Policy Sensitivity (ToUT+)
A44: DFES 2023 - NPg Best View | B44: 5986.164637 | C44: 6206.841958 | D44: 6452.951423 | E44: 6636.263825 | F44: 6790.132732 | G44: 7002.638896 | H44: 7157.985186 | I44: 7277.915904 | J44: 7448.612809 | K44: 7598.457178 | L44: 7734.11356 | M44: 7863.489208 | N44: 7984.231654 | O44: 8375.205427 | P44: 8734.315833 | Q44: 9081.68122 | R44: 9411.37057 | S44: 9721.472159 | T44: 9994.440387 | U44: 10235.59242 | V44: 10450.83327 | W44: 10715.73875 | X44: 10980.03499 | Y44: 11239.68112 | Z44: 11493.23124 | AA44: 11743.62515 | AB44: 11991.85622 | AC44: 12237.85302 | AD44: 12433.63611
A45: NPg Planning Scenario - DFES 2022 | B45: 7166.302741 | C45: 7219.533939 | D45: 7257.802589 | E45: 7324.948432 | F45: 7427.033682 | G45: 7568.6274 | H45: 7754.864925 | I45: 7992.952236 | J45: 8372.406251 | K45: 8653.159613 | L45: 8924.871786 | M45: 9238.201059 | N45: 9549.268195 | O45: 10069.17393 | P45: 10403.75225 | Q45: 10703.14483 | R45: 10995.49878 | S45: 11270.33491 | T45: 11499.4149 | U45: 11699.4983 | V45: 11892.05803 | W45: 12074.12865 | X45: 12230.84508 | Y45: 12377.96343 | Z45: 12516.72587 | AA45: 12656.53433 | AB45: 12791.51665 | AC45: 12813.1239 | AD45: 12822.71847
A46: DFES 2023 - Falling Short (ToUT+)
A47: Week 24 | B47: =SUM(B58,B69) -> 6129.2886 | C47: =B47-B44 -> 143.1239629
A48: Gross Peak Demand with CF MW - NPgN | B48: 2022 | C48: 2023 | D48: 2024 | E48: 2025 | F48: 2026 | G48: 2027 | H48: 2028 | I48: 2029 | J48: 2030 | K48: 2031 | L48: 2032 | M48: 2033 | N48: 2034 | O48: 2035 | P48: 2036 | Q48: 2037 | R48: 2038 | S48: 2039 | T48: 2040 | U48: 2041 | V48: 2042 | W48: 2043 | X48: 2044 | Y48: 2045 | Z48: 2046 | AA48: 2047 | AB48: 2048 | AC48: 2049 | AD48: 2050
A49: DFES 2023 - Consumer Transformation (ToUT+)
A50: DFES 2023 - System Transformation (ToUT+)
A51: DFES 2023 - Leading The Way (ToUT+)
A52: CCC 2020 - Balanced Net Zero (ToUT+)
A53: CT 2023 Policy Sensitivity (ToUT+)
A54: BV 2023 Policy Sensitivity (ToUT+)
A55: DFES 2023 - NPg Best View (ToUT+) | B55: 2449.467495 | C55: 2460.640534 | D55: 2582.628444 | E55: 2651.557887 | F55: 2704.667631 | G55: 2792.364681 | H55: 2868.290753 | I55: 2900.791699 | J55: 2946.025698 | K55: 2986.783936 | L55: 3021.760915 | M55: 3055.342514 | N55: 3086.930467 | O55: 3162.221679 | P55: 3278.120073 | Q55: 3391.513743 | R55: 3499.662475 | S55: 3601.770515 | T55: 3691.702823 | U55: 3771.419376 | V55: 3842.981811 | W55: 3928.387575 | X55: 4018.027772 | Y55: 4106.48236 | Z55: 4193.335656 | AA55: 4279.197278 | AB55: 4364.280175 | AC55: 4448.52134 | AD55: 4515.10883
A56: NPg Planning Scenario - DFES 2022 | B56: 2994.195488 | C56: 2993.849525 | D56: 3002.619027 | E56: 3023.048856 | F56: 3056.47019 | G56: 3104.858499 | H56: 3170.963923 | I56: 3268.338486 | J56: 3377.153854 | K56: 3480.521122 | L56: 3576.425064 | M56: 3691.678172 | N56: 3806.452961 | O56: 3947.161633 | P56: 4067.700308 | Q56: 4176.682444 | R56: 4281.646281 | S56: 4382.61734 | T56: 4466.903666 | U56: 4542.558708 | V56: 4614.967051 | W56: 4685.246706 | X56: 4744.986368 | Y56: 4802.916768 | Z56: 4858.379899 | AA56: 4913.155846 | AB56: 4967.341857 | AC56: 4975.363557 | AD56: 4978.784831
A57: DFES 2023 - Falling Short (ToUT+)
A58: Week 24 | B58: 2421.243 | C58: =B58-B55 -> -28.22449514 | D58: 300 (Gen at MD in Wk 24)
A59: Gross Peak Demand with CF MW - NPgY | B59: 2022 | C59: 2023 | D59: 2024 | E59: 2025 | F59: 2026 | G59: 2027 | H59: 2028 | I59: 2029 | J59: 2030 | K59: 2031 | L59: 2032 | M59: 2033 | N59: 2034 | O59: 2035 | P59: 2036 | Q59: 2037 | R59: 2038 | S59: 2039 | T59: 2040 | U59: 2041 | V59: 2042 | W59: 2043 | X59: 2044 | Y59: 2045 | Z59: 2046 | AA59: 2047 | AB59: 2048 | AC59: 2049 | AD59: 2050
A60: DFES 2023 - Consumer Transformation (ToUT+)
A61: DFES 2023 - System Transformation (ToUT+)
A62: DFES 2023 - Leading The Way (ToUT+)
A63: CCC 2020 - Balanced Net Zero (ToUT+)
A64: CT 2023 Policy Sensitivity (ToUT+)
A65: BV 2023 Policy Sensitivity (ToUT+)
A66: DFES 2023 - NPg Best View (ToUT+) | B66: 3536.697142 | C66: 3746.201424 | D66: 3870.322978 | E66: 3984.705938 | F66: 4085.465101 | G66: 4210.274215 | H66: 4289.694433 | I66: 4377.124205 | J66: 4502.587111 | K66: 4611.673241 | L66: 4712.352644 | M66: 4808.146695 | N66: 4897.301187 | O66: 5212.983748 | P66: 5456.195761 | Q66: 5690.167477 | R66: 5911.708095 | S66: 6119.701644 | T66: 6302.737564 | U66: 6464.173045 | V66: 6607.851459 | W66: 6787.351176 | X66: 6962.00722 | Y66: 7133.198764 | Z66: 7299.895583 | AA66: 7464.427869 | AB66: 7627.57605 | AC66: 7789.331677 | AD66: 7918.527282
A67: NPg Planning Scenario - DFES 2022 | B67: 4172.107253 | C67: 4225.684415 | D67: 4255.183562 | E67: 4301.899577 | F67: 4370.563492 | G67: 4463.768901 | H67: 4583.901002 | I67: 4724.61375 | J67: 4995.252397 | K67: 5172.638491 | L67: 5348.446721 | M67: 5546.522888 | N67: 5742.815234 | O67: 6122.012299 | P67: 6336.051945 | Q67: 6526.462385 | R67: 6713.852502 | S67: 6887.717571 | T67: 7032.511231 | U67: 7156.939596 | V67: 7277.090984 | W67: 7388.881947 | X67: 7485.858716 | Y67: 7575.04666 | Z67: 7658.345969 | AA67: 7743.37848 | AB67: 7824.174796 | AC67: 7837.760344 | AD67: 7843.933634
A68: DFES 2023 - Falling Short (ToUT+)
A69: Week 24 | B69: 3708.0456 | C69: =B69-B66 -> 171.348458 | D69: 643 (Gen at MD in Wk 24)
A74: Below are Gross Peak Demand Projections With Customer Flexibility inherent in the NG scenarios - (both procured by DNO and from TouT, EV Smart Charging etc
A75: Gross Peak Demand with CF MW - NPg | B75: 2022 | C75: 2023 | D75: 2024 | E75: 2025 | F75: 2026 | G75: 2027 | H75: 2028 | I75: 2029 | J75: 2030 | K75: 2031 | L75: 2032 | M75: 2033 | N75: 2034 | O75: 2035 | P75: 2036 | Q75: 2037 | R75: 2038 | S75: 2039 | T75: 2040 | U75: 2041 | V75: 2042 | W75: 2043 | X75: 2044 | Y75: 2045 | Z75: 2046 | AA75: 2047 | AB75: 2048 | AC75: 2049 | AD75: 2050
A76: DFES 2023 - Consumer Transformation (CF+) | B76: 5986.164637 | C76: 6208.067333 | D76: 6456.199194 | E76: 6642.336569 | F76: 6795.433806 | G76: 7005.441908 | H76: 7160.830627 | I76: 7278.204944 | J76: 7449.06991 | K76: 7600.268055 | L76: 7736.280021 | M76: 7866.906103 | N76: 7992.660216 | O76: 8393.03497 | P76: 8765.348905 | Q76: 9128.127996 | R76: 9474.673374 | S76: 9802.195327 | T76: 10092.08831 | U76: 10347.42787 | V76: 10575.27417 | W76: 10850.97831 | X76: 11124.55582 | Y76: 11391.68352 | Z76: 11650.15552 | AA76: 11904.83573 | AB76: 12156.74824 | AC76: 12406.36508 | AD76: 12605.53115
A77: DFES 2023 - System Transformation (CF+) | B77: 6017.187075 | C77: 6253.216631 | D77: 6523.527995 | E77: 6709.487381 | F77: 6836.077638 | G77: 7005.304593 | H77: 7170.846074 | I77: 7305.481254 | J77: 7477.914548 | K77: 7628.885285 | L77: 7773.267588 | M77: 7915.754624 | N77: 8056.706167 | O77: 8509.751135 | P77: 8750.951538 | Q77: 8987.161851 | R77: 9224.051551 | S77: 9463.483416 | T77: 9702.564837 | U77: 9936.329132 | V77: 10176.85447 | W77: 10433.17505 | X77: 10710.00394 | Y77: 11012.50863 | Z77: 11337.80654 | AA77: 11682.77856 | AB77: 12044.21789 | AC77: 12425.05311 | AD77: 12802.5299
A78: DFES 2023 - Falling Short (CF+) | B78: 6020.212915 | C78: 6263.685364 | D78: 6496.395172 | E78: 6648.982135 | F78: 6731.253604 | G78: 6862.25964 | H78: 7004.878803 | I78: 7124.378756 | J78: 7268.021941 | K78: 7387.654641 | L78: 7501.504585 | M78: 7613.423863 | N78: 7720.00565 | O78: 8070.23403 | P78: 8177.326375 | Q78: 8283.697593 | R78: 8378.948699 | S78: 8470.836011 | T78: 8558.030027 | U78: 8638.613612 | V78: 8713.365342 | W78: 8781.575502 | X78: 8843.756976 | Y78: 8900.417791 | Z78: 8950.728932 | AA78: 8997.467217 | AB78: 9041.698147 | AC78: 9083.008524 | AD78: 9116.083036
A79: DFES 2023 - Leading The Way (CF+) | B79: 5986.164637 | C79: 6207.53249 | D79: 6456.40393 | E79: 6653.079193 | F79: 6823.236751 | G79: 7048.37332 | H79: 7207.335183 | I79: 7325.77795 | J79: 7548.884402 | K79: 7983.419781 | L79: 8397.727003 | M79: 8798.762281 | N79: 9183.265509 | O79: 9787.143242 | P79: 10135.26252 | Q79: 10468.53753 | R79: 10782.25506 | S79: 11072.59787 | T79: 11315.68709 | U79: 11525.46827 | V79: 11714.02175 | W79: 11955.70866 | X79: 12200.0496 | Y79: 12391.51611 | Z79: 12371.78443 | AA79: 12351.83646 | AB79: 12332.47243 | AC79: 12313.47924 | AD79: 12295.41124
A82: Gross Peak Demand with CF MW - NPgN | B82: 2022 | C82: 2023 | D82: 2024 | E82: 2025 | F82: 2026 | G82: 2027 | H82: 2028 | I82: 2029 | J82: 2030 | K82: 2031 | L82: 2032 | M82: 2033 | N82: 2034 | O82: 2035 | P82: 2036 | Q82: 2037 | R82: 2038 | S82: 2039 | T82: 2040 | U82: 2041 | V82: 2042 | W82: 2043 | X82: 2044 | Y82: 2045 | Z82: 2046 | AA82: 2047 | AB82: 2048 | AC82: 2049 | AD82: 2050
A83: DFES 2023 - Consumer Transformation (ToUT+) | B83: 2449.467495 | C83: 2460.763326 | D83: 2583.167929 | E83: 2652.81182 | F83: 2705.678814 | G83: 2792.448014 | H83: 2867.917467 | I83: 2899.140911 | J83: 2943.572791 | K83: 2983.773964 | L83: 3018.206456 | M83: 3051.660203 | N83: 3084.471119 | O83: 3162.053191 | P83: 3281.569907 | Q83: 3399.475679 | R83: 3512.643856 | S83: 3619.97045 | T83: 3715.078905 | U83: 3799.086288 | V83: 3874.389885 | W83: 3962.974777 | X83: 4055.30039 | Y83: 4145.886886 | Z83: 4234.147635 | AA83: 4321.203419 | AB83: 4407.315667 | AC83: 4492.556142 | AD83: 4560.084041
A84: DFES 2023 - System Transformation (ToUT+) | B84: 2461.769163 | C84: 2479.149702 | D84: 2609.503519 | E84: 2676.633287 | F84: 2716.686488 | G84: 2785.59304 | H84: 2858.500578 | I84: 2894.485736 | J84: 2941.685926 | K84: 2984.235166 | L84: 3024.50624 | M84: 3065.041519 | N84: 3105.8166 | O84: 3208.688745 | P84: 3297.92698 | Q84: 3378.394754 | R84: 3458.273893 | S84: 3539.021165 | T84: 3620.49275 | U84: 3701.166463 | V84: 3784.783103 | W84: 3873.21969 | X84: 3969.255627 | Y84: 4074.613403 | Z84: 4188.587849 | AA84: 4309.63113 | AB84: 4436.626396 | AC84: 4570.576472 | AD84: 4703.487619
A85: DFES 2023 - Falling Short (ToUT+) | B85: 2463.208512 | C85: 2484.556588 | D85: 2605.940386 | E85: 2668.252798 | F85: 2700.051937 | G85: 2764.558168 | H85: 2833.926694 | I85: 2867.219808 | J85: 2906.729721 | K85: 2941.541497 | L85: 2974.570816 | M85: 3007.514863 | N85: 3036.695267 | O85: 3100.314034 | P85: 3128.891645 | Q85: 3158.037383 | R85: 3185.730955 | S85: 3213.13282 | T85: 3239.117972 | U85: 3263.537946 | V85: 3286.295992 | W85: 3307.30758 | X85: 3326.586857 | Y85: 3344.274139 | Z85: 3360.056153 | AA85: 3374.799032 | AB85: 3388.823664 | AC85: 3401.78268 | AD85: 3411.450852
A86: DFES 2023 - Leading The Way (ToUT+) | B86: 2449.467495 | C86: 2462.058406 | D86: 2587.12849 | E86: 2665.88314 | F86: 2731.358739 | G86: 2830.088555 | H86: 2910.334046 | I86: 2941.884157 | J86: 3005.846641 | K86: 3148.871058 | L86: 3283.010551 | M86: 3411.965302 | N86: 3534.841284 | O86: 3685.278117 | P86: 3797.102969 | Q86: 3904.984417 | R86: 4006.453916 | S86: 4099.722001 | T86: 4174.648373 | U86: 4237.406919 | V86: 4293.451259 | W86: 4367.428796 | X86: 4449.98125 | Y86: 4514.588402 | Z86: 4504.628317 | AA86: 4494.649123 | AB86: 4484.841965 | AC86: 4475.143282 | AD86: 4466.788347
A89: Gross Peak Demand with CF MW - NPgY | B89: 2022 | C89: 2023 | D89: 2024 | E89: 2025 | F89: 2026 | G89: 2027 | H89: 2028 | I89: 2029 | J89: 2030 | K89: 2031 | L89: 2032 | M89: 2033 | N89: 2034 | O89: 2035 | P89: 2036 | Q89: 2037 | R89: 2038 | S89: 2039 | T89: 2040 | U89: 2041 | V89: 2042 | W89: 2043 | X89: 2044 | Y89: 2045 | Z89: 2046 | AA89: 2047 | AB89: 2048 | AC89: 2049 | AD89: 2050
A90: DFES 2023 - Consumer Transformation (ToUT+) | B90: 3536.697142 | C90: 3747.304007 | D90: 3873.031266 | E90: 3989.524748 | F90: 4089.754993 | G90: 4212.993895 | H90: 4292.91316 | I90: 4379.064033 | J90: 4505.497119 | K90: 4616.494091 | L90: 4718.073565 | M90: 4815.245899 | N90: 4908.189097 | O90: 5230.981779 | P90: 5483.778997 | Q90: 5728.652317 | R90: 5962.029517 | S90: 6182.224877 | T90: 6377.009406 | U90: 6548.341579 | V90: 6700.88429 | W90: 6888.00353 | X90: 7069.25543 | Y90: 7245.796637 | Z90: 7416.007884 | AA90: 7583.632307 | AB90: 7749.432572 | AC90: 7913.808941 | AD90: 8045.447113
A91: DFES 2023 - System Transformation (ToUT+) | B91: 3555.417913 | C91: 3774.066929 | D91: 3914.024476 | E91: 4032.854094 | F91: 4119.39115 | G91: 4219.711554 | H91: 4312.345496 | I91: 4410.995518 | J91: 4536.228622 | K91: 4644.650119 | L91: 4748.761348 | M91: 4850.713105 | N91: 4950.889567 | O91: 5301.06239 | P91: 5453.024558 | Q91: 5608.767097 | R91: 5765.777658 | S91: 5924.462251 | T91: 6082.072087 | U91: 6235.162669 | V91: 6392.071368 | W91: 6559.955357 | X91: 6740.748316 | Y91: 6937.895226 | Z91: 7149.218687 | AA91: 7373.147431 | AB91: 7607.59149 | AC91: 7854.476634 | AD91: 8099.042286
A92: DFES 2023 - Falling Short (ToUT+) | B92: 3557.004403 | C92: 3779.128777 | D92: 3890.454787 | E92: 3980.729337 | F92: 4031.201668 | G92: 4097.701472 | H92: 4170.952109 | I92: 4257.158948 | J92: 4361.29222 | K92: 4446.113144 | L92: 4526.933769 | M92: 4605.909 | N92: 4683.310383 | O92: 4969.919996 | P92: 5048.43473 | Q92: 5125.660209 | R92: 5193.217744 | S92: 5257.703191 | T92: 5318.912056 | U92: 5375.075666 | V92: 5427.06935 | W92: 5474.267921 | X92: 5517.170119 | Y92: 5556.143653 | Z92: 5590.672779 | AA92: 5622.668186 | AB92: 5652.874483 | AC92: 5681.225844 | AD92: 5704.632183
A93: DFES 2023 - Leading The Way (ToUT+) | B93: 3536.697142 | C93: 3745.474083 | D93: 3869.27544 | E93: 3987.196053 | F93: 4091.878012 | G93: 4218.284765 | H93: 4297.001137 | I93: 4383.893793 | J93: 4543.037761 | K93: 4834.548723 | L93: 5114.716452 | M93: 5386.796979 | N93: 5648.424225 | O93: 6101.865124 | P93: 6338.159549 | Q93: 6563.553114 | R93: 6775.801146 | S93: 6972.875872 | T93: 7141.038715 | U93: 7288.061347 | V93: 7420.570488 | W93: 7588.279868 | X93: 7750.068353 | Y93: 7876.92771 | Z93: 7867.156112 | AA93: 7857.187332 | AB93: 7847.630461 | AC93: 7838.335955 | AD93: 7828.622888
A98: Below are Gross Peak Demand Projections in GW
A100: Gross Peak Demand MW - NPg | B100: 2022 | C100: 2023 | D100: 2024 | E100: 2025 | F100: 2026 | G100: 2027 | H100: 2028 | I100: 2029 | J100: 2030 | K100: 2031 | L100: 2032 | M100: 2033 | N100: 2034 | O100: 2035 | P100: 2036 | Q100: 2037 | R100: 2038 | S100: 2039 | T100: 2040 | U100: 2041 | V100: 2042 | W100: 2043 | X100: 2044 | Y100: 2045 | Z100: 2046 | AA100: 2047 | AB100: 2048 | AC100: 2049 | AD100: 2050
A101: DFES 2023 - Consumer Transformation | B101: =B2/1000 -> 5.995712559 | C101: 6.231897847 | D101: 6.499512521 | E101: 6.711526093 | F101: 6.891562474 | G101: 7.130193904 | H101: 7.309759074 | I101: 7.451406292 | J101: 7.650910626 | K101: 7.83109897 | L101: 7.996184655 | M101: 8.15315143 | N101: 8.302381687 | O101: 8.722192824 | P101: 9.110719048 | Q101: 9.487388771 | R101: 9.84589915 | S101: 10.1838288 | T101: 10.48225698 | U101: 10.74406309 | V101: 10.97708038 | W101: 11.25677734 | X101: 11.53348964 | Y101: 11.8031248 | Z101: 12.06301837 | AA101: 12.31905521 | AB101: 12.57239372 | AC101: 12.82354179 | AD101: 13.02431081
A102: DFES 2023 - System Transformation | B102: =B3/1000 -> 6.021497055 | C102: 6.268849153 | D102: 6.555100224 | E102: 6.760646909 | F102: 6.909930106 | G102: 7.103895986 | H102: 7.293259839 | I102: 7.452669477 | J102: 7.650820764 | K102: 7.826761395 | L102: 7.995787189 | M102: 8.160513242 | N102: 8.321669756 | O102: 8.792788657 | P102: 9.049113617 | Q102: 9.299074447 | R102: 9.547625773 | S102: 9.79727353 | T102: 10.04495934 | U102: 10.28523721 | V102: 10.53118934 | W102: 10.79174396 | X102: 11.07205218 | Y102: 11.37746327 | Z102: 11.70449413 | AA102: 12.0510731 | AB102: 12.41403982 | AC102: 12.79633046 | AD102: 13.17517392
A103: DFES 2023 - Leading The Way | B103: =B4/1000 -> 5.995712559 | C103: 6.231096783 | D103: 6.49881177 | E103: 6.72034205 | F103: 6.916798092 | G103: 7.169978353 | H103: 7.351555524 | I103: 7.492840604 | J103: 7.742013068 | K103: 8.202527517 | L103: 8.643329692 | M103: 9.068461146 | N103: 9.474334362 | O103: 10.09541165 | P103: 10.45755682 | Q103: 10.80283569 | R103: 11.12672912 | S103: 11.42572523 | T103: 11.67573164 | U103: 11.89077339 | V103: 12.08331242 | W103: 12.32786568 | X103: 12.57418742 | Y103: 12.76705758 | Z103: 12.74790383 | AA103: 12.72843257 | AB103: 12.70965617 | AC103: 12.69129411 | AD103: 12.67399236
A104: CCC 2020 - Balanced Net Zero No HGVs (ToUT+) | B104: =B5/1000 -> 7.196583307 | C104: 7.244363347 | D104: 7.280231601 | E104: 7.365170567 | F104: 7.485805867 | G104: 7.64139649 | H104: 7.837100717 | I104: 8.08433395 | J104: 8.44649357 | K104: 8.749585755 | L104: 9.044153273 | M104: 9.361248565 | N104: 9.675187381 | O104: 10.15306274 | P104: 10.45809071 | Q104: 10.76091017 | R104: 11.05598988 | S104: 11.34226777 | T104: 11.58106417 | U104: 11.80225606 | V104: 12.0154294 | W104: 12.22021672 | X104: 12.40209292 | Y104: 12.56576448 | Z104: 12.72218965 | AA104: 12.88010306 | AB104: 13.03483285 | AC104: 13.07726587 | AD104: 13.10098545
A105: CT 2023 Policy Sensitivity No HGVs (ToUT+) | B105: =B6/1000 -> 5.994884664 | C105: 6.265562038 | D105: 6.544612909 | E105: 6.734017617 | F105: 6.860567985 | G105: 7.029962905 | H105: 7.213569458 | I105: 7.374905971 | J105: 7.574361133 | K105: 7.754226597 | L105: 7.92445532 | M105: 8.091419459 | N105: 8.25790586 | O105: 8.678395518 | P105: 9.117913064 | Q105: 9.547020519 | R105: 9.953898184 | S105: 10.34317262 | T105: 10.72573165 | U105: 11.09996601 | V105: 11.46223989 | W105: 11.82985981 | X105: 12.19177198 | Y105: 12.54727822 | Z105: 12.89456166 | AA105: 13.23850568 | AB105: 13.57988317 | AC105: 13.91902603 | AD105: 14.24382659
A106: BV 2023 Policy Sensitivity No HGVs (ToUT+) | B106: =B7/1000 -> 5.994884664 | C106: 6.266341526 | D106: 6.546570266 | E106: 6.73779207 | F106: 6.867357625 | G106: 7.041153022 | H106: 7.230766293 | I106: 7.399879901 | J106: 7.608794081 | K106: 7.799144114 | L106: 7.979431464 | M106: 8.1543011 | N106: 8.324646194 | O106: 8.744144 | P106: 9.178339031 | Q106: 9.599059692 | R106: 9.995808091 | S106: 10.37430975 | T106: 10.74631318 | U106: 11.11090358 | V106: 11.46495418 | W106: 11.82603834 | X106: 12.18313037 | Y106: 12.53530923 | Z106: 12.88040118 | AA106: 13.22293363 | AB106: 13.56340041 | AC106: 13.90194192 | AD106: 14.22632865
A107: DFES 2023 - NPg Best View (ToUT+) | B107: =B8/1000 -> 5.995712559 | C107: 6.230403368 | D107: 6.495350229 | E107: 6.703510658 | F107: 6.883662883 | G107: 7.124200686 | H107: 7.302134749 | I107: 7.444882573 | J107: 7.641576486 | K107: 7.817181574 | L107: 7.979144442 | M107: 8.132433734 | N107: 8.27436738 | O107: 8.682406232 | P107: 9.055534501 | Q107: 9.414896822 | R107: 9.754757657 | S107: 10.07351204 | T107: 10.35340721 | U107: 10.59983546 | V107: 10.81907917 | W107: 11.08685799 | X107: 11.35313069 | Y107: 11.61421599 | Z107: 11.86850096 | AA107: 12.11952803 | AB107: 12.36850272 | AC107: 12.61528609 | AD107: 12.81194753
A108: NPg Planning Scenario - DFES 2022 | B108: =B9/1000 -> 7.176747841 | C108: 7.236804709 | D108: 7.286172545 | E108: 7.370614469 | F108: 7.492195718 | G108: 7.659466331 | H108: 7.882389124 | I108: 8.160129478 | J108: 8.586711949 | K108: 8.914169807 | L108: 9.228090381 | M108: 9.575917356 | N108: 9.920416855 | O108: 10.48270863 | P108: 10.85596746 | Q108: 11.18311558 | R108: 11.49623089 | S108: 11.78716592 | T108: 12.03003146 | U108: 12.23822286 | V108: 12.43704179 | W108: 12.62337571 | X108: 12.78290857 | Y108: 12.93117686 | Z108: 13.06972471 | AA108: 13.20870194 | AB108: 13.34219503 | AC108: 13.36176654 | AD108: 13.36914774
A109: DFES 2023 - Falling Short | B109: =B10/1000 -> 6.021389369 | C109: 6.273484491 | D109: 6.513526702 | E109: 6.675287739 | F109: 6.768777811 | G109: 6.91364966 | H109: 7.073196722 | I109: 7.213073379 | J109: 7.376352363 | K109: 7.51408702 | L109: 7.645146006 | M109: 7.772551206 | N109: 7.893282672 | O109: 8.256141417 | P109: 8.373665246 | Q109: 8.489700199 | R109: 8.593375873 | S109: 8.692856329 | T109: 8.786803046 | U109: 8.872715631 | V109: 8.952076715 | W109: 9.023896906 | X109: 9.089046096 | Y109: 9.148114761 | Z109: 9.200033328 | AA109: 9.248178769 | AB109: 9.293668968 | AC109: 9.336142927 | AD109: 9.370306132
A112: Below are GW Gross Peak Demand Projections With Customer Flexibility inherent in the NG scenarios - (both procured by DNO and from TouT, EV Smart Charging etc
A113: Gross Peak Demand with CF MW - NPg | B113: 2022 | C113: 2023 | D113: 2024 | E113: 2025 | F113: 2026 | G113: 2027 | H113: 2028 | I113: 2029 | J113: 2030 | K113: 2031 | L113: 2032 | M113: 2033 | N113: 2034 | O113: 2035 | P113: 2036 | Q113: 2037 | R113: 2038 | S113: 2039 | T113: 2040 | U113: 2041 | V113: 2042 | W113: 2043 | X113: 2044 | Y113: 2045 | Z113: 2046 | AA113: 2047 | AB113: 2048 | AC113: 2049 | AD113: 2050
A114: DFES 2023 - Consumer Transformation (ToUT+) | B114: =B38/1000 -> 0 | C114: 0 | D114: 0 | E114: 0 | F114: 0 | G114: 0 | H114: 0 | I114: 0 | J114: 0 | K114: 0 | L114: 0 | M114: 0 | N114: 0 | O114: 0 | P114: 0 | Q114: 0 | R114: 0 | S114: 0 | T114: 0 | U114: 0 | V114: 0 | W114: 0 | X114: 0 | Y114: 0 | Z114: 0 | AA114: 0 | AB114: 0 | AC114: 0 | AD114: 0
A115: DFES 2023 - System Transformation (ToUT+) | B115: =B39/1000 -> 0 | C115: 0 | D115: 0 | E115: 0 | F115: 0 | G115: 0 | H115: 0 | I115: 0 | J115: 0 | K115: 0 | L115: 0 | M115: 0 | N115: 0 | O115: 0 | P115: 0 | Q115: 0 | R115: 0 | S115: 0 | T115: 0 | U115: 0 | V115: 0 | W115: 0 | X115: 0 | Y115: 0 | Z115: 0 | AA115: 0 | AB115: 0 | AC115: 0 | AD115: 0
A116: DFES 2023 - Leading The Way (ToUT+) | B116: =B40/1000 -> 0 | C116: 0 | D116: 0 | E116: 0 | F116: 0 | G116: 0 | H116: 0 | I116: 0 | J116: 0 | K116: 0 | L116: 0 | M116: 0 | N116: 0 | O116: 0 | P116: 0 | Q116: 0 | R116: 0 | S116: 0 | T116: 0 | U116: 0 | V116: 0 | W116: 0 | X116: 0 | Y116: 0 | Z116: 0 | AA116: 0 | AB116: 0 | AC116: 0 | AD116: 0
A117: CCC 2020 - Balanced Net Zero No HGVs (ToUT+) | B117: =B41/1000 -> 0 | C117: 0 | D117: 0 | E117: 0 | F117: 0 | G117: 0 | H117: 0 | I117: 0 | J117: 0 | K117: 0 | L117: 0 | M117: 0 | N117: 0 | O117: 0 | P117: 0 | Q117: 0 | R117: 0 | S117: 0 | T117: 0 | U117: 0 | V117: 0 | W117: 0 | X117: 0 | Y117: 0 | Z117: 0 | AA117: 0 | AB117: 0 | AC117: 0 | AD117: 0
A118: CT 2023 Policy Sensitivity No HGVs (ToUT+) | B118: =B42/1000 -> 0 | C118: 0 | D118: 0 | E118: 0 | F118: 0 | G118: 0 | H118: 0 | I118: 0 | J118: 0 | K118: 0 | L118: 0 | M118: 0 | N118: 0 | O118: 0 | P118: 0 | Q118: 0 | R118: 0 | S118: 0 | T118: 0 | U118: 0 | V118: 0 | W118: 0 | X118: 0 | Y118: 0 | Z118: 0 | AA118: 0 | AB118: 0 | AC118: 0 | AD118: 0
A119: BV 2023 Policy Sensitivity No HGVs (ToUT+) | B119: =B43/1000 -> 0 | C119: 0 | D119: 0 | E119: 0 | F119: 0 | G119: 0 | H119: 0 | I119: 0 | J119: 0 | K119: 0 | L119: 0 | M119: 0 | N119: 0 | O119: 0 | P119: 0 | Q119: 0 | R119: 0 | S119: 0 | T119: 0 | U119: 0 | V119: 0 | W119: 0 | X119: 0 | Y119: 0 | Z119: 0 | AA119: 0 | AB119: 0 | AC119: 0 | AD119: 0
A120: DFES 2023 - NPg Best View (ToUT+) | B120: =B44/1000 -> 5.986164637 | C120: 6.206841958 | D120: 6.452951423 | E120: 6.636263825 | F120: 6.790132732 | G120: 7.002638896 | H120: 7.157985186 | I120: 7.277915904 | J120: 7.448612809 | K120: 7.598457178 | L120: 7.73411356 | M120: 7.863489208 | N120: 7.984231654 | O120: 8.375205427 | P120: 8.734315833 | Q120: 9.08168122 | R120: 9.41137057 | S120: 9.721472159 | T120: 9.994440387 | U120: 10.23559242 | V120: 10.45083327 | W120: 10.71573875 | X120: 10.98003499 | Y120: 11.23968112 | Z120: 11.49323124 | AA120: 11.74362515 | AB120: 11.99185622 | AC120: 12.23785302 | AD120: 12.43363611
A121: NPg Planning Scenario - DFES 2022 | B121: =B45/1000 -> 7.166302741 | C121: 7.219533939 | D121: 7.257802589 | E121: 7.324948432 | F121: 7.427033682 | G121: 7.5686274 | H121: 7.754864925 | I121: 7.992952236 | J121: 8.372406251 | K121: 8.653159613 | L121: 8.924871786 | M121: 9.238201059 | N121: 9.549268195 | O121: 10.06917393 | P121: 10.40375225 | Q121: 10.70314483 | R121: 10.99549878 | S121: 11.27033491 | T121: 11.4994149 | U121: 11.6994983 | V121: 11.89205803 | W121: 12.07412865 | X121: 12.23084508 | Y121: 12.37796343 | Z121: 12.51672587 | AA121: 12.65653433 | AB121: 12.79151665 | AC121: 12.8131239 | AD121: 12.82271847
A122: DFES 2023 - Falling Short (ToUT+) | B122: =B46/1000 -> 0 | C122: 0 | D122: 0 | E122: 0 | F122: 0 | G122: 0 | H122: 0 | I122: 0 | J122: 0 | K122: 0 | L122: 0 | M122: 0 | N122: 0 | O122: 0 | P122: 0 | Q122: 0 | R122: 0 | S122: 0 | T122: 0 | U122: 0 | V122: 0 | W122: 0 | X122: 0 | Y122: 0 | Z122: 0 | AA122: 0 | AB122: 0 | AC122: 0 | AD122: 0

Sheet Electric Vehicles
A1: No. of EVs - NPg | B1: 2022 | C1: 2023 | D1: 2024 | E1: 2025 | F1: 2026 | G1: 2027 | H1: 2028 | I1: 2029 | J1: 2030 | K1: 2031 | L1: 2032 | M1: 2033 | N1: 2034 | O1: 2035 | P1: 2036 | Q1: 2037 | R1: 2038 | S1: 2039 | T1: 2040 | U1: 2041 | V1: 2042 | W1: 2043 | X1: 2044 | Y1: 2045 | Z1: 2046 | AA1: 2047 | AB1: 2048 | AC1: 2049 | AD1: 2050 | AE1: Parameter | AF1: Licence | AG1: CHOSEN
A2: DFES 2023 - Consumer Transformation | B2: =ROUND(SUM(B13,B24),0) -> 86795 | C2: 153049 | D2: 291878 | E2: 472997 | F2: 733675 | G2: 1000837 | H2: 1287530 | I2: 1587474 | J2: 1938473 | K2: 2287355 | L2: 2622073 | M2: 2939315 | N2: 3234856 | O2: 3489277 | P2: 3701156 | Q2: 3889277 | R2: 4054326 | S2: 4197444 | T2: 4318289 | U2: 4411151 | V2: 4486308 | W2: 4546045 | X2: 4593218 | Y2: 4631368 | Z2: 4655354 | AA2: 4676142 | AB2: 4696131 | AC2: 4715092 | AD2: 4734509 | AE2: No. of Evs | AF2: NPg
A3: DFES 2023 - System Transformation | B3: =ROUND(SUM(B14,B25),0) -> 86795 | C3: 153129 | D3: 298536 | E3: 483066 | F3: 731753 | G3: 987150 | H3: 1261965 | I3: 1550371 | J3: 1847688 | K3: 2143384 | L3: 2427887 | M3: 2697655 | N3: 2949034 | O3: 3180653 | P3: 3373114 | Q3: 3544331 | R3: 3695330 | S3: 3827598 | T3: 3941590 | U3: 4031025 | V3: 4105154 | W3: 4166033 | X3: 4216062 | Y3: 4257296 | Z3: 4284594 | AA3: 4307438 | AB3: 4327998 | AC3: 4346502 | AD3: 4363521 | AE3: No. of Evs | AF3: NPg
A4: DFES 2023 - Leading The Way | B4: =ROUND(SUM(B15,B26),0) -> 86795 | C4: 149290 | D4: 283327 | E4: 455591 | F4: 698142 | G4: 947257 | H4: 1214648 | I4: 1493231 | J4: 1817732 | K4: 2140619 | L4: 2448543 | M4: 2737620 | N4: 3004082 | O4: 3231138 | P4: 3416975 | Q4: 3579054 | R4: 3718860 | S4: 3837763 | T4: 3935422 | U4: 4013092 | V4: 4074428 | W4: 4121030 | X4: 4155753 | Y4: 4181910 | Z4: 4199614 | AA4: 4214006 | AB4: 4227027 | AC4: 4239591 | AD4: 4252384 | AE4: No. of Evs | AF4: NPg
A5: CCC 2020 - Balanced Net Zero | B5: =ROUND(SUM(B16,B27),0) -> 123396 | C5: 223918 | D5: 371840 | E5: 590162 | F5: 816679 | G5: 1053328 | H5: 1303855 | I5: 1576801 | J5: 1879593 | K5: 2186927 | L5: 2498412 | M5: 2807041 | N5: 3109021 | O5: 3400184 | P5: 3675477 | Q5: 3930822 | R5: 4158993 | S5: 4369337 | T5: 4553775 | U5: 4712288 | V5: 4850600 | W5: 4977472 | X5: 5099838 | Y5: 5173448 | Z5: 5238916 | AA5: 5300064 | AB5: 5359388 | AC5: 5418710 | AD5: 5462205 | AE5: No. of Evs | AF5: NPg
A6: CT 2023 Policy Sensitivity | B6: =ROUND(SUM(B17,B28),0) -> 86795 | C6: 153049 | D6: 246539 | E6: 367733 | F6: 551779 | G6: 741860 | H6: 996031 | I6: 1282578 | J6: 1576075 | K6: 1873019 | L6: 2165100 | M6: 2449511 | N6: 2724034 | O6: 3000018 | P6: 3240528 | Q6: 3462925 | R6: 3667095 | S6: 3852235 | T6: 4016511 | U6: 4153159 | V6: 4270777 | W6: 4370741 | X6: 4455115 | Y6: 4526190 | Z6: 4579153 | AA6: 4623862 | AB6: 4662724 | AC6: 4696198 | AD6: 4726348 | AE6: No. of Evs | AF6: NPg
A7: BV 2023 Policy Sensitivity | B7: =ROUND(SUM(B18,B29),0) -> 86795 | C7: 153049 | D7: 246539 | E7: 367733 | F7: 551779 | G7: 741860 | H7: 996031 | I7: 1282578 | J7: 1576075 | K7: 1873019 | L7: 2165100 | M7: 2449511 | N7: 2724034 | O7: 3000018 | P7: 3240528 | Q7: 3462925 | R7: 3667095 | S7: 3852235 | T7: 4016511 | U7: 4153159 | V7: 4270777 | W7: 4370741 | X7: 4455115 | Y7: 4526190 | Z7: 4579153 | AA7: 4623862 | AB7: 4662724 | AC7: 4696198 | AD7: 4726348 | AE7: No. of Evs | AF7: NPg
A8: DFES 2023 - NPg Best View | B8: =ROUND(SUM(B19,B30),0) -> 86795 | C8: 149290 | D8: 283327 | E8: 455591 | F8: 698142 | G8: 947257 | H8: 1214648 | I8: 1493231 | J8: 1817732 | K8: 2140619 | L8: 2448543 | M8: 2737620 | N8: 3004082 | O8: 3231138 | P8: 3416975 | Q8: 3579054 | R8: 3718860 | S8: 3837763 | T8: 3935422 | U8: 4013092 | V8: 4074428 | W8: 4121030 | X8: 4155753 | Y8: 4181910 | Z8: 4199614 | AA8: 4214006 | AB8: 4227027 | AC8: 4239591 | AD8: 4252384 | AE8: No. of Evs | AF8: NPg
A9: NPg Planning Scenario - DFES 2022 | B9: =ROUND(SUM(B20,B31),0) -> 108640 | C9: 213800 | D9: 350456 | E9: 523703 | F9: 716036 | G9: 939481 | H9: 1194431 | I9: 1475724 | J9: 1843408 | K9: 2198530 | L9: 2542871 | M9: 2873291 | N9: 3186376 | O9: 3479607 | P9: 3749194 | Q9: 3995456 | R9: 4217344 | S9: 4415258 | T9: 4589052 | U9: 4698245 | V9: 4786011 | W9: 4854110 | X9: 4905744 | Y9: 4943989 | Z9: 4970617 | AA9: 4989110 | AB9: 5000992 | AC9: 5008709 | AD9: 5013445 | AE9: No. of Evs | AF9: NPg
A10: DFES 2023 - Falling Short | B10: =ROUND(SUM(B21,B32),0) -> 86795 | C10: 137218 | D10: 207919 | E10: 302845 | F10: 429311 | G10: 578584 | H10: 768010 | I10: 991882 | J10: 1214726 | K10: 1434570 | L10: 1644820 | M10: 1843876 | N10: 2029797 | O10: 2202354 | P10: 2347071 | Q10: 2479110 | R10: 2599270 | S10: 2708008 | T10: 2804867 | U10: 2884593 | V10: 2952783 | W10: 3009550 | X10: 3056381 | Y10: 3094188 | Z10: 3119887 | AA10: 3140904 | AB10: 3158494 | AC10: 3174142 | AD10: 3188191 | AE10: No. of Evs | AF10: NPg
A12: No. of EVs - NPgN | B12: 2022 | C12: 2023 | D12: 2024 | E12: 2025 | F12: 2026 | G12: 2027 | H12: 2028 | I12: 2029 | J12: 2030 | K12: 2031 | L12: 2032 | M12: 2033 | N12: 2034 | O12: 2035 | P12: 2036 | Q12: 2037 | R12: 2038 | S12: 2039 | T12: 2040 | U12: 2041 | V12: 2042 | W12: 2043 | X12: 2044 | Y12: 2045 | Z12: 2046 | AA12: 2047 | AB12: 2048 | AC12: 2049 | AD12: 2050 | AE12: No. of Evs
A13: DFES 2023 - Consumer Transformation | B13: 25226.75936 | C13: 49634.3639 | D13: 104356.1243 | E13: 178967.9031 | F13: 287900.5466 | G13: 394097.1 | H13: 508057.4886 | I13: 627284.5725 | J13: 766806.5941 | K13: 906322.5463 | L13: 1040208.583 | M13: 1167148.03 | N13: 1285460.993 | O13: 1387429.041 | P13: 1471650.762 | Q13: 1546428.754 | R13: 1612035.432 | S13: 1668924.821 | T13: 1716960.714 | U13: 1753872.983 | V13: 1783747.858 | W13: 1807493.389 | X13: 1826244.641 | Y13: 1841409.091 | Z13: 1850943.625 | AA13: 1859206.889 | AB13: 1867152.334 | AC13: 1874689.156 | AD13: 1882407.589 | AE13: No. of Evs | AF13: NPgN
A14: DFES 2023 - System Transformation | B14: 25226.75936 | C14: 49683.0244 | D14: 106769.0306 | E14: 182688.3205 | F14: 286967.4084 | G14: 388487.4996 | H14: 497726.0236 | I14: 612367.4504 | J14: 730550.2757 | K14: 848959.0618 | L14: 962918.3984 | M14: 1071020.807 | N14: 1171813.405 | O14: 1264751.363 | P14: 1341254.652 | Q14: 1409313.067 | R14: 1469335.232 | S14: 1521911.38 | T14: 1567223.12 | U14: 1602773.313 | V14: 1632239.565 | W14: 1656439.121 | X14: 1676325.436 | Y14: 1692715.755 | Z14: 1703566.963 | AA14: 1712647.472 | AB14: 1720819.931 | AC14: 1728175.143 | AD14: 1734940.122 | AE14: No. of Evs | AF14: NPgN
A15: DFES 2023 - Leading The Way | B15: 25226.75936 | C15: 48544.9943 | D15: 101426.8986 | E15: 172277.3488 | F15: 273716.9139 | G15: 372739.8652 | H15: 479027.2236 | I15: 589764.0315 | J15: 718752.6627 | K15: 847947.6837 | L15: 971194.9714 | M15: 1086950.839 | N15: 1193717.003 | O15: 1284819.288 | P15: 1358689.229 | Q15: 1423115.441 | R15: 1478688.157 | S15: 1525952.206 | T15: 1564771.382 | U15: 1595645.113 | V15: 1620026.28 | W15: 1638550.519 | X15: 1652352.892 | Y15: 1662750.075 | Z15: 1669787.47 | AA15: 1675508.19 | AB15: 1680684.081 | AC15: 1685678.36 | AD15: 1690763.446 | AE15: No. of Evs | AF15: NPgN
A16: CCC 2020 - Balanced Net Zero | B16: 37120.11778 | C16: 69497.50888 | D16: 119058.7192 | E16: 195451.5629 | F16: 278278.7729 | G16: 368080.2759 | H16: 466077.2438 | I16: 575440.5407 | J16: 699247.1425 | K16: 826301.8784 | L16: 956536.9458 | M16: 1087085.166 | N16: 1216334.101 | O16: 1342318.548 | P16: 1462698.696 | Q16: 1575237.834 | R16: 1676366.398 | S16: 1769904.752 | T16: 1852049.996 | U16: 1920159.935 | V16: 1976436.615 | W16: 2028058.566 | X16: 2077846.771 | Y16: 2107797.342 | Z16: 2134434.915 | AA16: 2159315.07 | AB16: 2183452.643 | AC16: 2207589.818 | AD16: 2225287.129 | AE16: No. of Evs | AF16: NPgN
A17: CT 2023 Policy Sensitivity | B17: 25226.75936 | C17: 49634.3639 | D17: 87613.98478 | E17: 138225.562 | F17: 216902.6303 | G17: 292468.9286 | H17: 393315.5325 | I17: 507034.8902 | J17: 623624.9775 | K17: 742267.3338 | L17: 859007.3764 | M17: 972724.4239 | N17: 1082535.072 | O17: 1192949.23 | P17: 1288551.693 | Q17: 1376954.353 | R17: 1458111.64 | S17: 1531704.575 | T17: 1597004.065 | U17: 1651321.576 | V17: 1698074.735 | W17: 1737810.363 | X17: 1771348.691 | Y17: 1799601.088 | Z17: 1820653.68 | AA17: 1838425.349 | AB17: 1853873.03 | AC17: 1867178.997 | AD17: 1879163.481 | AE17: No. of Evs | AF17: NPgN
A18: BV 2023 Policy Sensitivity | B18: 25226.75936 | C18: 49634.3639 | D18: 87613.98478 | E18: 138225.562 | F18: 216902.6303 | G18: 292468.9286 | H18: 393315.5325 | I18: 507034.8902 | J18: 623624.9775 | K18: 742267.3338 | L18: 859007.3764 | M18: 972724.4239 | N18: 1082535.072 | O18: 1192949.23 | P18: 1288551.693 | Q18: 1376954.353 | R18: 1458111.64 | S18: 1531704.575 | T18: 1597004.065 | U18: 1651321.576 | V18: 1698074.735 | W18: 1737810.363 | X18: 1771348.691 | Y18: 1799601.088 | Z18: 1820653.68 | AA18: 1838425.349 | AB18: 1853873.03 | AC18: 1867178.997 | AD18: 1879163.481 | AE18: No. of Evs | AF18: NPgN
A19: DFES 2023 - NPg Best View | B19: 25226.75936 | C19: 48544.9943 | D19: 101426.8986 | E19: 172277.3488 | F19: 273716.9139 | G19: 372739.8652 | H19: 479027.2236 | I19: 589764.0315 | J19: 718752.6627 | K19: 847947.6837 | L19: 971194.9714 | M19: 1086950.839 | N19: 1193717.003 | O19: 1284819.288 | P19: 1358689.229 | Q19: 1423115.441 | R19: 1478688.157 | S19: 1525952.206 | T19: 1564771.382 | U19: 1595645.113 | V19: 1620026.28 | W19: 1638550.519 | X19: 1652352.892 | Y19: 1662750.075 | Z19: 1669787.47 | AA19: 1675508.19 | AB19: 1680684.081 | AC19: 1685678.36 | AD19: 1690763.446 | AE19: No. of Evs | AF19: NPgN
A20: NPg Planning Scenario - DFES 2022 | B20: 36988.92067 | C20: 78690.16226 | D20: 132773.4155 | E20: 201407.6334 | F20: 277449.7213 | G20: 366014.9089 | H20: 467333.2317 | I20: 579380.7874 | J20: 726048.9919 | K20: 867787.9991 | L20: 1005222.135 | M20: 1137107.874 | N20: 1262070.116 | O20: 1379107.867 | P20: 1486784.248 | Q20: 1585164.645 | R20: 1673810.768 | S20: 1752879.967 | T20: 1822305.843 | U20: 1865890.303 | V20: 1900917.592 | W20: 1928074.259 | X20: 1948681.729 | Y20: 1964634.759 | Z20: 1975726.347 | AA20: 1983417.956 | AB20: 1988362.221 | AC20: 1991577.01 | AD20: 1993576.597 | AE20: No. of Evs | AF20: NPgN
A21: DFES 2023 - Falling Short | B21: 25226.75936 | C21: 43141.44442 | D21: 69955.0339 | E21: 107561.7423 | F21: 158736.2181 | G21: 219673.8887 | H21: 297377.1565 | I21: 386366.1452 | J21: 474946.5111 | K21: 564004.5788 | L21: 649248.8327 | M21: 730043.6372 | N21: 805617.149 | O21: 875878.563 | P21: 933403.5879 | Q21: 985888.9302 | R21: 1033652.408 | S21: 1076875.631 | T21: 1115376.989 | U21: 1147067.966 | V21: 1174173.285 | W21: 1196738.35 | X21: 1215353.394 | Y21: 1230381.637 | Z21: 1240597.209 | AA21: 1248951.278 | AB21: 1255943.27 | AC21: 1262163.418 | AD21: 1267747.931 | AE21: No. of Evs | AF21: NPgN
A23: No. of EVs - NPgY | B23: 2022 | C23: 2023 | D23: 2024 | E23: 2025 | F23: 2026 | G23: 2027 | H23: 2028 | I23: 2029 | J23: 2030 | K23: 2031 | L23: 2032 | M23: 2033 | N23: 2034 | O23: 2035 | P23: 2036 | Q23: 2037 | R23: 2038 | S23: 2039 | T23: 2040 | U23: 2041 | V23: 2042 | W23: 2043 | X23: 2044 | Y23: 2045 | Z23: 2046 | AA23: 2047 | AB23: 2048 | AC23: 2049 | AD23: 2050 | AE23: No. of Evs | AF23: NPgY
A24: DFES 2023 - Consumer Transformation | B24: 61567.80829 | C24: 103414.8968 | D24: 187521.9828 | E24: 294028.9155 | F24: 445774.3524 | G24: 606739.6793 | H24: 779472.8861 | I24: 960188.9821 | J24: 1171666.729 | K24: 1381032.188 | L24: 1581864.214 | M24: 1772167.084 | N24: 1949394.532 | O24: 2101847.496 | P24: 2229504.906 | Q24: 2342848.169 | R24: 2442290.195 | S24: 2528519.162 | T24: 2601328.617 | U24: 2657277.66 | V24: 2702559.911 | W24: 2738551.731 | X24: 2766973.569 | Y24: 2789958.785 | Z24: 2804410.567 | AA24: 2816935.445 | AB24: 2828978.597 | AC24: 2840402.386 | AD24: 2852101.448 | AE24: No. of Evs | AF24: NPgY
A25: DFES 2023 - System Transformation | B25: 61567.80829 | C25: 103445.6012 | D25: 191767.1911 | E25: 300377.2488 | F25: 444785.3489 | G25: 598662.4208 | H25: 764238.5544 | I25: 938004.0313 | J25: 1117137.313 | K25: 1294424.926 | L25: 1464968.374 | M25: 1626634.298 | N25: 1777220.522 | O25: 1915901.231 | P25: 2031859.579 | Q25: 2135017.777 | R25: 2225995.187 | S25: 2305686.444 | T25: 2374366.818 | U25: 2428251.321 | V25: 2472914.209 | W25: 2509594.209 | X25: 2539736.498 | Y25: 2564579.8 | Z25: 2581027.304 | AA25: 2594790.906 | AB25: 2607178.148 | AC25: 2618326.666 | AD25: 2628580.55 | AE25: No. of Evs | AF25: NPgY
A26: DFES 2023 - Leading The Way | B26: 61567.80829 | C26: 100745.3337 | D26: 181900.1894 | E26: 283313.616 | F26: 424425.262 | G26: 574517.3432 | H26: 735620.3062 | I26: 903467.4342 | J26: 1098979.402 | K26: 1292671.22 | L26: 1477347.878 | M26: 1650669.565 | N26: 1810365.285 | O26: 1946318.792 | P26: 2058285.695 | Q26: 2155938.452 | R26: 2240171.697 | S26: 2311811.246 | T26: 2370650.646 | U26: 2417446.893 | V26: 2454402.165 | W26: 2482479.913 | X26: 2503400.588 | Y26: 2519159.913 | Z26: 2529826.704 | AA26: 2538497.774 | AB26: 2546343.027 | AC26: 2553913.008 | AD26: 2561620.625 | AE26: No. of Evs | AF26: NPgY
A27: CCC 2020 - Balanced Net Zero | B27: 86275.64587 | C27: 154420.8681 | D27: 252781.0238 | E27: 394710.2052 | F27: 538399.9004 | G27: 685247.3174 | H27: 837777.3388 | I27: 1001360.576 | J27: 1180346.351 | K27: 1360624.978 | L27: 1541875.468 | M27: 1719956.27 | N27: 1892687.091 | O27: 2057865.874 | P27: 2212778.43 | Q27: 2355583.883 | R27: 2482626.692 | S27: 2599432.348 | T27: 2701724.611 | U27: 2792127.724 | V27: 2874163.439 | W27: 2949413.856 | X27: 3021991.182 | Y27: 3065650.766 | Z27: 3104480.924 | AA27: 3140749.256 | AB27: 3175935.11 | AC27: 3211120.383 | AD27: 3236918.13 | AE27: No. of Evs | AF27: NPgY
A28: CT 2023 Policy Sensitivity | B28: 61567.80829 | C28: 103414.8968 | D28: 158924.5261 | E28: 229507.6777 | F28: 334876.699 | G28: 449391.2426 | H28: 602715.5889 | I28: 775542.6512 | J28: 952450.0752 | K28: 1130751.681 | L28: 1306093.066 | M28: 1476786.297 | N28: 1641499.349 | O28: 1807068.566 | P28: 1951976.111 | Q28: 2085970.695 | R28: 2208983.248 | S28: 2320530.286 | T28: 2419506.698 | U28: 2501837.39 | V28: 2572702.567 | W28: 2632931.06 | X28: 2683766.119 | Y28: 2726589.13 | Z28: 2758499.181 | AA28: 2785436.236 | AB28: 2808850.754 | AC28: 2829019.011 | AD28: 2847184.256 | AE28: No. of Evs | AF28: NPgY
A29: BV 2023 Policy Sensitivity | B29: 61567.80829 | C29: 103414.8968 | D29: 158924.5261 | E29: 229507.6777 | F29: 334876.699 | G29: 449391.2426 | H29: 602715.5889 | I29: 775542.6512 | J29: 952450.0752 | K29: 1130751.681 | L29: 1306093.066 | M29: 1476786.297 | N29: 1641499.349 | O29: 1807068.566 | P29: 1951976.111 | Q29: 2085970.695 | R29: 2208983.248 | S29: 2320530.286 | T29: 2419506.698 | U29: 2501837.39 | V29: 2572702.567 | W29: 2632931.06 | X29: 2683766.119 | Y29: 2726589.13 | Z29: 2758499.181 | AA29: 2785436.236 | AB29: 2808850.754 | AC29: 2829019.011 | AD29: 2847184.256 | AE29: No. of Evs | AF29: NPgY
A30: DFES 2023 - NPg Best View | B30: 61567.80829 | C30: 100745.3337 | D30: 181900.1894 | E30: 283313.616 | F30: 424425.262 | G30: 574517.3432 | H30: 735620.3062 | I30: 903467.4342 | J30: 1098979.402 | K30: 1292671.22 | L30: 1477347.878 | M30: 1650669.565 | N30: 1810365.285 | O30: 1946318.792 | P30: 2058285.695 | Q30: 2155938.452 | R30: 2240171.697 | S30: 2311811.246 | T30: 2370650.646 | U30: 2417446.893 | V30: 2454402.165 | W30: 2482479.913 | X30: 2503400.588 | Y30: 2519159.913 | Z30: 2529826.704 | AA30: 2538497.774 | AB30: 2546343.027 | AC30: 2553913.008 | AD30: 2561620.625 | AE30: No. of Evs | AF30: NPgY
A31: NPg Planning Scenario - DFES 2022 | B31: 71650.93577 | C31: 135110.044 | D31: 217682.6106 | E31: 322295.7943 | F31: 438586.3836 | G31: 573465.882 | H31: 727097.4846 | I31: 896343.3944 | J31: 1117359.021 | K31: 1330742.372 | L31: 1537648.991 | M31: 1736183.286 | N31: 1924305.8 | O31: 2100499.387 | P31: 2262409.855 | Q31: 2410291.6 | R31: 2543533.435 | S31: 2662377.717 | T31: 2766746.133 | U31: 2832354.497 | V31: 2885093.469 | W31: 2926035.609 | X31: 2957062.29 | Y31: 2979354.664 | Z31: 2994890.626 | AA31: 3005692.311 | AB31: 3012629.693 | AC31: 3017131.641 | AD31: 3019868.567 | AE31: No. of Evs | AF31: NPgY
A32: DFES 2023 - Falling Short | B32: 61567.80829 | C32: 94076.40962 | D32: 137964.1209 | E32: 195283.0996 | F32: 270574.6556 | G32: 358909.7399 | H32: 470632.494 | I32: 605515.7949 | J32: 739779.7337 | K32: 870565.8202 | L32: 995571.1938 | M32: 1113832.402 | N32: 1224179.54 | O32: 1326474.97 | P32: 1413667.389 | Q32: 1493221.01 | R32: 1565617.557 | S32: 1631132.303 | T32: 1689489.976 | U32: 1737524.948 | V32: 1778609.3 | W32: 1812811.851 | X32: 1841027.236 | Y32: 1863805.997 | Z32: 1879290.049 | AA32: 1891952.563 | AB32: 1902550.537 | AC32: 1911978.605 | AD32: 1920443.22 | AE32: No. of Evs | AF32: NPgY
B34: =B8-#REF! ->  | C34: =C8-B8 -> 62495 | D34: 134037 | E34: 172264 | F34: 242551 | G34: =G8-F8 -> 249115 | H34: =H8-G8 -> 267391 | I34: 278583 | J34: 324501
B35: =B9-#REF! ->  | C35: =C9-B9 -> 105160 | D35: 136656 | E35: 173247 | F35: 192333 | G35: =G9-F9 -> 223445 | H35: 254950 | I35: 281293 | J35: 367684

Sheet E_HGVs
A1: No. of Electric HGVs - NPg | B1: 2022 | C1: 2023 | D1: 2024 | E1: 2025 | F1: 2026 | G1: 2027 | H1: 2028 | I1: 2029 | J1: 2030 | K1: 2031 | L1: 2032 | M1: 2033 | N1: 2034 | O1: 2035 | P1: 2036 | Q1: 2037 | R1: 2038 | S1: 2039 | T1: 2040 | U1: 2041 | V1: 2042 | W1: 2043 | X1: 2044 | Y1: 2045 | Z1: 2046 | AA1: 2047 | AB1: 2048 | AC1: 2049 | AD1: 2050 | AE1: Parameter | AF1: Licence | AG1: CHOSEN
A2: DFES 2023 - Consumer Transformation | B2: 188.4723797 | C2: 445.002167 | D2: 912.2708597 | E2: 1624.782086 | F2: 2689.775123 | G2: 4217.400683 | H2: 6302.900132 | I2: 8994.162554 | J2: 12276.28973 | K2: 16079.36289 | L2: 20331.83501 | M2: 24972.56256 | N2: 29937.1417 | O2: 35115.33027 | P2: 40344.96228 | Q2: 45442.82399 | R2: 50243.08041 | S2: 54614.80231 | T2: 58469.89769 | U2: 61759.09138 | V2: 64456.61839 | W2: 66570.84968 | X2: 68147.5155 | Y2: 69266.63252 | Z2: 70028.06289 | AA2: 70531.3021 | AB2: 70860.51895 | AC2: 71078.39228 | AD2: 71227.78722 | AE2: No. of Electric HGVs | AF2: NPg
A3: DFES 2023 - System Transformation | B3: 188.4723797 | C3: 445.002167 | D3: 912.2708597 | E3: 1624.782086 | F3: 2689.775123 | G3: 4217.400683 | H3: 6301.453742 | I3: 8987.256521 | J3: 12254.18459 | K3: 16023.65928 | L3: 20196.89578 | M3: 24710.79825 | N3: 29491.42911 | O3: 34430.69902 | P3: 39380.73922 | Q3: 44178.41871 | R3: 48677.30051 | S3: 52762.3008 | T3: 56357.51879 | U3: 59422.43863 | V3: 61936.77924 | W3: 63907.5724 | X3: 65377.24372 | Y3: 66418.94654 | Z3: 67124.15092 | AA3: 67584.78844 | AB3: 67879.48602 | AC3: 68067.3884 | AD3: 68189.29242 | AE3: No. of Electric HGVs | AF3: NPg
A4: DFES 2023 - Leading The Way | B4: 188.4723797 | C4: 529.9195828 | D4: 1135.099327 | E4: 2069.082244 | F4: 3489.719114 | G4: 5518.512286 | H4: 8252.853962 | I4: 11731.28484 | J4: 15917.69649 | K4: 20690.4141 | L4: 25873.95764 | M4: 31280.00526 | N4: 36695.44185 | O4: 41932.7741 | P4: 46844.93594 | Q4: 51321.81222 | R4: 55281.78749 | S4: 58674.05401 | T4: 61486.91179 | U4: 63753.37252 | V4: 65519.63587 | W4: 66848.27764 | X4: 67814.51199 | Y4: 68494.09205 | Z4: 68958.45898 | AA4: 69270.16311 | AB4: 69479.40731 | AC4: 69622.62628 | AD4: 69724.57861 | AE4: No. of Electric HGVs | AF4: NPg
A5: CCC 2020 - Balanced Net Zero | AE5: No. of Electric HGVs | AF5: NPg
A6: CT 2023 Policy Sensitivity | AE6: No. of Electric HGVs | AF6: NPg
A7: BV 2023 Policy Sensitivity | AE7: No. of Electric HGVs | AF7: NPg
A8: DFES 2023 - NPg Best View | B8: 188.4723797 | C8: 529.9195828 | D8: 1135.099327 | E8: 2069.082244 | F8: 3489.719114 | G8: 5518.512286 | H8: 8252.853962 | I8: 11731.28484 | J8: 15917.69649 | K8: 20690.4141 | L8: 25873.95764 | M8: 31280.00526 | N8: 36695.44185 | O8: 41932.7741 | P8: 46844.93594 | Q8: 51321.81222 | R8: 55281.78749 | S8: 58674.05401 | T8: 61486.91179 | U8: 63753.37252 | V8: 65519.63587 | W8: 66848.27764 | X8: 67814.51199 | Y8: 68494.09205 | Z8: 68958.45898 | AA8: 69270.16311 | AB8: 69479.40731 | AC8: 69622.62628 | AD8: 69724.57861 | AE8: No. of Electric HGVs | AF8: NPg
A9: NPg ED2 Planning Scenario - needs updating to old | AE9: No. of Electric HGVs | AF9: NPg
A10: DFES 2023 - Falling Short | B10: 188.4723797 | C10: 401.0549619 | D10: 792.9454312 | E10: 1379.405371 | F10: 2240.769671 | G10: 3468.26083 | H10: 5153.274749 | I10: 7363.824259 | J10: 10117.88313 | K10: 13365.23995 | L10: 17004.40948 | M10: 20917.74701 | N10: 25011.74828 | O10: 29241.27111 | P10: 33600.86945 | Q10: 38077.09447 | R10: 42602.0561 | S10: 47048.26611 | T10: 51273.60533 | U10: 55155.62002 | V10: 58601.34496 | W10: 61551.48742 | X10: 63976.81842 | Y10: 65877.70321 | Z10: 67287.46221 | AA10: 68272.83299 | AB10: 68924.88569 | AC10: 69339.60968 | AD10: 69599.48262 | AE10: No. of Electric HGVs | AF10: NPg
A12: No. of Electric HGVs - NPgN | B12: 2022 | C12: 2023 | D12: 2024 | E12: 2025 | F12: 2026 | G12: 2027 | H12: 2028 | I12: 2029 | J12: 2030 | K12: 2031 | L12: 2032 | M12: 2033 | N12: 2034 | O12: 2035 | P12: 2036 | Q12: 2037 | R12: 2038 | S12: 2039 | T12: 2040 | U12: 2041 | V12: 2042 | W12: 2043 | X12: 2044 | Y12: 2045 | Z12: 2046 | AA12: 2047 | AB12: 2048 | AC12: 2049 | AD12: 2050 | AE12: No. of Electric HGVs
A13: DFES 2023 - Consumer Transformation | B13: 55.29184876 | C13: 130.5495933 | D13: 267.6314825 | E13: 476.6597924 | F13: 789.0951424 | G13: 1237.252276 | H13: 1849.072004 | I13: 2638.603473 | J13: 3601.476014 | K13: 4717.177672 | L13: 5964.718799 | M13: 7326.16182 | N13: 8782.612677 | O13: 10301.7298 | P13: 11835.93881 | Q13: 13331.49056 | R13: 14739.73432 | S13: 16022.25957 | T13: 17153.2229 | U13: 18118.16853 | V13: 18909.53784 | W13: 19529.78658 | X13: 19992.33058 | Y13: 20320.6442 | Z13: 20544.02384 | AA13: 20691.65834 | AB13: 20788.24018 | AC13: 20852.15734 | AD13: 20895.9851 | AE13: No. of Electric HGVs | AF13: NPgN
A14: DFES 2023 - System Transformation | B14: 55.29184876 | C14: 130.5495933 | D14: 267.6314825 | E14: 476.6597924 | F14: 789.0951424 | G14: 1237.252276 | H14: 1848.647679 | I14: 2636.577461 | J14: 3594.991064 | K14: 4700.835989 | L14: 5925.131888 | M14: 7249.36843 | N14: 8651.854666 | O14: 10100.8806 | P14: 11553.06619 | Q14: 12960.55395 | R14: 14280.3839 | S14: 15478.79408 | T14: 16533.51759 | U14: 17432.66836 | V14: 18170.29655 | W14: 18748.46507 | X14: 19179.62026 | Y14: 19485.22299 | Z14: 19692.1077 | AA14: 19827.24422 | AB14: 19913.69919 | AC14: 19968.82382 | AD14: 20004.58661 | AE14: No. of Electric HGVs | AF14: NPgN
A15: DFES 2023 - Leading The Way | B15: 55.29184876 | C15: 155.4616834 | D15: 333.0023232 | E15: 607.0034381 | F15: 1023.773466 | G15: 1618.957362 | H15: 2421.126925 | I15: 3441.588778 | J15: 4669.749849 | K15: 6069.914588 | L15: 7590.602692 | M15: 9176.566468 | N15: 10765.28467 | O15: 12301.75269 | P15: 13742.82596 | Q15: 15056.20019 | R15: 16217.93197 | S15: 17213.11592 | T15: 18038.31963 | U15: 18703.22769 | V15: 19221.39362 | W15: 19611.17519 | X15: 19894.63786 | Y15: 20094.0052 | Z15: 20230.23581 | AA15: 20321.67996 | AB15: 20383.06561 | AC15: 20425.08153 | AD15: 20454.99113 | AE15: No. of Electric HGVs | AF15: NPgN
A16: CCC 2020 - Balanced Net Zero | AE16: No. of Electric HGVs | AF16: NPgN
A17: CT 2023 Policy Sensitivity | AE17: No. of Electric HGVs | AF17: NPgN
A18: BV 2023 Policy Sensitivity | AE18: No. of Electric HGVs | AF18: NPgN
A19: DFES 2023 - NPg Best View | B19: 55.29184876 | C19: 155.4616834 | D19: 333.0023232 | E19: 607.0034381 | F19: 1023.773466 | G19: 1618.957362 | H19: 2421.126925 | I19: 3441.588778 | J19: 4669.749849 | K19: 6069.914588 | L19: 7590.602692 | M19: 9176.566468 | N19: 10765.28467 | O19: 12301.75269 | P19: 13742.82596 | Q19: 15056.20019 | R19: 16217.93197 | S19: 17213.11592 | T19: 18038.31963 | U19: 18703.22769 | V19: 19221.39362 | W19: 19611.17519 | X19: 19894.63786 | Y19: 20094.0052 | Z19: 20230.23581 | AA19: 20321.67996 | AB19: 20383.06561 | AC19: 20425.08153 | AD19: 20454.99113 | AE19: No. of Electric HGVs | AF19: NPgN
A20: NPg ED2 Planning Scenario - needs updating to old | AE20: No. of Electric HGVs | AF20: NPgN
A21: DFES 2023 - Falling Short | B21: 55.29184876 | C21: 117.6568701 | D21: 232.6251673 | E21: 404.6740071 | F21: 657.3711114 | G21: 1017.478283 | H21: 1511.808194 | I21: 2160.313664 | J21: 2968.267631 | K21: 3920.939646 | L21: 4988.557149 | M21: 6136.606891 | N21: 7337.657674 | O21: 8578.466203 | P21: 9857.434785 | Q21: 11170.61795 | R21: 12498.09891 | S21: 13802.47662 | T21: 15042.05781 | U21: 16180.91842 | V21: 17191.78538 | W21: 18057.26409 | X21: 18768.77967 | Y21: 19326.43928 | Z21: 19740.01808 | AA21: 20029.09478 | AB21: 20220.38646 | AC21: 20342.05339 | AD21: 20418.29191 | AE21: No. of Electric HGVs | AF21: NPgN
A23: No. of Electric HGVs - NPgY | B23: 2022 | C23: 2023 | D23: 2024 | E23: 2025 | F23: 2026 | G23: 2027 | H23: 2028 | I23: 2029 | J23: 2030 | K23: 2031 | L23: 2032 | M23: 2033 | N23: 2034 | O23: 2035 | P23: 2036 | Q23: 2037 | R23: 2038 | S23: 2039 | T23: 2040 | U23: 2041 | V23: 2042 | W23: 2043 | X23: 2044 | Y23: 2045 | Z23: 2046 | AA23: 2047 | AB23: 2048 | AC23: 2049 | AD23: 2050 | AE23: No. of Electric HGVs | AF23: NPgY
A24: DFES 2023 - Consumer Transformation | B24: 133.180531 | C24: 314.4525738 | D24: 644.6393772 | E24: 1148.122294 | F24: 1900.679981 | G24: 2980.148407 | H24: 4453.828128 | I24: 6355.559081 | J24: 8674.813712 | K24: 11362.18522 | L24: 14367.11621 | M24: 17646.40074 | N24: 21154.52903 | O24: 24813.60047 | P24: 28509.02348 | Q24: 32111.33343 | R24: 35503.34609 | S24: 38592.54274 | T24: 41316.67479 | U24: 43640.92284 | V24: 45547.08056 | W24: 47041.0631 | X24: 48155.18492 | Y24: 48945.98832 | Z24: 49484.03905 | AA24: 49839.64375 | AB24: 50072.27877 | AC24: 50226.23494 | AD24: 50331.80212 | AE24: No. of Electric HGVs | AF24: NPgY
A25: DFES 2023 - System Transformation | B25: 133.180531 | C25: 314.4525738 | D25: 644.6393772 | E25: 1148.122294 | F25: 1900.679981 | G25: 2980.148407 | H25: 4452.806063 | I25: 6350.67906 | J25: 8659.193523 | K25: 11322.82329 | L25: 14271.7639 | M25: 17461.42982 | N25: 20839.57444 | O25: 24329.81843 | P25: 27827.67304 | Q25: 31217.86476 | R25: 34396.91661 | S25: 37283.50671 | T25: 39824.0012 | U25: 41989.77028 | V25: 43766.4827 | W25: 45159.10733 | X25: 46197.62347 | Y25: 46933.72354 | Z25: 47432.04321 | AA25: 47757.54423 | AB25: 47965.78683 | AC25: 48098.56459 | AD25: 48184.70581 | AE25: No. of Electric HGVs | AF25: NPgY
A26: DFES 2023 - Leading The Way | B26: 133.180531 | C26: 374.4578994 | D26: 802.0970037 | E26: 1462.078805 | F26: 2465.945648 | G26: 3899.554924 | H26: 5831.727037 | I26: 8289.696061 | J26: 11247.94664 | K26: 14620.49951 | L26: 18283.35495 | M26: 22103.43879 | N26: 25930.15717 | O26: 29631.02141 | P26: 33102.10998 | Q26: 36265.61203 | R26: 39063.85552 | S26: 41460.93809 | T26: 43448.59215 | U26: 45050.14483 | V26: 46298.24225 | W26: 47237.10245 | X26: 47919.87413 | Y26: 48400.08685 | Z26: 48728.22318 | AA26: 48948.48315 | AB26: 49096.3417 | AC26: 49197.54475 | AD26: 49269.58748 | AE26: No. of Electric HGVs | AF26: NPgY
A27: CCC 2020 - Balanced Net Zero | AE27: No. of Electric HGVs | AF27: NPgY
A28: CT 2023 Policy Sensitivity | AE28: No. of Electric HGVs | AF28: NPgY
A29: BV 2023 Policy Sensitivity | AE29: No. of Electric HGVs | AF29: NPgY
A30: DFES 2023 - NPg Best View | B30: 133.180531 | C30: 374.4578994 | D30: 802.0970037 | E30: 1462.078805 | F30: 2465.945648 | G30: 3899.554924 | H30: 5831.727037 | I30: 8289.696061 | J30: 11247.94664 | K30: 14620.49951 | L30: 18283.35495 | M30: 22103.43879 | N30: 25930.15717 | O30: 29631.02141 | P30: 33102.10998 | Q30: 36265.61203 | R30: 39063.85552 | S30: 41460.93809 | T30: 43448.59215 | U30: 45050.14483 | V30: 46298.24225 | W30: 47237.10245 | X30: 47919.87413 | Y30: 48400.08685 | Z30: 48728.22318 | AA30: 48948.48315 | AB30: 49096.3417 | AC30: 49197.54475 | AD30: 49269.58748 | AE30: No. of Electric HGVs | AF30: NPgY
A31: NPg ED2 Planning Scenario - needs updating to old | AE31: No. of Electric HGVs | AF31: NPgY
A32: DFES 2023 - Falling Short | B32: 133.180531 | C32: 283.3980918 | D32: 560.3202639 | E32: 974.7313636 | F32: 1583.398559 | G32: 2450.782547 | H32: 3641.466555 | I32: 5203.510595 | J32: 7149.615503 | K32: 9444.300302 | L32: 12015.85233 | M32: 14781.14012 | N32: 17674.09061 | O32: 20662.8049 | P32: 23743.43466 | Q32: 26906.47652 | R32: 30103.95719 | S32: 33245.78949 | T32: 36231.54752 | U32: 38974.7016 | V32: 41409.55958 | W32: 43494.22334 | X32: 45208.03875 | Y32: 46551.26393 | Z32: 47547.44412 | AA32: 48243.73821 | AB32: 48704.49923 | AC32: 48997.55629 | AD32: 49181.19071 | AE32: No. of Electric HGVs | AF32: NPgY

Sheet E_Buses
A1: No. of Electric Buses - NPg | B1: 2022 | C1: 2023 | D1: 2024 | E1: 2025 | F1: 2026 | G1: 2027 | H1: 2028 | I1: 2029 | J1: 2030 | K1: 2031 | L1: 2032 | M1: 2033 | N1: 2034 | O1: 2035 | P1: 2036 | Q1: 2037 | R1: 2038 | S1: 2039 | T1: 2040 | U1: 2041 | V1: 2042 | W1: 2043 | X1: 2044 | Y1: 2045 | Z1: 2046 | AA1: 2047 | AB1: 2048 | AC1: 2049 | AD1: 2050 | AE1: Parameter | AF1: Licence | AG1: CHOSEN
A2: DFES 2023 - Consumer Transformation | B2: 485.238277 | C2: 656.8095048 | D2: 941.2373194 | E2: 1302.456807 | F2: 1744.373167 | G2: 2264.96805 | H2: 2858.045479 | I2: 3525.303892 | J2: 4260.240243 | K2: 5056.261718 | L2: 5903.323548 | M2: 6789.256226 | N2: 7693.074197 | O2: 8591.082621 | P2: 9461.18179 | Q2: 10286.12731 | R2: 11053.40698 | S2: 11756.574 | T2: 12391.18968 | U2: 12953.60936 | V2: 13443.3542 | W2: 13862.16506 | X2: 14213.54188 | Y2: 14502.15645 | Z2: 14733.26679 | AA2: 14912.71055 | AB2: 15047.27114 | AC2: 15144.09993 | AD2: 15210.62926 | AE2: No. of Electric Buses | AF2: NPg
A3: DFES 2023 - System Transformation | B3: 485.238277 | C3: 656.8095048 | D3: 936.519936 | E3: 1285.541696 | F3: 1704.718283 | G3: 2189.140219 | H3: 2730.814885 | I3: 3339.998758 | J3: 4010.125657 | K3: 4733.813865 | L3: 5499.788429 | M3: 6299.759256 | N3: 7114.728079 | O3: 7923.256377 | P3: 8705.327095 | Q3: 9445.417169 | R3: 10132.39211 | S3: 10760.93009 | T3: 11327.55264 | U3: 11829.47427 | V3: 12266.83982 | W3: 12641.4917 | X3: 12956.63882 | Y3: 13216.23681 | Z3: 13424.43451 | AA3: 13586.015 | AB3: 13707.26177 | AC3: 13794.69946 | AD3: 13854.92351 | AE3: No. of Electric Buses | AF3: NPg
A4: DFES 2023 - Leading The Way | B4: 485.238277 | C4: 735.700351 | D4: 1109.761207 | E4: 1566.48474 | F4: 2104.708183 | G4: 2719.599572 | H4: 3404.292338 | I4: 4166.706047 | J4: 4995.292478 | K4: 5870.509476 | L4: 6766.393195 | M4: 7665.482039 | N4: 8546.009631 | O4: 9389.924824 | P4: 10182.50029 | Q4: 10912.77519 | R4: 11572.72659 | S4: 12158.88004 | T4: 12668.72884 | U4: 13102.84163 | V4: 13468.45642 | W4: 13769.62951 | X4: 14011.59736 | Y4: 14200.29009 | Z4: 14342.015 | AA4: 14443.88526 | AB4: 14514.33987 | AC4: 14561.40965 | AD4: 14591.85359 | AE4: No. of Electric Buses | AF4: NPg
A5: CCC 2020 - Balanced Net Zero | AE5: No. of Electric Buses | AF5: NPg
A6: CT 2023 Policy Sensitivity | AE6: No. of Electric Buses | AF6: NPg
A7: BV 2023 Policy Sensitivity | AE7: No. of Electric Buses | AF7: NPg
A8: DFES 2023 - NPg Best View | B8: 485.238277 | C8: 735.700351 | D8: 1109.761207 | E8: 1566.48474 | F8: 2104.708183 | G8: 2719.599572 | H8: 3404.292338 | I8: 4166.706047 | J8: 4995.292478 | K8: 5870.509476 | L8: 6766.393195 | M8: 7665.482039 | N8: 8546.009631 | O8: 9389.924824 | P8: 10182.50029 | Q8: 10912.77519 | R8: 11572.72659 | S8: 12158.88004 | T8: 12668.72884 | U8: 13102.84163 | V8: 13468.45642 | W8: 13769.62951 | X8: 14011.59736 | Y8: 14200.29009 | Z8: 14342.015 | AA8: 14443.88526 | AB8: 14514.33987 | AC8: 14561.40965 | AD8: 14591.85359 | AE8: No. of Electric Buses | AF8: NPg
A9: NPg ED2 Planning Scenario - needs updating to old | AE9: No. of Electric Buses | AF9: NPg
A10: DFES 2023 - Falling Short | B10: 485.238277 | C10: 595.1477715 | D10: 802.1861527 | E10: 1071.303467 | F10: 1409.228595 | G10: 1817.308643 | H10: 2291.715323 | I10: 2836.668139 | J10: 3443.053771 | K10: 4101.710518 | L10: 4805.34378 | M10: 5551.729768 | N10: 6335.651293 | O10: 7145.249324 | P10: 7961.597492 | Q10: 8764.129093 | R10: 9534.960241 | S10: 10262.98844 | T10: 10940.60301 | U10: 11559.99279 | V10: 12114.09518 | W10: 12601.96969 | X10: 13024.79474 | Y10: 13385.30027 | Z10: 13687.11169 | AA10: 13934.63002 | AB10: 14133.19669 | AC10: 14288.08953 | AD10: 14404.59787 | AE10: No. of Electric Buses | AF10: NPg
A12: No. of Electric Buses - NPgN | B12: 2022 | C12: 2023 | D12: 2024 | E12: 2025 | F12: 2026 | G12: 2027 | H12: 2028 | I12: 2029 | J12: 2030 | K12: 2031 | L12: 2032 | M12: 2033 | N12: 2034 | O12: 2035 | P12: 2036 | Q12: 2037 | R12: 2038 | S12: 2039 | T12: 2040 | U12: 2041 | V12: 2042 | W12: 2043 | X12: 2044 | Y12: 2045 | Z12: 2046 | AA12: 2047 | AB12: 2048 | AC12: 2049 | AD12: 2050 | AE12: No. of Electric Buses
A13: DFES 2023 - Consumer Transformation | B13: 189.3001422 | C13: 256.233151 | D13: 367.1935354 | E13: 508.1117266 | F13: 680.5112131 | G13: 883.6046007 | H13: 1114.974727 | I13: 1375.284185 | J13: 1661.996018 | K13: 1972.538251 | L13: 2302.992242 | M13: 2648.610446 | N13: 3001.206024 | O13: 3351.535193 | P13: 3690.976462 | Q13: 4012.802485 | R13: 4312.132022 | S13: 4586.450072 | T13: 4834.025015 | U13: 5053.435004 | V13: 5244.493239 | W13: 5407.878855 | X13: 5544.957247 | Y13: 5657.550959 | Z13: 5747.711241 | AA13: 5817.715464 | AB13: 5870.209962 | AC13: 5907.984607 | AD13: 5933.938891 | AE13: No. of Electric Buses | AF13: NPgN
A14: DFES 2023 - System Transformation | B14: 189.3001422 | C14: 256.233151 | D14: 365.3531996 | E14: 501.512839 | F14: 665.0411327 | G14: 854.0228057 | H14: 1065.339794 | I14: 1302.993333 | J14: 1564.421838 | K14: 1846.745569 | L14: 2145.565965 | M14: 2457.648911 | N14: 2775.582845 | O14: 3091.004214 | P14: 3396.104008 | Q14: 3684.826401 | R14: 3952.827627 | S14: 4198.031552 | T14: 4419.081157 | U14: 4614.889772 | V14: 4785.513906 | W14: 4931.672315 | X14: 5054.616852 | Y14: 5155.890674 | Z14: 5237.112328 | AA14: 5300.147771 | AB14: 5347.448306 | AC14: 5381.559317 | AD14: 5405.053797 | AE14: No. of Electric Buses | AF14: NPgN
A15: DFES 2023 - Leading The Way | B15: 189.3001422 | C15: 287.009883 | D15: 432.937722 | E15: 611.113752 | F15: 821.0843566 | G15: 1060.9645 | H15: 1328.07541 | I15: 1625.506653 | J15: 1948.753059 | K15: 2290.190885 | L15: 2639.691168 | M15: 2990.441828 | N15: 3333.951412 | O15: 3663.177843 | P15: 3972.375727 | Q15: 4257.269045 | R15: 4514.727906 | S15: 4743.396862 | T15: 4942.298011 | U15: 5111.653186 | V15: 5254.286062 | W15: 5371.779079 | X15: 5466.175071 | Y15: 5539.787486 | Z15: 5595.07691 | AA15: 5634.818324 | AB15: 5662.303928 | AC15: 5680.666693 | AD15: 5692.543419 | AE15: No. of Electric Buses | AF15: NPgN
A16: CCC 2020 - Balanced Net Zero | AE16: No. of Electric Buses | AF16: NPgN
A17: CT 2023 Policy Sensitivity | AE17: No. of Electric Buses | AF17: NPgN
A18: BV 2023 Policy Sensitivity | AE18: No. of Electric Buses | AF18: NPgN
A19: DFES 2023 - NPg Best View | B19: 189.3001422 | C19: 287.009883 | D19: 432.937722 | E19: 611.113752 | F19: 821.0843566 | G19: 1060.9645 | H19: 1328.07541 | I19: 1625.506653 | J19: 1948.753059 | K19: 2290.190885 | L19: 2639.691168 | M19: 2990.441828 | N19: 3333.951412 | O19: 3663.177843 | P19: 3972.375727 | Q19: 4257.269045 | R19: 4514.727906 | S19: 4743.396862 | T19: 4942.298011 | U19: 5111.653186 | V19: 5254.286062 | W19: 5371.779079 | X19: 5466.175071 | Y19: 5539.787486 | Z19: 5595.07691 | AA19: 5634.818324 | AB19: 5662.303928 | AC19: 5680.666693 | AD19: 5692.543419 | AE19: No. of Electric Buses | AF19: NPgN
A20: NPg ED2 Planning Scenario - needs updating to old | AE20: No. of Electric Buses | AF20: NPgN
A21: DFES 2023 - Falling Short | B21: 189.3001422 | C21: 232.1778045 | D21: 312.9471849 | E21: 417.9346692 | F21: 549.7653134 | G21: 708.9646486 | H21: 894.039191 | I21: 1106.635044 | J21: 1343.19694 | K21: 1600.150733 | L21: 1874.65067 | M21: 2165.829211 | N21: 2471.651038 | O21: 2787.489729 | P21: 3105.96177 | Q21: 3419.043721 | R21: 3719.758757 | S21: 4003.775596 | T21: 4268.125174 | U21: 4509.76022 | V21: 4725.925489 | W21: 4916.254071 | X21: 5081.205695 | Y21: 5221.845361 | Z21: 5339.587401 | AA21: 5436.148732 | AB21: 5513.613148 | AC21: 5574.039619 | AD21: 5619.491608 | AE21: No. of Electric Buses | AF21: NPgN
A23: No. of Electric Buses - NPgY | B23: 2022 | C23: 2023 | D23: 2024 | E23: 2025 | F23: 2026 | G23: 2027 | H23: 2028 | I23: 2029 | J23: 2030 | K23: 2031 | L23: 2032 | M23: 2033 | N23: 2034 | O23: 2035 | P23: 2036 | Q23: 2037 | R23: 2038 | S23: 2039 | T23: 2040 | U23: 2041 | V23: 2042 | W23: 2043 | X23: 2044 | Y23: 2045 | Z23: 2046 | AA23: 2047 | AB23: 2048 | AC23: 2049 | AD23: 2050 | AE23: No. of Electric Buses | AF23: NPgY
A24: DFES 2023 - Consumer Transformation | B24: 295.9381348 | C24: 400.5763538 | D24: 574.043784 | E24: 794.34508 | F24: 1063.861953 | G24: 1381.363449 | H24: 1743.070751 | I24: 2150.019707 | J24: 2598.244225 | K24: 3083.723466 | L24: 3600.331306 | M24: 4140.64578 | N24: 4691.868174 | O24: 5239.547429 | P24: 5770.205329 | Q24: 6273.32483 | R24: 6741.274953 | S24: 7170.123928 | T24: 7557.164667 | U24: 7900.174355 | V24: 8198.860964 | W24: 8454.286206 | X24: 8668.584637 | Y24: 8844.605495 | Z24: 8985.55555 | AA24: 9094.995083 | AB24: 9177.061181 | AC24: 9236.115325 | AD24: 9276.690373 | AE24: No. of Electric Buses | AF24: NPgY
A25: DFES 2023 - System Transformation | B25: 295.9381348 | C25: 400.5763538 | D25: 571.1667363 | E25: 784.0288568 | F25: 1039.67715 | G25: 1335.117413 | H25: 1665.475091 | I25: 2037.005425 | J25: 2445.703819 | K25: 2887.068296 | L25: 3354.222464 | M25: 3842.110345 | N25: 4339.145234 | O25: 4832.252163 | P25: 5309.223087 | Q25: 5760.590769 | R25: 6179.56448 | S25: 6562.898541 | T25: 6908.471486 | U25: 7214.584496 | V25: 7481.325912 | W25: 7709.819385 | X25: 7902.02197 | Y25: 8060.346132 | Z25: 8187.322184 | AA25: 8285.86723 | AB25: 8359.813462 | AC25: 8413.140147 | AD25: 8449.869715 | AE25: No. of Electric Buses | AF25: NPgY
A26: DFES 2023 - Leading The Way | B26: 295.9381348 | C26: 448.6904681 | D26: 676.8234847 | E26: 955.3709879 | F26: 1283.623827 | G26: 1658.635072 | H26: 2076.216928 | I26: 2541.199394 | J26: 3046.539419 | K26: 3580.318592 | L26: 4126.702027 | M26: 4675.04021 | N26: 5212.058219 | O26: 5726.746981 | P26: 6210.124563 | Q26: 6655.506146 | R26: 7057.998688 | S26: 7415.483174 | T26: 7726.430828 | U26: 7991.188445 | V26: 8214.170356 | W26: 8397.85043 | X26: 8545.422289 | Y26: 8660.502608 | Z26: 8746.938089 | AA26: 8809.066939 | AB26: 8852.035941 | AC26: 8880.742959 | AD26: 8899.310172 | AE26: No. of Electric Buses | AF26: NPgY
A27: CCC 2020 - Balanced Net Zero | AE27: No. of Electric Buses | AF27: NPgY
A28: CT 2023 Policy Sensitivity | AE28: No. of Electric Buses | AF28: NPgY
A29: BV 2023 Policy Sensitivity | AE29: No. of Electric Buses | AF29: NPgY
A30: DFES 2023 - NPg Best View | B30: 295.9381348 | C30: 448.6904681 | D30: 676.8234847 | E30: 955.3709879 | F30: 1283.623827 | G30: 1658.635072 | H30: 2076.216928 | I30: 2541.199394 | J30: 3046.539419 | K30: 3580.318592 | L30: 4126.702027 | M30: 4675.04021 | N30: 5212.058219 | O30: 5726.746981 | P30: 6210.124563 | Q30: 6655.506146 | R30: 7057.998688 | S30: 7415.483174 | T30: 7726.430828 | U30: 7991.188445 | V30: 8214.170356 | W30: 8397.85043 | X30: 8545.422289 | Y30: 8660.502608 | Z30: 8746.938089 | AA30: 8809.066939 | AB30: 8852.035941 | AC30: 8880.742959 | AD30: 8899.310172 | AE30: No. of Electric Buses | AF30: NPgY
A31: NPg ED2 Planning Scenario - needs updating to old | AE31: No. of Electric Buses | AF31: NPgY
A32: DFES 2023 - Falling Short | B32: 295.9381348 | C32: 362.969967 | D32: 489.2389677 | E32: 653.3687983 | F32: 859.4632813 | G32: 1108.343994 | H32: 1397.676132 | I32: 1730.033094 | J32: 2099.856832 | K32: 2501.559785 | L32: 2930.69311 | M32: 3385.900557 | N32: 3864.000255 | O32: 4357.759595 | P32: 4855.635722 | Q32: 5345.085373 | R32: 5815.201485 | S32: 6259.212844 | T32: 6672.477833 | U32: 7050.232567 | V32: 7388.169695 | W32: 7685.715618 | X32: 7943.589042 | Y32: 8163.454912 | Z32: 8347.524291 | AA32: 8498.481284 | AB32: 8619.583543 | AC32: 8714.049913 | AD32: 8785.106261 | AE32: No. of Electric Buses | AF32: NPgY

Sheet E_Buses&HGVs
A1: No. of Other Electric Vehicles - NPg | B1: 2022 | C1: 2023 | D1: 2024 | E1: 2025 | F1: 2026 | G1: 2027 | H1: 2028 | I1: 2029 | J1: 2030 | K1: 2031 | L1: 2032 | M1: 2033 | N1: 2034 | O1: 2035 | P1: 2036 | Q1: 2037 | R1: 2038 | S1: 2039 | T1: 2040 | U1: 2041 | V1: 2042 | W1: 2043 | X1: 2044 | Y1: 2045 | Z1: 2046 | AA1: 2047 | AB1: 2048 | AC1: 2049 | AD1: 2050 | AE1: Parameter | AF1: Licence | AG1: CHOSEN
A2: DFES 2023 - Consumer Transformation | B2: 673.7106567 | C2: 1101.811672 | D2: 1853.508179 | E2: 2927.238893 | F2: 4434.14829 | G2: 6482.368733 | H2: 9160.945611 | I2: 12519.46645 | J2: 16536.52997 | K2: 21135.62461 | L2: 26235.15856 | M2: 31761.81879 | N2: 37630.2159 | O2: 43706.4129 | P2: 49806.14407 | Q2: 55728.9513 | R2: 61296.48738 | S2: 66371.37631 | T2: 70861.08737 | U2: 74712.70073 | V2: 77899.9726 | W2: 80433.01474 | X2: 82361.05739 | Y2: 83768.78897 | Z2: 84761.32968 | AA2: 85444.01265 | AB2: 85907.79009 | AC2: 86222.49221 | AD2: 86438.41649 | AE2: No. of Other Electric Vehicles | AF2: NPg
A3: DFES 2023 - System Transformation | B3: 673.7106567 | C3: 1101.811672 | D3: 1848.790796 | E3: 2910.323782 | F3: 4394.493406 | G3: 6406.540902 | H3: 9032.268627 | I3: 12327.25528 | J3: 16264.31024 | K3: 20757.47315 | L3: 25696.68421 | M3: 31010.55751 | N3: 36606.15719 | O3: 42353.9554 | P3: 48086.06632 | Q3: 53623.83587 | R3: 58809.69262 | S3: 63523.23089 | T3: 67685.07143 | U3: 71251.9129 | V3: 74203.61906 | W3: 76549.0641 | X3: 78333.88255 | Y3: 79635.18334 | Z3: 80548.58543 | AA3: 81170.80345 | AB3: 81586.74779 | AC3: 81862.08787 | AD3: 82044.21593 | AE3: No. of Other Electric Vehicles | AF3: NPg
A4: DFES 2023 - Leading The Way | B4: 673.7106567 | C4: 1265.619934 | D4: 2244.860534 | E4: 3635.566983 | F4: 5594.427297 | G4: 8238.111858 | H4: 11657.1463 | I4: 15897.99089 | J4: 20912.98896 | K4: 26560.92357 | L4: 32640.35084 | M4: 38945.48729 | N4: 45241.45148 | O4: 51322.69892 | P4: 57027.43623 | Q4: 62234.58742 | R4: 66854.51409 | S4: 70832.93404 | T4: 74155.64063 | U4: 76856.21415 | V4: 78988.09229 | W4: 80617.90714 | X4: 81826.10935 | Y4: 82694.38214 | Z4: 83300.47398 | AA4: 83714.04838 | AB4: 83993.74718 | AC4: 84184.03593 | AD4: 84316.4322 | AE4: No. of Other Electric Vehicles | AF4: NPg
A5: CCC 2020 - Balanced Net Zero | AE5: No. of Other Electric Vehicles | AF5: NPg
A6: CT 2023 Policy Sensitivity | AE6: No. of Other Electric Vehicles | AF6: NPg
A7: BV 2023 Policy Sensitivity | AE7: No. of Other Electric Vehicles | AF7: NPg
A8: DFES 2023 - NPg Best View | B8: 673.7106567 | C8: 1265.619934 | D8: 2244.860534 | E8: 3635.566983 | F8: 5594.427297 | G8: 8238.111858 | H8: 11657.1463 | I8: 15897.99089 | J8: 20912.98896 | K8: 26560.92357 | L8: 32640.35084 | M8: 38945.48729 | N8: 45241.45148 | O8: 51322.69892 | P8: 57027.43623 | Q8: 62234.58742 | R8: 66854.51409 | S8: 70832.93404 | T8: 74155.64063 | U8: 76856.21415 | V8: 78988.09229 | W8: 80617.90714 | X8: 81826.10935 | Y8: 82694.38214 | Z8: 83300.47398 | AA8: 83714.04838 | AB8: 83993.74718 | AC8: 84184.03593 | AD8: 84316.4322 | AE8: No. of Other Electric Vehicles | AF8: NPg
A9: NPg ED2 Planning Scenario - needs updating to old | AE9: No. of Other Electric Vehicles | AF9: NPg
A10: DFES 2023 - Falling Short | B10: 673.7106567 | C10: 996.2027334 | D10: 1595.131584 | E10: 2450.708838 | F10: 3649.998265 | G10: 5285.569473 | H10: 7444.990072 | I10: 10200.4924 | J10: 13560.9369 | K10: 17466.95047 | L10: 21809.75326 | M10: 26469.47678 | N10: 31347.39958 | O10: 36386.52043 | P10: 41562.46694 | Q10: 46841.22356 | R10: 52137.01634 | S10: 57311.25455 | T10: 62214.20834 | U10: 66715.61281 | V10: 70715.44014 | W10: 74153.45711 | X10: 77001.61316 | Y10: 79263.00349 | Z10: 80974.5739 | AA10: 82207.463 | AB10: 83058.08238 | AC10: 83627.69921 | AD10: 84004.08049 | AE10: No. of Other Electric Vehicles | AF10: NPg
A12: No. of Other Electric Vehicles - NPgN | B12: 2022 | C12: 2023 | D12: 2024 | E12: 2025 | F12: 2026 | G12: 2027 | H12: 2028 | I12: 2029 | J12: 2030 | K12: 2031 | L12: 2032 | M12: 2033 | N12: 2034 | O12: 2035 | P12: 2036 | Q12: 2037 | R12: 2038 | S12: 2039 | T12: 2040 | U12: 2041 | V12: 2042 | W12: 2043 | X12: 2044 | Y12: 2045 | Z12: 2046 | AA12: 2047 | AB12: 2048 | AC12: 2049 | AD12: 2050 | AE12: No. of Other Electric Vehicles
A13: DFES 2023 - Consumer Transformation | B13: 244.591991 | C13: 386.7827442 | D13: 634.8250179 | E13: 984.771519 | F13: 1469.606356 | G13: 2120.856876 | H13: 2964.046732 | I13: 4013.887658 | J13: 5263.472032 | K13: 6689.715923 | L13: 8267.71104 | M13: 9974.772266 | N13: 11783.8187 | O13: 13653.26499 | P13: 15526.91527 | Q13: 17344.29305 | R13: 19051.86634 | S13: 20608.70964 | T13: 21987.24792 | U13: 23171.60354 | V13: 24154.03108 | W13: 24937.66544 | X13: 25537.28783 | Y13: 25978.19516 | Z13: 26291.73508 | AA13: 26509.37381 | AB13: 26658.45014 | AC13: 26760.14195 | AD13: 26829.92399 | AE13: No. of Other Electric Vehicles | AF13: NPgN
A14: DFES 2023 - System Transformation | B14: 244.591991 | C14: 386.7827442 | D14: 632.9846822 | E14: 978.1726313 | F14: 1454.136275 | G14: 2091.275081 | H14: 2913.987473 | I14: 3939.570794 | J14: 5159.412902 | K14: 6547.581558 | L14: 8070.697853 | M14: 9707.017342 | N14: 11427.43751 | O14: 13191.88481 | P14: 14949.17019 | Q14: 16645.38035 | R14: 18233.21153 | S14: 19676.82563 | T14: 20952.59875 | U14: 22047.55813 | V14: 22955.81045 | W14: 23680.13739 | X14: 24234.23711 | Y14: 24641.11367 | Z14: 24929.22003 | AA14: 25127.39199 | AB14: 25261.14749 | AC14: 25350.38314 | AD14: 25409.64041 | AE14: No. of Other Electric Vehicles | AF14: NPgN
A15: DFES 2023 - Leading The Way | B15: 244.591991 | C15: 442.4715664 | D15: 765.9400453 | E15: 1218.11719 | F15: 1844.857823 | G15: 2679.921862 | H15: 3749.202335 | I15: 5067.095431 | J15: 6618.502908 | K15: 8360.105472 | L15: 10230.29386 | M15: 12167.0083 | N15: 14099.23609 | O15: 15964.93053 | P15: 17715.20169 | Q15: 19313.46924 | R15: 20732.65988 | S15: 21956.51278 | T15: 22980.61764 | U15: 23814.88088 | V15: 24475.67968 | W15: 24982.95427 | X15: 25360.81293 | Y15: 25633.79269 | Z15: 25825.31272 | AA15: 25956.49829 | AB15: 26045.36953 | AC15: 26105.74823 | AD15: 26147.53455 | AE15: No. of Other Electric Vehicles | AF15: NPgN
A16: CCC 2020 - Balanced Net Zero | AE16: No. of Other Electric Vehicles | AF16: NPgN
A17: CT 2023 Policy Sensitivity | AE17: No. of Other Electric Vehicles | AF17: NPgN
A18: BV 2023 Policy Sensitivity | AE18: No. of Other Electric Vehicles | AF18: NPgN
A19: DFES 2023 - NPg Best View | B19: 244.591991 | C19: 442.4715664 | D19: 765.9400453 | E19: 1218.11719 | F19: 1844.857823 | G19: 2679.921862 | H19: 3749.202335 | I19: 5067.095431 | J19: 6618.502908 | K19: 8360.105472 | L19: 10230.29386 | M19: 12167.0083 | N19: 14099.23609 | O19: 15964.93053 | P19: 17715.20169 | Q19: 19313.46924 | R19: 20732.65988 | S19: 21956.51278 | T19: 22980.61764 | U19: 23814.88088 | V19: 24475.67968 | W19: 24982.95427 | X19: 25360.81293 | Y19: 25633.79269 | Z19: 25825.31272 | AA19: 25956.49829 | AB19: 26045.36953 | AC19: 26105.74823 | AD19: 26147.53455 | AE19: No. of Other Electric Vehicles | AF19: NPgN
A20: NPg ED2 Planning Scenario - needs updating to old | AE20: No. of Other Electric Vehicles | AF20: NPgN
A21: DFES 2023 - Falling Short | B21: 244.591991 | C21: 349.8346746 | D21: 545.5723522 | E21: 822.6086763 | F21: 1207.136425 | G21: 1726.442931 | H21: 2405.847385 | I21: 3266.948708 | J21: 4311.46457 | K21: 5521.090379 | L21: 6863.207819 | M21: 8302.436103 | N21: 9809.308712 | O21: 11365.95593 | P21: 12963.39655 | Q21: 14589.66167 | R21: 16217.85766 | S21: 17806.25221 | T21: 19310.18298 | U21: 20690.67864 | V21: 21917.71087 | W21: 22973.51816 | X21: 23849.98536 | Y21: 24548.28464 | Z21: 25079.60548 | AA21: 25465.24351 | AB21: 25733.99961 | AC21: 25916.09301 | AD21: 26037.78352 | AE21: No. of Other Electric Vehicles | AF21: NPgN
A23: No. of Other Electric Vehicles - NPgY | B23: 2022 | C23: 2023 | D23: 2024 | E23: 2025 | F23: 2026 | G23: 2027 | H23: 2028 | I23: 2029 | J23: 2030 | K23: 2031 | L23: 2032 | M23: 2033 | N23: 2034 | O23: 2035 | P23: 2036 | Q23: 2037 | R23: 2038 | S23: 2039 | T23: 2040 | U23: 2041 | V23: 2042 | W23: 2043 | X23: 2044 | Y23: 2045 | Z23: 2046 | AA23: 2047 | AB23: 2048 | AC23: 2049 | AD23: 2050 | AE23: No. of Other Electric Vehicles | AF23: NPgY
A24: DFES 2023 - Consumer Transformation | B24: 429.1186657 | C24: 715.0289276 | D24: 1218.683161 | E24: 1942.467374 | F24: 2964.541934 | G24: 4361.511856 | H24: 6196.89888 | I24: 8505.578789 | J24: 11273.05794 | K24: 14445.90869 | L24: 17967.44752 | M24: 21787.04652 | N24: 25846.3972 | O24: 30053.1479 | P24: 34279.22881 | Q24: 38384.65826 | R24: 42244.62104 | S24: 45762.66667 | T24: 48873.83946 | U24: 51541.0972 | V24: 53745.94152 | W24: 55495.34931 | X24: 56823.76956 | Y24: 57790.59382 | Z24: 58469.5946 | AA24: 58934.63884 | AB24: 59249.33995 | AC24: 59462.35026 | AD24: 59608.49249 | AE24: No. of Other Electric Vehicles | AF24: NPgY
A25: DFES 2023 - System Transformation | B25: 429.1186657 | C25: 715.0289276 | D25: 1215.806113 | E25: 1932.151151 | F25: 2940.357131 | G25: 4315.26582 | H25: 6118.281154 | I25: 8387.684485 | J25: 11104.89734 | K25: 14209.89159 | L25: 17625.98636 | M25: 21303.54016 | N25: 25178.71968 | O25: 29162.07059 | P25: 33136.89612 | Q25: 36978.45552 | R25: 40576.48109 | S25: 43846.40525 | T25: 46732.47269 | U25: 49204.35477 | V25: 51247.80861 | W25: 52868.92672 | X25: 54099.64544 | Y25: 54994.06968 | Z25: 55619.3654 | AA25: 56043.41146 | AB25: 56325.6003 | AC25: 56511.70473 | AD25: 56634.57553 | AE25: No. of Other Electric Vehicles | AF25: NPgY
A26: DFES 2023 - Leading The Way | B26: 429.1186657 | C26: 823.1483675 | D26: 1478.920488 | E26: 2417.449793 | F26: 3749.569475 | G26: 5558.189996 | H26: 7907.943965 | I26: 10830.89546 | J26: 14294.48606 | K26: 18200.8181 | L26: 22410.05698 | M26: 26778.479 | N26: 31142.21539 | O26: 35357.76839 | P26: 39312.23454 | Q26: 42921.11818 | R26: 46121.85421 | S26: 48876.42126 | T26: 51175.02298 | U26: 53041.33327 | V26: 54512.41261 | W26: 55634.95288 | X26: 56465.29642 | Y26: 57060.58946 | Z26: 57475.16127 | AA26: 57757.55009 | AB26: 57948.37765 | AC26: 58078.28771 | AD26: 58168.89765 | AE26: No. of Other Electric Vehicles | AF26: NPgY
A27: CCC 2020 - Balanced Net Zero | AE27: No. of Other Electric Vehicles | AF27: NPgY
A28: CT 2023 Policy Sensitivity | AE28: No. of Other Electric Vehicles | AF28: NPgY
A29: BV 2023 Policy Sensitivity | AE29: No. of Other Electric Vehicles | AF29: NPgY
A30: DFES 2023 - NPg Best View | B30: 429.1186657 | C30: 823.1483675 | D30: 1478.920488 | E30: 2417.449793 | F30: 3749.569475 | G30: 5558.189996 | H30: 7907.943965 | I30: 10830.89546 | J30: 14294.48606 | K30: 18200.8181 | L30: 22410.05698 | M30: 26778.479 | N30: 31142.21539 | O30: 35357.76839 | P30: 39312.23454 | Q30: 42921.11818 | R30: 46121.85421 | S30: 48876.42126 | T30: 51175.02298 | U30: 53041.33327 | V30: 54512.41261 | W30: 55634.95288 | X30: 56465.29642 | Y30: 57060.58946 | Z30: 57475.16127 | AA30: 57757.55009 | AB30: 57948.37765 | AC30: 58078.28771 | AD30: 58168.89765 | AE30: No. of Other Electric Vehicles | AF30: NPgY
A31: NPg ED2 Planning Scenario - needs updating to old | AE31: No. of Other Electric Vehicles | AF31: NPgY
A32: DFES 2023 - Falling Short | B32: 429.1186657 | C32: 646.3680588 | D32: 1049.559232 | E32: 1628.100162 | F32: 2442.861841 | G32: 3559.126541 | H32: 5039.142687 | I32: 6933.543689 | J32: 9249.472334 | K32: 11945.86009 | L32: 14946.54544 | M32: 18167.04068 | N32: 21538.09087 | O32: 25020.5645 | P32: 28599.07039 | Q32: 32251.56189 | R32: 35919.15868 | S32: 39505.00234 | T32: 42904.02535 | U32: 46024.93417 | V32: 48797.72927 | W32: 51179.93895 | X32: 53151.6278 | Y32: 54714.71885 | Z32: 55894.96842 | AA32: 56742.2195 | AB32: 57324.08277 | AC32: 57711.6062 | AD32: 57966.29697 | AE32: No. of Other Electric Vehicles | AF32: NPgY

Sheet Heat Pumps
A1: No. of HPs - NPg | B1: 2022 | C1: 2023 | D1: 2024 | E1: 2025 | F1: 2026 | G1: 2027 | H1: 2028 | I1: 2029 | J1: 2030 | K1: 2031 | L1: 2032 | M1: 2033 | N1: 2034 | O1: 2035 | P1: 2036 | Q1: 2037 | R1: 2038 | S1: 2039 | T1: 2040 | U1: 2041 | V1: 2042 | W1: 2043 | X1: 2044 | Y1: 2045 | Z1: 2046 | AA1: 2047 | AB1: 2048 | AC1: 2049 | AD1: 2050 | AE1: Parameter | AF1: Licence | AG1: CHOSEN
A2: DFES 2023 - Consumer Transformation | B2: =ROUND(SUM(B13,B24),0) -> 49147 | C2: 64273 | D2: 86121 | E2: 131735 | F2: 194130 | G2: 268840 | H2: 299538 | I2: 324625 | J2: 349942 | K2: 375497 | L2: 401208 | M2: 426601 | N2: 453136 | O2: 511397 | P2: 704073 | Q2: 897016 | R2: 1085581 | S2: 1267598 | T2: 1430085 | U2: 1576139 | V2: 1709222 | W2: 1886972 | X2: 2070872 | Y2: 2254907 | Z2: 2437740 | AA2: 2620217 | AB2: 2802473 | AC2: 2984685 | AD2: 3126136 | AE2: No. of HPs | AF2: NPg
A3: DFES 2023 - System Transformation | B3: =ROUND(SUM(B14,B25),0) -> 49147 | C3: 60069 | D3: 75765 | E3: 92793 | F3: 111231 | G3: 131174 | H3: 151986 | I3: 174392 | J3: 200303 | K3: 226400 | L3: 252592 | M3: 278377 | N3: 305266 | O3: 373010 | P3: 401267 | Q3: 448407 | R3: 509499 | S3: 581507 | T3: 662282 | U3: 748632 | V3: 845025 | W3: 954993 | X3: 1081947 | Y3: 1227539 | Z3: 1391575 | AA3: 1567104 | AB3: 1754283 | AC3: 1954452 | AD3: 2153549 | AE3: No. of HPs | AF3: NPg
A4: DFES 2023 - Leading The Way | B4: =ROUND(SUM(B15,B26),0) -> 49147 | C4: 66184 | D4: 92622 | E4: 152241 | F4: 231504 | G4: 321835 | H4: 359933 | I4: 386562 | J4: 454906 | K4: 663193 | L4: 871487 | M4: 1076152 | N4: 1277159 | O4: 1476877 | P4: 1678542 | Q4: 1878427 | R4: 2072628 | S4: 2256264 | T4: 2410792 | U4: 2547100 | V4: 2673767 | W4: 2852571 | X4: 3042645 | Y4: 3191142 | Z4: 3200769 | AA4: 3210463 | AB4: 3220169 | AC4: 3229910 | AD4: 3240100 | AE4: No. of HPs | AF4: NPg
A5: CCC 2020 - Balanced Net Zero | B5: =ROUND(SUM(B16,B27),0) -> 54255 | C5: 73585 | D5: 94167 | E5: 145981 | F5: 216586 | G5: 305335 | H5: 419489 | I5: 545817 | J5: 691754 | K5: 825970 | L5: 969084 | M5: 1130282 | N5: 1306315 | O5: 1496164 | P5: 1677062 | Q5: 1856404 | R5: 2039602 | S5: 2230016 | T5: 2409952 | U5: 2598963 | V5: 2771448 | W5: 2925286 | X5: 3059379 | Y5: 3182376 | Z5: 3295319 | AA5: 3409463 | AB5: 3523789 | AC5: 3552198 | AD5: 3568971 | AE5: No. of HPs | AF5: NPg
A6: CT 2023 Policy Sensitivity | B6: =ROUND(SUM(B17,B28),0) -> 49147 | C6: 74278 | D6: 106618 | E6: 132433 | F6: 150986 | G6: 170463 | H6: 191426 | I6: 214860 | J6: 240115 | K6: 263092 | L6: 286213 | M6: 309125 | N6: 335380 | O6: 359485 | P6: 560066 | Q6: 750775 | R6: 927877 | S6: 1096616 | T6: 1270786 | U6: 1451413 | V6: 1631717 | W6: 1816124 | X6: 2002985 | Y6: 2190494 | Z6: 2378177 | AA6: 2566011 | AB6: 2753879 | AC6: 2941608 | AD6: 3125076 | AE6: No. of HPs | AF6: NPg
A7: BV 2023 Policy Sensitivity | B7: =ROUND(SUM(B18,B29),0) -> 49147 | C7: 74278 | D7: 106618 | E7: 132433 | F7: 150986 | G7: 170463 | H7: 191426 | I7: 214860 | J7: 240115 | K7: 263092 | L7: 286213 | M7: 309125 | N7: 335380 | O7: 359485 | P7: 560066 | Q7: 750775 | R7: 927877 | S7: 1096616 | T7: 1270786 | U7: 1451413 | V7: 1631717 | W7: 1816124 | X7: 2002985 | Y7: 2190494 | Z7: 2378177 | AA7: 2566011 | AB7: 2753879 | AC7: 2941608 | AD7: 3125076 | AE7: No. of HPs | AF7: NPg
A8: DFES 2023 - NPg Best View | B8: =ROUND(SUM(B19,B30),0) -> 49147 | C8: 64273 | D8: 86121 | E8: 131735 | F8: 194130 | G8: 268840 | H8: 299538 | I8: 324625 | J8: 349942 | K8: 375497 | L8: 401208 | M8: 426601 | N8: 453136 | O8: 511397 | P8: 704073 | Q8: 897016 | R8: 1085581 | S8: 1267598 | T8: 1430085 | U8: 1576139 | V8: 1709222 | W8: 1886972 | X8: 2070872 | Y8: 2254907 | Z8: 2437740 | AA8: 2620217 | AB8: 2802473 | AC8: 2984685 | AD8: 3126136 | AE8: No. of HPs | AF8: NPg
A9: NPg Planning Scenario - DFES 2022 | B9: =ROUND(SUM(B20,B31),0) -> 54255 | C9: 73585 | D9: 94167 | E9: 145981 | F9: 216586 | G9: 305335 | H9: 419489 | I9: 545817 | J9: 691754 | K9: 825970 | L9: 969084 | M9: 1130282 | N9: 1306315 | O9: 1496164 | P9: 1677062 | Q9: 1856404 | R9: 2039602 | S9: 2230016 | T9: 2409952 | U9: 2598963 | V9: 2771448 | W9: 2925286 | X9: 3059379 | Y9: 3182376 | Z9: 3295319 | AA9: 3409463 | AB9: 3523789 | AC9: 3552198 | AD9: 3568971 | AE9: No. of HPs | AF9: NPg
A10: DFES 2023 - Falling Short | B10: =ROUND(SUM(B21,B32),0) -> 49147 | C10: 58995 | D10: 63959 | E10: 80868 | F10: 99091 | G10: 118823 | H10: 139351 | I10: 160584 | J10: 182353 | K10: 204283 | L10: 226319 | M10: 248027 | N10: 266531 | O10: 287870 | P10: 310581 | Q10: 331379 | R10: 345160 | S10: 358224 | T10: 371302 | U10: 384405 | V10: 397590 | W10: 410663 | X10: 423696 | Y10: 436770 | Z10: 449918 | AA10: 463082 | AB10: 476249 | AC10: 488549 | AD10: 497660 | AE10: No. of HPs | AF10: NPg
A12: No. of HPs - NPgN | B12: 2022 | C12: 2023 | D12: 2024 | E12: 2025 | F12: 2026 | G12: 2027 | H12: 2028 | I12: 2029 | J12: 2030 | K12: 2031 | L12: 2032 | M12: 2033 | N12: 2034 | O12: 2035 | P12: 2036 | Q12: 2037 | R12: 2038 | S12: 2039 | T12: 2040 | U12: 2041 | V12: 2042 | W12: 2043 | X12: 2044 | Y12: 2045 | Z12: 2046 | AA12: 2047 | AB12: 2048 | AC12: 2049 | AD12: 2050 | AE12: No. of HPs
A13: DFES 2023 - Consumer Transformation | B13: 21328.09639 | C13: 27569.89036 | D13: 36890.34752 | E13: 56170.42487 | F13: 82398.17915 | G13: 113913.3022 | H13: 130989.6886 | I13: 142050.1273 | J13: 153050.9857 | K13: 164152.0004 | L13: 175316.7659 | M13: 186345.1204 | N13: 197849.7214 | O13: 218036.2513 | P13: 292800.662 | Q13: 368633.0637 | R13: 442788.7325 | S13: 514471.1653 | T13: 578466.7681 | U13: 635990.535 | V13: 688817.1547 | W13: 756355.7103 | X13: 830148.3619 | Y13: 904158.1562 | Z13: 978096.7633 | AA13: 1051948.186 | AB13: 1125692.317 | AC13: 1199311.145 | AD13: 1256376.124 | AE13: No. of HPs | AF13: NPgN
A14: DFES 2023 - System Transformation | B14: 21328.09639 | C14: 25809.3934 | D14: 32493.45084 | E14: 39655.97413 | F14: 47405.32243 | G14: 55789.20698 | H14: 64534.77446 | I14: 74055.46124 | J14: 85366.22034 | K14: 96756.37221 | L14: 108185.1613 | M14: 119440.2048 | N14: 131157.5675 | O14: 158735.4266 | P14: 171121.2105 | Q14: 190649.8955 | R14: 215897.0873 | S14: 245538.0086 | T14: 278689.4704 | U14: 314292.4936 | V14: 354025.9199 | W14: 399345.2375 | X14: 451620.1082 | Y14: 511432.7925 | Z14: 578890.3652 | AA14: 651065.3464 | AB14: 728026.341 | AC14: 810331.6354 | AD14: 892242.7021 | AE14: No. of HPs | AF14: NPgN
A15: DFES 2023 - Leading The Way | B15: 21328.09639 | C15: 29569.1933 | D15: 43091.61524 | E15: 73679.38086 | F15: 113633.5842 | G15: 158057.2899 | H15: 182015.7834 | I15: 194080.4626 | J15: 222731.9456 | K15: 308539.499 | L15: 394333.7269 | M15: 476990.9074 | N15: 556174.052 | O15: 633849.5225 | P15: 711826.2773 | Q15: 789723.9548 | R15: 865007.2744 | S15: 935718.4758 | T15: 992862.8335 | U15: 1041407.854 | V15: 1086061.688 | W15: 1150717.692 | X15: 1226736.26 | Y15: 1286123.442 | Z15: 1288634.933 | AA15: 1291162.444 | AB15: 1293688.464 | AC15: 1296219.372 | AD15: 1299983.483 | AE15: No. of HPs | AF15: NPgN
A16: CCC 2020 - Balanced Net Zero | B16: 22733.52322 | C16: 30653.26154 | D16: 39094.90376 | E16: 60325.11445 | F16: 89241.97557 | G16: 125578.9679 | H16: 172302.6988 | I16: 227593.3702 | J16: 284039.6977 | K16: 339187.3545 | L16: 397968.3552 | M16: 466102.7572 | N16: 540556.7752 | O16: 614056.3314 | P16: 688260.939 | Q16: 761469.6856 | R16: 836232.8483 | S16: 913925.9437 | T16: 987686.7269 | U16: 1065171.505 | V16: 1135910.019 | W16: 1199029.926 | X16: 1254079.185 | Y16: 1304608.717 | Z16: 1351539.209 | AA16: 1398310.646 | AB16: 1445792.566 | AC16: 1457347.783 | AD16: 1464342.2 | AE16: No. of HPs | AF16: NPgN
A17: CT 2023 Policy Sensitivity | B17: 21328.09639 | C17: 31514.39963 | D17: 44644.52538 | E17: 54973.85518 | F17: 62325.77723 | G17: 70068.20756 | H17: 78439.70248 | I17: 87864.3561 | J17: 98061.35492 | K17: 107279.6609 | L17: 116555.2577 | M17: 125725.6041 | N17: 135749.4012 | O17: 144786.6402 | P17: 227535.1231 | Q17: 306439.8903 | R17: 377448.4918 | S17: 443782 | T17: 511741.1517 | U17: 581349.6797 | V17: 650588.3905 | W17: 723899.6135 | X17: 799646.0884 | Y17: 876002.0679 | Z17: 952489.7368 | AA17: 1029096.975 | AB17: 1105733.999 | AC17: 1182242.988 | AD17: 1255939.238 | AE17: No. of HPs | AF17: NPgN
A18: BV 2023 Policy Sensitivity | B18: 21328.09639 | C18: 31514.39963 | D18: 44644.52538 | E18: 54973.85518 | F18: 62325.77723 | G18: 70068.20756 | H18: 78439.70248 | I18: 87864.3561 | J18: 98061.35492 | K18: 107279.6609 | L18: 116555.2577 | M18: 125725.6041 | N18: 135749.4012 | O18: 144786.6402 | P18: 227535.1231 | Q18: 306439.8903 | R18: 377448.4918 | S18: 443782 | T18: 511741.1517 | U18: 581349.6797 | V18: 650588.3905 | W18: 723899.6135 | X18: 799646.0884 | Y18: 876002.0679 | Z18: 952489.7368 | AA18: 1029096.975 | AB18: 1105733.999 | AC18: 1182242.988 | AD18: 1255939.238 | AE18: No. of HPs | AF18: NPgN
A19: DFES 2023 - NPg Best View | B19: 21328.09639 | C19: 27569.89036 | D19: 36890.34752 | E19: 56170.42487 | F19: 82398.17915 | G19: 113913.3022 | H19: 130989.6886 | I19: 142050.1273 | J19: 153050.9857 | K19: 164152.0004 | L19: 175316.7659 | M19: 186345.1204 | N19: 197849.7214 | O19: 218036.2513 | P19: 292800.662 | Q19: 368633.0637 | R19: 442788.7325 | S19: 514471.1653 | T19: 578466.7681 | U19: 635990.535 | V19: 688817.1547 | W19: 756355.7103 | X19: 830148.3619 | Y19: 904158.1562 | Z19: 978096.7633 | AA19: 1051948.186 | AB19: 1125692.317 | AC19: 1199311.145 | AD19: 1256376.124 | AE19: No. of HPs | AF19: NPgN
A20: NPg Planning Scenario - DFES 2022 | B20: 22733.52322 | C20: 30653.26154 | D20: 39094.90376 | E20: 60325.11445 | F20: 89241.97557 | G20: 125578.9679 | H20: 172302.6988 | I20: 227593.3702 | J20: 284039.6977 | K20: 339187.3545 | L20: 397968.3552 | M20: 466102.7572 | N20: 540556.7752 | O20: 614056.3314 | P20: 688260.939 | Q20: 761469.6856 | R20: 836232.8483 | S20: 913925.9437 | T20: 987686.7269 | U20: 1065171.505 | V20: 1135910.019 | W20: 1199029.926 | X20: 1254079.185 | Y20: 1304608.717 | Z20: 1351539.209 | AA20: 1398310.646 | AB20: 1445792.566 | AC20: 1457347.783 | AD20: 1464342.2 | AE20: No. of HPs | AF20: NPgN
A21: DFES 2023 - Falling Short | B21: 21328.09639 | C21: 25363.8258 | D21: 27455.114 | E21: 34574.18999 | F21: 42244.04442 | G21: 50551.20474 | H21: 59192.29197 | I21: 68127.61718 | J21: 77287.02555 | K21: 86516.35186 | L21: 95788.7541 | M21: 104918.7816 | N21: 110013.488 | O21: 114665.1016 | P21: 119450.5549 | Q21: 124151.2166 | R21: 128319.5377 | S21: 132857.7668 | T21: 137415.5933 | U21: 142007.4663 | V21: 146634.0247 | W21: 151221.7752 | X21: 155792.0797 | Y21: 160376.6352 | Z21: 164988.1229 | AA21: 169605.3504 | AB21: 174222.6491 | AC21: 178364.7253 | AD21: 180842.5184 | AE21: No. of HPs | AF21: NPgN
A23: No. of HPs - NPgY | B23: 2022 | C23: 2023 | D23: 2024 | E23: 2025 | F23: 2026 | G23: 2027 | H23: 2028 | I23: 2029 | J23: 2030 | K23: 2031 | L23: 2032 | M23: 2033 | N23: 2034 | O23: 2035 | P23: 2036 | Q23: 2037 | R23: 2038 | S23: 2039 | T23: 2040 | U23: 2041 | V23: 2042 | W23: 2043 | X23: 2044 | Y23: 2045 | Z23: 2046 | AA23: 2047 | AB23: 2048 | AC23: 2049 | AD23: 2050 | AE23: No. of HPs | AF23: NPgY
A24: DFES 2023 - Consumer Transformation | B24: 27818.48602 | C24: 36703.43263 | D24: 49230.73273 | E24: 75564.15375 | F24: 111731.6176 | G24: 154926.9414 | H24: 168547.9437 | I24: 182575.1235 | J24: 196891.4823 | K24: 211344.6654 | L24: 225890.7584 | M24: 240255.3933 | N24: 255286.1492 | O24: 293361.1078 | P24: 411272.1741 | Q24: 528383.1621 | R24: 642792.5151 | S24: 753126.4436 | T24: 851618.0784 | U24: 940148.6479 | V24: 1020405.022 | W24: 1130616.015 | X24: 1240723.95 | Y24: 1350748.833 | Z24: 1459643.129 | AA24: 1568269.094 | AB24: 1676780.542 | AC24: 1785373.938 | AD24: 1869759.536 | AE24: No. of HPs | AF24: NPgY
A25: DFES 2023 - System Transformation | B25: 27818.48602 | C25: 34259.47775 | D25: 43271.38008 | E25: 53136.88374 | F25: 63825.90761 | G25: 75385.06482 | H25: 87450.82662 | I25: 100336.4717 | J25: 114937.1598 | K25: 129643.6266 | L25: 144406.7151 | M25: 158936.4986 | N25: 174108.3883 | O25: 214274.5605 | P25: 230145.4794 | Q25: 257756.6994 | R25: 293602.2045 | S25: 335968.7152 | T25: 383592.0474 | U25: 434339.7478 | V25: 490999.1629 | W25: 555647.6598 | X25: 630326.5436 | Y25: 716106.4487 | Z25: 812685.1281 | AA25: 916038.9494 | AB25: 1026256.831 | AC25: 1144120.485 | AD25: 1261306.41 | AE25: No. of HPs | AF25: NPgY
A26: DFES 2023 - Leading The Way | B26: 27818.48602 | C26: 36615.01862 | D26: 49530.17243 | E26: 78561.32829 | F26: 117870.6504 | G26: 163777.9609 | H26: 177917.2163 | I26: 192481.9403 | J26: 232173.8487 | K26: 354653.864 | L26: 477153.5721 | M26: 599161.363 | N26: 720984.995 | O26: 843027.6955 | P26: 966715.4156 | Q26: 1088702.9 | R26: 1207620.819 | S26: 1320545.749 | T26: 1417928.995 | U26: 1505692.467 | V26: 1587705.607 | W26: 1701853.594 | X26: 1815908.737 | Y26: 1905019.032 | Z26: 1912134.38 | AA26: 1919300.574 | AB26: 1926480.325 | AC26: 1933690.394 | AD26: 1940116.371 | AE26: No. of HPs | AF26: NPgY
A27: CCC 2020 - Balanced Net Zero | B27: 31521.93153 | C27: 42931.51558 | D27: 55072.30221 | E27: 85655.66266 | F27: 127344.38 | G27: 179755.7021 | H27: 247185.9244 | I27: 318224.011 | J27: 407714.0223 | K27: 486782.2838 | L27: 571115.3622 | M27: 664178.9757 | N27: 765758.6595 | O27: 882108.0129 | P27: 988801.5557 | Q27: 1094933.864 | R27: 1203368.675 | S27: 1316090.531 | T27: 1422264.868 | U27: 1533791.756 | V27: 1635537.548 | W27: 1726256.314 | X27: 1805299.902 | Y27: 1877766.94 | Z27: 1943780.124 | AA27: 2011152.538 | AB27: 2077996.598 | AC27: 2094850.118 | AD27: 2104628.759 | AE27: No. of HPs | AF27: NPgY
A28: CT 2023 Policy Sensitivity | B28: 27818.48602 | C28: 42763.85496 | D28: 61973.84182 | E28: 77459.11712 | F28: 88659.98391 | G28: 100395.235 | H28: 112986.3137 | I28: 126995.592 | J28: 142054.1359 | K28: 155812.068 | L28: 169657.2956 | M28: 183399.6768 | N28: 199631.0114 | O28: 214698.5909 | P28: 332530.9145 | Q28: 444335.1182 | R28: 550428.9872 | S28: 652833.8423 | T28: 759045.2615 | U28: 870062.8907 | V28: 981128.2005 | W28: 1092224.011 | X28: 1203338.605 | Y28: 1314491.484 | Z28: 1425687.201 | AA28: 1536913.55 | AB28: 1648144.676 | AC28: 1759365.326 | AD28: 1869136.935 | AE28: No. of HPs | AF28: NPgY
A29: BV 2023 Policy Sensitivity | B29: 27818.48602 | C29: 42763.85496 | D29: 61973.84182 | E29: 77459.11712 | F29: 88659.98391 | G29: 100395.235 | H29: 112986.3137 | I29: 126995.592 | J29: 142054.1359 | K29: 155812.068 | L29: 169657.2956 | M29: 183399.6768 | N29: 199631.0114 | O29: 214698.5909 | P29: 332530.9145 | Q29: 444335.1182 | R29: 550428.9872 | S29: 652833.8423 | T29: 759045.2615 | U29: 870062.8907 | V29: 981128.2005 | W29: 1092224.011 | X29: 1203338.605 | Y29: 1314491.484 | Z29: 1425687.201 | AA29: 1536913.55 | AB29: 1648144.676 | AC29: 1759365.326 | AD29: 1869136.935 | AE29: No. of HPs | AF29: NPgY
A30: DFES 2023 - NPg Best View | B30: 27818.48602 | C30: 36703.43263 | D30: 49230.73273 | E30: 75564.15375 | F30: 111731.6176 | G30: 154926.9414 | H30: 168547.9437 | I30: 182575.1235 | J30: 196891.4823 | K30: 211344.6654 | L30: 225890.7584 | M30: 240255.3933 | N30: 255286.1492 | O30: 293361.1078 | P30: 411272.1741 | Q30: 528383.1621 | R30: 642792.5151 | S30: 753126.4436 | T30: 851618.0784 | U30: 940148.6479 | V30: 1020405.022 | W30: 1130616.015 | X30: 1240723.95 | Y30: 1350748.833 | Z30: 1459643.129 | AA30: 1568269.094 | AB30: 1676780.542 | AC30: 1785373.938 | AD30: 1869759.536 | AE30: No. of HPs | AF30: NPgY
A31: NPg Planning Scenario - DFES 2022 | B31: 31521.93153 | C31: 42931.51558 | D31: 55072.30221 | E31: 85655.66266 | F31: 127344.38 | G31: 179755.7021 | H31: 247185.9244 | I31: 318224.011 | J31: 407714.0223 | K31: 486782.2838 | L31: 571115.3622 | M31: 664178.9757 | N31: 765758.6595 | O31: 882108.0129 | P31: 988801.5557 | Q31: 1094933.864 | R31: 1203368.675 | S31: 1316090.531 | T31: 1422264.868 | U31: 1533791.756 | V31: 1635537.548 | W31: 1726256.314 | X31: 1805299.902 | Y31: 1877766.94 | Z31: 1943780.124 | AA31: 2011152.538 | AB31: 2077996.598 | AC31: 2094850.118 | AD31: 2104628.759 | AE31: No. of HPs | AF31: NPgY
A32: DFES 2023 - Falling Short | B32: 27818.48602 | C32: 33631.44113 | D32: 36504.13095 | E32: 46293.45967 | F32: 56847.44999 | G32: 68271.42915 | H32: 80158.81574 | I32: 92455.99409 | J32: 105066.0046 | K32: 117766.3607 | L32: 130529.778 | M32: 143108.3025 | N32: 156517.8713 | O32: 173205.371 | P32: 191130.0632 | Q32: 207227.4146 | R32: 216840.779 | S32: 225366.2244 | T32: 233886.8944 | U32: 242397.0719 | V32: 250955.5536 | W32: 259441.6586 | X32: 267904.0584 | Y32: 276393.1697 | Z32: 284929.7144 | AA32: 293476.3883 | AB32: 302026.6531 | AC32: 310184.3832 | AD32: 316817.5991 | AE32: No. of HPs | AF32: NPgY
B34: =B8-#REF! ->  | C34: =C8-B8 -> 15126 | D34: 21848 | E34: 45614 | F34: 62395 | G34: =G8-F8 -> 74710 | H34: =H8-G8 -> 30698 | I34: 25087 | J34: 25317 | K34: =K8-J8 -> 25555 | L34: 25711 | M34: 25393 | N34: 26535 | O34: 58261 | P34: 192676 | Q34: 192943
B35: =B9-#REF! ->  | C35: =C9-B9 -> 19330 | D35: 20582 | E35: 51814 | F35: 70605 | G35: =G9-F9 -> 88749 | H35: =H9-G9 -> 114154 | I35: 126328 | J35: 145937 | K35: =K9-J9 -> 134216 | L35: 143114 | M35: 161198 | N35: 176033 | O35: 189849 | P35: 180898 | Q35: 179342
B36: =B34*6 ->  | C36: 90756 | D36: 131088 | E36: 273684 | F36: 374370 | G36: =G34*6 -> 448260 | H36: =H34*6 -> 184188 | I36: 150522 | J36: 151902 | K36: =K34*6 -> 153330 | L36: 154266 | M36: 152358 | N36: 159210 | O36: 349566 | P36: 1156056 | Q36: 1157658
B37: =B35*6 ->  | C37: 115980 | D37: 123492 | E37: 310884 | F37: 423630 | G37: =G35*6 -> 532494 | H37: =H35*6 -> 684924 | I37: 757968 | J37: 875622 | K37: =K35*6 -> 805296 | L37: 858684 | M37: 967188 | N37: 1056198 | O37: 1139094 | P37: 1085388 | Q37: 1076052
A38: BREAKDOWN BELOW
A40: Domestic HP
A41: No. of Domestic HPs - NPg | B41: 2022 | C41: 2023 | D41: 2024 | E41: 2025 | F41: 2026 | G41: 2027 | H41: 2028 | I41: 2029 | J41: 2030 | K41: 2031 | L41: 2032 | M41: 2033 | N41: 2034 | O41: 2035 | P41: 2036 | Q41: 2037 | R41: 2038 | S41: 2039 | T41: 2040 | U41: 2041 | V41: 2042 | W41: 2043 | X41: 2044 | Y41: 2045 | Z41: 2046 | AA41: 2047 | AB41: 2048 | AC41: 2049 | AD41: 2050
A42: DFES 2023 - Consumer Transformation | B42: =ROUND(SUM(B53,B64),0) -> 42082 | C42: 56453 | D42: 77429 | E42: 122193 | F42: 183568 | G42: 256245 | H42: 284776 | I42: 307789 | J42: 331198 | K42: 354945 | L42: 378861 | M42: 402433 | N42: 427130 | O42: 483636 | P42: 661014 | Q42: 838667 | R42: 1012133 | S42: 1179164 | T42: 1327214 | U42: 1458978 | V42: 1578358 | W42: 1742409 | X42: 1912596 | Y42: 2082877 | Z42: 2251964 | AA42: 2420703 | AB42: 2589230 | AC42: 2757722 | AD42: 2885461
A43: DFES 2023 - System Transformation | B43: =ROUND(SUM(B54,B65),0) -> 42082 | C43: 52517 | D43: 67149 | E43: 83517 | F43: 101248 | G43: 120077 | H43: 139607 | I43: 160740 | J43: 184981 | K43: 209495 | L43: 234108 | M43: 258272 | N43: 283519 | O43: 349610 | P43: 363774 | Q43: 396536 | R43: 443810 | S43: 502110 | T43: 569308 | U43: 642105 | V43: 724950 | W43: 821418 | X43: 934931 | Y43: 1067602 | Z43: 1218725 | AA43: 1381352 | AB43: 1555651 | AC43: 1742960 | AD43: 1929217
A44: DFES 2023 - Leading The Way | B44: =ROUND(SUM(B55,B66),0) -> 42082 | C44: 58365 | D44: 83931 | E44: 142089 | F44: 219748 | G44: 308046 | H44: 343977 | I44: 368531 | J44: 434967 | K44: 627793 | L44: 820640 | M44: 1009839 | N44: 1195365 | O44: 1379687 | P44: 1566059 | Q44: 1750656 | R44: 1929760 | S44: 2098414 | T44: 2239117 | U44: 2361722 | V44: 2474689 | W44: 2639795 | X44: 2816156 | Y44: 2950903 | Z44: 2960440 | AA44: 2970046 | AB44: 2979671 | AC44: 2989336 | AD44: 2999426
A45: CCC 2020 - Balanced Net Zero | B45: =ROUND(SUM(B56,B67),0) -> 46497 | C45: 64719 | D45: 84014 | E45: 134329 | F45: 203296 | G45: 290242 | H45: 402496 | I45: 525775 | J45: 667995 | K45: 797824 | L45: 936692 | M45: 1093251 | N45: 1264265 | O45: 1448896 | P45: 1624357 | Q45: 1796836 | R45: 1972032 | S45: 2153271 | T45: 2324055 | U45: 2503692 | V45: 2666610 | W45: 2810854 | X45: 2935260 | Y45: 3048504 | Z45: 3151631 | AA45: 3256210 | AB45: 3361336 | AC45: 3382684 | AD45: 3395550
A46: CT 2023 Policy Sensitivity | B46: =ROUND(SUM(B57,B68),0) -> 42082 | C46: 66332 | D46: 97634 | E46: 122920 | F46: 140890 | G46: 159347 | H46: 179144 | I46: 201477 | J46: 225752 | K46: 247845 | L46: 270086 | M46: 292076 | N46: 317399 | O46: 340518 | P46: 525908 | Q46: 701086 | R46: 863305 | S46: 1017301 | T46: 1176787 | U46: 1342746 | V46: 1508383 | W46: 1678125 | X46: 1850322 | Y46: 2023166 | Z46: 2196185 | AA46: 2369356 | AB46: 2542567 | AC46: 2715645 | AD46: 2885461
A47: BV 2023 Policy Sensitivity | B47: =ROUND(SUM(B58,B69),0) -> 42082 | C47: 66332 | D47: 97634 | E47: 122920 | F47: 140890 | G47: 159347 | H47: 179144 | I47: 201477 | J47: 225752 | K47: 247845 | L47: 270086 | M47: 292076 | N47: 317399 | O47: 340518 | P47: 525908 | Q47: 701086 | R47: 863305 | S47: 1017301 | T47: 1176787 | U47: 1342746 | V47: 1508383 | W47: 1678125 | X47: 1850322 | Y47: 2023166 | Z47: 2196185 | AA47: 2369356 | AB47: 2542567 | AC47: 2715645 | AD47: 2885461
A48: DFES 2023 - NPg Best View | B48: 42082 | C48: 56453 | D48: 77429 | E48: 122193 | F48: 183568 | G48: 256245 | H48: 284776 | I48: 307789 | J48: 331198 | K48: 354945 | L48: 378861 | M48: 402433 | N48: 427130 | O48: 483636 | P48: 661014 | Q48: 838667 | R48: 1012133 | S48: 1179164 | T48: 1327214 | U48: 1458978 | V48: 1578358 | W48: 1742409 | X48: 1912596 | Y48: 2082877 | Z48: 2251964 | AA48: 2420703 | AB48: 2589230 | AC48: 2757722 | AD48: 2885461
A49: NPg ED2 Planning Scenario - needs updating to old | B49: =ROUND(SUM(B60,B71),0) -> 42082 | C49: 56453 | D49: 77429 | E49: 122193 | F49: 183568 | G49: 256245 | H49: 284776 | I49: 307789 | J49: 331198 | K49: 354945 | L49: 378861 | M49: 402433 | N49: 427130 | O49: 483636 | P49: 661014 | Q49: 838667 | R49: 1012133 | S49: 1179164 | T49: 1327214 | U49: 1458978 | V49: 1578358 | W49: 1742409 | X49: 1912596 | Y49: 2082877 | Z49: 2251964 | AA49: 2420703 | AB49: 2589230 | AC49: 2757722 | AD49: 2885461
A50: DFES 2023 - Falling Short | B50: =ROUND(SUM(B61,B72),0) -> 42082 | C50: 51156 | D50: 55190 | E50: 71543 | F50: 89119 | G50: 107751 | H50: 127016 | I50: 147031 | J50: 167693 | K50: 188617 | L50: 209658 | M50: 230318 | N50: 247781 | O50: 267408 | P50: 288603 | Q50: 307432 | R50: 319910 | S50: 331813 | T50: 343921 | U50: 356109 | V50: 368401 | W50: 380606 | X50: 392793 | Y50: 405032 | Z50: 417340 | AA50: 429662 | AB50: 441988 | AC50: 453450 | AD50: 462356
A52: No. of Domestic HPs - NPgN | B52: 2022 | C52: 2023 | D52: 2024 | E52: 2025 | F52: 2026 | G52: 2027 | H52: 2028 | I52: 2029 | J52: 2030 | K52: 2031 | L52: 2032 | M52: 2033 | N52: 2034 | O52: 2035 | P52: 2036 | Q52: 2037 | R52: 2038 | S52: 2039 | T52: 2040 | U52: 2041 | V52: 2042 | W52: 2043 | X52: 2044 | Y52: 2045 | Z52: 2046 | AA52: 2047 | AB52: 2048 | AC52: 2049 | AD52: 2050
A53: DFES 2023 - Consumer Transformation | B53: =ROUND(SUM(B87,B121),0) -> 18417 | C53: 24346 | D53: 33305 | E53: 52238 | F53: 78047 | G53: 108721 | H53: 124901 | I53: 135104 | J53: 145318 | K53: 155671 | L53: 166094 | M53: 176370 | N53: 187116 | O53: 206576 | P53: 275048 | Q53: 344592 | R53: 412537 | S53: 478056 | T53: 536117 | U53: 587768 | V53: 634961 | W53: 696868 | X53: 765023 | Y53: 833379 | Z53: 901667 | AA53: 969871 | AB53: 1037972 | AC53: 1105951 | AD53: 1157379
A54: DFES 2023 - System Transformation | B54: =ROUND(SUM(B88,B122),0) -> 18417 | C54: 22687 | D54: 28927 | E54: 35821 | F54: 43281 | G54: 51201 | H54: 59413 | I54: 68404 | J54: 79024 | K54: 89758 | L54: 100532 | M54: 111116 | N54: 122154 | O54: 149048 | P54: 155626 | Q54: 169229 | R54: 188781 | S54: 212773 | T54: 240330 | U54: 270348 | V54: 304499 | W54: 344256 | X54: 390993 | Y54: 445482 | Z54: 507619 | AA54: 574478 | AB54: 646132 | AC54: 723139 | AD54: 799760
A55: DFES 2023 - Leading The Way | B55: =ROUND(SUM(B89,B123),0) -> 18417 | C55: 26346 | D55: 39507 | E55: 69498 | F55: 108795 | G55: 152378 | H55: 175440 | I55: 186646 | J55: 214511 | K55: 293958 | L55: 373398 | M55: 449693 | N55: 522509 | O55: 593850 | P55: 665537 | Q55: 737147 | R55: 806220 | S55: 870769 | T55: 922229 | U55: 965141 | V55: 1004162 | W55: 1063187 | X55: 1133568 | Y55: 1187303 | Z55: 1189778 | AA55: 1192270 | AB55: 1194763 | AC55: 1197263 | AD55: 1200987
A56: CCC 2020 - Balanced Net Zero | B56: =ROUND(SUM(B90,B124),0) -> 19635 | C56: 27077 | D56: 34958 | E56: 55530 | F56: 83728 | G56: 119277 | H56: 165173 | I56: 219029 | J56: 273726 | K56: 326808 | L56: 383664 | M56: 449695 | N56: 521873 | O56: 593007 | P56: 664746 | Q56: 735266 | R56: 806897 | S56: 880999 | T56: 950826 | U56: 1024273 | V56: 1090884 | W56: 1149860 | X56: 1200725 | Y56: 1247039 | Z56: 1289725 | AA56: 1332366 | AB56: 1375883 | AC56: 1384375 | AD56: 1389651
A57: CT 2023 Policy Sensitivity | B57: =ROUND(SUM(B91,B125),0) -> 18417 | C57: 28237 | D57: 40936 | E57: 51052 | F57: 58167 | G57: 65486 | H57: 73373 | I57: 82341 | J57: 92133 | K57: 100985 | L57: 109896 | M57: 118684 | N57: 128322 | O57: 136954 | P57: 213457 | Q57: 285971 | R57: 350858 | S57: 411130 | T57: 473051 | U57: 536629 | V57: 599837 | W57: 667119 | X57: 736836 | Y57: 807162 | Z57: 877621 | AA57: 948199 | AB57: 1018810 | AC57: 1089295 | AD57: 1157379
A58: BV 2023 Policy Sensitivity | B58: =ROUND(SUM(B92,B126),0) -> 18417 | C58: 28237 | D58: 40936 | E58: 51052 | F58: 58167 | G58: 65486 | H58: 73373 | I58: 82341 | J58: 92133 | K58: 100985 | L58: 109896 | M58: 118684 | N58: 128322 | O58: 136954 | P58: 213457 | Q58: 285971 | R58: 350858 | S58: 411130 | T58: 473051 | U58: 536629 | V58: 599837 | W58: 667119 | X58: 736836 | Y58: 807162 | Z58: 877621 | AA58: 948199 | AB58: 1018810 | AC58: 1089295 | AD58: 1157379
A59: DFES 2023 - NPg Best View | B59: =ROUND(SUM(B93,B127),0) -> 18417 | C59: 24346 | D59: 33305 | E59: 52238 | F59: 78047 | G59: 108721 | H59: 124901 | I59: 135104 | J59: 145318 | K59: 155671 | L59: 166094 | M59: 176370 | N59: 187116 | O59: 206576 | P59: 275048 | Q59: 344592 | R59: 412537 | S59: 478056 | T59: 536117 | U59: 587768 | V59: 634961 | W59: 696868 | X59: 765023 | Y59: 833379 | Z59: 901667 | AA59: 969871 | AB59: 1037972 | AC59: 1105951 | AD59: 1157379
A60: NPg ED2 Planning Scenario - needs updating to old | B60: =ROUND(SUM(B94,B128),0) -> 18417 | C60: 24346 | D60: 33305 | E60: 52238 | F60: 78047 | G60: 108721 | H60: 124901 | I60: 135104 | J60: 145318 | K60: 155671 | L60: 166094 | M60: 176370 | N60: 187116 | O60: 206576 | P60: 275048 | Q60: 344592 | R60: 412537 | S60: 478056 | T60: 536117 | U60: 587768 | V60: 634961 | W60: 696868 | X60: 765023 | Y60: 833379 | Z60: 901667 | AA60: 969871 | AB60: 1037972 | AC60: 1105951 | AD60: 1157379
A61: DFES 2023 - Falling Short | B61: =ROUND(SUM(B95,B129),0) -> 18417 | C61: 22130 | D61: 23830 | E61: 30724 | F61: 38130 | G61: 45981 | H61: 54097 | I61: 62527 | J61: 71229 | K61: 80041 | L61: 88901 | M61: 97596 | N61: 102260 | O61: 106207 | P61: 110368 | Q61: 114256 | R61: 117887 | S61: 121950 | T61: 126109 | U61: 130324 | V61: 134583 | W61: 138813 | X61: 143036 | Y61: 147277 | Z61: 151543 | AA61: 155814 | AB61: 160085 | AC61: 163883 | AD61: 166277
A63: No. of Domestic HPs - NPgY | B63: 2022 | C63: 2023 | D63: 2024 | E63: 2025 | F63: 2026 | G63: 2027 | H63: 2028 | I63: 2029 | J63: 2030 | K63: 2031 | L63: 2032 | M63: 2033 | N63: 2034 | O63: 2035 | P63: 2036 | Q63: 2037 | R63: 2038 | S63: 2039 | T63: 2040 | U63: 2041 | V63: 2042 | W63: 2043 | X63: 2044 | Y63: 2045 | Z63: 2046 | AA63: 2047 | AB63: 2048 | AC63: 2049 | AD63: 2050
A64: DFES 2023 - Consumer Transformation | B64: =ROUND(SUM(B98,B132),0) -> 23665 | C64: 32107 | D64: 44124 | E64: 69955 | F64: 105521 | G64: 147524 | H64: 159875 | I64: 172685 | J64: 185880 | K64: 199274 | L64: 212767 | M64: 226063 | N64: 240014 | O64: 277060 | P64: 385966 | Q64: 494075 | R64: 599596 | S64: 701108 | T64: 791097 | U64: 871210 | V64: 943397 | W64: 1045541 | X64: 1147573 | Y64: 1249498 | Z64: 1350297 | AA64: 1450832 | AB64: 1551258 | AC64: 1651771 | AD64: 1728082
A65: DFES 2023 - System Transformation | B65: =ROUND(SUM(B99,B133),0) -> 23665 | C65: 29830 | D65: 38222 | E65: 47696 | F65: 57967 | G65: 68876 | H65: 80194 | I65: 92336 | J65: 105957 | K65: 119737 | L65: 133576 | M65: 147156 | N65: 161365 | O65: 200562 | P65: 208148 | Q65: 227307 | R65: 255029 | S65: 289337 | T65: 328978 | U65: 371757 | V65: 420451 | W65: 477162 | X65: 543938 | Y65: 622120 | Z65: 711106 | AA65: 806874 | AB65: 909519 | AC65: 1019821 | AD65: 1129457
A66: DFES 2023 - Leading The Way | B66: =ROUND(SUM(B100,B134),0) -> 23665 | C66: 32019 | D66: 44424 | E66: 72591 | F66: 110953 | G66: 155668 | H66: 168537 | I66: 181885 | J66: 220456 | K66: 333835 | L66: 447242 | M66: 560146 | N66: 672856 | O66: 785837 | P66: 900522 | Q66: 1013509 | R66: 1123540 | S66: 1227645 | T66: 1316888 | U66: 1396581 | V66: 1470527 | W66: 1576608 | X66: 1682588 | Y66: 1763600 | Z66: 1770662 | AA66: 1777776 | AB66: 1784908 | AC66: 1792073 | AD66: 1798439
A67: CCC 2020 - Balanced Net Zero | B67: =ROUND(SUM(B101,B135),0) -> 26862 | C67: 37642 | D67: 49056 | E67: 78799 | F67: 119568 | G67: 170965 | H67: 237323 | I67: 306746 | J67: 394269 | K67: 471016 | L67: 553028 | M67: 643556 | N67: 742392 | O67: 855889 | P67: 959611 | Q67: 1061570 | R67: 1165135 | S67: 1272272 | T67: 1373229 | U67: 1479419 | V67: 1575726 | W67: 1660994 | X67: 1734535 | Y67: 1801465 | Z67: 1861906 | AA67: 1923844 | AB67: 1985453 | AC67: 1998309 | AD67: 2005899
A68: CT 2023 Policy Sensitivity | B68: =ROUND(SUM(B102,B136),0) -> 23665 | C68: 38095 | D68: 56698 | E68: 71868 | F68: 82723 | G68: 93861 | H68: 105771 | I68: 119136 | J68: 133619 | K68: 146860 | L68: 160190 | M68: 173392 | N68: 189077 | O68: 203564 | P68: 312451 | Q68: 415115 | R68: 512447 | S68: 606171 | T68: 703736 | U68: 806117 | V68: 908546 | W68: 1011006 | X68: 1113486 | Y68: 1216004 | Z68: 1318564 | AA68: 1421157 | AB68: 1523757 | AC68: 1626350 | AD68: 1728082
A69: BV 2023 Policy Sensitivity | B69: =ROUND(SUM(B103,B137),0) -> 23665 | C69: 38095 | D69: 56698 | E69: 71868 | F69: 82723 | G69: 93861 | H69: 105771 | I69: 119136 | J69: 133619 | K69: 146860 | L69: 160190 | M69: 173392 | N69: 189077 | O69: 203564 | P69: 312451 | Q69: 415115 | R69: 512447 | S69: 606171 | T69: 703736 | U69: 806117 | V69: 908546 | W69: 1011006 | X69: 1113486 | Y69: 1216004 | Z69: 1318564 | AA69: 1421157 | AB69: 1523757 | AC69: 1626350 | AD69: 1728082
A70: DFES 2023 - NPg Best View | B70: =ROUND(SUM(B104,B138),0) -> 23665 | C70: 32107 | D70: 44124 | E70: 69955 | F70: 105521 | G70: 147524 | H70: 159875 | I70: 172685 | J70: 185880 | K70: 199274 | L70: 212767 | M70: 226063 | N70: 240014 | O70: 277060 | P70: 385966 | Q70: 494075 | R70: 599596 | S70: 701108 | T70: 791097 | U70: 871210 | V70: 943397 | W70: 1045541 | X70: 1147573 | Y70: 1249498 | Z70: 1350297 | AA70: 1450832 | AB70: 1551258 | AC70: 1651771 | AD70: 1728082
A71: NPg ED2 Planning Scenario - needs updating to old | B71: =ROUND(SUM(B105,B139),0) -> 23665 | C71: 32107 | D71: 44124 | E71: 69955 | F71: 105521 | G71: 147524 | H71: 159875 | I71: 172685 | J71: 185880 | K71: 199274 | L71: 212767 | M71: 226063 | N71: 240014 | O71: 277060 | P71: 385966 | Q71: 494075 | R71: 599596 | S71: 701108 | T71: 791097 | U71: 871210 | V71: 943397 | W71: 1045541 | X71: 1147573 | Y71: 1249498 | Z71: 1350297 | AA71: 1450832 | AB71: 1551258 | AC71: 1651771 | AD71: 1728082
A72: DFES 2023 - Falling Short | B72: =ROUND(SUM(B106,B140),0) -> 23665 | C72: 29026 | D72: 31360 | E72: 40819 | F72: 50989 | G72: 61770 | H72: 72919 | I72: 84504 | J72: 96464 | K72: 108576 | L72: 120757 | M72: 132722 | N72: 145521 | O72: 161201 | P72: 178235 | Q72: 193176 | R72: 202023 | S72: 209863 | T72: 217812 | U72: 225785 | V72: 233818 | W72: 241793 | X72: 249757 | Y72: 257755 | Z72: 265797 | AA72: 273848 | AB72: 281903 | AC72: 289567 | AD72: 296079
A74: Full Electric Domestic HP
A75: No. of Full Electric Domestic HPs - NPg | B75: 2022 | C75: 2023 | D75: 2024 | E75: 2025 | F75: 2026 | G75: 2027 | H75: 2028 | I75: 2029 | J75: 2030 | K75: 2031 | L75: 2032 | M75: 2033 | N75: 2034 | O75: 2035 | P75: 2036 | Q75: 2037 | R75: 2038 | S75: 2039 | T75: 2040 | U75: 2041 | V75: 2042 | W75: 2043 | X75: 2044 | Y75: 2045 | Z75: 2046 | AA75: 2047 | AB75: 2048 | AC75: 2049 | AD75: 2050
A76: DFES 2023 - Consumer Transformation | B76: =ROUND(SUM(B87,B98),0) -> 42082 | C76: 56454 | D76: 77428 | E76: 122193 | F76: 183568 | G76: 256246 | H76: 284776 | I76: 307789 | J76: 331198 | K76: 354945 | L76: 378860 | M76: 402433 | N76: 427130 | O76: 483636 | P76: 661014 | Q76: 838667 | R76: 1012133 | S76: 1179164 | T76: 1327215 | U76: 1458978 | V76: 1578359 | W76: 1742409 | X76: 1912595 | Y76: 2082877 | Z76: 2251964 | AA76: 2420703 | AB76: 2589230 | AC76: 2757722 | AD76: 2885461
A77: DFES 2023 - System Transformation | B77: =ROUND(SUM(B88,B99),0) -> 42082 | C77: 52517 | D77: 67149 | E77: 83517 | F77: 101248 | G77: 120078 | H77: 139607 | I77: 160740 | J77: 177745 | K77: 200243 | L77: 221776 | M77: 242210 | N77: 259331 | O77: 306684 | P77: 306691 | Q77: 318620 | R77: 340158 | S77: 366233 | T77: 398516 | U77: 436866 | V77: 486546 | W77: 545417 | X77: 615527 | Y77: 697583 | Z77: 791401 | AA77: 892406 | AB77: 1000762 | AC77: 1117458 | AD77: 1235796
A78: DFES 2023 - Leading The Way | B78: =ROUND(SUM(B89,B100),0) -> 42082 | C78: 58365 | D78: 83930 | E78: 142089 | F78: 219748 | G78: 308046 | H78: 343977 | I78: 368531 | J78: 434967 | K78: 627792 | L78: 820640 | M78: 1009838 | N78: 1195364 | O78: 1379688 | P78: 1566058 | Q78: 1750656 | R78: 1929761 | S78: 2098414 | T78: 2239117 | U78: 2361722 | V78: 2474689 | W78: 2639795 | X78: 2816156 | Y78: 2950903 | Z78: 2960439 | AA78: 2970046 | AB78: 2979671 | AC78: 2989336 | AD78: 2999425
A79: CCC 2020 - Balanced Net Zero | B79: =ROUND(SUM(B91,B101),0) -> 41689 | C79: 58994 | D79: 79450 | E79: 116775 | F79: 160896 | G79: 214635 | H79: 283375 | I79: 360007 | J79: 450495 | K79: 530575 | L79: 608876 | M79: 700407 | N79: 796748 | O79: 895506 | P79: 1054984 | Q79: 1212719 | R79: 1361043 | S79: 1505386 | T79: 1634285 | U79: 1764841 | V79: 1895026 | W79: 2029019 | X79: 2155372 | Y79: 2282304 | Z79: 2408123 | AA79: 2535624 | AB79: 2662666 | AC79: 2740973 | AD79: 2816262
A80: CT 2023 Policy Sensitivity | B80: =ROUND(SUM(B92,B102),0) -> 42082 | C80: 66332 | D80: 97634 | E80: 122920 | F80: 140890 | G80: 159347 | H80: 179144 | I80: 201477 | J80: 225752 | K80: 247846 | L80: 270086 | M80: 292076 | N80: 317399 | O80: 340519 | P80: 525908 | Q80: 701086 | R80: 863305 | S80: 1017301 | T80: 1176787 | U80: 1342746 | V80: 1508383 | W80: 1678125 | X80: 1850322 | Y80: 2023166 | Z80: 2196185 | AA80: 2369356 | AB80: 2542566 | AC80: 2715644 | AD80: 2885461
A81: BV 2023 Policy Sensitivity | B81: =ROUND(SUM(B93,B103),0) -> 42082 | C81: 62441 | D81: 90003 | E81: 124106 | F81: 160769 | G81: 202582 | H81: 230672 | I81: 254239 | J81: 278937 | K81: 302531 | L81: 326284 | M81: 349762 | N81: 376193 | O81: 410140 | P81: 587499 | Q81: 759707 | R81: 924983 | S81: 1084227 | T81: 1239853 | U81: 1393885 | V81: 1543507 | W81: 1707874 | X81: 1878509 | Y81: 2049383 | Z81: 2220232 | AA81: 2391028 | AB81: 2561728 | AC81: 2732301 | AD81: 2885461
A82: DFES 2023 - NPg Best View | B82: =ROUND(SUM(B93,B104),0) -> 42082 | C82: 56454 | D82: 77428 | E82: 122193 | F82: 183568 | G82: 256246 | H82: 284776 | I82: 307789 | J82: 331198 | K82: 354945 | L82: 378860 | M82: 402433 | N82: 427130 | O82: 483636 | P82: 661014 | Q82: 838667 | R82: 1012133 | S82: 1179164 | T82: 1327215 | U82: 1458978 | V82: 1578359 | W82: 1742409 | X82: 1912595 | Y82: 2082877 | Z82: 2251964 | AA82: 2420703 | AB82: 2589230 | AC82: 2757722 | AD82: 2885461
A83: NPg ED2 Planning Scenario - needs updating to old | B83: =ROUND(SUM(B94,B105),0) -> 42082 | C83: 56454 | D83: 77428 | E83: 122193 | F83: 183568 | G83: 256246 | H83: 284776 | I83: 307789 | J83: 331198 | K83: 354945 | L83: 378860 | M83: 402433 | N83: 427130 | O83: 483636 | P83: 661014 | Q83: 838667 | R83: 1012133 | S83: 1179164 | T83: 1327215 | U83: 1458978 | V83: 1578359 | W83: 1742409 | X83: 1912595 | Y83: 2082877 | Z83: 2251964 | AA83: 2420703 | AB83: 2589230 | AC83: 2757722 | AD83: 2885461
A84: DFES 2023 - Falling Short | B84: =ROUND(SUM(B95,B106),0) -> 42082 | C84: 51155 | D84: 55185 | E84: 71533 | F84: 89104 | G84: 107730 | H84: 126990 | I84: 146998 | J84: 167652 | K84: 188570 | L84: 209603 | M84: 230253 | N84: 247707 | O84: 267326 | P84: 288512 | Q84: 307331 | R84: 319800 | S84: 331697 | T84: 343798 | U84: 355981 | V84: 368268 | W84: 380468 | X84: 392650 | Y84: 404884 | Z84: 417189 | AA84: 429506 | AB84: 441829 | AC84: 453286 | AD84: 462189
A86: No. of Full Electric Domestic HPs - NPgN | B86: 2022 | C86: 2023 | D86: 2024 | E86: 2025 | F86: 2026 | G86: 2027 | H86: 2028 | I86: 2029 | J86: 2030 | K86: 2031 | L86: 2032 | M86: 2033 | N86: 2034 | O86: 2035 | P86: 2036 | Q86: 2037 | R86: 2038 | S86: 2039 | T86: 2040 | U86: 2041 | V86: 2042 | W86: 2043 | X86: 2044 | Y86: 2045 | Z86: 2046 | AA86: 2047 | AB86: 2048 | AC86: 2049 | AD86: 2050
A87: DFES 2023 - Consumer Transformation | B87: 18417.28823 | C87: 24346.25014 | D87: 33304.89792 | E87: 52238.06188 | F87: 78046.66435 | G87: 108721.4268 | H87: 124901.353 | I87: 135103.5867 | J87: 145317.6973 | K87: 155671.3176 | L87: 166093.7876 | M87: 176369.8326 | N87: 187115.8639 | O87: 206575.6442 | P87: 275048.0693 | Q87: 344592.1473 | R87: 412536.7113 | S87: 478055.706 | T87: 536117.0888 | U87: 587767.6045 | V87: 634961.204 | W87: 696868.0693 | X87: 765022.7732 | Y87: 833379.2872 | Z87: 901667.4054 | AA87: 969871.3455 | AB87: 1037971.878 | AC87: 1105950.853 | AD87: 1157379.377
A88: DFES 2023 - System Transformation | B88: 18417.28823 | C88: 22686.69165 | D88: 28927.49989 | E88: 35820.85801 | F88: 43280.55546 | G88: 51201.47003 | H88: 59412.97215 | I88: 68403.76877 | J88: 75932.55543 | K88: 85794.05202 | L88: 95236.73947 | M88: 104205.4132 | N88: 111732.2213 | O88: 130665.2832 | P88: 131728.5403 | Q88: 135976.7986 | R88: 144691.0604 | S88: 155194.3754 | T88: 168231.1745 | U88: 183935.5838 | V88: 204362.9735 | W88: 228583.9786 | X88: 257416.9024 | Y88: 291082.9492 | Z88: 329631.6522 | AA88: 371134.7457 | AB88: 415661.7613 | AC88: 463623.598 | AD88: 512301.0701
A89: DFES 2023 - Leading The Way | B89: 18417.28823 | C89: 26345.60324 | D89: 39506.51116 | E89: 69498.13093 | F89: 108794.5297 | G89: 152377.902 | H89: 175439.969 | I89: 186646.4665 | J89: 214511.2017 | K89: 293957.8617 | L89: 373397.962 | M89: 449692.6027 | N89: 522508.5994 | O89: 593850.4464 | P89: 665536.5604 | Q89: 737147.137 | R89: 806220.4251 | S89: 870768.9199 | T89: 922229.2286 | U89: 965140.508 | V89: 1004162.08 | W89: 1063187.075 | X89: 1133568.328 | Y89: 1187302.828 | Z89: 1189777.877 | AA89: 1192270.238 | AB89: 1194763.346 | AC89: 1197263.398 | AD89: 1200986.737
A90: CCC 2020 - Balanced Net Zero | B90: 17151.75619 | C90: 22314.92356 | D90: 27666.23449 | E90: 46485.33236 | F90: 72081.0202 | G90: 104187.7251 | H90: 146276.7923 | I90: 198915.3231 | J90: 248889.8638 | K90: 298155.0707 | L90: 346281.1264 | M90: 406928.0941 | N90: 467994.0143 | O90: 525682.859 | P90: 583073.4766 | Q90: 642016.696 | R90: 699725.7577 | S90: 757873.8217 | T90: 804199.1881 | U90: 850524.5538 | V90: 896849.9202 | W90: 942990.9956 | X90: 982163.4058 | Y90: 1021335.817 | Z90: 1060508.227 | AA90: 1099680.638 | AB90: 1139616.741 | AC90: 1144626.002 | AD90: 1149635.263
A91: CT 2023 Policy Sensitivity | B91: 18417.28823 | C91: 28237.38994 | D91: 40936.0613 | E91: 51051.82586 | F91: 58166.99202 | G91: 65485.92125 | H91: 73373.0418 | I91: 82340.76027 | J91: 92133.43376 | K91: 100985.3896 | L91: 109895.864 | M91: 118683.6852 | N91: 128322.4017 | O91: 136954.4048 | P91: 213456.5977 | Q91: 285970.7601 | R91: 350858.1042 | S91: 411129.7625 | T91: 473051.0889 | U91: 536629.1404 | V91: 599837.0069 | W91: 667118.5658 | X91: 736835.8512 | Y91: 807162.3225 | Z91: 877620.7105 | AA91: 948199.3215 | AB91: 1018809.714 | AC91: 1089294.707 | AD91: 1157379.377
A92: BV 2023 Policy Sensitivity | B92: 18417.28823 | C92: 28237.38994 | D92: 40936.0613 | E92: 51051.82586 | F92: 58166.99202 | G92: 65485.92125 | H92: 73373.0418 | I92: 82340.76027 | J92: 92133.43376 | K92: 100985.3896 | L92: 109895.864 | M92: 118683.6852 | N92: 128322.4017 | O92: 136954.4048 | P92: 213456.5977 | Q92: 285970.7601 | R92: 350858.1042 | S92: 411129.7625 | T92: 473051.0889 | U92: 536629.1404 | V92: 599837.0069 | W92: 667118.5658 | X92: 736835.8512 | Y92: 807162.3225 | Z92: 877620.7105 | AA92: 948199.3215 | AB92: 1018809.714 | AC92: 1089294.707 | AD92: 1157379.377
A93: DFES 2023 - NPg Best View | B93: 18417.28823 | C93: 24346.25014 | D93: 33304.89792 | E93: 52238.06188 | F93: 78046.66435 | G93: 108721.4268 | H93: 124901.353 | I93: 135103.5867 | J93: 145317.6973 | K93: 155671.3176 | L93: 166093.7876 | M93: 176369.8326 | N93: 187115.8639 | O93: 206575.6442 | P93: 275048.0693 | Q93: 344592.1473 | R93: 412536.7113 | S93: 478055.706 | T93: 536117.0888 | U93: 587767.6045 | V93: 634961.204 | W93: 696868.0693 | X93: 765022.7732 | Y93: 833379.2872 | Z93: 901667.4054 | AA93: 969871.3455 | AB93: 1037971.878 | AC93: 1105950.853 | AD93: 1157379.377
A94: NPg ED2 Planning Scenario - needs updating to old | B94: 18417.28823 | C94: 24346.25014 | D94: 33304.89792 | E94: 52238.06188 | F94: 78046.66435 | G94: 108721.4268 | H94: 124901.353 | I94: 135103.5867 | J94: 145317.6973 | K94: 155671.3176 | L94: 166093.7876 | M94: 176369.8326 | N94: 187115.8639 | O94: 206575.6442 | P94: 275048.0693 | Q94: 344592.1473 | R94: 412536.7113 | S94: 478055.706 | T94: 536117.0888 | U94: 587767.6045 | V94: 634961.204 | W94: 696868.0693 | X94: 765022.7732 | Y94: 833379.2872 | Z94: 901667.4054 | AA94: 969871.3455 | AB94: 1037971.878 | AC94: 1105950.853 | AD94: 1157379.377
A95: DFES 2023 - Falling Short | B95: 18417.28823 | C95: 22129.12265 | D95: 23827.86396 | E95: 30719.68116 | F95: 38123.93349 | G95: 45972.36515 | H95: 54086.09758 | I95: 62512.93984 | J95: 71211.9218 | K95: 80021.09844 | L95: 88877.12362 | M95: 97568.38817 | N95: 102228.6754 | O95: 106171.8074 | P95: 110329.605 | Q95: 114213.6851 | R95: 117840.9618 | S95: 121901.8194 | T95: 126057.5649 | U95: 130270.9263 | V95: 134527.6365 | W95: 138755.92 | X95: 142976.4272 | Y95: 147215.8172 | Z95: 151480.5862 | AA95: 155750.0549 | AB95: 160020.0695 | AC95: 163815.9005 | AD95: 166208.3225
A97: No. of Full Electric Domestic HPs - NPgY | B97: 2022 | C97: 2023 | D97: 2024 | E97: 2025 | F97: 2026 | G97: 2027 | H97: 2028 | I97: 2029 | J97: 2030 | K97: 2031 | L97: 2032 | M97: 2033 | N97: 2034 | O97: 2035 | P97: 2036 | Q97: 2037 | R97: 2038 | S97: 2039 | T97: 2040 | U97: 2041 | V97: 2042 | W97: 2043 | X97: 2044 | Y97: 2045 | Z97: 2046 | AA97: 2047 | AB97: 2048 | AC97: 2049 | AD97: 2050
A98: DFES 2023 - Consumer Transformation | B98: 23665.11689 | C98: 32107.43275 | D98: 44123.55739 | E98: 69954.58107 | F98: 105521.2242 | G98: 147524.106 | H98: 159874.8612 | I98: 172685.0277 | J98: 185880.4703 | K98: 199273.535 | L98: 212766.5485 | M98: 226063.1426 | N98: 240014.4038 | O98: 277059.8776 | P98: 385965.9166 | Q98: 494074.7826 | R98: 599596.0059 | S98: 701108.3667 | T98: 791097.4966 | U98: 871210.2266 | V98: 943397.4939 | W98: 1045541.245 | X98: 1147572.606 | Y98: 1249498.074 | Z98: 1350296.98 | AA98: 1450831.892 | AB98: 1551257.906 | AC98: 1651771.29 | AD98: 1728081.791
A99: DFES 2023 - System Transformation | B99: 23665.11689 | C99: 29830.25747 | D99: 38221.71763 | E99: 47696.00116 | F99: 57966.94649 | G99: 68876.09414 | H99: 80193.5993 | I99: 92336.27706 | J99: 101812.1132 | K99: 114449.2517 | L99: 126539.7574 | M99: 138004.6515 | N99: 147598.7674 | O99: 176018.9717 | P99: 174962.2618 | Q99: 182642.9519 | R99: 195466.5451 | S99: 211039.0051 | T99: 230284.624 | U99: 252930.5172 | V99: 282183.4237 | W99: 316832.7101 | X99: 358110.2965 | Y99: 406500.1619 | Z99: 461769.6159 | AA99: 521271.2305 | AB99: 585100.177 | AC99: 653834.2561 | AD99: 723494.9857
A100: DFES 2023 - Leading The Way | B100: 23665.11689 | C100: 32019.0917 | D100: 44423.50618 | E100: 72591.14865 | F100: 110953.1405 | G100: 155668.0415 | H100: 168537.0898 | I100: 181884.8284 | J100: 220455.8206 | K100: 333834.563 | L100: 447242.4101 | M100: 560145.6549 | N100: 672855.6366 | O100: 785837.1229 | P100: 900521.8075 | Q100: 1013508.982 | R100: 1123540.362 | S100: 1227644.808 | T100: 1316888.056 | U100: 1396581.468 | V100: 1470526.628 | W100: 1576608.396 | X100: 1682587.906 | Y100: 1763599.673 | Z100: 1770661.595 | AA100: 1777776.258 | AB100: 1784907.757 | AC100: 1792072.587 | AD100: 1798438.625
A101: CCC 2020 - Balanced Net Zero | B101: 23272.13872 | C101: 30757.03949 | D101: 38513.96025 | E101: 65722.81726 | F101: 102729.342 | G101: 149149.5662 | H101: 210002.3988 | I101: 277666.447 | J101: 358361.4969 | K101: 429589.6705 | L101: 498980.109 | M101: 581723.5781 | N101: 668425.244 | O101: 758551.8291 | P101: 841527.8102 | Q101: 926748.5598 | R101: 1010184.951 | S101: 1094256.056 | T101: 1161233.776 | U101: 1228211.495 | V101: 1295189.215 | W101: 1361900.486 | X101: 1418536.384 | Y101: 1475141.478 | Z101: 1530502.265 | AA101: 1587425.062 | AB101: 1643856.562 | AC101: 1651678.03 | AD101: 1658882.505
A102: CT 2023 Policy Sensitivity | B102: 23665.11689 | C102: 38094.53819 | D102: 56697.98756 | E102: 71868.18524 | F102: 82722.81448 | G102: 93861.0453 | H102: 105770.6097 | I102: 119135.9023 | J102: 133618.8254 | K102: 146860.1287 | L102: 160190.3872 | M102: 173392.1663 | N102: 189077.0303 | O102: 203564.4186 | P102: 312451.1736 | Q102: 415115.2468 | R102: 512446.744 | S102: 606171.4055 | T102: 703735.7058 | U102: 806117.1575 | V102: 908545.627 | W102: 1011006.193 | X102: 1113486.11 | Y102: 1216003.708 | Z102: 1318564.431 | AA102: 1421156.7 | AB102: 1523756.61 | AC102: 1626349.793 | AD102: 1728081.791
A103: BV 2023 Policy Sensitivity | B103: 23665.11689 | C103: 38094.53819 | D103: 56697.98756 | E103: 71868.18524 | F103: 82722.81448 | G103: 93861.0453 | H103: 105770.6097 | I103: 119135.9023 | J103: 133618.8254 | K103: 146860.1287 | L103: 160190.3872 | M103: 173392.1663 | N103: 189077.0303 | O103: 203564.4186 | P103: 312451.1736 | Q103: 415115.2468 | R103: 512446.744 | S103: 606171.4055 | T103: 703735.7058 | U103: 806117.1575 | V103: 908545.627 | W103: 1011006.193 | X103: 1113486.11 | Y103: 1216003.708 | Z103: 1318564.431 | AA103: 1421156.7 | AB103: 1523756.61 | AC103: 1626349.793 | AD103: 1728081.791
A104: DFES 2023 - NPg Best View | B104: 23665.11689 | C104: 32107.43275 | D104: 44123.55739 | E104: 69954.58107 | F104: 105521.2242 | G104: 147524.106 | H104: 159874.8612 | I104: 172685.0277 | J104: 185880.4703 | K104: 199273.535 | L104: 212766.5485 | M104: 226063.1426 | N104: 240014.4038 | O104: 277059.8776 | P104: 385965.9166 | Q104: 494074.7826 | R104: 599596.0059 | S104: 701108.3667 | T104: 791097.4966 | U104: 871210.2266 | V104: 943397.4939 | W104: 1045541.245 | X104: 1147572.606 | Y104: 1249498.074 | Z104: 1350296.98 | AA104: 1450831.892 | AB104: 1551257.906 | AC104: 1651771.29 | AD104: 1728081.791
A105: NPg ED2 Planning Scenario - needs updating to old | B105: 23665.11689 | C105: 32107.43275 | D105: 44123.55739 | E105: 69954.58107 | F105: 105521.2242 | G105: 147524.106 | H105: 159874.8612 | I105: 172685.0277 | J105: 185880.4703 | K105: 199273.535 | L105: 212766.5485 | M105: 226063.1426 | N105: 240014.4038 | O105: 277059.8776 | P105: 385965.9166 | Q105: 494074.7826 | R105: 599596.0059 | S105: 701108.3667 | T105: 791097.4966 | U105: 871210.2266 | V105: 943397.4939 | W105: 1045541.245 | X105: 1147572.606 | Y105: 1249498.074 | Z105: 1350296.98 | AA105: 1450831.892 | AB105: 1551257.906 | AC105: 1651771.29 | AD105: 1728081.791
A106: DFES 2023 - Falling Short | B106: 23665.11689 | C106: 29025.44001 | D106: 31356.81834 | E106: 40813.11017 | F106: 50980.51875 | G106: 61758.06831 | H106: 72903.65006 | I106: 84484.56385 | J106: 96440.37521 | K106: 108548.7339 | L106: 120725.4186 | M106: 132684.6249 | N106: 145478.6693 | O106: 161153.8381 | P106: 178182.1093 | Q106: 193117.3297 | R106: 201959.4479 | S106: 209795.0848 | T106: 217740.4436 | U106: 225710.0666 | V106: 233739.948 | W106: 241711.9007 | X106: 249673.5481 | Y106: 257668.1652 | Z106: 265707.9259 | AA106: 273756.27 | AB106: 281808.8475 | AC106: 289470.4364 | AD106: 295980.3367
A108: Hybrid Domestic HP
A109: No. of Hybrid Domestic HPs - NPg | B109: 2022 | C109: 2023 | D109: 2024 | E109: 2025 | F109: 2026 | G109: 2027 | H109: 2028 | I109: 2029 | J109: 2030 | K109: 2031 | L109: 2032 | M109: 2033 | N109: 2034 | O109: 2035 | P109: 2036 | Q109: 2037 | R109: 2038 | S109: 2039 | T109: 2040 | U109: 2041 | V109: 2042 | W109: 2043 | X109: 2044 | Y109: 2045 | Z109: 2046 | AA109: 2047 | AB109: 2048 | AC109: 2049 | AD109: 2050
A110: DFES 2023 - Consumer Transformation | B110: =ROUND(SUM(B121,B132),0) -> 0 | C110: 0 | D110: 0 | E110: 0 | F110: 0 | G110: 0 | H110: 0 | I110: 0 | J110: 0 | K110: 0 | L110: 0 | M110: 0 | N110: 0 | O110: 0 | P110: 0 | Q110: 0 | R110: 0 | S110: 0 | T110: 0 | U110: 0 | V110: 0 | W110: 0 | X110: 0 | Y110: 0 | Z110: 0 | AA110: 0 | AB110: 0 | AC110: 0 | AD110: 0
A111: DFES 2023 - System Transformation | B111: =ROUND(SUM(B122,B133),0) -> 0 | C111: 0 | D111: 0 | E111: 0 | F111: 0 | G111: 0 | H111: 0 | I111: 0 | J111: 7236 | K111: 9252 | L111: 12332 | M111: 16062 | N111: 24188 | O111: 42926 | P111: 57083 | Q111: 77916 | R111: 103653 | S111: 135877 | T111: 170792 | U111: 205238 | V111: 238404 | W111: 276001 | X111: 319404 | Y111: 370019 | Z111: 427324 | AA111: 488947 | AB111: 554889 | AC111: 625502 | AD111: 693421
A112: DFES 2023 - Leading The Way | B112: =ROUND(SUM(B123,B134),0) -> 0 | C112: 0 | D112: 0 | E112: 0 | F112: 0 | G112: 0 | H112: 0 | I112: 0 | J112: 0 | K112: 0 | L112: 0 | M112: 0 | N112: 0 | O112: 0 | P112: 0 | Q112: 0 | R112: 0 | S112: 0 | T112: 0 | U112: 0 | V112: 0 | W112: 0 | X112: 0 | Y112: 0 | Z112: 0 | AA112: 0 | AB112: 0 | AC112: 0 | AD112: 0
A113: CCC 2020 - Balanced Net Zero | B113: =ROUND(SUM(B124,B135),0) -> 6073 | C113: 11648 | D113: 17834 | E113: 22121 | F113: 28486 | G113: 36905 | H113: 46216 | I113: 49193 | J113: 60744 | K113: 70079 | L113: 91431 | M113: 104599 | N113: 127846 | O113: 164661 | P113: 199755 | Q113: 228071 | R113: 262121 | S113: 301141 | T113: 358622 | U113: 424956 | V113: 474571 | W113: 505963 | X113: 534560 | Y113: 552026 | Z113: 560621 | AA113: 569103 | AB113: 577862 | AC113: 586380 | AD113: 587032
A114: CT 2023 Policy Sensitivity | B114: =ROUND(SUM(B125,B136),0) -> 0 | C114: 0 | D114: 0 | E114: 0 | F114: 0 | G114: 0 | H114: 0 | I114: 0 | J114: 0 | K114: 0 | L114: 0 | M114: 0 | N114: 0 | O114: 0 | P114: 0 | Q114: 0 | R114: 0 | S114: 0 | T114: 0 | U114: 0 | V114: 0 | W114: 0 | X114: 0 | Y114: 0 | Z114: 0 | AA114: 0 | AB114: 0 | AC114: 0 | AD114: 0
A115: BV 2023 Policy Sensitivity | B115: =ROUND(SUM(B126,B137),0) -> 0 | C115: 0 | D115: 0 | E115: 0 | F115: 0 | G115: 0 | H115: 0 | I115: 0 | J115: 0 | K115: 0 | L115: 0 | M115: 0 | N115: 0 | O115: 0 | P115: 0 | Q115: 0 | R115: 0 | S115: 0 | T115: 0 | U115: 0 | V115: 0 | W115: 0 | X115: 0 | Y115: 0 | Z115: 0 | AA115: 0 | AB115: 0 | AC115: 0 | AD115: 0
A116: DFES 2023 - NPg Best View | B116: =ROUND(SUM(B127,B138),0) -> 0 | C116: 0 | D116: 0 | E116: 0 | F116: 0 | G116: 0 | H116: 0 | I116: 0 | J116: 0 | K116: 0 | L116: 0 | M116: 0 | N116: 0 | O116: 0 | P116: 0 | Q116: 0 | R116: 0 | S116: 0 | T116: 0 | U116: 0 | V116: 0 | W116: 0 | X116: 0 | Y116: 0 | Z116: 0 | AA116: 0 | AB116: 0 | AC116: 0 | AD116: 0
A117: NPg ED2 Planning Scenario - needs updating to old | B117: =ROUND(SUM(B128,B139),0) -> 0 | C117: 0 | D117: 0 | E117: 0 | F117: 0 | G117: 0 | H117: 0 | I117: 0 | J117: 0 | K117: 0 | L117: 0 | M117: 0 | N117: 0 | O117: 0 | P117: 0 | Q117: 0 | R117: 0 | S117: 0 | T117: 0 | U117: 0 | V117: 0 | W117: 0 | X117: 0 | Y117: 0 | Z117: 0 | AA117: 0 | AB117: 0 | AC117: 0 | AD117: 0
A118: DFES 2023 - Falling Short | B118: =ROUND(SUM(B129,B140),0) -> 0 | C118: 2 | D118: 5 | E118: 9 | F118: 15 | G118: 20 | H118: 26 | I118: 33 | J118: 40 | K118: 48 | L118: 56 | M118: 64 | N118: 73 | O118: 82 | P118: 91 | Q118: 101 | R118: 109 | S118: 116 | T118: 122 | U118: 128 | V118: 133 | W118: 138 | X118: 143 | Y118: 147 | Z118: 152 | AA118: 156 | AB118: 160 | AC118: 163 | AD118: 167
A120: No. of Hybrid Domestic HPs - NPgN | B120: 2022 | C120: 2023 | D120: 2024 | E120: 2025 | F120: 2026 | G120: 2027 | H120: 2028 | I120: 2029 | J120: 2030 | K120: 2031 | L120: 2032 | M120: 2033 | N120: 2034 | O120: 2035 | P120: 2036 | Q120: 2037 | R120: 2038 | S120: 2039 | T120: 2040 | U120: 2041 | V120: 2042 | W120: 2043 | X120: 2044 | Y120: 2045 | Z120: 2046 | AA120: 2047 | AB120: 2048 | AC120: 2049 | AD120: 2050
A121: DFES 2023 - Consumer Transformation | B121: 0 | C121: 0 | D121: 0 | E121: 0 | F121: 0 | G121: 0 | H121: 0 | I121: 0 | J121: 0 | K121: 0 | L121: 0 | M121: 0 | N121: 0 | O121: 0 | P121: 0 | Q121: 0 | R121: 0 | S121: 0 | T121: 0 | U121: 0 | V121: 0 | W121: 0 | X121: 0 | Y121: 0 | Z121: 0 | AA121: 0 | AB121: 0 | AC121: 0 | AD121: 0
A122: DFES 2023 - System Transformation | B122: 0 | C122: 0 | D122: 0 | E122: 0 | F122: 0 | G122: 0 | H122: 0 | I122: 0 | J122: 3091.099852 | K122: 3963.944693 | L122: 5295.527985 | M122: 6910.221234 | N122: 10421.34354 | O122: 18382.56487 | P122: 23897.75451 | Q122: 33252.23338 | R122: 44090.29887 | S122: 57579.00837 | T122: 72098.95126 | U122: 86412.28331 | V122: 100136.3191 | W122: 115671.9323 | X122: 133576.5041 | Y122: 154398.8557 | Z122: 177987.3899 | AA122: 203343.6874 | AB122: 230470.5681 | AC122: 259515.4072 | AD122: 287458.4848
A123: DFES 2023 - Leading The Way | B123: 0 | C123: 0 | D123: 0 | E123: 0 | F123: 0 | G123: 0 | H123: 0 | I123: 0 | J123: 0 | K123: 0 | L123: 0 | M123: 0 | N123: 0 | O123: 0 | P123: 0 | Q123: 0 | R123: 0 | S123: 0 | T123: 0 | U123: 0 | V123: 0 | W123: 0 | X123: 0 | Y123: 0 | Z123: 0 | AA123: 0 | AB123: 0 | AC123: 0 | AD123: 0
A124: CCC 2020 - Balanced Net Zero | B124: 2482.898973 | C124: 4762.317985 | D124: 7291.670991 | E124: 9044.30556 | F124: 11646.68491 | G124: 15088.86831 | H124: 18896.18393 | I124: 20113.29125 | J124: 24835.75652 | K124: 28652.64369 | L124: 37382.58693 | M124: 42766.51228 | N124: 53879.16832 | O124: 67323.66344 | P124: 81672.30359 | Q124: 93249.55901 | R124: 107171.4076 | S124: 123125.0706 | T124: 146627.2278 | U124: 173748.4183 | V124: 194034.14 | W124: 206869.094 | X124: 218561.5107 | Y124: 225702.8208 | Z124: 229216.7602 | AA124: 232684.9682 | AB124: 236266.0675 | AC124: 239748.6399 | AD124: 240015.4173
A125: CT 2023 Policy Sensitivity | B125: 0 | C125: 0 | D125: 0 | E125: 0 | F125: 0 | G125: 0 | H125: 0 | I125: 0 | J125: 0 | K125: 0 | L125: 0 | M125: 0 | N125: 0 | O125: 0 | P125: 0 | Q125: 0 | R125: 0 | S125: 0 | T125: 0 | U125: 0 | V125: 0 | W125: 0 | X125: 0 | Y125: 0 | Z125: 0 | AA125: 0 | AB125: 0 | AC125: 0 | AD125: 0
A126: BV 2023 Policy Sensitivity | B126: 0 | C126: 0 | D126: 0 | E126: 0 | F126: 0 | G126: 0 | H126: 0 | I126: 0 | J126: 0 | K126: 0 | L126: 0 | M126: 0 | N126: 0 | O126: 0 | P126: 0 | Q126: 0 | R126: 0 | S126: 0 | T126: 0 | U126: 0 | V126: 0 | W126: 0 | X126: 0 | Y126: 0 | Z126: 0 | AA126: 0 | AB126: 0 | AC126: 0 | AD126: 0
A127: DFES 2023 - NPg Best View | B127: 0 | C127: 0 | D127: 0 | E127: 0 | F127: 0 | G127: 0 | H127: 0 | I127: 0 | J127: 0 | K127: 0 | L127: 0 | M127: 0 | N127: 0 | O127: 0 | P127: 0 | Q127: 0 | R127: 0 | S127: 0 | T127: 0 | U127: 0 | V127: 0 | W127: 0 | X127: 0 | Y127: 0 | Z127: 0 | AA127: 0 | AB127: 0 | AC127: 0 | AD127: 0
A128: NPg ED2 Planning Scenario - needs updating to old | B128: 0 | C128: 0 | D128: 0 | E128: 0 | F128: 0 | G128: 0 | H128: 0 | I128: 0 | J128: 0 | K128: 0 | L128: 0 | M128: 0 | N128: 0 | O128: 0 | P128: 0 | Q128: 0 | R128: 0 | S128: 0 | T128: 0 | U128: 0 | V128: 0 | W128: 0 | X128: 0 | Y128: 0 | Z128: 0 | AA128: 0 | AB128: 0 | AC128: 0 | AD128: 0
A129: DFES 2023 - Falling Short | B129: 0 | C129: 0.7495799689 | D129: 2.127781275 | E129: 3.966860928 | F129: 6.13010457 | G129: 8.478474236 | H129: 11.08088832 | I129: 13.98520819 | J129: 17.07934015 | K129: 20.31050642 | L129: 23.73461138 | M129: 27.40990522 | N129: 31.23083904 | O129: 34.85404049 | P129: 38.61585338 | Q129: 42.36440472 | R129: 45.7120902 | S129: 48.60452396 | T129: 51.1061811 | U129: 53.34564398 | V129: 55.47052671 | W129: 57.42699122 | X129: 59.17164271 | Y129: 60.81886605 | Z129: 62.42738051 | AA129: 63.94761016 | AB129: 65.32711261 | AC129: 66.6718047 | AD129: 68.2922787
A131: No. of Hybrid Domestic HPs - NPgY | B131: 2022 | C131: 2023 | D131: 2024 | E131: 2025 | F131: 2026 | G131: 2027 | H131: 2028 | I131: 2029 | J131: 2030 | K131: 2031 | L131: 2032 | M131: 2033 | N131: 2034 | O131: 2035 | P131: 2036 | Q131: 2037 | R131: 2038 | S131: 2039 | T131: 2040 | U131: 2041 | V131: 2042 | W131: 2043 | X131: 2044 | Y131: 2045 | Z131: 2046 | AA131: 2047 | AB131: 2048 | AC131: 2049 | AD131: 2050
A132: DFES 2023 - Consumer Transformation | B132: 0 | C132: 0 | D132: 0 | E132: 0 | F132: 0 | G132: 0 | H132: 0 | I132: 0 | J132: 0 | K132: 0 | L132: 0 | M132: 0 | N132: 0 | O132: 0 | P132: 0 | Q132: 0 | R132: 0 | S132: 0 | T132: 0 | U132: 0 | V132: 0 | W132: 0 | X132: 0 | Y132: 0 | Z132: 0 | AA132: 0 | AB132: 0 | AC132: 0 | AD132: 0
A133: DFES 2023 - System Transformation | B133: 0 | C133: 0 | D133: 0 | E133: 0 | F133: 0 | G133: 0 | H133: 0 | I133: 0 | J133: 4144.628604 | K133: 5287.91395 | L133: 7036.110635 | M133: 9151.583147 | N133: 13766.66634 | O133: 24543.49299 | P133: 33185.64844 | Q133: 44664.20088 | R133: 59562.70124 | S133: 78298.14996 | T133: 98693.36017 | U133: 118825.989 | V133: 138267.8918 | W133: 160329.1915 | X133: 185827.5776 | Y133: 215619.651 | Z133: 249336.5524 | AA133: 285603.2045 | AB133: 324418.6724 | AC133: 365986.846 | AD133: 405962.1732
A134: DFES 2023 - Leading The Way | B134: 0 | C134: 0 | D134: 0 | E134: 0 | F134: 0 | G134: 0 | H134: 0 | I134: 0 | J134: 0 | K134: 0 | L134: 0 | M134: 0 | N134: 0 | O134: 0 | P134: 0 | Q134: 0 | R134: 0 | S134: 0 | T134: 0 | U134: 0 | V134: 0 | W134: 0 | X134: 0 | Y134: 0 | Z134: 0 | AA134: 0 | AB134: 0 | AC134: 0 | AD134: 0
A135: CCC 2020 - Balanced Net Zero | B135: 3589.802423 | C135: 6885.411297 | D135: 10542.37747 | E135: 13076.35565 | F135: 16838.9041 | G135: 21815.65042 | H135: 27320.30887 | I135: 29080.01592 | J135: 35907.80773 | K135: 41426.30484 | L135: 54048.15201 | M135: 61832.29002 | N135: 73967.1373 | O135: 97337.28707 | P135: 118082.7075 | Q135: 134821.2297 | R135: 154949.5903 | S135: 178015.5703 | T135: 211995.2455 | U135: 251207.3587 | V135: 280536.6765 | W135: 299093.5929 | X135: 315998.6166 | Y135: 326323.6006 | Z135: 331404.0925 | AA135: 336418.4654 | AB135: 341596.058 | AC135: 346631.1991 | AD135: 347016.9087
A136: CT 2023 Policy Sensitivity | B136: 0 | C136: 0 | D136: 0 | E136: 0 | F136: 0 | G136: 0 | H136: 0 | I136: 0 | J136: 0 | K136: 0 | L136: 0 | M136: 0 | N136: 0 | O136: 0 | P136: 0 | Q136: 0 | R136: 0 | S136: 0 | T136: 0 | U136: 0 | V136: 0 | W136: 0 | X136: 0 | Y136: 0 | Z136: 0 | AA136: 0 | AB136: 0 | AC136: 0 | AD136: 0
A137: BV 2023 Policy Sensitivity | B137: 0 | C137: 0 | D137: 0 | E137: 0 | F137: 0 | G137: 0 | H137: 0 | I137: 0 | J137: 0 | K137: 0 | L137: 0 | M137: 0 | N137: 0 | O137: 0 | P137: 0 | Q137: 0 | R137: 0 | S137: 0 | T137: 0 | U137: 0 | V137: 0 | W137: 0 | X137: 0 | Y137: 0 | Z137: 0 | AA137: 0 | AB137: 0 | AC137: 0 | AD137: 0
A138: DFES 2023 - NPg Best View | B138: 0 | C138: 0 | D138: 0 | E138: 0 | F138: 0 | G138: 0 | H138: 0 | I138: 0 | J138: 0 | K138: 0 | L138: 0 | M138: 0 | N138: 0 | O138: 0 | P138: 0 | Q138: 0 | R138: 0 | S138: 0 | T138: 0 | U138: 0 | V138: 0 | W138: 0 | X138: 0 | Y138: 0 | Z138: 0 | AA138: 0 | AB138: 0 | AC138: 0 | AD138: 0
A139: NPg ED2 Planning Scenario - needs updating to old | B139: 0 | C139: 0 | D139: 0 | E139: 0 | F139: 0 | G139: 0 | H139: 0 | I139: 0 | J139: 0 | K139: 0 | L139: 0 | M139: 0 | N139: 0 | O139: 0 | P139: 0 | Q139: 0 | R139: 0 | S139: 0 | T139: 0 | U139: 0 | V139: 0 | W139: 0 | X139: 0 | Y139: 0 | Z139: 0 | AA139: 0 | AB139: 0 | AC139: 0 | AD139: 0
A140: DFES 2023 - Falling Short | B140: 0 | C140: 1.012837107 | D140: 2.914919037 | E140: 5.433252882 | F140: 8.383495037 | G140: 11.57719854 | H140: 15.10248628 | I140: 19.02018261 | J140: 23.17655609 | K140: 27.49893758 | L140: 32.05928532 | M140: 36.92892426 | N140: 42.0869818 | O140: 47.35404084 | P140: 52.81964012 | Q140: 58.27480314 | R140: 63.19787722 | S140: 67.47825366 | T140: 71.24071857 | U140: 74.66203492 | V140: 77.94406938 | W140: 81.01884419 | X140: 83.83138751 | Y140: 86.53915867 | Z140: 89.22312734 | AA140: 91.81985084 | AB140: 94.26560251 | AC140: 96.57942132 | AD140: 98.91570479
A143: I&C HP
A144: No. of I&C HPs - NPg | B144: 2022 | C144: 2023 | D144: 2024 | E144: 2025 | F144: 2026 | G144: 2027 | H144: 2028 | I144: 2029 | J144: 2030 | K144: 2031 | L144: 2032 | M144: 2033 | N144: 2034 | O144: 2035 | P144: 2036 | Q144: 2037 | R144: 2038 | S144: 2039 | T144: 2040 | U144: 2041 | V144: 2042 | W144: 2043 | X144: 2044 | Y144: 2045 | Z144: 2046 | AA144: 2047 | AB144: 2048 | AC144: 2049 | AD144: 2050
A145: DFES 2023 - Consumer Transformation | B145: =ROUND(SUM(B156,B167),0) -> 7064 | C145: 7820 | D145: 8692 | E145: 9542 | F145: 10562 | G145: 12595 | H145: 14761 | I145: 16837 | J145: 18744 | K145: 20552 | L145: 22347 | M145: 24167 | N145: 26006 | O145: 27762 | P145: 43059 | Q145: 58349 | R145: 73449 | S145: 88433 | T145: 102871 | U145: 117161 | V145: 130864 | W145: 144563 | X145: 158277 | Y145: 172030 | Z145: 185775 | AA145: 199514 | AB145: 213243 | AC145: 226963 | AD145: 240675
A146: DFES 2023 - System Transformation | B146: =ROUND(SUM(B157,B168),0) -> 7064 | C146: 7552 | D146: 8616 | E146: 9276 | F146: 9984 | G146: 11097 | H146: 12379 | I146: 13652 | J146: 15323 | K146: 16904 | L146: 18484 | M146: 20105 | N146: 21747 | O146: 23400 | P146: 37493 | Q146: 51871 | R146: 65689 | S146: 79397 | T146: 92973 | U146: 106528 | V146: 120075 | W146: 133575 | X146: 147016 | Y146: 159938 | Z146: 172850 | AA146: 185752 | AB146: 198632 | AC146: 211492 | AD146: 224332
A147: DFES 2023 - Leading The Way | B147: =ROUND(SUM(B158,B169),0) -> 7064 | C147: 7820 | D147: 8692 | E147: 10151 | F147: 11757 | G147: 13789 | H147: 15956 | I147: 18031 | J147: 19939 | K147: 35401 | L147: 50847 | M147: 66314 | N147: 81794 | O147: 97190 | P147: 112484 | Q147: 127771 | R147: 142867 | S147: 157851 | T147: 171675 | U147: 185378 | V147: 199079 | W147: 212776 | X147: 226489 | Y147: 240240 | Z147: 240330 | AA147: 240416 | AB147: 240498 | AC147: 240574 | AD147: 240675
A148: CCC 2020 - Balanced Net Zero | B148: =ROUND(SUM(B159,B170),0) -> 7759 | C148: 8865 | D148: 10153 | E148: 11651 | F148: 13290 | G148: 15092 | H148: 16993 | I148: 20043 | J148: 23759 | K148: 28146 | L148: 32392 | M148: 37031 | N148: 42050 | O148: 47269 | P148: 52706 | Q148: 59567 | R148: 67570 | S148: 76746 | T148: 85896 | U148: 95272 | V148: 104838 | W148: 114432 | X148: 124119 | Y148: 133872 | Z148: 143688 | AA148: 153254 | AB148: 162454 | AC148: 169514 | AD148: 173421
A149: CT 2023 Policy Sensitivity | B149: =ROUND(SUM(B160,B171),0) -> 7064 | C149: 7946 | D149: 8984 | E149: 9513 | F149: 10096 | G149: 11116 | H149: 12283 | I149: 13384 | J149: 14363 | K149: 15246 | L149: 16126 | M149: 17050 | N149: 17981 | O149: 18966 | P149: 34159 | Q149: 49689 | R149: 64572 | S149: 79314 | T149: 94000 | U149: 108667 | V149: 123334 | W149: 137999 | X149: 152662 | Y149: 167328 | Z149: 181992 | AA149: 196655 | AB149: 211312 | AC149: 225964 | AD149: 239615
A150: BV 2023 Policy Sensitivity | B150: =ROUND(SUM(B161,B172),0) -> 7064 | C150: 7946 | D150: 8984 | E150: 9513 | F150: 10096 | G150: 11116 | H150: 12283 | I150: 13384 | J150: 14363 | K150: 15246 | L150: 16126 | M150: 17050 | N150: 17981 | O150: 18966 | P150: 34159 | Q150: 49689 | R150: 64572 | S150: 79314 | T150: 94000 | U150: 108667 | V150: 123334 | W150: 137999 | X150: 152662 | Y150: 167328 | Z150: 181992 | AA150: 196655 | AB150: 211312 | AC150: 225964 | AD150: 239615
A151: DFES 2023 - NPg Best View | B151: =ROUND(SUM(B162,B173),0) -> 7064 | C151: 7820 | D151: 8692 | E151: 9542 | F151: 10562 | G151: 12595 | H151: 14761 | I151: 16837 | J151: 18744 | K151: 20552 | L151: 22347 | M151: 24167 | N151: 26006 | O151: 27762 | P151: 43059 | Q151: 58349 | R151: 73449 | S151: 88433 | T151: 102871 | U151: 117161 | V151: 130864 | W151: 144563 | X151: 158277 | Y151: 172030 | Z151: 185775 | AA151: 199514 | AB151: 213243 | AC151: 226963 | AD151: 240675
A152: NPg ED2 Planning Scenario - needs updating to old | B152: =ROUND(SUM(B163,B174),0) -> 7064 | C152: 7820 | D152: 8692 | E152: 9542 | F152: 10562 | G152: 12595 | H152: 14761 | I152: 16837 | J152: 18744 | K152: 20552 | L152: 22347 | M152: 24167 | N152: 26006 | O152: 27762 | P152: 43059 | Q152: 58349 | R152: 73449 | S152: 88433 | T152: 102871 | U152: 117161 | V152: 130864 | W152: 144563 | X152: 158277 | Y152: 172030 | Z152: 185775 | AA152: 199514 | AB152: 213243 | AC152: 226963 | AD152: 240675
A153: DFES 2023 - Falling Short | B153: =ROUND(SUM(B164,B175),0) -> 7064 | C153: 7839 | D153: 8769 | E153: 9326 | F153: 9973 | G153: 11072 | H153: 12335 | I153: 13553 | J153: 14660 | K153: 15665 | L153: 16660 | M153: 17710 | N153: 18751 | O153: 20462 | P153: 21977 | Q153: 23947 | R153: 25251 | S153: 26411 | T153: 27382 | U153: 28295 | V153: 29189 | W153: 30057 | X153: 30903 | Y153: 31738 | Z153: 32578 | AA153: 33419 | AB153: 34261 | AC153: 35099 | AD153: 35304
A155: No. of I&C HPs - NPgN | B155: 2022 | C155: 2023 | D155: 2024 | E155: 2025 | F155: 2026 | G155: 2027 | H155: 2028 | I155: 2029 | J155: 2030 | K155: 2031 | L155: 2032 | M155: 2033 | N155: 2034 | O155: 2035 | P155: 2036 | Q155: 2037 | R155: 2038 | S155: 2039 | T155: 2040 | U155: 2041 | V155: 2042 | W155: 2043 | X155: 2044 | Y155: 2045 | Z155: 2046 | AA155: 2047 | AB155: 2048 | AC155: 2049 | AD155: 2050
A156: DFES 2023 - Consumer Transformation | B156: =ROUND(SUM(B190,B224),0) -> 2911 | C156: 3224 | D156: 3585 | E156: 3932 | F156: 4352 | G156: 5192 | H156: 6088 | I156: 6947 | J156: 7733 | K156: 8481 | L156: 9223 | M156: 9975 | N156: 10734 | O156: 11461 | P156: 17753 | Q156: 24041 | R156: 30252 | S156: 36415 | T156: 42350 | U156: 48223 | V156: 53856 | W156: 59488 | X156: 65126 | Y156: 70779 | Z156: 76429 | AA156: 82077 | AB156: 87720 | AC156: 93360 | AD156: 98997
A157: DFES 2023 - System Transformation | B157: =ROUND(SUM(B191,B225),0) -> 2911 | C157: 3123 | D157: 3566 | E157: 3835 | F157: 4125 | G157: 4588 | H157: 5122 | I157: 5652 | J157: 6343 | K157: 6998 | L157: 7653 | M157: 8325 | N157: 9004 | O157: 9688 | P157: 15495 | Q157: 21421 | R157: 27116 | S157: 32765 | T157: 38359 | U157: 43945 | V157: 49527 | W157: 55089 | X157: 60627 | Y157: 65951 | Z157: 71271 | AA157: 76587 | AB157: 81894 | AC157: 87193 | AD157: 92483
A158: DFES 2023 - Leading The Way | B158: =ROUND(SUM(B192,B226),0) -> 2911 | C158: 3224 | D158: 3585 | E158: 4181 | F158: 4839 | G158: 5679 | H158: 6576 | I158: 7434 | J158: 8221 | K158: 14582 | L158: 20936 | M158: 27298 | N158: 33665 | O158: 39999 | P158: 46290 | Q158: 52577 | R158: 58787 | S158: 64950 | T158: 70634 | U158: 76267 | V158: 81900 | W158: 87531 | X158: 93168 | Y158: 98821 | Z158: 98857 | AA158: 98892 | AB158: 98925 | AC158: 98956 | AD158: 98997
A159: CCC 2020 - Balanced Net Zero | B159: =ROUND(SUM(B193,B227),0) -> 3099 | C159: 3576 | D159: 4137 | E159: 4795 | F159: 5514 | G159: 6302 | H159: 7130 | I159: 8565 | J159: 10314 | K159: 12380 | L159: 14305 | M159: 16408 | N159: 18684 | O159: 21050 | P159: 23515 | Q159: 26203 | R159: 29336 | S159: 32927 | T159: 36860 | U159: 40899 | V159: 45026 | W159: 49170 | X159: 53354 | Y159: 57570 | Z159: 61814 | AA159: 65945 | AB159: 69910 | AC159: 72973 | AD159: 74692
A160: CT 2023 Policy Sensitivity | B160: =ROUND(SUM(B194,B228),0) -> 2911 | C160: 3277 | D160: 3708 | E160: 3922 | F160: 4159 | G160: 4582 | H160: 5067 | I160: 5524 | J160: 5928 | K160: 6294 | L160: 6659 | M160: 7042 | N160: 7427 | O160: 7832 | P160: 14079 | Q160: 20469 | R160: 26590 | S160: 32652 | T160: 38690 | U160: 44721 | V160: 50751 | W160: 56781 | X160: 62810 | Y160: 68840 | Z160: 74869 | AA160: 80898 | AB160: 86924 | AC160: 92948 | AD160: 98560
A161: BV 2023 Policy Sensitivity | B161: =ROUND(SUM(B195,B229),0) -> 2911 | C161: 3277 | D161: 3708 | E161: 3922 | F161: 4159 | G161: 4582 | H161: 5067 | I161: 5524 | J161: 5928 | K161: 6294 | L161: 6659 | M161: 7042 | N161: 7427 | O161: 7832 | P161: 14079 | Q161: 20469 | R161: 26590 | S161: 32652 | T161: 38690 | U161: 44721 | V161: 50751 | W161: 56781 | X161: 62810 | Y161: 68840 | Z161: 74869 | AA161: 80898 | AB161: 86924 | AC161: 92948 | AD161: 98560
A162: DFES 2023 - NPg Best View | B162: =ROUND(SUM(B196,B230),0) -> 2911 | C162: 3224 | D162: 3585 | E162: 3932 | F162: 4352 | G162: 5192 | H162: 6088 | I162: 6947 | J162: 7733 | K162: 8481 | L162: 9223 | M162: 9975 | N162: 10734 | O162: 11461 | P162: 17753 | Q162: 24041 | R162: 30252 | S162: 36415 | T162: 42350 | U162: 48223 | V162: 53856 | W162: 59488 | X162: 65126 | Y162: 70779 | Z162: 76429 | AA162: 82077 | AB162: 87720 | AC162: 93360 | AD162: 98997
A163: NPg ED2 Planning Scenario - needs updating to old | B163: =ROUND(SUM(B197,B231),0) -> 2911 | C163: 3224 | D163: 3585 | E163: 3932 | F163: 4352 | G163: 5192 | H163: 6088 | I163: 6947 | J163: 7733 | K163: 8481 | L163: 9223 | M163: 9975 | N163: 10734 | O163: 11461 | P163: 17753 | Q163: 24041 | R163: 30252 | S163: 36415 | T163: 42350 | U163: 48223 | V163: 53856 | W163: 59488 | X163: 65126 | Y163: 70779 | Z163: 76429 | AA163: 82077 | AB163: 87720 | AC163: 93360 | AD163: 98997
A164: DFES 2023 - Falling Short | B164: =ROUND(SUM(B198,B232),0) -> 2911 | C164: 3234 | D164: 3625 | E164: 3851 | F164: 4114 | G164: 4570 | H164: 5095 | I164: 5601 | J164: 6058 | K164: 6475 | L164: 6888 | M164: 7323 | N164: 7754 | O164: 8458 | P164: 9082 | Q164: 9895 | R164: 10433 | S164: 10907 | T164: 11307 | U164: 11683 | V164: 12051 | W164: 12408 | X164: 12756 | Y164: 13100 | Z164: 13445 | AA164: 13791 | AB164: 14137 | AC164: 14482 | AD164: 14566
A166: No. of I&C HPs - NPgY | B166: 2022 | C166: 2023 | D166: 2024 | E166: 2025 | F166: 2026 | G166: 2027 | H166: 2028 | I166: 2029 | J166: 2030 | K166: 2031 | L166: 2032 | M166: 2033 | N166: 2034 | O166: 2035 | P166: 2036 | Q166: 2037 | R166: 2038 | S166: 2039 | T166: 2040 | U166: 2041 | V166: 2042 | W166: 2043 | X166: 2044 | Y166: 2045 | Z166: 2046 | AA166: 2047 | AB166: 2048 | AC166: 2049 | AD166: 2050
A167: DFES 2023 - Consumer Transformation | B167: =ROUND(SUM(B201,B235),0) -> 4153 | C167: 4596 | D167: 5107 | E167: 5610 | F167: 6210 | G167: 7403 | H167: 8673 | I167: 9890 | J167: 11011 | K167: 12071 | L167: 13124 | M167: 14192 | N167: 15272 | O167: 16301 | P167: 25306 | Q167: 34308 | R167: 43197 | S167: 52018 | T167: 60521 | U167: 68938 | V167: 77008 | W167: 85075 | X167: 93151 | Y167: 101251 | Z167: 109346 | AA167: 117437 | AB167: 125523 | AC167: 133603 | AD167: 141678
A168: DFES 2023 - System Transformation | B168: =ROUND(SUM(B202,B236),0) -> 4153 | C168: 4429 | D168: 5050 | E168: 5441 | F168: 5859 | G168: 6509 | H168: 7257 | I168: 8000 | J168: 8980 | K168: 9906 | L168: 10831 | M168: 11780 | N168: 12743 | O168: 13712 | P168: 21998 | Q168: 30450 | R168: 38573 | S168: 46632 | T168: 54614 | U168: 62583 | V168: 70548 | W168: 78486 | X168: 86389 | Y168: 93987 | Z168: 101579 | AA168: 109165 | AB168: 116738 | AC168: 124299 | AD168: 131849
A169: DFES 2023 - Leading The Way | B169: =ROUND(SUM(B203,B237),0) -> 4153 | C169: 4596 | D169: 5107 | E169: 5970 | F169: 6918 | G169: 8110 | H169: 9380 | I169: 10597 | J169: 11718 | K169: 20819 | L169: 29911 | M169: 39016 | N169: 48129 | O169: 57191 | P169: 66194 | Q169: 75194 | R169: 84080 | S169: 92901 | T169: 101041 | U169: 109111 | V169: 117179 | W169: 125245 | X169: 133321 | Y169: 141419 | Z169: 141473 | AA169: 141524 | AB169: 141573 | AC169: 141618 | AD169: 141678
A170: CCC 2020 - Balanced Net Zero | B170: =ROUND(SUM(B204,B238),0) -> 4660 | C170: 5289 | D170: 6016 | E170: 6856 | F170: 7776 | G170: 8790 | H170: 9863 | I170: 11478 | J170: 13445 | K170: 15766 | L170: 18087 | M170: 20623 | N170: 23366 | O170: 26219 | P170: 29191 | Q170: 33364 | R170: 38234 | S170: 43819 | T170: 49036 | U170: 54373 | V170: 59812 | W170: 65262 | X170: 70765 | Y170: 76302 | Z170: 81874 | AA170: 87309 | AB170: 92544 | AC170: 96541 | AD170: 98729
A171: CT 2023 Policy Sensitivity | B171: =ROUND(SUM(B205,B239),0) -> 4153 | C171: 4669 | D171: 5276 | E171: 5591 | F171: 5937 | G171: 6534 | H171: 7216 | I171: 7860 | J171: 8435 | K171: 8952 | L171: 9467 | M171: 10008 | N171: 10554 | O171: 11134 | P171: 20080 | Q171: 29220 | R171: 37982 | S171: 46662 | T171: 55310 | U171: 63946 | V171: 72583 | W171: 81218 | X171: 89852 | Y171: 98488 | Z171: 107123 | AA171: 115757 | AB171: 124388 | AC171: 133016 | AD171: 141055
A172: BV 2023 Policy Sensitivity | B172: =ROUND(SUM(B206,B240),0) -> 4153 | C172: 4669 | D172: 5276 | E172: 5591 | F172: 5937 | G172: 6534 | H172: 7216 | I172: 7860 | J172: 8435 | K172: 8952 | L172: 9467 | M172: 10008 | N172: 10554 | O172: 11134 | P172: 20080 | Q172: 29220 | R172: 37982 | S172: 46662 | T172: 55310 | U172: 63946 | V172: 72583 | W172: 81218 | X172: 89852 | Y172: 98488 | Z172: 107123 | AA172: 115757 | AB172: 124388 | AC172: 133016 | AD172: 141055
A173: DFES 2023 - NPg Best View | B173: =ROUND(SUM(B207,B241),0) -> 4153 | C173: 4596 | D173: 5107 | E173: 5610 | F173: 6210 | G173: 7403 | H173: 8673 | I173: 9890 | J173: 11011 | K173: 12071 | L173: 13124 | M173: 14192 | N173: 15272 | O173: 16301 | P173: 25306 | Q173: 34308 | R173: 43197 | S173: 52018 | T173: 60521 | U173: 68938 | V173: 77008 | W173: 85075 | X173: 93151 | Y173: 101251 | Z173: 109346 | AA173: 117437 | AB173: 125523 | AC173: 133603 | AD173: 141678
A174: NPg ED2 Planning Scenario - needs updating to old | B174: =ROUND(SUM(B208,B242),0) -> 4153 | C174: 4596 | D174: 5107 | E174: 5610 | F174: 6210 | G174: 7403 | H174: 8673 | I174: 9890 | J174: 11011 | K174: 12071 | L174: 13124 | M174: 14192 | N174: 15272 | O174: 16301 | P174: 25306 | Q174: 34308 | R174: 43197 | S174: 52018 | T174: 60521 | U174: 68938 | V174: 77008 | W174: 85075 | X174: 93151 | Y174: 101251 | Z174: 109346 | AA174: 117437 | AB174: 125523 | AC174: 133603 | AD174: 141678
A175: DFES 2023 - Falling Short | B175: =ROUND(SUM(B209,B243),0) -> 4153 | C175: 4605 | D175: 5144 | E175: 5475 | F175: 5859 | G175: 6502 | H175: 7240 | I175: 7952 | J175: 8602 | K175: 9190 | L175: 9772 | M175: 10387 | N175: 10997 | O175: 12004 | P175: 12895 | Q175: 14052 | R175: 14818 | S175: 15504 | T175: 16075 | U175: 16612 | V175: 17138 | W175: 17649 | X175: 18147 | Y175: 18638 | Z175: 19133 | AA175: 19628 | AB175: 20124 | AC175: 20617 | AD175: 20738
A177: Full Electric I&C HP
A178: No. of Full Electric I&C HPs - NPg | B178: 2022 | C178: 2023 | D178: 2024 | E178: 2025 | F178: 2026 | G178: 2027 | H178: 2028 | I178: 2029 | J178: 2030 | K178: 2031 | L178: 2032 | M178: 2033 | N178: 2034 | O178: 2035 | P178: 2036 | Q178: 2037 | R178: 2038 | S178: 2039 | T178: 2040 | U178: 2041 | V178: 2042 | W178: 2043 | X178: 2044 | Y178: 2045 | Z178: 2046 | AA178: 2047 | AB178: 2048 | AC178: 2049 | AD178: 2050
A179: DFES 2023 - Consumer Transformation | B179: =ROUND(SUM(B190,B201),0) -> 7064 | C179: 7820 | D179: 8693 | E179: 9542 | F179: 10562 | G179: 12595 | H179: 14761 | I179: 16837 | J179: 18744 | K179: 20552 | L179: 22347 | M179: 24168 | N179: 26006 | O179: 27762 | P179: 43059 | Q179: 58349 | R179: 73449 | S179: 88434 | T179: 102870 | U179: 117161 | V179: 130863 | W179: 144562 | X179: 158277 | Y179: 172030 | Z179: 185776 | AA179: 199514 | AB179: 213243 | AC179: 226963 | AD179: 240674
A180: DFES 2023 - System Transformation | B180: =ROUND(SUM(B191,B202),0) -> 7064 | C180: 7552 | D180: 8616 | E180: 9276 | F180: 9984 | G180: 11097 | H180: 12379 | I180: 13652 | J180: 15323 | K180: 15354 | L180: 15424 | M180: 15495 | N180: 15887 | O180: 16373 | P180: 25132 | Q180: 33679 | R180: 41335 | S180: 48463 | T180: 53885 | U180: 58542 | V180: 62496 | W180: 65723 | X180: 68956 | Y180: 73269 | Z180: 77295 | AA180: 83588 | AB180: 89602 | AC180: 95750 | AD180: 102950
A181: DFES 2023 - Leading The Way | B181: =ROUND(SUM(B192,B203),0) -> 7064 | C181: 7820 | D181: 8692 | E181: 10151 | F181: 11757 | G181: 13789 | H181: 15956 | I181: 18031 | J181: 19939 | K181: 35401 | L181: 50847 | M181: 66314 | N181: 81795 | O181: 97190 | P181: 112483 | Q181: 127771 | R181: 142867 | S181: 157850 | T181: 171675 | U181: 185378 | V181: 199079 | W181: 212776 | X181: 226489 | Y181: 240240 | Z181: 240330 | AA181: 240417 | AB181: 240498 | AC181: 240574 | AD181: 240674
A182: CCC 2020 - Balanced Net Zero | B182: =ROUND(SUM(B193,B204),0) -> 6584 | C182: 7230 | D182: 8401 | E182: 9779 | F182: 11417 | G182: 13195 | H182: 15057 | I182: 18107 | J182: 21609 | K182: 25684 | L182: 29245 | M182: 33515 | N182: 37715 | O182: 41909 | P182: 46238 | Q182: 52020 | R182: 58603 | S182: 66029 | T182: 72660 | U182: 79122 | V182: 86203 | W182: 93858 | X182: 101540 | Y182: 109656 | Z182: 118165 | AA182: 126504 | AB182: 134572 | AC182: 140173 | AD182: 143484
A183: CT 2023 Policy Sensitivity | B183: =ROUND(SUM(B194,B205),0) -> 7064 | C183: 7946 | D183: 8984 | E183: 9513 | F183: 10096 | G183: 11116 | H183: 12282 | I183: 13383 | J183: 14363 | K183: 15246 | L183: 16126 | M183: 17049 | N183: 17981 | O183: 18966 | P183: 34158 | Q183: 49689 | R183: 64573 | S183: 79315 | T183: 94000 | U183: 108666 | V183: 123334 | W183: 137999 | X183: 152663 | Y183: 167328 | Z183: 181992 | AA183: 196655 | AB183: 211312 | AC183: 225964 | AD183: 239615
A184: BV 2023 Policy Sensitivity | B184: =ROUND(SUM(B195,B206),0) -> 7064 | C184: 7946 | D184: 8984 | E184: 9513 | F184: 10096 | G184: 11116 | H184: 12282 | I184: 13383 | J184: 14363 | K184: 15246 | L184: 16126 | M184: 17049 | N184: 17981 | O184: 18966 | P184: 34158 | Q184: 49689 | R184: 64573 | S184: 79315 | T184: 94000 | U184: 108666 | V184: 123334 | W184: 137999 | X184: 152663 | Y184: 167328 | Z184: 181992 | AA184: 196655 | AB184: 211312 | AC184: 225964 | AD184: 239615
A185: DFES 2023 - NPg Best View | B185: =ROUND(SUM(B196,B207),0) -> 7064 | C185: 7820 | D185: 8693 | E185: 9542 | F185: 10562 | G185: 12595 | H185: 14761 | I185: 16837 | J185: 18744 | K185: 20552 | L185: 22347 | M185: 24168 | N185: 26006 | O185: 27762 | P185: 43059 | Q185: 58349 | R185: 73449 | S185: 88434 | T185: 102870 | U185: 117161 | V185: 130863 | W185: 144562 | X185: 158277 | Y185: 172030 | Z185: 185776 | AA185: 199514 | AB185: 213243 | AC185: 226963 | AD185: 240674
A186: NPg ED2 Planning Scenario - needs updating to old | B186: =ROUND(SUM(B197,B208),0) -> 7064 | C186: 7820 | D186: 8693 | E186: 9542 | F186: 10562 | G186: 12595 | H186: 14761 | I186: 16837 | J186: 18744 | K186: 20552 | L186: 22347 | M186: 24168 | N186: 26006 | O186: 27762 | P186: 43059 | Q186: 58349 | R186: 73449 | S186: 88434 | T186: 102870 | U186: 117161 | V186: 130863 | W186: 144562 | X186: 158277 | Y186: 172030 | Z186: 185776 | AA186: 199514 | AB186: 213243 | AC186: 226963 | AD186: 240674
A187: DFES 2023 - Falling Short | B187: =ROUND(SUM(B198,B209),0) -> 7064 | C187: 7839 | D187: 8770 | E187: 9325 | F187: 9973 | G187: 11072 | H187: 12335 | I187: 13553 | J187: 14660 | K187: 15665 | L187: 16660 | M187: 17710 | N187: 18751 | O187: 20463 | P187: 21977 | Q187: 23947 | R187: 25251 | S187: 26411 | T187: 27382 | U187: 28296 | V187: 29189 | W187: 30057 | X187: 30903 | Y187: 31738 | Z187: 32578 | AA187: 33420 | AB187: 34261 | AC187: 35100 | AD187: 35304
A189: No. of Full Electric I&C HPs - NPgN | B189: 2022 | C189: 2023 | D189: 2024 | E189: 2025 | F189: 2026 | G189: 2027 | H189: 2028 | I189: 2029 | J189: 2030 | K189: 2031 | L189: 2032 | M189: 2033 | N189: 2034 | O189: 2035 | P189: 2036 | Q189: 2037 | R189: 2038 | S189: 2039 | T189: 2040 | U189: 2041 | V189: 2042 | W189: 2043 | X189: 2044 | Y189: 2045 | Z189: 2046 | AA189: 2047 | AB189: 2048 | AC189: 2049 | AD189: 2050
A190: DFES 2023 - Consumer Transformation | B190: 2910.808163 | C190: 3223.640221 | D190: 3585.449594 | E190: 3932.362994 | F190: 4351.514802 | G190: 5191.875458 | H190: 6088.335572 | I190: 6946.54055 | J190: 7733.288372 | K190: 8480.682755 | L190: 9222.978234 | M190: 9975.287861 | N190: 10733.85748 | O190: 11460.60709 | P190: 17752.59271 | Q190: 24040.91642 | R190: 30252.02126 | S190: 36415.45927 | T190: 42349.67924 | U190: 48222.93053 | V190: 53855.95069 | W190: 59487.64096 | X190: 65125.58872 | Y190: 70778.869 | Z190: 76429.35782 | AA190: 82076.84006 | AB190: 87720.43893 | AC190: 93360.29205 | AD190: 98996.74661
A191: DFES 2023 - System Transformation | B191: 2910.808163 | C191: 3122.701741 | D191: 3565.950949 | E191: 3835.116122 | F191: 4124.766968 | G191: 4587.736944 | H191: 5121.802311 | I191: 5651.692469 | J191: 6342.565062 | K191: 6355.251705 | L191: 6385.448831 | M191: 6415.645957 | N191: 6577.774338 | O191: 6778.395816 | P191: 10386.7017 | Q191: 13908.53668 | R191: 17062.80278 | S191: 19999.18658 | T191: 22232.29285 | U191: 24149.74968 | V191: 25777.59525 | W191: 27105.70454 | X191: 28436.19799 | Y191: 30212.80342 | Z191: 31871.02979 | AA191: 34464.11099 | AB191: 36942.20883 | AC191: 39475.27041 | AD191: 42442.16574
A192: DFES 2023 - Leading The Way | B192: 2910.808163 | C192: 3223.590061 | D192: 3585.104088 | E192: 4181.24993 | F192: 4839.054475 | G192: 5679.387912 | H192: 6575.814362 | I192: 7433.996105 | J192: 8220.743927 | K192: 14581.63726 | L192: 20935.76492 | M192: 27298.30475 | N192: 33665.45268 | O192: 39999.07606 | P192: 46289.71689 | Q192: 52576.81774 | R192: 58786.84932 | S192: 64949.55586 | T192: 70633.60487 | U192: 76267.34561 | V192: 81899.60893 | W192: 87530.61619 | X192: 93167.93212 | Y192: 98820.61364 | Z192: 98857.05621 | AA192: 98892.20597 | AB192: 98925.11732 | AC192: 98955.97409 | AD192: 98996.74661
A193: CCC 2020 - Balanced Net Zero | B193: 2629.775701 | C193: 2916.54137 | D193: 3422.971537 | E193: 4024.489509 | F193: 4743.283437 | G193: 5509.922249 | H193: 6317.630729 | I193: 7752.664071 | J193: 9380.730169 | K193: 11296.66681 | L193: 12914.954 | M193: 14850.22779 | N193: 16757.3401 | O193: 18662.95616 | P193: 20629.17692 | Q193: 22883.47588 | R193: 25442.8408 | S193: 28329.0762 | T193: 31180.40351 | U193: 33965.78392 | V193: 37022.57009 | W193: 40329.36209 | X193: 43648.33989 | Y193: 47156.46708 | Z193: 50834.44449 | AA193: 54434.63221 | AB193: 57911.20477 | AC193: 60342.13016 | AD193: 61797.80078
A194: CT 2023 Policy Sensitivity | B194: 2910.808163 | C194: 3277.009685 | D194: 3708.46408 | E194: 3922.029325 | F194: 4158.785207 | G194: 4582.286304 | H194: 5066.660683 | I194: 5523.595832 | J194: 5927.921161 | K194: 6294.271389 | L194: 6659.393753 | M194: 7041.918885 | N194: 7426.99947 | O194: 7832.23547 | P194: 14078.52538 | Q194: 20469.1302 | R194: 26590.38756 | S194: 32652.23757 | T194: 38690.06279 | U194: 44720.53927 | V194: 50751.38359 | W194: 56781.04772 | X194: 62810.23721 | Y194: 68839.74545 | Z194: 74869.02629 | AA194: 80897.6538 | AB194: 86924.28514 | AC194: 92948.28074 | AD194: 98559.86087
A195: BV 2023 Policy Sensitivity | B195: 2910.808163 | C195: 3277.009685 | D195: 3708.46408 | E195: 3922.029325 | F195: 4158.785207 | G195: 4582.286304 | H195: 5066.660683 | I195: 5523.595832 | J195: 5927.921161 | K195: 6294.271389 | L195: 6659.393753 | M195: 7041.918885 | N195: 7426.99947 | O195: 7832.23547 | P195: 14078.52538 | Q195: 20469.1302 | R195: 26590.38756 | S195: 32652.23757 | T195: 38690.06279 | U195: 44720.53927 | V195: 50751.38359 | W195: 56781.04772 | X195: 62810.23721 | Y195: 68839.74545 | Z195: 74869.02629 | AA195: 80897.6538 | AB195: 86924.28514 | AC195: 92948.28074 | AD195: 98559.86087
A196: DFES 2023 - NPg Best View | B196: 2910.808163 | C196: 3223.640221 | D196: 3585.449594 | E196: 3932.362994 | F196: 4351.514802 | G196: 5191.875458 | H196: 6088.335572 | I196: 6946.54055 | J196: 7733.288372 | K196: 8480.682755 | L196: 9222.978234 | M196: 9975.287861 | N196: 10733.85748 | O196: 11460.60709 | P196: 17752.59271 | Q196: 24040.91642 | R196: 30252.02126 | S196: 36415.45927 | T196: 42349.67924 | U196: 48222.93053 | V196: 53855.95069 | W196: 59487.64096 | X196: 65125.58872 | Y196: 70778.869 | Z196: 76429.35782 | AA196: 82076.84006 | AB196: 87720.43893 | AC196: 93360.29205 | AD196: 98996.74661
A197: NPg ED2 Planning Scenario - needs updating to old | B197: 2910.808163 | C197: 3223.640221 | D197: 3585.449594 | E197: 3932.362994 | F197: 4351.514802 | G197: 5191.875458 | H197: 6088.335572 | I197: 6946.54055 | J197: 7733.288372 | K197: 8480.682755 | L197: 9222.978234 | M197: 9975.287861 | N197: 10733.85748 | O197: 11460.60709 | P197: 17752.59271 | Q197: 24040.91642 | R197: 30252.02126 | S197: 36415.45927 | T197: 42349.67924 | U197: 48222.93053 | V197: 53855.95069 | W197: 59487.64096 | X197: 65125.58872 | Y197: 70778.869 | Z197: 76429.35782 | AA197: 82076.84006 | AB197: 87720.43893 | AC197: 93360.29205 | AD197: 98996.74661
